{"text_format":"1","workbook":"xlsx","n_sheets":24,"sheets":["Home","Sales Agreement","Taxes","Master Lease Agreement","Imaging-Mail Schedule","Straight Schedule","IT-Network Schedule","Software Schedule","ImagingEquipSchedule","ImagingGroupBilling","EquipSchedule","Demo-Trial Agmt","Loaner Authorization","Equipment Return","Equip Schedule A","Maint. Agreement - New Contract","Maint. Agreement - Add to Exist","Svc Schedule A","Odyssey Tracker Consent","connectIT Agreement","Inter-Territorial Agmt","Data Security Agreement","Data Security Confirmation","settings"],"not_rendered":{"charts":0,"images":16,"macros":1,"external_links":0,"defined_names":21,"comments":0,"pivot_tables":0},"unopened":[],"bounds":{"document_bytes":16777216,"sheet_cells":100000,"rows_first":2000,"rows_last":500,"rows_between":2000,"halvings":0,"cell_chars":16384,"cell_head_chars":4096},"cells_cut":0,"cells_raw":0,"read":"whole","date_system":"1900"}

{"sheet":"Home","index":0,"n_rows":2,"n_cols":14,"rows_kept":2,"cut":false,"hidden":false,"merged":[[1,1,1,2],[1,4,1,8],[1,10,1,11],[1,13,1,16]]}
[]
[null,"Templates:",null,null,"Individual Sheets:",null,null,null,null,null,"Lease Docs:",null,null,"Show/Hide All Sheets"]

{"sheet":"Sales Agreement","index":1,"n_rows":58,"n_cols":22,"rows_kept":58,"cut":false,"hidden":true,"merged":[[56,2,56,3],[56,4,56,9],[56,13,56,18],[48,7,48,12],[48,13,48,18],[49,2,49,5],[49,11,49,14],[35,21,35,23],[36,21,36,23],[37,17,37,18],[37,19,37,20],[37,21,37,23],[35,18,35,20],[37,6,37,9],[38,17,38,20],[38,21,38,23],[36,17,36,20],[33,3,33,6],[24,3,24,6],[25,3,25,6],[26,3,26,6],[56,21,56,23],[56,19,56,20],[30,21,30,23],[57,2,57,7],[50,2,50,7],[50,15,50,16],[53,2,53,3],[50,11,50,14],[50,17,50,23],[52,6,53,23],[42,3,44,22],[34,3,34,6],[35,3,35,6],[34,21,34,23],[34,18,34,20],[56,10,56,12],[39,2,40,3],[37,1,37,5],[38,2,38,5],[38,6,38,9],[34,7,34,17],[35,7,35,17],[30,7,30,17],[33,21,33,23],[32,18,32,20],[33,18,33,20],[32,21,32,23],[31,18,31,20],[26,21,26,23],[30,18,30,20],[26,18,26,20],[27,18,27,20],[33,7,33,17],[26,7,26,17],[27,7,27,17],[28,18,28,20],[29,18,29,20],[27,21,27,23],[28,21,28,23],[29,21,29,23],[31,21,31,23],[28,7,28,17],[29,7,29,17],[31,7,31,17],[2,8,2,9],[2,10,2,12],[2,13,2,14],[2,15,2,17],[2,19,2,20],[2,21,2,23],[6,9,6,17],[24,18,24,20],[25,18,25,20],[4,18,7,24],[23,18,23,20],[25,21,25,23],[23,21,23,23],[24,21,24,23],[24,7,24,17],[25,7,25,17],[19,7,19,11],[18,7,18,11],[17,13,17,15],[17,17,17,23],[11,2,11,9],[11,15,11,23],[19,20,19,23],[19,13,19,18],[32,7,32,17],[23,3,23,6],[23,7,23,17],[17,2,17,6],[10,2,10,4],[12,2,12,3],[13,2,13,6],[13,10,13,11],[13,13,13,15],[13,17,13,23],[15,2,15,9],[15,15,15,23],[17,10,17,11],[16,2,16,4],[19,2,19,5],[29,3,29,6],[31,3,31,6],[27,3,27,6],[28,3,28,6],[30,3,30,6],[18,2,18,4],[32,3,32,6]]}
[]
[]
[null,null,null,null,null,null,null,null,"Rep:",null,null,null,null,"SO#:",null,null,null,null,null,"Date:"]
[]
[null,null,null,null,null,null,null,null,null,null,null,null,null,null,null,null,null,null,"Corporate Headquarters               1005 W Fayette Street               Syracuse, NY 13204"]
[]
[null,null,null,null,null,null,null,null,null,"Sales Agreement"]
[]
[]
[]
[null,null,"CLIENT NAME:",null,null,null,null,null,null,null,null,null,null,null,null,"CLIENT STREET ADDRESS:"]
[]
[null,null,"CITY:",null,null,null,null,null,null,null,"STATE:",null,null,"CLIENT ZIP:",null,null,null,"PHONE:"]
[]
[null,null,"BILL TO NAME: (if different from above)",null,null,null,null,null,null,null,null,null,null,null,null,"BILL TO STREET ADDRESS:"]
[]
[null,null,"BILL TO CITY:",null,null,null,null,null,null,null,"BILL TO STATE:",null,null,"BILL TO ZIP:",null,null,null,"BILLING EMAIL:"]
[]
[null,null,"DELIVERY DATE:",null,null,null,null,"DELIVERY CONTACT NAME:",null,null,null,null,null,"DELIVERY CONTACT EMAIL:",null,null,null,null,null,null,"DELIVERY PHONE:"]
[]
[]
[]
[]
[null,null,"Qty","Item #",null,null,null,"Item Description",null,null,null,null,null,null,null,null,null,null,"Unit Price",null,null,"Extended Price"]
[null,null,null,null,null,null,null,null,null,null,null,null,null,null,null,null,null,null,null,null,null,{"$f":"C25*S25","v":0}]
[null,null,null,null,null,null,null,null,null,null,null,null,null,null,null,null,null,null,null,null,null,{"$f":"C26*S26","v":0}]
[null,null,null,null,null,null,null,null,null,null,null,null,null,null,null,null,null,null,null,null,null,0]
[null,null,null,null,null,null,null,null,null,null,null,null,null,null,null,null,null,null,null,null,null,0]
[null,null,null,null,null,null,null,null,null,null,null,null,null,null,null,null,null,null,null,null,null,0]
[null,null,null,null,null,null,null,null,null,null,null,null,null,null,null,null,null,null,null,null,null,0]
[null,null,null,null,null,null,null,null,null,null,null,null,null,null,null,null,null,null,null,null,null,0]
[null,null,null,null,null,null,null,null,null,null,null,null,null,null,null,null,null,null,null,null,null,0]
[null,null,null,null,null,null,null,null,null,null,null,null,null,null,null,null,null,null,null,null,null,0]
[null,null,null,null,null,null,null,null,null,null,null,null,null,null,null,null,null,null,null,null,null,0]
[null,null,null,null,null,null,null,null,null,null,null,null,null,null,null,null,null,null,null,null,null,0]
[null,null,null,null,null,null,null,null,null,null,null,null,null,null,null,null,null,null,null,null,null,0]
[null,null,null,null,null,null,null,null,null,null,null,null,null,null,null,null,null,"Sub Total",null,null,null,{"$f":"SUM(V25:V36)","v":0}]
[null,"PURCHASE ORDER:",null,null,null,null,"TAX STATUS:",null,null,null,null,null,null,null,null,null,null,"Sales Tax",null,{"$f":"IF(G39=\"Taxable\",VLOOKUP(N14,Taxes!$A$1:$G$4639,3,FALSE),0)","v":0},null,{"$f":"V37*T38","v":0}]
[null,null,null,null,null,null,"Select One",null,null,null,null,null,null,null,null,null,null,"Total",null,null,null,{"$f":"V37+V38","v":0}]
[null,null,"Notes:"]
[]
[]
[]
[]
[]
[]
[]
[]
[null,null,null,null,null,null,null,"CONNECTIVITY REQUIREMENTS",null,null,null,null,null,"Remote"]
[null,null,"IT CONTACT NAME:",null,null,null,null,null,null,null,null,"IT CONTACT PHONE:",null,null,null,null,null,"IT CONTACT EMAIL:"]
[]
[]
[null,null,"Connectivity Notes:"]
[]
[]
[]
[null,null,"Signature:",null,null,null,null,null,null,null,"Print:",null,null,null,null,null,null,null,null,"Date:"]
[null,null,"UOTSALESAGMTREV032016"]

{"sheet":"Taxes","index":2,"n_rows":4639,"n_cols":7,"rows_kept":4639,"cut":false,"hidden":true,"merged":[]}
["ZipCode","TaxRegionName","Tax Rate","City","County","Territory","Branch"]
[17301,"State of Pennsylvania",0.06,"Abbottstown","Adams","Out of Territory","Syracuse"]
[17303,"State of Pennsylvania",0.06,"Arendtsville","Adams","Out of Territory","Syracuse"]
[17304,"State of Pennsylvania",0.06,"Aspers","Adams","Out of Territory","Syracuse"]
[17306,"State of Pennsylvania",0.06,"Bendersville","Adams","Out of Territory","Syracuse"]
[17307,"State of Pennsylvania",0.06,"Biglerville","Adams","Out of Territory","Syracuse"]
[17310,"State of Pennsylvania",0.06,"Cashtown","Adams","Out of Territory","Syracuse"]
[17316,"State of Pennsylvania",0.06,"East Berlin","Adams","Out of Territory","Syracuse"]
[17320,"State of Pennsylvania",0.06,"Fairfield","Adams","Out of Territory","Syracuse"]
[17325,"State of Pennsylvania",0.06,"Gettysburg","Adams","Out of Territory","Syracuse"]
[17337,"State of Pennsylvania",0.06,"Idaville","Adams","Out of Territory","Syracuse"]
[17340,"State of Pennsylvania",0.06,"Littlestown","Adams","Out of Territory","Syracuse"]
[17343,"State of Pennsylvania",0.06,"Mc Knightstown","Adams","Out of Territory","Syracuse"]
[17344,"State of Pennsylvania",0.06,"Mc Sherrystown","Adams","Out of Territory","Syracuse"]
[17350,"State of Pennsylvania",0.06,"New Oxford","Adams","Out of Territory","Syracuse"]
[17353,"State of Pennsylvania",0.06,"Orrtanna","Adams","Out of Territory","Syracuse"]
[17372,"State of Pennsylvania",0.06,"York Springs","Adams","Out of Territory","Syracuse"]
[17375,"State of Pennsylvania",0.06,"Peach Glen","Adams","Out of Territory","Syracuse"]
[17324,"State of Pennsylvania",0.06,"Gardners","Adams","Out of Territory","Syracuse"]
[5753,"City of Middlebury",0.06,"Middlebury","Addison","Eastern","Burlington"]
[5443,"State of Vermont",0.06,"Bristol","Addison","Eastern","Burlington"]
[5456,"State of Vermont",0.06,"Ferrisburgh","Addison","Eastern","Burlington"]
[5469,"State of Vermont",0.06,"Monkton","Addison","Eastern","Burlington"]
[5472,"State of Vermont",0.06,"New Haven","Addison","Eastern","Burlington"]
[5473,"State of Vermont",0.06,"North Ferrisburgh","Addison","Eastern","Burlington"]
[5487,"State of Vermont",0.06,"Starksboro","Addison","Eastern","Burlington"]
[5491,"State of Vermont",0.06,"Vergennes","Addison","Eastern","Burlington"]
[5734,"State of Vermont",0.06,"Bridport","Addison","Eastern","Burlington"]
[5740,"State of Vermont",0.06,"East Middlebury","Addison","Eastern","Burlington"]
[5747,"State of Vermont",0.06,"Granville","Addison","Eastern","Burlington"]
[5748,"State of Vermont",0.06,"Hancock","Addison","Eastern","Burlington"]
[5760,"State of Vermont",0.06,"Orwell","Addison","Eastern","Burlington"]
[5766,"State of Vermont",0.06,"Ripton","Addison","Eastern","Burlington"]
[5769,"State of Vermont",0.06,"Salisbury","Addison","Eastern","Burlington"]
[5770,"State of Vermont",0.06,"Shoreham","Addison","Eastern","Burlington"]
[5778,"State of Vermont",0.06,"Whiting","Addison","Eastern","Burlington"]
[5669,"State of Vermont",0.06,"Roxbury","Addison","Eastern","Burlington"]
[12007,"County of Albany",0.08,"Alcove","Albany","Eastern","Albany"]
[12009,"County of Albany",0.08,"Altamont","Albany","Eastern","Albany"]
[12023,"County of Albany",0.08,"Berne","Albany","Eastern","Albany"]
[12041,"County of Albany",0.08,"Clarksville","Albany","Eastern","Albany"]
[12045,"County of Albany",0.08,"Coeymans","Albany","Eastern","Albany"]
[12046,"County of Albany",0.08,"Coeymans Hollow","Albany","Eastern","Albany"]
[12047,"County of Albany",0.08,"Cohoes","Albany","Eastern","Albany"]
[12054,"County of Albany",0.08,"Delmar","Albany","Eastern","Albany"]
[12055,"County of Albany",0.08,"Dormansville","Albany","Eastern","Albany"]
[12059,"County of Albany",0.08,"East Berne","Albany","Eastern","Albany"]
[12067,"County of Albany",0.08,"Feura Bush","Albany","Eastern","Albany"]
[12077,"County of Albany",0.08,"Glenmont","Albany","Eastern","Albany"]
[12084,"County of Albany",0.08,"Guilderland","Albany","Eastern","Albany"]
[12085,"County of Albany",0.08,"Guilderland Center","Albany","Eastern","Albany"]
[12107,"County of Albany",0.08,"Knox","Albany","Eastern","Albany"]
[12110,"County of Albany",0.08,"Latham","Albany","Eastern","Albany"]
[12120,"County of Albany",0.08,"Medusa","Albany","Eastern","Albany"]
[12128,"County of Albany",0.08,"Newtonville","Albany","Eastern","Albany"]
[12143,"County of Albany",0.08,"Ravena","Albany","Eastern","Albany"]
[12147,"County of Albany",0.08,"Rensselaerville","Albany","Eastern","Albany"]
[12158,"County of Albany",0.08,"Selkirk","Albany","Eastern","Albany"]
[12159,"County of Albany",0.08,"Slingerlands","Albany","Eastern","Albany"]
[12161,"County of Albany",0.08,"South Bethlehem","Albany","Eastern","Albany"]
[12183,"County of Albany",0.08,"Troy","Albany","Eastern","Albany"]
[12186,"County of Albany",0.08,"Voorheesville","Albany","Eastern","Albany"]
[12189,"County of Albany",0.08,"Watervliet","Albany","Eastern","Albany"]
[12193,"County of Albany",0.08,"Westerlo","Albany","Eastern","Albany"]
[12201,"County of Albany",0.08,"Albany","Albany","Eastern","Albany"]
[12202,"County of Albany",0.08,"Albany","Albany","Eastern","Albany"]
[12203,"County of Albany",0.08,"Albany","Albany","Eastern","Albany"]
[12204,"County of Albany",0.08,"Albany","Albany","Eastern","Albany"]
[12205,"County of Albany",0.08,"Albany","Albany","Eastern","Albany"]
[12206,"County of Albany",0.08,"Albany","Albany","Eastern","Albany"]
[12207,"County of Albany",0.08,"Albany","Albany","Eastern","Albany"]
[12208,"County of Albany",0.08,"Albany","Albany","Eastern","Albany"]
[12209,"County of Albany",0.08,"Albany","Albany","Eastern","Albany"]
[12210,"County of Albany",0.08,"Albany","Albany","Eastern","Albany"]
[12211,"County of Albany",0.08,"Albany","Albany","Eastern","Albany"]
[12212,"County of Albany",0.08,"Albany","Albany","Eastern","Albany"]
[12214,"County of Albany",0.08,"Albany","Albany","Eastern","Albany"]
[12220,"County of Albany",0.08,"Albany","Albany","Eastern","Albany"]
[12222,"County of Albany",0.08,"Albany","Albany","Eastern","Albany"]
[12223,"County of Albany",0.08,"Albany","Albany","Eastern","Albany"]
[12224,"County of Albany",0.08,"Albany","Albany","Eastern","Albany"]
[12225,"County of Albany",0.08,"Albany","Albany","Eastern","Albany"]
[12226,"County of Albany",0.08,"Albany","Albany","Eastern","Albany"]
[12227,"County of Albany",0.08,"Albany","Albany","Eastern","Albany"]
[12228,"County of Albany",0.08,"Albany","Albany","Eastern","Albany"]
[12229,"County of Albany",0.08,"Albany","Albany","Eastern","Albany"]
[12230,"County of Albany",0.08,"Albany","Albany","Eastern","Albany"]
[12231,"County of Albany",0.08,"Albany","Albany","Eastern","Albany"]
[12232,"County of Albany",0.08,"Albany","Albany","Eastern","Albany"]
[12233,"County of Albany",0.08,"Albany","Albany","Eastern","Albany"]
[12234,"County of Albany",0.08,"Albany","Albany","Eastern","Albany"]
[12235,"County of Albany",0.08,"Albany","Albany","Eastern","Albany"]
[12236,"County of Albany",0.08,"Albany","Albany","Eastern","Albany"]
[12237,"County of Albany",0.08,"Albany","Albany","Eastern","Albany"]
[12238,"County of Albany",0.08,"Albany","Albany","Eastern","Albany"]
[12239,"County of Albany",0.08,"Albany","Albany","Eastern","Albany"]
[12240,"County of Albany",0.08,"Albany","Albany","Eastern","Albany"]
[12241,"County of Albany",0.08,"Albany","Albany","Eastern","Albany"]
[12242,"County of Albany",0.08,"Albany","Albany","Eastern","Albany"]
[12243,"County of Albany",0.08,"Albany","Albany","Eastern","Albany"]
[12244,"County of Albany",0.08,"Albany","Albany","Eastern","Albany"]
[12245,"County of Albany",0.08,"Albany","Albany","Eastern","Albany"]
[12246,"County of Albany",0.08,"Albany","Albany","Eastern","Albany"]
[12247,"County of Albany",0.08,"Albany","Albany","Eastern","Albany"]
[12248,"County of Albany",0.08,"Albany","Albany","Eastern","Albany"]
[12249,"County of Albany",0.08,"Albany","Albany","Eastern","Albany"]
[12250,"County of Albany",0.08,"Albany","Albany","Eastern","Albany"]
[12252,"County of Albany",0.08,"Albany","Albany","Eastern","Albany"]
[12255,"County of Albany",0.08,"Albany","Albany","Eastern","Albany"]
[12256,"County of Albany",0.08,"Albany","Albany","Eastern","Albany"]
[12257,"County of Albany",0.08,"Albany","Albany","Eastern","Albany"]
[12260,"County of Albany",0.08,"Albany","Albany","Eastern","Albany"]
[12261,"County of Albany",0.08,"Albany","Albany","Eastern","Albany"]
[12288,"County of Albany",0.08,"Albany","Albany","Eastern","Albany"]
[12469,"County of Albany",0.08,"Preston Hollow","Albany","Eastern","Albany"]
[14029,"County of Allegany",8.5000000000000006E-2,"Centerville","Allegany","Western","Buffalo"]
[14707,"County of Allegany",8.5000000000000006E-2,"Allentown","Allegany","Western","Buffalo"]
[14708,"County of Allegany",8.5000000000000006E-2,"Alma","Allegany","Western","Buffalo"]
[14709,"County of Allegany",8.5000000000000006E-2,"Angelica","Allegany","Western","Buffalo"]
[14711,"County of Allegany",8.5000000000000006E-2,"Belfast","Allegany","Western","Buffalo"]
[14714,"County of Allegany",8.5000000000000006E-2,"Black Creek","Allegany","Western","Buffalo"]
[14715,"County of Allegany",8.5000000000000006E-2,"Bolivar","Allegany","Western","Buffalo"]
[14717,"County of Allegany",8.5000000000000006E-2,"Caneadea","Allegany","Western","Buffalo"]
[14721,"County of Allegany",8.5000000000000006E-2,"Ceres","Allegany","Western","Buffalo"]
[14727,"County of Allegany",8.5000000000000006E-2,"Cuba","Allegany","Western","Buffalo"]
[14735,"County of Allegany",8.5000000000000006E-2,"Fillmore","Allegany","Western","Buffalo"]
[14739,"County of Allegany",8.5000000000000006E-2,"Friendship","Allegany","Western","Buffalo"]
[14744,"County of Allegany",8.5000000000000006E-2,"Houghton","Allegany","Western","Buffalo"]
[14745,"County of Allegany",8.5000000000000006E-2,"Hume","Allegany","Western","Buffalo"]
[14754,"County of Allegany",8.5000000000000006E-2,"Little Genesee","Allegany","Western","Buffalo"]
[14774,"County of Allegany",8.5000000000000006E-2,"Richburg","Allegany","Western","Buffalo"]
[14777,"County of Allegany",8.5000000000000006E-2,"Rushford","Allegany","Western","Buffalo"]
[14786,"County of Allegany",8.5000000000000006E-2,"West Clarksville","Allegany","Western","Buffalo"]
[14802,"County of Allegany",8.5000000000000006E-2,"Alfred","Allegany","Western","Buffalo"]
[14803,"County of Allegany",8.5000000000000006E-2,"Alfred Station","Allegany","Western","Buffalo"]
[14804,"County of Allegany",8.5000000000000006E-2,"Almond","Allegany","Western","Buffalo"]
[14806,"County of Allegany",8.5000000000000006E-2,"Andover","Allegany","Western","Buffalo"]
[14813,"County of Allegany",8.5000000000000006E-2,"Belmont","Allegany","Western","Buffalo"]
[14822,"County of Allegany",8.5000000000000006E-2,"Canaseraga","Allegany","Western","Buffalo"]
[14880,"County of Allegany",8.5000000000000006E-2,"Scio","Allegany","Western","Buffalo"]
[14884,"County of Allegany",8.5000000000000006E-2,"Swain","Allegany","Western","Buffalo"]
[14895,"County of Allegany",8.5000000000000006E-2,"Wellsville","Allegany","Western","Buffalo"]
[14897,"County of Allegany",8.5000000000000006E-2,"Whitesville","Allegany","Western","Buffalo"]
[15006,"County of Allegheny",7.0000000000000007E-2,"Bairdford","Allegheny","Out of Territory","Syracuse"]
[15007,"County of Allegheny",7.0000000000000007E-2,"Bakerstown","Allegheny","Out of Territory","Syracuse"]
[15014,"County of Allegheny",7.0000000000000007E-2,"Brackenridge","Allegheny","Out of Territory","Syracuse"]
[15015,"County of Allegheny",7.0000000000000007E-2,"Bradfordwoods","Allegheny","Out of Territory","Syracuse"]
[15017,"County of Allegheny",7.0000000000000007E-2,"Bridgeville","Allegheny","Out of Territory","Syracuse"]
[15018,"County of Allegheny",7.0000000000000007E-2,"Buena Vista","Allegheny","Out of Territory","Syracuse"]
[15020,"County of Allegheny",7.0000000000000007E-2,"Bunola","Allegheny","Out of Territory","Syracuse"]
[15024,"County of Allegheny",7.0000000000000007E-2,"Cheswick","Allegheny","Out of Territory","Syracuse"]
[15025,"County of Allegheny",7.0000000000000007E-2,"Clairton","Allegheny","Out of Territory","Syracuse"]
[15028,"County of Allegheny",7.0000000000000007E-2,"Coulters","Allegheny","Out of Territory","Syracuse"]
[15030,"County of Allegheny",7.0000000000000007E-2,"Creighton","Allegheny","Out of Territory","Syracuse"]
[15031,"County of Allegheny",7.0000000000000007E-2,"Cuddy","Allegheny","Out of Territory","Syracuse"]
[15032,"County of Allegheny",7.0000000000000007E-2,"Curtisville","Allegheny","Out of Territory","Syracuse"]
[15034,"County of Allegheny",7.0000000000000007E-2,"Dravosburg","Allegheny","Out of Territory","Syracuse"]
[15035,"County of Allegheny",7.0000000000000007E-2,"East Mc Keesport","Allegheny","Out of Territory","Syracuse"]
[15037,"County of Allegheny",7.0000000000000007E-2,"Elizabeth","Allegheny","Out of Territory","Syracuse"]
[15044,"County of Allegheny",7.0000000000000007E-2,"Gibsonia","Allegheny","Out of Territory","Syracuse"]
[15045,"County of Allegheny",7.0000000000000007E-2,"Glassport","Allegheny","Out of Territory","Syracuse"]
[15046,"County of Allegheny",7.0000000000000007E-2,"Crescent","Allegheny","Out of Territory","Syracuse"]
[15047,"County of Allegheny",7.0000000000000007E-2,"Greenock","Allegheny","Out of Territory","Syracuse"]
[15049,"County of Allegheny",7.0000000000000007E-2,"Harwick","Allegheny","Out of Territory","Syracuse"]
[15051,"County of Allegheny",7.0000000000000007E-2,"Indianola","Allegheny","Out of Territory","Syracuse"]
[15056,"County of Allegheny",7.0000000000000007E-2,"Leetsdale","Allegheny","Out of Territory","Syracuse"]
[15064,"County of Allegheny",7.0000000000000007E-2,"Morgan","Allegheny","Out of Territory","Syracuse"]
[15065,"County of Allegheny",7.0000000000000007E-2,"Natrona Heights","Allegheny","Out of Territory","Syracuse"]
[15071,"County of Allegheny",7.0000000000000007E-2,"Oakdale","Allegheny","Out of Territory","Syracuse"]
[15075,"County of Allegheny",7.0000000000000007E-2,"Rural Ridge","Allegheny","Out of Territory","Syracuse"]
[15076,"County of Allegheny",7.0000000000000007E-2,"Russellton","Allegheny","Out of Territory","Syracuse"]
[15082,"County of Allegheny",7.0000000000000007E-2,"Sturgeon","Allegheny","Out of Territory","Syracuse"]
[15084,"County of Allegheny",7.0000000000000007E-2,"Tarentum","Allegheny","Out of Territory","Syracuse"]
[15086,"County of Allegheny",7.0000000000000007E-2,"Warrendale","Allegheny","Out of Territory","Syracuse"]
[15088,"County of Allegheny",7.0000000000000007E-2,"West Elizabeth","Allegheny","Out of Territory","Syracuse"]
[15090,"County of Allegheny",7.0000000000000007E-2,"Wexford","Allegheny","Out of Territory","Syracuse"]
[15091,"County of Allegheny",7.0000000000000007E-2,"Wildwood","Allegheny","Out of Territory","Syracuse"]
[15095,"County of Allegheny",7.0000000000000007E-2,"Warrendale","Allegheny","Out of Territory","Syracuse"]
[15096,"County of Allegheny",7.0000000000000007E-2,"Warrendale","Allegheny","Out of Territory","Syracuse"]
[15101,"County of Allegheny",7.0000000000000007E-2,"Allison Park","Allegheny","Out of Territory","Syracuse"]
[15102,"County of Allegheny",7.0000000000000007E-2,"Bethel Park","Allegheny","Out of Territory","Syracuse"]
[15104,"County of Allegheny",7.0000000000000007E-2,"Braddock","Allegheny","Out of Territory","Syracuse"]
[15106,"County of Allegheny",7.0000000000000007E-2,"Carnegie","Allegheny","Out of Territory","Syracuse"]
[15108,"County of Allegheny",7.0000000000000007E-2,"Coraopolis","Allegheny","Out of Territory","Syracuse"]
[15110,"County of Allegheny",7.0000000000000007E-2,"Duquesne","Allegheny","Out of Territory","Syracuse"]
[15112,"County of Allegheny",7.0000000000000007E-2,"East Pittsburgh","Allegheny","Out of Territory","Syracuse"]
[15116,"County of Allegheny",7.0000000000000007E-2,"Glenshaw","Allegheny","Out of Territory","Syracuse"]
[15120,"County of Allegheny",7.0000000000000007E-2,"Homestead","Allegheny","Out of Territory","Syracuse"]
[15122,"County of Allegheny",7.0000000000000007E-2,"West Mifflin","Allegheny","Out of Territory","Syracuse"]
[15123,"County of Allegheny",7.0000000000000007E-2,"West Mifflin","Allegheny","Out of Territory","Syracuse"]
[15126,"County of Allegheny",7.0000000000000007E-2,"Imperial","Allegheny","Out of Territory","Syracuse"]
[15127,"County of Allegheny",7.0000000000000007E-2,"Ingomar","Allegheny","Out of Territory","Syracuse"]
[15129,"County of Allegheny",7.0000000000000007E-2,"South Park","Allegheny","Out of Territory","Syracuse"]
[15131,"County of Allegheny",7.0000000000000007E-2,"McKeesport","Allegheny","Out of Territory","Syracuse"]
[15132,"County of Allegheny",7.0000000000000007E-2,"McKeesport","Allegheny","Out of Territory","Syracuse"]
[15133,"County of Allegheny",7.0000000000000007E-2,"McKeesport","Allegheny","Out of Territory","Syracuse"]
[15134,"County of Allegheny",7.0000000000000007E-2,"McKeesport","Allegheny","Out of Territory","Syracuse"]
[15135,"County of Allegheny",7.0000000000000007E-2,"McKeesport","Allegheny","Out of Territory","Syracuse"]
[15136,"County of Allegheny",7.0000000000000007E-2,"Mc Kees Rocks","Allegheny","Out of Territory","Syracuse"]
[15137,"County of Allegheny",7.0000000000000007E-2,"North Versailles","Allegheny","Out of Territory","Syracuse"]
[15139,"County of Allegheny",7.0000000000000007E-2,"Oakmont","Allegheny","Out of Territory","Syracuse"]
[15140,"County of Allegheny",7.0000000000000007E-2,"Pitcairn","Allegheny","Out of Territory","Syracuse"]
[15142,"County of Allegheny",7.0000000000000007E-2,"Presto","Allegheny","Out of Territory","Syracuse"]
[15143,"County of Allegheny",7.0000000000000007E-2,"Sewickley","Allegheny","Out of Territory","Syracuse"]
[15144,"County of Allegheny",7.0000000000000007E-2,"Springdale","Allegheny","Out of Territory","Syracuse"]
[15145,"County of Allegheny",7.0000000000000007E-2,"Turtle Creek","Allegheny","Out of Territory","Syracuse"]
[15146,"County of Allegheny",7.0000000000000007E-2,"Monroeville","Allegheny","Out of Territory","Syracuse"]
[15147,"County of Allegheny",7.0000000000000007E-2,"Verona","Allegheny","Out of Territory","Syracuse"]
[15148,"County of Allegheny",7.0000000000000007E-2,"Wilmerding","Allegheny","Out of Territory","Syracuse"]
[15201,"County of Allegheny",7.0000000000000007E-2,"Pittsburgh","Allegheny","Out of Territory","Syracuse"]
[15202,"County of Allegheny",7.0000000000000007E-2,"Pittsburgh","Allegheny","Out of Territory","Syracuse"]
[15203,"County of Allegheny",7.0000000000000007E-2,"Pittsburgh","Allegheny","Out of Territory","Syracuse"]
[15204,"County of Allegheny",7.0000000000000007E-2,"Pittsburgh","Allegheny","Out of Territory","Syracuse"]
[15205,"County of Allegheny",7.0000000000000007E-2,"Pittsburgh","Allegheny","Out of Territory","Syracuse"]
[15206,"County of Allegheny",7.0000000000000007E-2,"Pittsburgh","Allegheny","Out of Territory","Syracuse"]
[15207,"County of Allegheny",7.0000000000000007E-2,"Pittsburgh","Allegheny","Out of Territory","Syracuse"]
[15208,"County of Allegheny",7.0000000000000007E-2,"Pittsburgh","Allegheny","Out of Territory","Syracuse"]
[15209,"County of Allegheny",7.0000000000000007E-2,"Pittsburgh","Allegheny","Out of Territory","Syracuse"]
[15210,"County of Allegheny",7.0000000000000007E-2,"Pittsburgh","Allegheny","Out of Territory","Syracuse"]
[15211,"County of Allegheny",7.0000000000000007E-2,"Pittsburgh","Allegheny","Out of Territory","Syracuse"]
[15212,"County of Allegheny",7.0000000000000007E-2,"Pittsburgh","Allegheny","Out of Territory","Syracuse"]
[15213,"County of Allegheny",7.0000000000000007E-2,"Pittsburgh","Allegheny","Out of Territory","Syracuse"]
[15214,"County of Allegheny",7.0000000000000007E-2,"Pittsburgh","Allegheny","Out of Territory","Syracuse"]
[15215,"County of Allegheny",7.0000000000000007E-2,"Pittsburgh","Allegheny","Out of Territory","Syracuse"]
[15216,"County of Allegheny",7.0000000000000007E-2,"Pittsburgh","Allegheny","Out of Territory","Syracuse"]
[15217,"County of Allegheny",7.0000000000000007E-2,"Pittsburgh","Allegheny","Out of Territory","Syracuse"]
[15218,"County of Allegheny",7.0000000000000007E-2,"Pittsburgh","Allegheny","Out of Territory","Syracuse"]
[15219,"County of Allegheny",7.0000000000000007E-2,"Pittsburgh","Allegheny","Out of Territory","Syracuse"]
[15220,"County of Allegheny",7.0000000000000007E-2,"Pittsburgh","Allegheny","Out of Territory","Syracuse"]
[15221,"County of Allegheny",7.0000000000000007E-2,"Pittsburgh","Allegheny","Out of Territory","Syracuse"]
[15222,"County of Allegheny",7.0000000000000007E-2,"Pittsburgh","Allegheny","Out of Territory","Syracuse"]
[15223,"County of Allegheny",7.0000000000000007E-2,"Pittsburgh","Allegheny","Out of Territory","Syracuse"]
[15224,"County of Allegheny",7.0000000000000007E-2,"Pittsburgh","Allegheny","Out of Territory","Syracuse"]
[15225,"County of Allegheny",7.0000000000000007E-2,"Pittsburgh","Allegheny","Out of Territory","Syracuse"]
[15226,"County of Allegheny",7.0000000000000007E-2,"Pittsburgh","Allegheny","Out of Territory","Syracuse"]
[15227,"County of Allegheny",7.0000000000000007E-2,"Pittsburgh","Allegheny","Out of Territory","Syracuse"]
[15228,"County of Allegheny",7.0000000000000007E-2,"Pittsburgh","Allegheny","Out of Territory","Syracuse"]
[15229,"County of Allegheny",7.0000000000000007E-2,"Pittsburgh","Allegheny","Out of Territory","Syracuse"]
[15230,"County of Allegheny",7.0000000000000007E-2,"Pittsburgh","Allegheny","Out of Territory","Syracuse"]
[15231,"County of Allegheny",7.0000000000000007E-2,"Pittsburgh","Allegheny","Out of Territory","Syracuse"]
[15232,"County of Allegheny",7.0000000000000007E-2,"Pittsburgh","Allegheny","Out of Territory","Syracuse"]
[15233,"County of Allegheny",7.0000000000000007E-2,"Pittsburgh","Allegheny","Out of Territory","Syracuse"]
[15234,"County of Allegheny",7.0000000000000007E-2,"Pittsburgh","Allegheny","Out of Territory","Syracuse"]
[15235,"County of Allegheny",7.0000000000000007E-2,"Pittsburgh","Allegheny","Out of Territory","Syracuse"]
[15236,"County of Allegheny",7.0000000000000007E-2,"Pittsburgh","Allegheny","Out of Territory","Syracuse"]
[15237,"County of Allegheny",7.0000000000000007E-2,"Pittsburgh","Allegheny","Out of Territory","Syracuse"]
[15238,"County of Allegheny",7.0000000000000007E-2,"Pittsburgh","Allegheny","Out of Territory","Syracuse"]
[15239,"County of Allegheny",7.0000000000000007E-2,"Pittsburgh","Allegheny","Out of Territory","Syracuse"]
[15240,"County of Allegheny",7.0000000000000007E-2,"Pittsburgh","Allegheny","Out of Territory","Syracuse"]
[15241,"County of Allegheny",7.0000000000000007E-2,"Pittsburgh","Allegheny","Out of Territory","Syracuse"]
[15242,"County of Allegheny",7.0000000000000007E-2,"Pittsburgh","Allegheny","Out of Territory","Syracuse"]
[15243,"County of Allegheny",7.0000000000000007E-2,"Pittsburgh","Allegheny","Out of Territory","Syracuse"]
[15244,"County of Allegheny",7.0000000000000007E-2,"Pittsburgh","Allegheny","Out of Territory","Syracuse"]
[15250,"County of Allegheny",7.0000000000000007E-2,"Pittsburgh","Allegheny","Out of Territory","Syracuse"]
[15251,"County of Allegheny",7.0000000000000007E-2,"Pittsburgh","Allegheny","Out of Territory","Syracuse"]
[15252,"County of Allegheny",7.0000000000000007E-2,"Pittsburgh","Allegheny","Out of Territory","Syracuse"]
[15253,"County of Allegheny",7.0000000000000007E-2,"Pittsburgh","Allegheny","Out of Territory","Syracuse"]
[15254,"County of Allegheny",7.0000000000000007E-2,"Pittsburgh","Allegheny","Out of Territory","Syracuse"]
[15255,"County of Allegheny",7.0000000000000007E-2,"Pittsburgh","Allegheny","Out of Territory","Syracuse"]
[15257,"County of Allegheny",7.0000000000000007E-2,"Pittsburgh","Allegheny","Out of Territory","Syracuse"]
[15258,"County of Allegheny",7.0000000000000007E-2,"Pittsburgh","Allegheny","Out of Territory","Syracuse"]
[15259,"County of Allegheny",7.0000000000000007E-2,"Pittsburgh","Allegheny","Out of Territory","Syracuse"]
[15260,"County of Allegheny",7.0000000000000007E-2,"Pittsburgh","Allegheny","Out of Territory","Syracuse"]
[15261,"County of Allegheny",7.0000000000000007E-2,"Pittsburgh","Allegheny","Out of Territory","Syracuse"]
[15262,"County of Allegheny",7.0000000000000007E-2,"Pittsburgh","Allegheny","Out of Territory","Syracuse"]
[15264,"County of Allegheny",7.0000000000000007E-2,"Pittsburgh","Allegheny","Out of Territory","Syracuse"]
[15265,"County of Allegheny",7.0000000000000007E-2,"Pittsburgh","Allegheny","Out of Territory","Syracuse"]
[15267,"County of Allegheny",7.0000000000000007E-2,"Pittsburgh","Allegheny","Out of Territory","Syracuse"]
[15268,"County of Allegheny",7.0000000000000007E-2,"Pittsburgh","Allegheny","Out of Territory","Syracuse"]
[15270,"County of Allegheny",7.0000000000000007E-2,"Pittsburgh","Allegheny","Out of Territory","Syracuse"]
[15272,"County of Allegheny",7.0000000000000007E-2,"Pittsburgh","Allegheny","Out of Territory","Syracuse"]
[15274,"County of Allegheny",7.0000000000000007E-2,"Pittsburgh","Allegheny","Out of Territory","Syracuse"]
[15275,"County of Allegheny",7.0000000000000007E-2,"Pittsburgh","Allegheny","Out of Territory","Syracuse"]
[15276,"County of Allegheny",7.0000000000000007E-2,"Pittsburgh","Allegheny","Out of Territory","Syracuse"]
[15277,"County of Allegheny",7.0000000000000007E-2,"Pittsburgh","Allegheny","Out of Territory","Syracuse"]
[15278,"County of Allegheny",7.0000000000000007E-2,"Pittsburgh","Allegheny","Out of Territory","Syracuse"]
[15279,"County of Allegheny",7.0000000000000007E-2,"Pittsburgh","Allegheny","Out of Territory","Syracuse"]
[15281,"County of Allegheny",7.0000000000000007E-2,"Pittsburgh","Allegheny","Out of Territory","Syracuse"]
[15282,"County of Allegheny",7.0000000000000007E-2,"Pittsburgh","Allegheny","Out of Territory","Syracuse"]
[15283,"County of Allegheny",7.0000000000000007E-2,"Pittsburgh","Allegheny","Out of Territory","Syracuse"]
[15286,"County of Allegheny",7.0000000000000007E-2,"Pittsburgh","Allegheny","Out of Territory","Syracuse"]
[15289,"County of Allegheny",7.0000000000000007E-2,"Pittsburgh","Allegheny","Out of Territory","Syracuse"]
[15290,"County of Allegheny",7.0000000000000007E-2,"Pittsburgh","Allegheny","Out of Territory","Syracuse"]
[15295,"County of Allegheny",7.0000000000000007E-2,"Pittsburgh","Allegheny","Out of Territory","Syracuse"]
[15673,"State of Pennsylvania",0.06,"North Apollo","Armstrong","Out of Territory","Syracuse"]
[15682,"State of Pennsylvania",0.06,"Schenley","Armstrong","Out of Territory","Syracuse"]
[15686,"State of Pennsylvania",0.06,"Spring Church","Armstrong","Out of Territory","Syracuse"]
[15736,"State of Pennsylvania",0.06,"Elderton","Armstrong","Out of Territory","Syracuse"]
[16201,"State of Pennsylvania",0.06,"Kittanning","Armstrong","Out of Territory","Syracuse"]
[16210,"State of Pennsylvania",0.06,"Adrian","Armstrong","Out of Territory","Syracuse"]
[16212,"State of Pennsylvania",0.06,"Cadogan","Armstrong","Out of Territory","Syracuse"]
[16218,"State of Pennsylvania",0.06,"Cowansville","Armstrong","Out of Territory","Syracuse"]
[16222,"State of Pennsylvania",0.06,"Dayton","Armstrong","Out of Territory","Syracuse"]
[16223,"State of Pennsylvania",0.06,"Distant","Armstrong","Out of Territory","Syracuse"]
[16226,"State of Pennsylvania",0.06,"Ford City","Armstrong","Out of Territory","Syracuse"]
[16228,"State of Pennsylvania",0.06,"Ford Cliff","Armstrong","Out of Territory","Syracuse"]
[16229,"State of Pennsylvania",0.06,"Freeport","Armstrong","Out of Territory","Syracuse"]
[16236,"State of Pennsylvania",0.06,"Mc Grann","Armstrong","Out of Territory","Syracuse"]
[16238,"State of Pennsylvania",0.06,"Manorville","Armstrong","Out of Territory","Syracuse"]
[16244,"State of Pennsylvania",0.06,"Nu Mine","Armstrong","Out of Territory","Syracuse"]
[16245,"State of Pennsylvania",0.06,"Oak Ridge","Armstrong","Out of Territory","Syracuse"]
[16249,"State of Pennsylvania",0.06,"Rural Valley","Armstrong","Out of Territory","Syracuse"]
[16250,"State of Pennsylvania",0.06,"Sagamore","Armstrong","Out of Territory","Syracuse"]
[16253,"State of Pennsylvania",0.06,"Seminole","Armstrong","Out of Territory","Syracuse"]
[16259,"State of Pennsylvania",0.06,"Templeton","Armstrong","Out of Territory","Syracuse"]
[16261,"State of Pennsylvania",0.06,"Widnoon","Armstrong","Out of Territory","Syracuse"]
[16262,"State of Pennsylvania",0.06,"Worthington","Armstrong","Out of Territory","Syracuse"]
[16263,"State of Pennsylvania",0.06,"Yatesboro","Armstrong","Out of Territory","Syracuse"]
[16049,"State of Pennsylvania",0.06,"Parker","Armstrong","Out of Territory","Syracuse"]
[15656,"State of Pennsylvania",0.06,"Leechburg","Armstrong","Out of Territory","Syracuse"]
[15001,"State of Pennsylvania",0.06,"Aliquippa","Beaver","Out of Territory","Syracuse"]
[15003,"State of Pennsylvania",0.06,"Ambridge","Beaver","Out of Territory","Syracuse"]
[15005,"State of Pennsylvania",0.06,"Baden","Beaver","Out of Territory","Syracuse"]
[15009,"State of Pennsylvania",0.06,"Beaver","Beaver","Out of Territory","Syracuse"]
[15010,"State of Pennsylvania",0.06,"Beaver Falls","Beaver","Out of Territory","Syracuse"]
[15026,"State of Pennsylvania",0.06,"Clinton","Beaver","Out of Territory","Syracuse"]
[15027,"State of Pennsylvania",0.06,"Conway","Beaver","Out of Territory","Syracuse"]
[15042,"State of Pennsylvania",0.06,"Freedom","Beaver","Out of Territory","Syracuse"]
[15043,"State of Pennsylvania",0.06,"Georgetown","Beaver","Out of Territory","Syracuse"]
[15050,"State of Pennsylvania",0.06,"Hookstown","Beaver","Out of Territory","Syracuse"]
[15052,"State of Pennsylvania",0.06,"Industry","Beaver","Out of Territory","Syracuse"]
[15059,"State of Pennsylvania",0.06,"Midland","Beaver","Out of Territory","Syracuse"]
[15061,"State of Pennsylvania",0.06,"Monaca","Beaver","Out of Territory","Syracuse"]
[15066,"State of Pennsylvania",0.06,"New Brighton","Beaver","Out of Territory","Syracuse"]
[15074,"State of Pennsylvania",0.06,"Rochester","Beaver","Out of Territory","Syracuse"]
[15077,"State of Pennsylvania",0.06,"Shippingport","Beaver","Out of Territory","Syracuse"]
[15081,"State of Pennsylvania",0.06,"South Heights","Beaver","Out of Territory","Syracuse"]
[16115,"State of Pennsylvania",0.06,"Darlington","Beaver","Out of Territory","Syracuse"]
[16123,"State of Pennsylvania",0.06,"Fombell","Beaver","Out of Territory","Syracuse"]
[16136,"State of Pennsylvania",0.06,"Koppel","Beaver","Out of Territory","Syracuse"]
[16141,"State of Pennsylvania",0.06,"New Galilee","Beaver","Out of Territory","Syracuse"]
[15521,"State of Pennsylvania",0.06,"Alum Bank","Bedford","Out of Territory","Syracuse"]
[15522,"State of Pennsylvania",0.06,"Bedford","Bedford","Out of Territory","Syracuse"]
[15533,"State of Pennsylvania",0.06,"Breezewood","Bedford","Out of Territory","Syracuse"]
[15534,"State of Pennsylvania",0.06,"Buffalo Mills","Bedford","Out of Territory","Syracuse"]
[15535,"State of Pennsylvania",0.06,"Clearville","Bedford","Out of Territory","Syracuse"]
[15537,"State of Pennsylvania",0.06,"Everett","Bedford","Out of Territory","Syracuse"]
[15539,"State of Pennsylvania",0.06,"Fishertown","Bedford","Out of Territory","Syracuse"]
[15545,"State of Pennsylvania",0.06,"Hyndman","Bedford","Out of Territory","Syracuse"]
[15550,"State of Pennsylvania",0.06,"Manns Choice","Bedford","Out of Territory","Syracuse"]
[15554,"State of Pennsylvania",0.06,"New Paris","Bedford","Out of Territory","Syracuse"]
[15559,"State of Pennsylvania",0.06,"Schellsburg","Bedford","Out of Territory","Syracuse"]
[16633,"State of Pennsylvania",0.06,"Defiance","Bedford","Out of Territory","Syracuse"]
[16650,"State of Pennsylvania",0.06,"Hopewell","Bedford","Out of Territory","Syracuse"]
[16655,"State of Pennsylvania",0.06,"Imler","Bedford","Out of Territory","Syracuse"]
[16659,"State of Pennsylvania",0.06,"Loysburg","Bedford","Out of Territory","Syracuse"]
[16664,"State of Pennsylvania",0.06,"New Enterprise","Bedford","Out of Territory","Syracuse"]
[16667,"State of Pennsylvania",0.06,"Osterburg","Bedford","Out of Territory","Syracuse"]
[16670,"State of Pennsylvania",0.06,"Queen","Bedford","Out of Territory","Syracuse"]
[16672,"State of Pennsylvania",0.06,"Riddlesburg","Bedford","Out of Territory","Syracuse"]
[16678,"State of Pennsylvania",0.06,"Saxton","Bedford","Out of Territory","Syracuse"]
[16679,"State of Pennsylvania",0.06,"Six Mile Run","Bedford","Out of Territory","Syracuse"]
[16695,"State of Pennsylvania",0.06,"Woodbury","Bedford","Out of Territory","Syracuse"]
[17211,"State of Pennsylvania",0.06,"Artemas","Bedford","Out of Territory","Syracuse"]
[16694,"State of Pennsylvania",0.06,"Wood","Bedford","Out of Territory","Syracuse"]
[5340,"City of Bondville",0.06,"Bondville","Bennington","Eastern","Burlington"]
[5254,"City of Manchester",0.06,"Manchester","Bennington","Eastern","Burlington"]
[5255,"City of Manchester Center",0.06,"Manchester Center","Bennington","Eastern","Burlington"]
[5152,"State of Vermont",0.06,"Peru","Bennington","Eastern","Burlington"]
[5201,"State of Vermont",0.06,"Bennington","Bennington","Eastern","Burlington"]
[5250,"State of Vermont",0.06,"Arlington","Bennington","Eastern","Burlington"]
[5251,"State of Vermont",0.06,"Dorset","Bennington","Eastern","Burlington"]
[5252,"State of Vermont",0.06,"East Arlington","Bennington","Eastern","Burlington"]
[5253,"State of Vermont",0.06,"East Dorset","Bennington","Eastern","Burlington"]
[5257,"State of Vermont",0.06,"North Bennington","Bennington","Eastern","Burlington"]
[5260,"State of Vermont",0.06,"North Pownal","Bennington","Eastern","Burlington"]
[5261,"State of Vermont",0.06,"Pownal","Bennington","Eastern","Burlington"]
[5262,"State of Vermont",0.06,"Shaftsbury","Bennington","Eastern","Burlington"]
[5350,"State of Vermont",0.06,"Readsboro","Bennington","Eastern","Burlington"]
[5352,"State of Vermont",0.06,"Stamford","Bennington","Eastern","Burlington"]
[5768,"State of Vermont",0.06,"Rupert","Bennington","Eastern","Burlington"]
[5776,"State of Vermont",0.06,"West Rupert","Bennington","Eastern","Burlington"]
[18056,"State of Pennsylvania",0.06,"Hereford","Berks","Out of Territory","Syracuse"]
[19503,"State of Pennsylvania",0.06,"Bally","Berks","Out of Territory","Syracuse"]
[19504,"State of Pennsylvania",0.06,"Barto","Berks","Out of Territory","Syracuse"]
[19505,"State of Pennsylvania",0.06,"Bechtelsville","Berks","Out of Territory","Syracuse"]
[19506,"State of Pennsylvania",0.06,"Bernville","Berks","Out of Territory","Syracuse"]
[19507,"State of Pennsylvania",0.06,"Bethel","Berks","Out of Territory","Syracuse"]
[19508,"State of Pennsylvania",0.06,"Birdsboro","Berks","Out of Territory","Syracuse"]
[19510,"State of Pennsylvania",0.06,"Blandon","Berks","Out of Territory","Syracuse"]
[19511,"State of Pennsylvania",0.06,"Bowers","Berks","Out of Territory","Syracuse"]
[19512,"State of Pennsylvania",0.06,"Boyertown","Berks","Out of Territory","Syracuse"]
[19516,"State of Pennsylvania",0.06,"Centerport","Berks","Out of Territory","Syracuse"]
[19518,"State of Pennsylvania",0.06,"Douglassville","Berks","Out of Territory","Syracuse"]
[19519,"State of Pennsylvania",0.06,"Earlville","Berks","Out of Territory","Syracuse"]
[19522,"State of Pennsylvania",0.06,"Fleetwood","Berks","Out of Territory","Syracuse"]
[19523,"State of Pennsylvania",0.06,"Geigertown","Berks","Out of Territory","Syracuse"]
[19526,"State of Pennsylvania",0.06,"Hamburg","Berks","Out of Territory","Syracuse"]
[19529,"State of Pennsylvania",0.06,"Kempton","Berks","Out of Territory","Syracuse"]
[19530,"State of Pennsylvania",0.06,"Kutztown","Berks","Out of Territory","Syracuse"]
[19533,"State of Pennsylvania",0.06,"Leesport","Berks","Out of Territory","Syracuse"]
[19534,"State of Pennsylvania",0.06,"Lenhartsville","Berks","Out of Territory","Syracuse"]
[19535,"State of Pennsylvania",0.06,"Limekiln","Berks","Out of Territory","Syracuse"]
[19536,"State of Pennsylvania",0.06,"Lyon Station","Berks","Out of Territory","Syracuse"]
[19538,"State of Pennsylvania",0.06,"Maxatawny","Berks","Out of Territory","Syracuse"]
[19539,"State of Pennsylvania",0.06,"Mertztown","Berks","Out of Territory","Syracuse"]
[19540,"State of Pennsylvania",0.06,"Mohnton","Berks","Out of Territory","Syracuse"]
[19541,"State of Pennsylvania",0.06,"Mohrsville","Berks","Out of Territory","Syracuse"]
[19543,"State of Pennsylvania",0.06,"Morgantown","Berks","Out of Territory","Syracuse"]
[19544,"State of Pennsylvania",0.06,"Mount Aetna","Berks","Out of Territory","Syracuse"]
[19545,"State of Pennsylvania",0.06,"New Berlinville","Berks","Out of Territory","Syracuse"]
[19547,"State of Pennsylvania",0.06,"Oley","Berks","Out of Territory","Syracuse"]
[19548,"State of Pennsylvania",0.06,"Pine Forge","Berks","Out of Territory","Syracuse"]
[19550,"State of Pennsylvania",0.06,"Rehrersburg","Berks","Out of Territory","Syracuse"]
[19551,"State of Pennsylvania",0.06,"Robesonia","Berks","Out of Territory","Syracuse"]
[19554,"State of Pennsylvania",0.06,"Shartlesville","Berks","Out of Territory","Syracuse"]
[19555,"State of Pennsylvania",0.06,"Shoemakersville","Berks","Out of Territory","Syracuse"]
[19559,"State of Pennsylvania",0.06,"Strausstown","Berks","Out of Territory","Syracuse"]
[19560,"State of Pennsylvania",0.06,"Temple","Berks","Out of Territory","Syracuse"]
[19562,"State of Pennsylvania",0.06,"Topton","Berks","Out of Territory","Syracuse"]
[19564,"State of Pennsylvania",0.06,"Virginville","Berks","Out of Territory","Syracuse"]
[19565,"State of Pennsylvania",0.06,"Wernersville","Berks","Out of Territory","Syracuse"]
[19567,"State of Pennsylvania",0.06,"Womelsdorf","Berks","Out of Territory","Syracuse"]
[19601,"State of Pennsylvania",0.06,"Reading","Berks","Out of Territory","Syracuse"]
[19602,"State of Pennsylvania",0.06,"Reading","Berks","Out of Territory","Syracuse"]
[19603,"State of Pennsylvania",0.06,"Reading","Berks","Out of Territory","Syracuse"]
[19604,"State of Pennsylvania",0.06,"Reading","Berks","Out of Territory","Syracuse"]
[19605,"State of Pennsylvania",0.06,"Reading","Berks","Out of Territory","Syracuse"]
[19606,"State of Pennsylvania",0.06,"Reading","Berks","Out of Territory","Syracuse"]
[19607,"State of Pennsylvania",0.06,"Reading","Berks","Out of Territory","Syracuse"]
[19608,"State of Pennsylvania",0.06,"Reading","Berks","Out of Territory","Syracuse"]
[19609,"State of Pennsylvania",0.06,"Reading","Berks","Out of Territory","Syracuse"]
[19610,"State of Pennsylvania",0.06,"Reading","Berks","Out of Territory","Syracuse"]
[19611,"State of Pennsylvania",0.06,"Reading","Berks","Out of Territory","Syracuse"]
[19612,"State of Pennsylvania",0.06,"Reading","Berks","Out of Territory","Syracuse"]
[16601,"State of Pennsylvania",0.06,"Altoona","Blair","Out of Territory","Syracuse"]
[16602,"State of Pennsylvania",0.06,"Altoona","Blair","Out of Territory","Syracuse"]
[16603,"State of Pennsylvania",0.06,"Altoona","Blair","Out of Territory","Syracuse"]
[16617,"State of Pennsylvania",0.06,"Bellwood","Blair","Out of Territory","Syracuse"]
[16625,"State of Pennsylvania",0.06,"Claysburg","Blair","Out of Territory","Syracuse"]
[16631,"State of Pennsylvania",0.06,"Curryville","Blair","Out of Territory","Syracuse"]
[16635,"State of Pennsylvania",0.06,"Duncansville","Blair","Out of Territory","Syracuse"]
[16637,"State of Pennsylvania",0.06,"East Freedom","Blair","Out of Territory","Syracuse"]
[16648,"State of Pennsylvania",0.06,"Hollidaysburg","Blair","Out of Territory","Syracuse"]
[16662,"State of Pennsylvania",0.06,"Martinsburg","Blair","Out of Territory","Syracuse"]
[16665,"State of Pennsylvania",0.06,"Newry","Blair","Out of Territory","Syracuse"]
[16673,"State of Pennsylvania",0.06,"Roaring Spring","Blair","Out of Territory","Syracuse"]
[16682,"State of Pennsylvania",0.06,"Sproul","Blair","Out of Territory","Syracuse"]
[16684,"State of Pennsylvania",0.06,"Tipton","Blair","Out of Territory","Syracuse"]
[16686,"State of Pennsylvania",0.06,"Tyrone","Blair","Out of Territory","Syracuse"]
[16693,"State of Pennsylvania",0.06,"Williamsburg","Blair","Out of Territory","Syracuse"]
[16910,"State of Pennsylvania",0.06,"Alba","Bradford","Central","Binghamton"]
[16914,"State of Pennsylvania",0.06,"Columbia Cross Roads","Bradford","Central","Binghamton"]
[16925,"State of Pennsylvania",0.06,"Gillett","Bradford","Central","Binghamton"]
[16926,"State of Pennsylvania",0.06,"Granville Summit","Bradford","Central","Binghamton"]
[16945,"State of Pennsylvania",0.06,"Sylvania","Bradford","Central","Binghamton"]
[16947,"State of Pennsylvania",0.06,"Troy","Bradford","Central","Binghamton"]
[17724,"State of Pennsylvania",0.06,"Canton","Bradford","Central","Binghamton"]
[17735,"State of Pennsylvania",0.06,"Grover","Bradford","Central","Binghamton"]
[18810,"State of Pennsylvania",0.06,"Athens","Bradford","Central","Binghamton"]
[18814,"State of Pennsylvania",0.06,"Burlington","Bradford","Central","Binghamton"]
[18815,"State of Pennsylvania",0.06,"Camptown","Bradford","Central","Binghamton"]
[18817,"State of Pennsylvania",0.06,"East Smithfield","Bradford","Central","Binghamton"]
[18829,"State of Pennsylvania",0.06,"Le Raysville","Bradford","Central","Binghamton"]
[18831,"State of Pennsylvania",0.06,"Milan","Bradford","Central","Binghamton"]
[18832,"State of Pennsylvania",0.06,"Monroeton","Bradford","Central","Binghamton"]
[18833,"State of Pennsylvania",0.06,"New Albany","Bradford","Central","Binghamton"]
[18837,"State of Pennsylvania",0.06,"Rome","Bradford","Central","Binghamton"]
[18840,"State of Pennsylvania",0.06,"Sayre","Bradford","Central","Binghamton"]
[18845,"State of Pennsylvania",0.06,"Stevensville","Bradford","Central","Binghamton"]
[18846,"State of Pennsylvania",0.06,"Sugar Run","Bradford","Central","Binghamton"]
[18848,"State of Pennsylvania",0.06,"Towanda","Bradford","Central","Binghamton"]
[18850,"State of Pennsylvania",0.06,"Ulster","Bradford","Central","Binghamton"]
[18851,"State of Pennsylvania",0.06,"Warren Center","Bradford","Central","Binghamton"]
[18853,"State of Pennsylvania",0.06,"Wyalusing","Bradford","Central","Binghamton"]
[18854,"State of Pennsylvania",0.06,"Wysox","Bradford","Central","Binghamton"]
[10451,"New York City",8.8749999999999996E-2,"Bronx","Bronx","Out of Territory","Syracuse"]
[10452,"New York City",8.8749999999999996E-2,"Bronx","Bronx","Out of Territory","Syracuse"]
[10453,"New York City",8.8749999999999996E-2,"Bronx","Bronx","Out of Territory","Syracuse"]
[10454,"New York City",8.8749999999999996E-2,"Bronx","Bronx","Out of Territory","Syracuse"]
[10455,"New York City",8.8749999999999996E-2,"Bronx","Bronx","Out of Territory","Syracuse"]
[10456,"New York City",8.8749999999999996E-2,"Bronx","Bronx","Out of Territory","Syracuse"]
[10457,"New York City",8.8749999999999996E-2,"Bronx","Bronx","Out of Territory","Syracuse"]
[10458,"New York City",8.8749999999999996E-2,"Bronx","Bronx","Out of Territory","Syracuse"]
[10459,"New York City",8.8749999999999996E-2,"Bronx","Bronx","Out of Territory","Syracuse"]
[10460,"New York City",8.8749999999999996E-2,"Bronx","Bronx","Out of Territory","Syracuse"]
[10461,"New York City",8.8749999999999996E-2,"Bronx","Bronx","Out of Territory","Syracuse"]
[10462,"New York City",8.8749999999999996E-2,"Bronx","Bronx","Out of Territory","Syracuse"]
[10463,"New York City",8.8749999999999996E-2,"Bronx","Bronx","Out of Territory","Syracuse"]
[10464,"New York City",8.8749999999999996E-2,"Bronx","Bronx","Out of Territory","Syracuse"]
[10465,"New York City",8.8749999999999996E-2,"Bronx","Bronx","Out of Territory","Syracuse"]
[10466,"New York City",8.8749999999999996E-2,"Bronx","Bronx","Out of Territory","Syracuse"]
[10467,"New York City",8.8749999999999996E-2,"Bronx","Bronx","Out of Territory","Syracuse"]
[10468,"New York City",8.8749999999999996E-2,"Bronx","Bronx","Out of Territory","Syracuse"]
[10469,"New York City",8.8749999999999996E-2,"Bronx","Bronx","Out of Territory","Syracuse"]
[10470,"New York City",8.8749999999999996E-2,"Bronx","Bronx","Out of Territory","Syracuse"]
[10471,"New York City",8.8749999999999996E-2,"Bronx","Bronx","Out of Territory","Syracuse"]
[10472,"New York City",8.8749999999999996E-2,"Bronx","Bronx","Out of Territory","Syracuse"]
[10473,"New York City",8.8749999999999996E-2,"Bronx","Bronx","Out of Territory","Syracuse"]
[10474,"New York City",8.8749999999999996E-2,"Bronx","Bronx","Out of Territory","Syracuse"]
[10475,"New York City",8.8749999999999996E-2,"Bronx","Bronx","Out of Territory","Syracuse"]
[13737,"County of Broome",0.08,"Bible School Park","Broome","Central","Binghamton"]
[13744,"County of Broome",0.08,"Castle Creek","Broome","Central","Binghamton"]
[13745,"County of Broome",0.08,"Chenango Bridge","Broome","Central","Binghamton"]
[13746,"County of Broome",0.08,"Chenango Forks","Broome","Central","Binghamton"]
[13748,"County of Broome",0.08,"Conklin","Broome","Central","Binghamton"]
[13749,"County of Broome",0.08,"Corbettsville","Broome","Central","Binghamton"]
[13754,"County of Broome",0.08,"Deposit","Broome","Central","Binghamton"]
[13760,"County of Broome",0.08,"Endicott","Broome","Central","Binghamton"]
[13761,"County of Broome",0.08,"Endicott","Broome","Central","Binghamton"]
[13762,"County of Broome",0.08,"Endwell","Broome","Central","Binghamton"]
[13763,"County of Broome",0.08,"Endicott","Broome","Central","Binghamton"]
[13777,"County of Broome",0.08,"Glen Aubrey","Broome","Central","Binghamton"]
[13787,"County of Broome",0.08,"Harpursville","Broome","Central","Binghamton"]
[13790,"County of Broome",0.08,"Johnson City","Broome","Central","Binghamton"]
[13794,"County of Broome",0.08,"Killawog","Broome","Central","Binghamton"]
[13795,"County of Broome",0.08,"Kirkwood","Broome","Central","Binghamton"]
[13797,"County of Broome",0.08,"Lisle","Broome","Central","Binghamton"]
[13802,"County of Broome",0.08,"Maine","Broome","Central","Binghamton"]
[13813,"County of Broome",0.08,"Nineveh","Broome","Central","Binghamton"]
[13826,"County of Broome",0.08,"Ouaquaga","Broome","Central","Binghamton"]
[13833,"County of Broome",0.08,"Port Crane","Broome","Central","Binghamton"]
[13848,"County of Broome",0.08,"Tunnel","Broome","Central","Binghamton"]
[13850,"County of Broome",0.08,"Vestal","Broome","Central","Binghamton"]
[13851,"County of Broome",0.08,"Vestal","Broome","Central","Binghamton"]
[13862,"County of Broome",0.08,"Whitney Point","Broome","Central","Binghamton"]
[13865,"County of Broome",0.08,"Windsor","Broome","Central","Binghamton"]
[13901,"County of Broome",0.08,"Binghamton","Broome","Central","Binghamton"]
[13902,"County of Broome",0.08,"Binghamton","Broome","Central","Binghamton"]
[13903,"County of Broome",0.08,"Binghamton","Broome","Central","Binghamton"]
[13904,"County of Broome",0.08,"Binghamton","Broome","Central","Binghamton"]
[13905,"County of Broome",0.08,"Binghamton","Broome","Central","Binghamton"]
[18039,"State of Pennsylvania",0.06,"Durham","Bucks","Out of Territory","Syracuse"]
[18077,"State of Pennsylvania",0.06,"Riegelsville","Bucks","Out of Territory","Syracuse"]
[18081,"State of Pennsylvania",0.06,"Springtown","Bucks","Out of Territory","Syracuse"]
[18901,"State of Pennsylvania",0.06,"Doylestown","Bucks","Out of Territory","Syracuse"]
[18902,"State of Pennsylvania",0.06,"Doylestown","Bucks","Out of Territory","Syracuse"]
[18910,"State of Pennsylvania",0.06,"Bedminster","Bucks","Out of Territory","Syracuse"]
[18911,"State of Pennsylvania",0.06,"Blooming Glen","Bucks","Out of Territory","Syracuse"]
[18912,"State of Pennsylvania",0.06,"Buckingham","Bucks","Out of Territory","Syracuse"]
[18913,"State of Pennsylvania",0.06,"Carversville","Bucks","Out of Territory","Syracuse"]
[18914,"State of Pennsylvania",0.06,"Chalfont","Bucks","Out of Territory","Syracuse"]
[18916,"State of Pennsylvania",0.06,"Danboro","Bucks","Out of Territory","Syracuse"]
[18917,"State of Pennsylvania",0.06,"Dublin","Bucks","Out of Territory","Syracuse"]
[18920,"State of Pennsylvania",0.06,"Erwinna","Bucks","Out of Territory","Syracuse"]
[18921,"State of Pennsylvania",0.06,"Ferndale","Bucks","Out of Territory","Syracuse"]
[18922,"State of Pennsylvania",0.06,"Forest Grove","Bucks","Out of Territory","Syracuse"]
[18923,"State of Pennsylvania",0.06,"Fountainville","Bucks","Out of Territory","Syracuse"]
[18925,"State of Pennsylvania",0.06,"Furlong","Bucks","Out of Territory","Syracuse"]
[18927,"State of Pennsylvania",0.06,"Hilltown","Bucks","Out of Territory","Syracuse"]
[18928,"State of Pennsylvania",0.06,"Holicong","Bucks","Out of Territory","Syracuse"]
[18929,"State of Pennsylvania",0.06,"Jamison","Bucks","Out of Territory","Syracuse"]
[18930,"State of Pennsylvania",0.06,"Kintnersville","Bucks","Out of Territory","Syracuse"]
[18931,"State of Pennsylvania",0.06,"Lahaska","Bucks","Out of Territory","Syracuse"]
[18932,"State of Pennsylvania",0.06,"Line Lexington","Bucks","Out of Territory","Syracuse"]
[18933,"State of Pennsylvania",0.06,"Lumberville","Bucks","Out of Territory","Syracuse"]
[18934,"State of Pennsylvania",0.06,"Mechanicsville","Bucks","Out of Territory","Syracuse"]
[18935,"State of Pennsylvania",0.06,"Milford Square","Bucks","Out of Territory","Syracuse"]
[18938,"State of Pennsylvania",0.06,"New Hope","Bucks","Out of Territory","Syracuse"]
[18940,"State of Pennsylvania",0.06,"Newtown","Bucks","Out of Territory","Syracuse"]
[18942,"State of Pennsylvania",0.06,"Ottsville","Bucks","Out of Territory","Syracuse"]
[18943,"State of Pennsylvania",0.06,"Penns Park","Bucks","Out of Territory","Syracuse"]
[18944,"State of Pennsylvania",0.06,"Perkasie","Bucks","Out of Territory","Syracuse"]
[18946,"State of Pennsylvania",0.06,"Pineville","Bucks","Out of Territory","Syracuse"]
[18947,"State of Pennsylvania",0.06,"Pipersville","Bucks","Out of Territory","Syracuse"]
[18949,"State of Pennsylvania",0.06,"Plumsteadville","Bucks","Out of Territory","Syracuse"]
[18950,"State of Pennsylvania",0.06,"Point Pleasant","Bucks","Out of Territory","Syracuse"]
[18951,"State of Pennsylvania",0.06,"Quakertown","Bucks","Out of Territory","Syracuse"]
[18953,"State of Pennsylvania",0.06,"Revere","Bucks","Out of Territory","Syracuse"]
[18954,"State of Pennsylvania",0.06,"Richboro","Bucks","Out of Territory","Syracuse"]
[18955,"State of Pennsylvania",0.06,"Richlandtown","Bucks","Out of Territory","Syracuse"]
[18956,"State of Pennsylvania",0.06,"Rushland","Bucks","Out of Territory","Syracuse"]
[18960,"State of Pennsylvania",0.06,"Sellersville","Bucks","Out of Territory","Syracuse"]
[18962,"State of Pennsylvania",0.06,"Silverdale","Bucks","Out of Territory","Syracuse"]
[18963,"State of Pennsylvania",0.06,"Solebury","Bucks","Out of Territory","Syracuse"]
[18966,"State of Pennsylvania",0.06,"Southampton","Bucks","Out of Territory","Syracuse"]
[18968,"State of Pennsylvania",0.06,"Spinnerstown","Bucks","Out of Territory","Syracuse"]
[18970,"State of Pennsylvania",0.06,"Trumbauersville","Bucks","Out of Territory","Syracuse"]
[18972,"State of Pennsylvania",0.06,"Upper Black Eddy","Bucks","Out of Territory","Syracuse"]
[18974,"State of Pennsylvania",0.06,"Warminster","Bucks","Out of Territory","Syracuse"]
[18976,"State of Pennsylvania",0.06,"Warrington","Bucks","Out of Territory","Syracuse"]
[18977,"State of Pennsylvania",0.06,"Washington Crossing","Bucks","Out of Territory","Syracuse"]
[18980,"State of Pennsylvania",0.06,"Wycombe","Bucks","Out of Territory","Syracuse"]
[18981,"State of Pennsylvania",0.06,"Zionhill","Bucks","Out of Territory","Syracuse"]
[18991,"State of Pennsylvania",0.06,"Warminster","Bucks","Out of Territory","Syracuse"]
[19007,"State of Pennsylvania",0.06,"Bristol","Bucks","Out of Territory","Syracuse"]
[19020,"State of Pennsylvania",0.06,"Bensalem","Bucks","Out of Territory","Syracuse"]
[19021,"State of Pennsylvania",0.06,"Croydon","Bucks","Out of Territory","Syracuse"]
[19030,"State of Pennsylvania",0.06,"Fairless Hills","Bucks","Out of Territory","Syracuse"]
[19047,"State of Pennsylvania",0.06,"Langhorne","Bucks","Out of Territory","Syracuse"]
[19053,"State of Pennsylvania",0.06,"Feasterville Trevose","Bucks","Out of Territory","Syracuse"]
[19054,"State of Pennsylvania",0.06,"Levittown","Bucks","Out of Territory","Syracuse"]
[19055,"State of Pennsylvania",0.06,"Levittown","Bucks","Out of Territory","Syracuse"]
[19056,"State of Pennsylvania",0.06,"Levittown","Bucks","Out of Territory","Syracuse"]
[19057,"State of Pennsylvania",0.06,"Levittown","Bucks","Out of Territory","Syracuse"]
[19058,"State of Pennsylvania",0.06,"Levittown","Bucks","Out of Territory","Syracuse"]
[19067,"State of Pennsylvania",0.06,"Morrisville","Bucks","Out of Territory","Syracuse"]
[19048,"State of Pennsylvania",0.06,"Fort Washington","Bucks","Out of Territory","Syracuse"]
[19049,"State of Pennsylvania",0.06,"Fort Washington","Bucks","Out of Territory","Syracuse"]
[16001,"State of Pennsylvania",0.06,"Butler","Butler","Out of Territory","Syracuse"]
[16002,"State of Pennsylvania",0.06,"Butler","Butler","Out of Territory","Syracuse"]
[16003,"State of Pennsylvania",0.06,"Butler","Butler","Out of Territory","Syracuse"]
[16016,"State of Pennsylvania",0.06,"Boyers","Butler","Out of Territory","Syracuse"]
[16017,"State of Pennsylvania",0.06,"Boyers","Butler","Out of Territory","Syracuse"]
[16018,"State of Pennsylvania",0.06,"Boyers","Butler","Out of Territory","Syracuse"]
[16020,"State of Pennsylvania",0.06,"Boyers","Butler","Out of Territory","Syracuse"]
[16021,"State of Pennsylvania",0.06,"Branchton","Butler","Out of Territory","Syracuse"]
[16022,"State of Pennsylvania",0.06,"Bruin","Butler","Out of Territory","Syracuse"]
[16023,"State of Pennsylvania",0.06,"Cabot","Butler","Out of Territory","Syracuse"]
[16024,"State of Pennsylvania",0.06,"Callery","Butler","Out of Territory","Syracuse"]
[16025,"State of Pennsylvania",0.06,"Chicora","Butler","Out of Territory","Syracuse"]
[16027,"State of Pennsylvania",0.06,"Connoquenessing","Butler","Out of Territory","Syracuse"]
[16029,"State of Pennsylvania",0.06,"East Butler","Butler","Out of Territory","Syracuse"]
[16030,"State of Pennsylvania",0.06,"Eau Claire","Butler","Out of Territory","Syracuse"]
[16033,"State of Pennsylvania",0.06,"Evans City","Butler","Out of Territory","Syracuse"]
[16034,"State of Pennsylvania",0.06,"Fenelton","Butler","Out of Territory","Syracuse"]
[16035,"State of Pennsylvania",0.06,"Forestville","Butler","Out of Territory","Syracuse"]
[16037,"State of Pennsylvania",0.06,"Harmony","Butler","Out of Territory","Syracuse"]
[16038,"State of Pennsylvania",0.06,"Harrisville","Butler","Out of Territory","Syracuse"]
[16039,"State of Pennsylvania",0.06,"Herman","Butler","Out of Territory","Syracuse"]
[16040,"State of Pennsylvania",0.06,"Hilliards","Butler","Out of Territory","Syracuse"]
[16041,"State of Pennsylvania",0.06,"Karns City","Butler","Out of Territory","Syracuse"]
[16045,"State of Pennsylvania",0.06,"Lyndora","Butler","Out of Territory","Syracuse"]
[16046,"State of Pennsylvania",0.06,"Mars","Butler","Out of Territory","Syracuse"]
[16048,"State of Pennsylvania",0.06,"North Washington","Butler","Out of Territory","Syracuse"]
[16050,"State of Pennsylvania",0.06,"Petrolia","Butler","Out of Territory","Syracuse"]
[16051,"State of Pennsylvania",0.06,"Portersville","Butler","Out of Territory","Syracuse"]
[16052,"State of Pennsylvania",0.06,"Prospect","Butler","Out of Territory","Syracuse"]
[16053,"State of Pennsylvania",0.06,"Renfrew","Butler","Out of Territory","Syracuse"]
[16055,"State of Pennsylvania",0.06,"Sarver","Butler","Out of Territory","Syracuse"]
[16056,"State of Pennsylvania",0.06,"Saxonburg","Butler","Out of Territory","Syracuse"]
[16057,"State of Pennsylvania",0.06,"Slippery Rock","Butler","Out of Territory","Syracuse"]
[16059,"State of Pennsylvania",0.06,"Valencia","Butler","Out of Territory","Syracuse"]
[16061,"State of Pennsylvania",0.06,"West Sunbury","Butler","Out of Territory","Syracuse"]
[16063,"State of Pennsylvania",0.06,"Zelienople","Butler","Out of Territory","Syracuse"]
[16066,"State of Pennsylvania",0.06,"Cranberry Township","Butler","Out of Territory","Syracuse"]
[5042,"State of Vermont",0.06,"East Ryegate","Caledonia","Eastern","Burlington"]
[5046,"State of Vermont",0.06,"Groton","Caledonia","Eastern","Burlington"]
[5050,"State of Vermont",0.06,"Mc Indoe Falls","Caledonia","Eastern","Burlington"]
[5819,"State of Vermont",0.06,"Saint Johnsbury","Caledonia","Eastern","Burlington"]
[5821,"State of Vermont",0.06,"Barnet","Caledonia","Eastern","Burlington"]
[5828,"State of Vermont",0.06,"Danville","Caledonia","Eastern","Burlington"]
[5832,"State of Vermont",0.06,"East Burke","Caledonia","Eastern","Burlington"]
[5836,"State of Vermont",0.06,"East Hardwick","Caledonia","Eastern","Burlington"]
[5838,"State of Vermont",0.06,"East Saint Johnsbury","Caledonia","Eastern","Burlington"]
[5843,"State of Vermont",0.06,"Hardwick","Caledonia","Eastern","Burlington"]
[5848,"State of Vermont",0.06,"Lower Waterford","Caledonia","Eastern","Burlington"]
[5849,"State of Vermont",0.06,"Lyndon","Caledonia","Eastern","Burlington"]
[5850,"State of Vermont",0.06,"Lyndon Center","Caledonia","Eastern","Burlington"]
[5851,"State of Vermont",0.06,"Lyndonville","Caledonia","Eastern","Burlington"]
[5861,"State of Vermont",0.06,"Passumpsic","Caledonia","Eastern","Burlington"]
[5862,"State of Vermont",0.06,"Peacham","Caledonia","Eastern","Burlington"]
[5863,"State of Vermont",0.06,"Saint Johnsbury Center","Caledonia","Eastern","Burlington"]
[5866,"State of Vermont",0.06,"Sheffield","Caledonia","Eastern","Burlington"]
[5867,"State of Vermont",0.06,"Sutton","Caledonia","Eastern","Burlington"]
[5871,"State of Vermont",0.06,"West Burke","Caledonia","Eastern","Burlington"]
[5873,"State of Vermont",0.06,"West Danville","Caledonia","Eastern","Burlington"]
[5069,"State of Vermont",0.06,"South Ryegate","Caledonia","Eastern","Burlington"]
[15714,"State of Pennsylvania",0.06,"Northern Cambria","Cambria","Out of Territory","Syracuse"]
[15722,"State of Pennsylvania",0.06,"Carrolltown","Cambria","Out of Territory","Syracuse"]
[15737,"State of Pennsylvania",0.06,"Elmora","Cambria","Out of Territory","Syracuse"]
[15738,"State of Pennsylvania",0.06,"Emeigh","Cambria","Out of Territory","Syracuse"]
[15760,"State of Pennsylvania",0.06,"Marsteller","Cambria","Out of Territory","Syracuse"]
[15762,"State of Pennsylvania",0.06,"Nicktown","Cambria","Out of Territory","Syracuse"]
[15773,"State of Pennsylvania",0.06,"Saint Benedict","Cambria","Out of Territory","Syracuse"]
[15775,"State of Pennsylvania",0.06,"Spangler","Cambria","Out of Territory","Syracuse"]
[15901,"State of Pennsylvania",0.06,"Johnstown","Cambria","Out of Territory","Syracuse"]
[15902,"State of Pennsylvania",0.06,"Johnstown","Cambria","Out of Territory","Syracuse"]
[15904,"State of Pennsylvania",0.06,"Johnstown","Cambria","Out of Territory","Syracuse"]
[15905,"State of Pennsylvania",0.06,"Johnstown","Cambria","Out of Territory","Syracuse"]
[15906,"State of Pennsylvania",0.06,"Johnstown","Cambria","Out of Territory","Syracuse"]
[15907,"State of Pennsylvania",0.06,"Johnstown","Cambria","Out of Territory","Syracuse"]
[15909,"State of Pennsylvania",0.06,"Johnstown","Cambria","Out of Territory","Syracuse"]
[15915,"State of Pennsylvania",0.06,"Johnstown","Cambria","Out of Territory","Syracuse"]
[15921,"State of Pennsylvania",0.06,"Beaverdale","Cambria","Out of Territory","Syracuse"]
[15922,"State of Pennsylvania",0.06,"Belsano","Cambria","Out of Territory","Syracuse"]
[15925,"State of Pennsylvania",0.06,"Cassandra","Cambria","Out of Territory","Syracuse"]
[15927,"State of Pennsylvania",0.06,"Colver","Cambria","Out of Territory","Syracuse"]
[15930,"State of Pennsylvania",0.06,"Dunlo","Cambria","Out of Territory","Syracuse"]
[15931,"State of Pennsylvania",0.06,"Ebensburg","Cambria","Out of Territory","Syracuse"]
[15934,"State of Pennsylvania",0.06,"Elton","Cambria","Out of Territory","Syracuse"]
[15938,"State of Pennsylvania",0.06,"Lilly","Cambria","Out of Territory","Syracuse"]
[15940,"State of Pennsylvania",0.06,"Loretto","Cambria","Out of Territory","Syracuse"]
[15942,"State of Pennsylvania",0.06,"Mineral Point","Cambria","Out of Territory","Syracuse"]
[15943,"State of Pennsylvania",0.06,"Nanty Glo","Cambria","Out of Territory","Syracuse"]
[15945,"State of Pennsylvania",0.06,"Parkhill","Cambria","Out of Territory","Syracuse"]
[15946,"State of Pennsylvania",0.06,"Portage","Cambria","Out of Territory","Syracuse"]
[15948,"State of Pennsylvania",0.06,"Revloc","Cambria","Out of Territory","Syracuse"]
[15951,"State of Pennsylvania",0.06,"Saint Michael","Cambria","Out of Territory","Syracuse"]
[15952,"State of Pennsylvania",0.06,"Salix","Cambria","Out of Territory","Syracuse"]
[15955,"State of Pennsylvania",0.06,"Sidman","Cambria","Out of Territory","Syracuse"]
[15956,"State of Pennsylvania",0.06,"South Fork","Cambria","Out of Territory","Syracuse"]
[15958,"State of Pennsylvania",0.06,"Summerhill","Cambria","Out of Territory","Syracuse"]
[15960,"State of Pennsylvania",0.06,"Twin Rocks","Cambria","Out of Territory","Syracuse"]
[15962,"State of Pennsylvania",0.06,"Wilmore","Cambria","Out of Territory","Syracuse"]
[16613,"State of Pennsylvania",0.06,"Ashville","Cambria","Out of Territory","Syracuse"]
[16619,"State of Pennsylvania",0.06,"Blandburg","Cambria","Out of Territory","Syracuse"]
[16624,"State of Pennsylvania",0.06,"Chest Springs","Cambria","Out of Territory","Syracuse"]
[16629,"State of Pennsylvania",0.06,"Coupon","Cambria","Out of Territory","Syracuse"]
[16630,"State of Pennsylvania",0.06,"Cresson","Cambria","Out of Territory","Syracuse"]
[16636,"State of Pennsylvania",0.06,"Dysart","Cambria","Out of Territory","Syracuse"]
[16639,"State of Pennsylvania",0.06,"Fallentimber","Cambria","Out of Territory","Syracuse"]
[16640,"State of Pennsylvania",0.06,"Flinton","Cambria","Out of Territory","Syracuse"]
[16641,"State of Pennsylvania",0.06,"Gallitzin","Cambria","Out of Territory","Syracuse"]
[16644,"State of Pennsylvania",0.06,"Glasgow","Cambria","Out of Territory","Syracuse"]
[16646,"State of Pennsylvania",0.06,"Hastings","Cambria","Out of Territory","Syracuse"]
[16668,"State of Pennsylvania",0.06,"Patton","Cambria","Out of Territory","Syracuse"]
[16675,"State of Pennsylvania",0.06,"Saint Boniface","Cambria","Out of Territory","Syracuse"]
[16699,"State of Pennsylvania",0.06,"Cresson","Cambria","Out of Territory","Syracuse"]
[15961,"State of Pennsylvania",0.06,"Vintondale","Cambria","Out of Territory","Syracuse"]
[15832,"State of Pennsylvania",0.06,"Driftwood","Cameron","Out of Territory","Syracuse"]
[15834,"State of Pennsylvania",0.06,"Emporium","Cameron","Out of Territory","Syracuse"]
[15861,"State of Pennsylvania",0.06,"Sinnamahoning","Cameron","Out of Territory","Syracuse"]
[18012,"State of Pennsylvania",0.06,"Aquashicola","Carbon","Out of Territory","Syracuse"]
[18030,"State of Pennsylvania",0.06,"Bowmanstown","Carbon","Out of Territory","Syracuse"]
[18071,"State of Pennsylvania",0.06,"Palmerton","Carbon","Out of Territory","Syracuse"]
[18210,"State of Pennsylvania",0.06,"Albrightsville","Carbon","Out of Territory","Syracuse"]
[18212,"State of Pennsylvania",0.06,"Ashfield","Carbon","Out of Territory","Syracuse"]
[18216,"State of Pennsylvania",0.06,"Beaver Meadows","Carbon","Out of Territory","Syracuse"]
[18229,"State of Pennsylvania",0.06,"Jim Thorpe","Carbon","Out of Territory","Syracuse"]
[18230,"State of Pennsylvania",0.06,"Junedale","Carbon","Out of Territory","Syracuse"]
[18232,"State of Pennsylvania",0.06,"Lansford","Carbon","Out of Territory","Syracuse"]
[18235,"State of Pennsylvania",0.06,"Lehighton","Carbon","Out of Territory","Syracuse"]
[18240,"State of Pennsylvania",0.06,"Nesquehoning","Carbon","Out of Territory","Syracuse"]
[18244,"State of Pennsylvania",0.06,"Parryville","Carbon","Out of Territory","Syracuse"]
[18250,"State of Pennsylvania",0.06,"Summit Hill","Carbon","Out of Territory","Syracuse"]
[18254,"State of Pennsylvania",0.06,"Tresckow","Carbon","Out of Territory","Syracuse"]
[18255,"State of Pennsylvania",0.06,"Weatherly","Carbon","Out of Territory","Syracuse"]
[18624,"State of Pennsylvania",0.06,"Lake Harmony","Carbon","Out of Territory","Syracuse"]
[14760,"City of Olean",0.08,"Olean","Cattaraugus","Western","Buffalo"]
[14779,"City of Salamanca",0.08,"Salamanca","Cattaraugus","Western","Buffalo"]
[14060,"County of Cattaraugus",0.08,"Farmersville Station","Cattaraugus","Western","Buffalo"]
[14041,"County of Cattaraugus",0.08,"Dayton","Cattaraugus","Western","Jamestown"]
[14042,"County of Cattaraugus",0.08,"Delevan","Cattaraugus","Western","Jamestown"]
[14065,"County of Cattaraugus",0.08,"Freedom","Cattaraugus","Western","Jamestown"]
[14070,"County of Cattaraugus",0.08,"Gowanda","Cattaraugus","Western","Jamestown"]
[14101,"County of Cattaraugus",0.08,"Machias","Cattaraugus","Western","Jamestown"]
[14129,"County of Cattaraugus",0.08,"Perrysburg","Cattaraugus","Western","Jamestown"]
[14133,"County of Cattaraugus",0.08,"Sandusky","Cattaraugus","Western","Jamestown"]
[14138,"County of Cattaraugus",0.08,"South Dayton","Cattaraugus","Western","Jamestown"]
[14168,"County of Cattaraugus",0.08,"Versailles","Cattaraugus","Western","Jamestown"]
[14171,"County of Cattaraugus",0.08,"West Valley","Cattaraugus","Western","Jamestown"]
[14173,"County of Cattaraugus",0.08,"Yorkshire","Cattaraugus","Western","Jamestown"]
[14706,"County of Cattaraugus",0.08,"Allegany","Cattaraugus","Western","Jamestown"]
[14719,"County of Cattaraugus",0.08,"Cattaraugus","Cattaraugus","Western","Jamestown"]
[14726,"County of Cattaraugus",0.08,"Conewango Valley","Cattaraugus","Western","Jamestown"]
[14729,"County of Cattaraugus",0.08,"East Otto","Cattaraugus","Western","Jamestown"]
[14730,"County of Cattaraugus",0.08,"East Randolph","Cattaraugus","Western","Jamestown"]
[14731,"County of Cattaraugus",0.08,"Ellicottville","Cattaraugus","Western","Jamestown"]
[14737,"County of Cattaraugus",0.08,"Franklinville","Cattaraugus","Western","Jamestown"]
[14741,"County of Cattaraugus",0.08,"Great Valley","Cattaraugus","Western","Jamestown"]
[14743,"County of Cattaraugus",0.08,"Hinsdale","Cattaraugus","Western","Jamestown"]
[14748,"County of Cattaraugus",0.08,"Kill Buck","Cattaraugus","Western","Jamestown"]
[14751,"County of Cattaraugus",0.08,"Leon","Cattaraugus","Western","Jamestown"]
[14753,"County of Cattaraugus",0.08,"Limestone","Cattaraugus","Western","Jamestown"]
[14755,"County of Cattaraugus",0.08,"Little Valley","Cattaraugus","Western","Jamestown"]
[14766,"County of Cattaraugus",0.08,"Otto","Cattaraugus","Western","Jamestown"]
[14770,"County of Cattaraugus",0.08,"Portville","Cattaraugus","Western","Jamestown"]
[14772,"County of Cattaraugus",0.08,"Randolph","Cattaraugus","Western","Jamestown"]
[14778,"County of Cattaraugus",0.08,"Saint Bonaventure","Cattaraugus","Western","Jamestown"]
[14783,"County of Cattaraugus",0.08,"Steamburg","Cattaraugus","Western","Jamestown"]
[14788,"County of Cattaraugus",0.08,"Westons Mills","Cattaraugus","Western","Jamestown"]
[13021,"City of Auburn",0.08,"Auburn","Cayuga","Central","Syracuse"]
[13022,"City of Auburn",0.08,"Auburn","Cayuga","Central","Syracuse"]
[13024,"City of Auburn",0.08,"Auburn","Cayuga","Central","Syracuse"]
[13026,"County of Cayuga",0.08,"Aurora","Cayuga","Central","Syracuse"]
[13033,"County of Cayuga",0.08,"Cato","Cayuga","Central","Syracuse"]
[13034,"County of Cayuga",0.08,"Cayuga","Cayuga","Central","Syracuse"]
[13064,"County of Cayuga",0.08,"Fair Haven","Cayuga","Central","Syracuse"]
[13071,"County of Cayuga",0.08,"Genoa","Cayuga","Central","Syracuse"]
[13081,"County of Cayuga",0.08,"King Ferry","Cayuga","Central","Syracuse"]
[13092,"County of Cayuga",0.08,"Locke","Cayuga","Central","Syracuse"]
[13111,"County of Cayuga",0.08,"Martville","Cayuga","Central","Syracuse"]
[13113,"County of Cayuga",0.08,"Meridian","Cayuga","Central","Syracuse"]
[13117,"County of Cayuga",0.08,"Montezuma","Cayuga","Central","Syracuse"]
[13118,"County of Cayuga",0.08,"Moravia","Cayuga","Central","Syracuse"]
[13139,"County of Cayuga",0.08,"Poplar Ridge","Cayuga","Central","Syracuse"]
[13140,"County of Cayuga",0.08,"Port Byron","Cayuga","Central","Syracuse"]
[13147,"County of Cayuga",0.08,"Scipio Center","Cayuga","Central","Syracuse"]
[13156,"County of Cayuga",0.08,"Sterling","Cayuga","Central","Syracuse"]
[13160,"County of Cayuga",0.08,"Union Springs","Cayuga","Central","Syracuse"]
[13166,"County of Cayuga",0.08,"Weedsport","Cayuga","Central","Syracuse"]
[16677,"State of Pennsylvania",0.06,"Sandy Ridge","Centre","Out of Territory","Syracuse"]
[16801,"State of Pennsylvania",0.06,"State College","Centre","Out of Territory","Syracuse"]
[16802,"State of Pennsylvania",0.06,"University Park","Centre","Out of Territory","Syracuse"]
[16803,"State of Pennsylvania",0.06,"State College","Centre","Out of Territory","Syracuse"]
[16804,"State of Pennsylvania",0.06,"State College","Centre","Out of Territory","Syracuse"]
[16805,"State of Pennsylvania",0.06,"State College","Centre","Out of Territory","Syracuse"]
[16820,"State of Pennsylvania",0.06,"Aaronsburg","Centre","Out of Territory","Syracuse"]
[16823,"State of Pennsylvania",0.06,"Bellefonte","Centre","Out of Territory","Syracuse"]
[16826,"State of Pennsylvania",0.06,"Blanchard","Centre","Out of Territory","Syracuse"]
[16827,"State of Pennsylvania",0.06,"Boalsburg","Centre","Out of Territory","Syracuse"]
[16828,"State of Pennsylvania",0.06,"Centre Hall","Centre","Out of Territory","Syracuse"]
[16829,"State of Pennsylvania",0.06,"Clarence","Centre","Out of Territory","Syracuse"]
[16832,"State of Pennsylvania",0.06,"Coburn","Centre","Out of Territory","Syracuse"]
[16835,"State of Pennsylvania",0.06,"Fleming","Centre","Out of Territory","Syracuse"]
[16841,"State of Pennsylvania",0.06,"Howard","Centre","Out of Territory","Syracuse"]
[16844,"State of Pennsylvania",0.06,"Julian","Centre","Out of Territory","Syracuse"]
[16851,"State of Pennsylvania",0.06,"Lemont","Centre","Out of Territory","Syracuse"]
[16852,"State of Pennsylvania",0.06,"Madisonburg","Centre","Out of Territory","Syracuse"]
[16853,"State of Pennsylvania",0.06,"Milesburg","Centre","Out of Territory","Syracuse"]
[16854,"State of Pennsylvania",0.06,"Millheim","Centre","Out of Territory","Syracuse"]
[16856,"State of Pennsylvania",0.06,"Mingoville","Centre","Out of Territory","Syracuse"]
[16859,"State of Pennsylvania",0.06,"Moshannon","Centre","Out of Territory","Syracuse"]
[16864,"State of Pennsylvania",0.06,"Orviston","Centre","Out of Territory","Syracuse"]
[16865,"State of Pennsylvania",0.06,"Pennsylvania Furnace","Centre","Out of Territory","Syracuse"]
[16866,"State of Pennsylvania",0.06,"Philipsburg","Centre","Out of Territory","Syracuse"]
[16868,"State of Pennsylvania",0.06,"Pine Grove Mills","Centre","Out of Territory","Syracuse"]
[16870,"State of Pennsylvania",0.06,"Port Matilda","Centre","Out of Territory","Syracuse"]
[16872,"State of Pennsylvania",0.06,"Rebersburg","Centre","Out of Territory","Syracuse"]
[16874,"State of Pennsylvania",0.06,"Snow Shoe","Centre","Out of Territory","Syracuse"]
[16875,"State of Pennsylvania",0.06,"Spring Mills","Centre","Out of Territory","Syracuse"]
[16882,"State of Pennsylvania",0.06,"Woodward","Centre","Out of Territory","Syracuse"]
[14048,"County of Chautauqua",0.08,"Dunkirk","Chautauqua","Western","Jamestown"]
[14062,"County of Chautauqua",0.08,"Forestville","Chautauqua","Western","Jamestown"]
[14063,"County of Chautauqua",0.08,"Fredonia","Chautauqua","Western","Jamestown"]
[14135,"County of Chautauqua",0.08,"Sheridan","Chautauqua","Western","Jamestown"]
[14136,"County of Chautauqua",0.08,"Silver Creek","Chautauqua","Western","Jamestown"]
[14166,"County of Chautauqua",0.08,"Van Buren Point","Chautauqua","Western","Jamestown"]
[14701,"County of Chautauqua",0.08,"Jamestown","Chautauqua","Western","Jamestown"]
[14702,"County of Chautauqua",0.08,"Jamestown","Chautauqua","Western","Jamestown"]
[14710,"County of Chautauqua",0.08,"Ashville","Chautauqua","Western","Jamestown"]
[14712,"County of Chautauqua",0.08,"Bemus Point","Chautauqua","Western","Jamestown"]
[14716,"County of Chautauqua",0.08,"Brocton","Chautauqua","Western","Jamestown"]
[14718,"County of Chautauqua",0.08,"Cassadaga","Chautauqua","Western","Jamestown"]
[14720,"County of Chautauqua",0.08,"Celoron","Chautauqua","Western","Jamestown"]
[14722,"County of Chautauqua",0.08,"Chautauqua","Chautauqua","Western","Jamestown"]
[14723,"County of Chautauqua",0.08,"Cherry Creek","Chautauqua","Western","Jamestown"]
[14724,"County of Chautauqua",0.08,"Clymer","Chautauqua","Western","Jamestown"]
[14728,"County of Chautauqua",0.08,"Dewittville","Chautauqua","Western","Jamestown"]
[14732,"County of Chautauqua",0.08,"Ellington","Chautauqua","Western","Jamestown"]
[14733,"County of Chautauqua",0.08,"Falconer","Chautauqua","Western","Jamestown"]
[14736,"County of Chautauqua",0.08,"Findley Lake","Chautauqua","Western","Jamestown"]
[14738,"County of Chautauqua",0.08,"Frewsburg","Chautauqua","Western","Jamestown"]
[14740,"County of Chautauqua",0.08,"Gerry","Chautauqua","Western","Jamestown"]
[14742,"County of Chautauqua",0.08,"Greenhurst","Chautauqua","Western","Jamestown"]
[14747,"County of Chautauqua",0.08,"Kennedy","Chautauqua","Western","Jamestown"]
[14750,"County of Chautauqua",0.08,"Lakewood","Chautauqua","Western","Jamestown"]
[14752,"County of Chautauqua",0.08,"Lily Dale","Chautauqua","Western","Jamestown"]
[14756,"County of Chautauqua",0.08,"Maple Springs","Chautauqua","Western","Jamestown"]
[14757,"County of Chautauqua",0.08,"Mayville","Chautauqua","Western","Jamestown"]
[14758,"County of Chautauqua",0.08,"Niobe","Chautauqua","Western","Jamestown"]
[14767,"County of Chautauqua",0.08,"Panama","Chautauqua","Western","Jamestown"]
[14769,"County of Chautauqua",0.08,"Portland","Chautauqua","Western","Jamestown"]
[14775,"County of Chautauqua",0.08,"Ripley","Chautauqua","Western","Jamestown"]
[14781,"County of Chautauqua",0.08,"Sherman","Chautauqua","Western","Jamestown"]
[14782,"County of Chautauqua",0.08,"Sinclairville","Chautauqua","Western","Jamestown"]
[14784,"County of Chautauqua",0.08,"Stockton","Chautauqua","Western","Jamestown"]
[14785,"County of Chautauqua",0.08,"Stow","Chautauqua","Western","Jamestown"]
[14787,"County of Chautauqua",0.08,"Westfield","Chautauqua","Western","Jamestown"]
[14081,"County of Chautauqua",0.08,"Irving","Chautauqua","Western","Buffalo"]
[14814,"County of Chemung",0.08,"Big Flats","Chemung","Central","Binghamton"]
[14816,"County of Chemung",0.08,"Breesport","Chemung","Central","Binghamton"]
[14825,"County of Chemung",0.08,"Chemung","Chemung","Central","Binghamton"]
[14838,"County of Chemung",0.08,"Erin","Chemung","Central","Binghamton"]
[14845,"County of Chemung",0.08,"Horseheads","Chemung","Central","Binghamton"]
[14861,"County of Chemung",0.08,"Lowman","Chemung","Central","Binghamton"]
[14864,"County of Chemung",0.08,"Millport","Chemung","Central","Binghamton"]
[14871,"County of Chemung",0.08,"Pine City","Chemung","Central","Binghamton"]
[14872,"County of Chemung",0.08,"Pine Valley","Chemung","Central","Binghamton"]
[14889,"County of Chemung",0.08,"Van Etten","Chemung","Central","Binghamton"]
[14894,"County of Chemung",0.08,"Wellsburg","Chemung","Central","Binghamton"]
[14901,"County of Chemung",0.08,"Elmira","Chemung","Central","Binghamton"]
[14902,"County of Chemung",0.08,"Elmira","Chemung","Central","Binghamton"]
[14903,"County of Chemung",0.08,"Elmira","Chemung","Central","Binghamton"]
[14904,"County of Chemung",0.08,"Elmira","Chemung","Central","Binghamton"]
[14905,"County of Chemung",0.08,"Elmira","Chemung","Central","Binghamton"]
[13815,"City of Norwich",0.08,"Norwich","Chenango","Central","Binghamton"]
[13124,"County of Chenango",0.08,"North Pitcher","Chenango","Central","Binghamton"]
[13136,"County of Chenango",0.08,"Pitcher","Chenango","Central","Binghamton"]
[13155,"County of Chenango",0.08,"South Otselic","Chenango","Central","Binghamton"]
[13411,"County of Chenango",0.08,"New Berlin","Chenango","Central","Binghamton"]
[13460,"County of Chenango",0.08,"Sherburne","Chenango","Central","Binghamton"]
[13464,"County of Chenango",0.08,"Smyrna","Chenango","Central","Binghamton"]
[13730,"County of Chenango",0.08,"Afton","Chenango","Central","Binghamton"]
[13733,"County of Chenango",0.08,"Bainbridge","Chenango","Central","Binghamton"]
[13758,"County of Chenango",0.08,"East Pharsalia","Chenango","Central","Binghamton"]
[13778,"County of Chenango",0.08,"Greene","Chenango","Central","Binghamton"]
[13780,"County of Chenango",0.08,"Guilford","Chenango","Central","Binghamton"]
[13801,"County of Chenango",0.08,"Mc Donough","Chenango","Central","Binghamton"]
[13809,"County of Chenango",0.08,"Mount Upton","Chenango","Central","Binghamton"]
[13814,"County of Chenango",0.08,"North Norwich","Chenango","Central","Binghamton"]
[13830,"County of Chenango",0.08,"Oxford","Chenango","Central","Binghamton"]
[13832,"County of Chenango",0.08,"Plymouth","Chenango","Central","Binghamton"]
[13841,"County of Chenango",0.08,"Smithville Flats","Chenango","Central","Binghamton"]
[13843,"County of Chenango",0.08,"South New Berlin","Chenango","Central","Binghamton"]
[13844,"County of Chenango",0.08,"South Plymouth","Chenango","Central","Binghamton"]
[13332,"County of Chenango",0.08,"Earlville","Chenango","Central","Syracuse"]
[19301,"State of Pennsylvania",0.06,"Paoli","Chester","Out of Territory","Syracuse"]
[19310,"State of Pennsylvania",0.06,"Atglen","Chester","Out of Territory","Syracuse"]
[19311,"State of Pennsylvania",0.06,"Avondale","Chester","Out of Territory","Syracuse"]
[19312,"State of Pennsylvania",0.06,"Berwyn","Chester","Out of Territory","Syracuse"]
[19316,"State of Pennsylvania",0.06,"Brandamore","Chester","Out of Territory","Syracuse"]
[19318,"State of Pennsylvania",0.06,"Chatham","Chester","Out of Territory","Syracuse"]
[19320,"State of Pennsylvania",0.06,"Coatesville","Chester","Out of Territory","Syracuse"]
[19330,"State of Pennsylvania",0.06,"Cochranville","Chester","Out of Territory","Syracuse"]
[19333,"State of Pennsylvania",0.06,"Devon","Chester","Out of Territory","Syracuse"]
[19335,"State of Pennsylvania",0.06,"Downingtown","Chester","Out of Territory","Syracuse"]
[19341,"State of Pennsylvania",0.06,"Exton","Chester","Out of Territory","Syracuse"]
[19343,"State of Pennsylvania",0.06,"Glenmoore","Chester","Out of Territory","Syracuse"]
[19344,"State of Pennsylvania",0.06,"Honey Brook","Chester","Out of Territory","Syracuse"]
[19345,"State of Pennsylvania",0.06,"Immaculata","Chester","Out of Territory","Syracuse"]
[19346,"State of Pennsylvania",0.06,"Kelton","Chester","Out of Territory","Syracuse"]
[19347,"State of Pennsylvania",0.06,"Kemblesville","Chester","Out of Territory","Syracuse"]
[19348,"State of Pennsylvania",0.06,"Kennett Square","Chester","Out of Territory","Syracuse"]
[19350,"State of Pennsylvania",0.06,"Landenberg","Chester","Out of Territory","Syracuse"]
[19351,"State of Pennsylvania",0.06,"Lewisville","Chester","Out of Territory","Syracuse"]
[19352,"State of Pennsylvania",0.06,"Lincoln University","Chester","Out of Territory","Syracuse"]
[19353,"State of Pennsylvania",0.06,"Lionville","Chester","Out of Territory","Syracuse"]
[19354,"State of Pennsylvania",0.06,"Lyndell","Chester","Out of Territory","Syracuse"]
[19355,"State of Pennsylvania",0.06,"Malvern","Chester","Out of Territory","Syracuse"]
[19357,"State of Pennsylvania",0.06,"Mendenhall","Chester","Out of Territory","Syracuse"]
[19358,"State of Pennsylvania",0.06,"Modena","Chester","Out of Territory","Syracuse"]
[19360,"State of Pennsylvania",0.06,"New London","Chester","Out of Territory","Syracuse"]
[19362,"State of Pennsylvania",0.06,"Nottingham","Chester","Out of Territory","Syracuse"]
[19363,"State of Pennsylvania",0.06,"Oxford","Chester","Out of Territory","Syracuse"]
[19365,"State of Pennsylvania",0.06,"Parkesburg","Chester","Out of Territory","Syracuse"]
[19366,"State of Pennsylvania",0.06,"Pocopson","Chester","Out of Territory","Syracuse"]
[19367,"State of Pennsylvania",0.06,"Pomeroy","Chester","Out of Territory","Syracuse"]
[19369,"State of Pennsylvania",0.06,"Sadsburyville","Chester","Out of Territory","Syracuse"]
[19371,"State of Pennsylvania",0.06,"Suplee","Chester","Out of Territory","Syracuse"]
[19372,"State of Pennsylvania",0.06,"Thorndale","Chester","Out of Territory","Syracuse"]
[19374,"State of Pennsylvania",0.06,"Toughkenamon","Chester","Out of Territory","Syracuse"]
[19375,"State of Pennsylvania",0.06,"Unionville","Chester","Out of Territory","Syracuse"]
[19376,"State of Pennsylvania",0.06,"Wagontown","Chester","Out of Territory","Syracuse"]
[19380,"State of Pennsylvania",0.06,"West Chester","Chester","Out of Territory","Syracuse"]
[19381,"State of Pennsylvania",0.06,"West Chester","Chester","Out of Territory","Syracuse"]
[19382,"State of Pennsylvania",0.06,"West Chester","Chester","Out of Territory","Syracuse"]
[19383,"State of Pennsylvania",0.06,"West Chester","Chester","Out of Territory","Syracuse"]
[19390,"State of Pennsylvania",0.06,"West Grove","Chester","Out of Territory","Syracuse"]
[19395,"State of Pennsylvania",0.06,"Westtown","Chester","Out of Territory","Syracuse"]
[19397,"State of Pennsylvania",0.06,"Southeastern","Chester","Out of Territory","Syracuse"]
[19398,"State of Pennsylvania",0.06,"Southeastern","Chester","Out of Territory","Syracuse"]
[19399,"State of Pennsylvania",0.06,"Southeastern","Chester","Out of Territory","Syracuse"]
[19421,"State of Pennsylvania",0.06,"Birchrunville","Chester","Out of Territory","Syracuse"]
[19425,"State of Pennsylvania",0.06,"Chester Springs","Chester","Out of Territory","Syracuse"]
[19432,"State of Pennsylvania",0.06,"Devault","Chester","Out of Territory","Syracuse"]
[19442,"State of Pennsylvania",0.06,"Kimberton","Chester","Out of Territory","Syracuse"]
[19457,"State of Pennsylvania",0.06,"Parker Ford","Chester","Out of Territory","Syracuse"]
[19460,"State of Pennsylvania",0.06,"Phoenixville","Chester","Out of Territory","Syracuse"]
[19465,"State of Pennsylvania",0.06,"Pottstown","Chester","Out of Territory","Syracuse"]
[19470,"State of Pennsylvania",0.06,"Saint Peters","Chester","Out of Territory","Syracuse"]
[19475,"State of Pennsylvania",0.06,"Spring City","Chester","Out of Territory","Syracuse"]
[19480,"State of Pennsylvania",0.06,"Uwchland","Chester","Out of Territory","Syracuse"]
[19520,"State of Pennsylvania",0.06,"Elverson","Chester","Out of Territory","Syracuse"]
[19481,"State of Pennsylvania",0.06,"Valley Forge","Chester","Out of Territory","Syracuse"]
[19482,"State of Pennsylvania",0.06,"Valley Forge","Chester","Out of Territory","Syracuse"]
[19493,"State of Pennsylvania",0.06,"Valley Forge","Chester","Out of Territory","Syracuse"]
[19494,"State of Pennsylvania",0.06,"Valley Forge","Chester","Out of Territory","Syracuse"]
[19495,"State of Pennsylvania",0.06,"Valley Forge","Chester","Out of Territory","Syracuse"]
[19496,"State of Pennsylvania",0.06,"Valley Forge","Chester","Out of Territory","Syracuse"]
[5401,"City of Burlington",0.06,"Burlington","Chittenden","Eastern","Burlington"]
[5402,"City of Burlington",0.06,"Burlington","Chittenden","Eastern","Burlington"]
[5405,"City of Burlington",0.06,"Burlington","Chittenden","Eastern","Burlington"]
[5406,"City of Burlington",0.06,"Burlington","Chittenden","Eastern","Burlington"]
[5408,"City of Burlington",0.06,"Burlington","Chittenden","Eastern","Burlington"]
[5403,"City of South Burlington",0.06,"South Burlington","Chittenden","Eastern","Burlington"]
[5407,"City of South Burlington",0.06,"South Burlington","Chittenden","Eastern","Burlington"]
[5495,"City of Williston",0.06,"Williston","Chittenden","Eastern","Burlington"]
[5404,"State of Vermont",0.06,"Winooski","Chittenden","Eastern","Burlington"]
[5439,"State of Vermont",0.06,"Colchester","Chittenden","Eastern","Burlington"]
[5445,"State of Vermont",0.06,"Charlotte","Chittenden","Eastern","Burlington"]
[5446,"State of Vermont",0.06,"Colchester","Chittenden","Eastern","Burlington"]
[5449,"State of Vermont",0.06,"Colchester","Chittenden","Eastern","Burlington"]
[5451,"State of Vermont",0.06,"Essex","Chittenden","Eastern","Burlington"]
[5452,"State of Vermont",0.06,"Essex Junction","Chittenden","Eastern","Burlington"]
[5453,"State of Vermont",0.06,"Essex Junction","Chittenden","Eastern","Burlington"]
[5461,"State of Vermont",0.06,"Hinesburg","Chittenden","Eastern","Burlington"]
[5462,"State of Vermont",0.06,"Huntington","Chittenden","Eastern","Burlington"]
[5465,"State of Vermont",0.06,"Jericho","Chittenden","Eastern","Burlington"]
[5466,"State of Vermont",0.06,"Jonesville","Chittenden","Eastern","Burlington"]
[5468,"State of Vermont",0.06,"Milton","Chittenden","Eastern","Burlington"]
[5477,"State of Vermont",0.06,"Richmond","Chittenden","Eastern","Burlington"]
[5482,"State of Vermont",0.06,"Shelburne","Chittenden","Eastern","Burlington"]
[5489,"State of Vermont",0.06,"Underhill","Chittenden","Eastern","Burlington"]
[5490,"State of Vermont",0.06,"Underhill Center","Chittenden","Eastern","Burlington"]
[5494,"State of Vermont",0.06,"Westford","Chittenden","Eastern","Burlington"]
[5454,"State of Vermont",0.06,"Fairfax","Chittenden","Eastern","Burlington"]
[5444,"State of Vermont",0.06,"Cambridge","Chittenden","Eastern","Burlington"]
[16240,"State of Pennsylvania",0.06,"Mayport","Clarion","Out of Territory","Syracuse"]
[16028,"State of Pennsylvania",0.06,"East Brady","Clarion","Out of Territory","Syracuse"]
[16036,"State of Pennsylvania",0.06,"Foxburg","Clarion","Out of Territory","Syracuse"]
[16054,"State of Pennsylvania",0.06,"Saint Petersburg","Clarion","Out of Territory","Syracuse"]
[16058,"State of Pennsylvania",0.06,"Turkey City","Clarion","Out of Territory","Syracuse"]
[16213,"State of Pennsylvania",0.06,"Callensburg","Clarion","Out of Territory","Syracuse"]
[16214,"State of Pennsylvania",0.06,"Clarion","Clarion","Out of Territory","Syracuse"]
[16220,"State of Pennsylvania",0.06,"Crown","Clarion","Out of Territory","Syracuse"]
[16221,"State of Pennsylvania",0.06,"Curllsville","Clarion","Out of Territory","Syracuse"]
[16224,"State of Pennsylvania",0.06,"Fairmount City","Clarion","Out of Territory","Syracuse"]
[16225,"State of Pennsylvania",0.06,"Fisher","Clarion","Out of Territory","Syracuse"]
[16230,"State of Pennsylvania",0.06,"Hawthorn","Clarion","Out of Territory","Syracuse"]
[16232,"State of Pennsylvania",0.06,"Knox","Clarion","Out of Territory","Syracuse"]
[16233,"State of Pennsylvania",0.06,"Leeper","Clarion","Out of Territory","Syracuse"]
[16234,"State of Pennsylvania",0.06,"Limestone","Clarion","Out of Territory","Syracuse"]
[16235,"State of Pennsylvania",0.06,"Lucinda","Clarion","Out of Territory","Syracuse"]
[16242,"State of Pennsylvania",0.06,"New Bethlehem","Clarion","Out of Territory","Syracuse"]
[16248,"State of Pennsylvania",0.06,"Rimersburg","Clarion","Out of Territory","Syracuse"]
[16254,"State of Pennsylvania",0.06,"Shippenville","Clarion","Out of Territory","Syracuse"]
[16255,"State of Pennsylvania",0.06,"Sligo","Clarion","Out of Territory","Syracuse"]
[16257,"State of Pennsylvania",0.06,"Snydersburg","Clarion","Out of Territory","Syracuse"]
[16258,"State of Pennsylvania",0.06,"Strattanville","Clarion","Out of Territory","Syracuse"]
[16326,"State of Pennsylvania",0.06,"Fryburg","Clarion","Out of Territory","Syracuse"]
[16331,"State of Pennsylvania",0.06,"Kossuth","Clarion","Out of Territory","Syracuse"]
[16332,"State of Pennsylvania",0.06,"Lickingville","Clarion","Out of Territory","Syracuse"]
[16334,"State of Pennsylvania",0.06,"Marble","Clarion","Out of Territory","Syracuse"]
[16361,"State of Pennsylvania",0.06,"Tylersburg","Clarion","Out of Territory","Syracuse"]
[16375,"State of Pennsylvania",0.06,"Lamartine","Clarion","Out of Territory","Syracuse"]
[16260,"State of Pennsylvania",0.06,"Vowinckel","Clarion","Out of Territory","Syracuse"]
[15721,"State of Pennsylvania",0.06,"Burnside","Clearfield","Out of Territory","Syracuse"]
[15753,"State of Pennsylvania",0.06,"La Jose","Clearfield","Out of Territory","Syracuse"]
[15757,"State of Pennsylvania",0.06,"Mahaffey","Clearfield","Out of Territory","Syracuse"]
[15801,"State of Pennsylvania",0.06,"Du Bois","Clearfield","Out of Territory","Syracuse"]
[15848,"State of Pennsylvania",0.06,"Luthersburg","Clearfield","Out of Territory","Syracuse"]
[15849,"State of Pennsylvania",0.06,"Penfield","Clearfield","Out of Territory","Syracuse"]
[15856,"State of Pennsylvania",0.06,"Rockton","Clearfield","Out of Territory","Syracuse"]
[15866,"State of Pennsylvania",0.06,"Troutville","Clearfield","Out of Territory","Syracuse"]
[16616,"State of Pennsylvania",0.06,"Beccaria","Clearfield","Out of Territory","Syracuse"]
[16620,"State of Pennsylvania",0.06,"Brisbin","Clearfield","Out of Territory","Syracuse"]
[16627,"State of Pennsylvania",0.06,"Coalport","Clearfield","Out of Territory","Syracuse"]
[16645,"State of Pennsylvania",0.06,"Glen Hope","Clearfield","Out of Territory","Syracuse"]
[16651,"State of Pennsylvania",0.06,"Houtzdale","Clearfield","Out of Territory","Syracuse"]
[16656,"State of Pennsylvania",0.06,"Irvona","Clearfield","Out of Territory","Syracuse"]
[16661,"State of Pennsylvania",0.06,"Madera","Clearfield","Out of Territory","Syracuse"]
[16663,"State of Pennsylvania",0.06,"Morann","Clearfield","Out of Territory","Syracuse"]
[16666,"State of Pennsylvania",0.06,"Osceola Mills","Clearfield","Out of Territory","Syracuse"]
[16671,"State of Pennsylvania",0.06,"Ramey","Clearfield","Out of Territory","Syracuse"]
[16680,"State of Pennsylvania",0.06,"Smithmill","Clearfield","Out of Territory","Syracuse"]
[16681,"State of Pennsylvania",0.06,"Smokerun","Clearfield","Out of Territory","Syracuse"]
[16692,"State of Pennsylvania",0.06,"Westover","Clearfield","Out of Territory","Syracuse"]
[16698,"State of Pennsylvania",0.06,"Houtzdale","Clearfield","Out of Territory","Syracuse"]
[16821,"State of Pennsylvania",0.06,"Allport","Clearfield","Out of Territory","Syracuse"]
[16825,"State of Pennsylvania",0.06,"Bigler","Clearfield","Out of Territory","Syracuse"]
[16830,"State of Pennsylvania",0.06,"Clearfield","Clearfield","Out of Territory","Syracuse"]
[16833,"State of Pennsylvania",0.06,"Curwensville","Clearfield","Out of Territory","Syracuse"]
[16834,"State of Pennsylvania",0.06,"Drifting","Clearfield","Out of Territory","Syracuse"]
[16836,"State of Pennsylvania",0.06,"Frenchville","Clearfield","Out of Territory","Syracuse"]
[16837,"State of Pennsylvania",0.06,"Glen Richey","Clearfield","Out of Territory","Syracuse"]
[16838,"State of Pennsylvania",0.06,"Grampian","Clearfield","Out of Territory","Syracuse"]
[16839,"State of Pennsylvania",0.06,"Grassflat","Clearfield","Out of Territory","Syracuse"]
[16840,"State of Pennsylvania",0.06,"Hawk Run","Clearfield","Out of Territory","Syracuse"]
[16843,"State of Pennsylvania",0.06,"Hyde","Clearfield","Out of Territory","Syracuse"]
[16845,"State of Pennsylvania",0.06,"Karthaus","Clearfield","Out of Territory","Syracuse"]
[16847,"State of Pennsylvania",0.06,"Kylertown","Clearfield","Out of Territory","Syracuse"]
[16849,"State of Pennsylvania",0.06,"Lanse","Clearfield","Out of Territory","Syracuse"]
[16850,"State of Pennsylvania",0.06,"Lecontes Mills","Clearfield","Out of Territory","Syracuse"]
[16855,"State of Pennsylvania",0.06,"Mineral Springs","Clearfield","Out of Territory","Syracuse"]
[16858,"State of Pennsylvania",0.06,"Morrisdale","Clearfield","Out of Territory","Syracuse"]
[16860,"State of Pennsylvania",0.06,"Munson","Clearfield","Out of Territory","Syracuse"]
[16861,"State of Pennsylvania",0.06,"New Millport","Clearfield","Out of Territory","Syracuse"]
[16863,"State of Pennsylvania",0.06,"Olanta","Clearfield","Out of Territory","Syracuse"]
[16873,"State of Pennsylvania",0.06,"Shawville","Clearfield","Out of Territory","Syracuse"]
[16876,"State of Pennsylvania",0.06,"Wallaceton","Clearfield","Out of Territory","Syracuse"]
[16878,"State of Pennsylvania",0.06,"West Decatur","Clearfield","Out of Territory","Syracuse"]
[16879,"State of Pennsylvania",0.06,"Winburne","Clearfield","Out of Territory","Syracuse"]
[16881,"State of Pennsylvania",0.06,"Woodland","Clearfield","Out of Territory","Syracuse"]
[16871,"State of Pennsylvania",0.06,"Pottersdale","Clearfield","Out of Territory","Syracuse"]
[12901,"County of Clinton",0.08,"Plattsburgh","Clinton","Eastern","Plattsburgh"]
[12903,"County of Clinton",0.08,"Plattsburgh","Clinton","Eastern","Plattsburgh"]
[12910,"County of Clinton",0.08,"Altona","Clinton","Eastern","Plattsburgh"]
[12911,"County of Clinton",0.08,"Keeseville","Clinton","Eastern","Plattsburgh"]
[12912,"County of Clinton",0.08,"Au Sable Forks","Clinton","Eastern","Plattsburgh"]
[12918,"County of Clinton",0.08,"Cadyville","Clinton","Eastern","Plattsburgh"]
[12919,"County of Clinton",0.08,"Champlain","Clinton","Eastern","Plattsburgh"]
[12921,"County of Clinton",0.08,"Chazy","Clinton","Eastern","Plattsburgh"]
[12923,"County of Clinton",0.08,"Churubusco","Clinton","Eastern","Plattsburgh"]
[12924,"County of Clinton",0.08,"Keeseville","Clinton","Eastern","Plattsburgh"]
[12929,"County of Clinton",0.08,"Dannemora","Clinton","Eastern","Plattsburgh"]
[12933,"County of Clinton",0.08,"Ellenburg","Clinton","Eastern","Plattsburgh"]
[12934,"County of Clinton",0.08,"Ellenburg Center","Clinton","Eastern","Plattsburgh"]
[12935,"County of Clinton",0.08,"Ellenburg Depot","Clinton","Eastern","Plattsburgh"]
[12952,"County of Clinton",0.08,"Lyon Mountain","Clinton","Eastern","Plattsburgh"]
[12955,"County of Clinton",0.08,"Lyon Mountain","Clinton","Eastern","Plattsburgh"]
[12958,"County of Clinton",0.08,"Mooers","Clinton","Eastern","Plattsburgh"]
[12959,"County of Clinton",0.08,"Mooers Forks","Clinton","Eastern","Plattsburgh"]
[12962,"County of Clinton",0.08,"Morrisonville","Clinton","Eastern","Plattsburgh"]
[12972,"County of Clinton",0.08,"Peru","Clinton","Eastern","Plattsburgh"]
[12978,"County of Clinton",0.08,"Redford","Clinton","Eastern","Plattsburgh"]
[12979,"County of Clinton",0.08,"Rouses Point","Clinton","Eastern","Plattsburgh"]
[12981,"County of Clinton",0.08,"Saranac","Clinton","Eastern","Plattsburgh"]
[12985,"County of Clinton",0.08,"Schuyler Falls","Clinton","Eastern","Plattsburgh"]
[12992,"County of Clinton",0.08,"West Chazy","Clinton","Eastern","Plattsburgh"]
[12944,"County of Clinton",0.08,"Keeseville","Clinton","Eastern","Plattsburgh"]
[16822,"State of Pennsylvania",0.06,"Beech Creek","Clinton","Out of Territory","Syracuse"]
[16848,"State of Pennsylvania",0.06,"Lamar","Clinton","Out of Territory","Syracuse"]
[17721,"State of Pennsylvania",0.06,"Avis","Clinton","Out of Territory","Syracuse"]
[17726,"State of Pennsylvania",0.06,"Castanea","Clinton","Out of Territory","Syracuse"]
[17745,"State of Pennsylvania",0.06,"Lock Haven","Clinton","Out of Territory","Syracuse"]
[17747,"State of Pennsylvania",0.06,"Loganton","Clinton","Out of Territory","Syracuse"]
[17748,"State of Pennsylvania",0.06,"Mc Elhattan","Clinton","Out of Territory","Syracuse"]
[17750,"State of Pennsylvania",0.06,"Mackeyville","Clinton","Out of Territory","Syracuse"]
[17751,"State of Pennsylvania",0.06,"Mill Hall","Clinton","Out of Territory","Syracuse"]
[17760,"State of Pennsylvania",0.06,"North Bend","Clinton","Out of Territory","Syracuse"]
[17764,"State of Pennsylvania",0.06,"Renovo","Clinton","Out of Territory","Syracuse"]
[17778,"State of Pennsylvania",0.06,"Westport","Clinton","Out of Territory","Syracuse"]
[17779,"State of Pennsylvania",0.06,"Woolrich","Clinton","Out of Territory","Syracuse"]
[12017,"County of Columbia",0.08,"Austerlitz","Columbia","Eastern","Albany"]
[12029,"County of Columbia",0.08,"Canaan","Columbia","Eastern","Albany"]
[12037,"County of Columbia",0.08,"Chatham","Columbia","Eastern","Albany"]
[12050,"County of Columbia",0.08,"Columbiaville","Columbia","Eastern","Albany"]
[12060,"County of Columbia",0.08,"East Chatham","Columbia","Eastern","Albany"]
[12075,"County of Columbia",0.08,"Ghent","Columbia","Eastern","Albany"]
[12106,"County of Columbia",0.08,"Kinderhook","Columbia","Eastern","Albany"]
[12115,"County of Columbia",0.08,"Malden Bridge","Columbia","Eastern","Albany"]
[12125,"County of Columbia",0.08,"New Lebanon","Columbia","Eastern","Albany"]
[12130,"County of Columbia",0.08,"Niverville","Columbia","Eastern","Albany"]
[12132,"County of Columbia",0.08,"North Chatham","Columbia","Eastern","Albany"]
[12136,"County of Columbia",0.08,"Old Chatham","Columbia","Eastern","Albany"]
[12165,"County of Columbia",0.08,"Spencertown","Columbia","Eastern","Albany"]
[12172,"County of Columbia",0.08,"Stottville","Columbia","Eastern","Albany"]
[12173,"County of Columbia",0.08,"Stuyvesant","Columbia","Eastern","Albany"]
[12174,"County of Columbia",0.08,"Stuyvesant Falls","Columbia","Eastern","Albany"]
[12184,"County of Columbia",0.08,"Valatie","Columbia","Eastern","Albany"]
[12195,"County of Columbia",0.08,"West Lebanon","Columbia","Eastern","Albany"]
[12502,"County of Columbia",0.08,"Ancram","Columbia","Eastern","Albany"]
[12503,"County of Columbia",0.08,"Ancramdale","Columbia","Eastern","Albany"]
[12513,"County of Columbia",0.08,"Claverack","Columbia","Eastern","Albany"]
[12516,"County of Columbia",0.08,"Copake","Columbia","Eastern","Albany"]
[12517,"County of Columbia",0.08,"Copake Falls","Columbia","Eastern","Albany"]
[12521,"County of Columbia",0.08,"Craryville","Columbia","Eastern","Albany"]
[12523,"County of Columbia",0.08,"Elizaville","Columbia","Eastern","Albany"]
[12526,"County of Columbia",0.08,"Germantown","Columbia","Eastern","Albany"]
[12529,"County of Columbia",0.08,"Hillsdale","Columbia","Eastern","Albany"]
[12530,"County of Columbia",0.08,"Hollowville","Columbia","Eastern","Albany"]
[12534,"County of Columbia",0.08,"Hudson","Columbia","Eastern","Albany"]
[12541,"County of Columbia",0.08,"Livingston","Columbia","Eastern","Albany"]
[12544,"County of Columbia",0.08,"Mellenville","Columbia","Eastern","Albany"]
[12565,"County of Columbia",0.08,"Philmont","Columbia","Eastern","Albany"]
[17814,"State of Pennsylvania",0.06,"Benton","Columbia","Out of Territory","Syracuse"]
[17815,"State of Pennsylvania",0.06,"Bloomsburg","Columbia","Out of Territory","Syracuse"]
[17820,"State of Pennsylvania",0.06,"Catawissa","Columbia","Out of Territory","Syracuse"]
[17846,"State of Pennsylvania",0.06,"Millville","Columbia","Out of Territory","Syracuse"]
[17858,"State of Pennsylvania",0.06,"Numidia","Columbia","Out of Territory","Syracuse"]
[17859,"State of Pennsylvania",0.06,"Orangeville","Columbia","Out of Territory","Syracuse"]
[17878,"State of Pennsylvania",0.06,"Stillwater","Columbia","Out of Territory","Syracuse"]
[17888,"State of Pennsylvania",0.06,"Wilburton","Columbia","Out of Territory","Syracuse"]
[17920,"State of Pennsylvania",0.06,"Aristes","Columbia","Out of Territory","Syracuse"]
[18603,"State of Pennsylvania",0.06,"Berwick","Columbia","Out of Territory","Syracuse"]
[18631,"State of Pennsylvania",0.06,"Mifflinville","Columbia","Out of Territory","Syracuse"]
[13040,"County of Cortland",0.08,"Cincinnatus","Cortland","Central","Syracuse"]
[13045,"County of Cortland",0.08,"Cortland","Cortland","Central","Syracuse"]
[13056,"County of Cortland",0.08,"East Homer","Cortland","Central","Syracuse"]
[13077,"County of Cortland",0.08,"Homer","Cortland","Central","Syracuse"]
[13087,"County of Cortland",0.08,"Little York","Cortland","Central","Syracuse"]
[13101,"County of Cortland",0.08,"Mc Graw","Cortland","Central","Syracuse"]
[13141,"County of Cortland",0.08,"Preble","Cortland","Central","Syracuse"]
[13158,"County of Cortland",0.08,"Truxton","Cortland","Central","Syracuse"]
[13738,"County of Cortland",0.08,"Blodgett Mills","Cortland","Central","Syracuse"]
[13803,"County of Cortland",0.08,"Marathon","Cortland","Central","Syracuse"]
[13863,"County of Cortland",0.08,"Willet","Cortland","Central","Syracuse"]
[13784,"County of Cortland",0.08,"Harford","Cortland","Central","Binghamton"]
[16110,"State of Pennsylvania",0.06,"Adamsville","Crawford","Western","Jamestown"]
[16111,"State of Pennsylvania",0.06,"Atlantic","Crawford","Western","Jamestown"]
[16131,"State of Pennsylvania",0.06,"Hartstown","Crawford","Western","Jamestown"]
[16314,"State of Pennsylvania",0.06,"Cochranton","Crawford","Western","Jamestown"]
[16316,"State of Pennsylvania",0.06,"Conneaut Lake","Crawford","Western","Jamestown"]
[16327,"State of Pennsylvania",0.06,"Guys Mills","Crawford","Western","Jamestown"]
[16328,"State of Pennsylvania",0.06,"Hydetown","Crawford","Western","Jamestown"]
[16335,"State of Pennsylvania",0.06,"Meadville","Crawford","Western","Jamestown"]
[16354,"State of Pennsylvania",0.06,"Titusville","Crawford","Western","Jamestown"]
[16360,"State of Pennsylvania",0.06,"Townville","Crawford","Western","Jamestown"]
[16388,"State of Pennsylvania",0.06,"Meadville","Crawford","Western","Jamestown"]
[16403,"State of Pennsylvania",0.06,"Cambridge Springs","Crawford","Western","Jamestown"]
[16404,"State of Pennsylvania",0.06,"Centerville","Crawford","Western","Jamestown"]
[16406,"State of Pennsylvania",0.06,"Conneautville","Crawford","Western","Jamestown"]
[16422,"State of Pennsylvania",0.06,"Harmonsburg","Crawford","Western","Jamestown"]
[16424,"State of Pennsylvania",0.06,"Linesville","Crawford","Western","Jamestown"]
[16432,"State of Pennsylvania",0.06,"Riceville","Crawford","Western","Jamestown"]
[16433,"State of Pennsylvania",0.06,"Saegertown","Crawford","Western","Jamestown"]
[16434,"State of Pennsylvania",0.06,"Spartansburg","Crawford","Western","Jamestown"]
[16435,"State of Pennsylvania",0.06,"Springboro","Crawford","Western","Jamestown"]
[16440,"State of Pennsylvania",0.06,"Venango","Crawford","Western","Jamestown"]
[17001,"State of Pennsylvania",0.06,"Camp Hill","Cumberland","Out of Territory","Syracuse"]
[17007,"State of Pennsylvania",0.06,"Boiling Springs","Cumberland","Out of Territory","Syracuse"]
[17011,"State of Pennsylvania",0.06,"Camp Hill","Cumberland","Out of Territory","Syracuse"]
[17012,"State of Pennsylvania",0.06,"Camp Hill","Cumberland","Out of Territory","Syracuse"]
[17013,"State of Pennsylvania",0.06,"Carlisle","Cumberland","Out of Territory","Syracuse"]
[17015,"State of Pennsylvania",0.06,"Carlisle","Cumberland","Out of Territory","Syracuse"]
[17025,"State of Pennsylvania",0.06,"Enola","Cumberland","Out of Territory","Syracuse"]
[17027,"State of Pennsylvania",0.06,"Grantham","Cumberland","Out of Territory","Syracuse"]
[17043,"State of Pennsylvania",0.06,"Lemoyne","Cumberland","Out of Territory","Syracuse"]
[17050,"State of Pennsylvania",0.06,"Mechanicsburg","Cumberland","Out of Territory","Syracuse"]
[17055,"State of Pennsylvania",0.06,"Mechanicsburg","Cumberland","Out of Territory","Syracuse"]
[17065,"State of Pennsylvania",0.06,"Mount Holly Springs","Cumberland","Out of Territory","Syracuse"]
[17072,"State of Pennsylvania",0.06,"New Kingstown","Cumberland","Out of Territory","Syracuse"]
[17081,"State of Pennsylvania",0.06,"Plainfield","Cumberland","Out of Territory","Syracuse"]
[17089,"State of Pennsylvania",0.06,"Camp Hill","Cumberland","Out of Territory","Syracuse"]
[17093,"State of Pennsylvania",0.06,"Summerdale","Cumberland","Out of Territory","Syracuse"]
[17240,"State of Pennsylvania",0.06,"Newburg","Cumberland","Out of Territory","Syracuse"]
[17241,"State of Pennsylvania",0.06,"Newville","Cumberland","Out of Territory","Syracuse"]
[17257,"State of Pennsylvania",0.06,"Shippensburg","Cumberland","Out of Territory","Syracuse"]
[17266,"State of Pennsylvania",0.06,"Walnut Bottom","Cumberland","Out of Territory","Syracuse"]
[17070,"State of Pennsylvania",0.06,"New Cumberland","Cumberland","Out of Territory","Syracuse"]
[17005,"State of Pennsylvania",0.06,"Berrysburg","Dauphin","Out of Territory","Syracuse"]
[17018,"State of Pennsylvania",0.06,"Dauphin","Dauphin","Out of Territory","Syracuse"]
[17023,"State of Pennsylvania",0.06,"Elizabethville","Dauphin","Out of Territory","Syracuse"]
[17028,"State of Pennsylvania",0.06,"Grantville","Dauphin","Out of Territory","Syracuse"]
[17030,"State of Pennsylvania",0.06,"Gratz","Dauphin","Out of Territory","Syracuse"]
[17032,"State of Pennsylvania",0.06,"Halifax","Dauphin","Out of Territory","Syracuse"]
[17033,"State of Pennsylvania",0.06,"Hershey","Dauphin","Out of Territory","Syracuse"]
[17034,"State of Pennsylvania",0.06,"Highspire","Dauphin","Out of Territory","Syracuse"]
[17036,"State of Pennsylvania",0.06,"Hummelstown","Dauphin","Out of Territory","Syracuse"]
[17048,"State of Pennsylvania",0.06,"Lykens","Dauphin","Out of Territory","Syracuse"]
[17057,"State of Pennsylvania",0.06,"Middletown","Dauphin","Out of Territory","Syracuse"]
[17061,"State of Pennsylvania",0.06,"Millersburg","Dauphin","Out of Territory","Syracuse"]
[17080,"State of Pennsylvania",0.06,"Pillow","Dauphin","Out of Territory","Syracuse"]
[17097,"State of Pennsylvania",0.06,"Wiconisco","Dauphin","Out of Territory","Syracuse"]
[17098,"State of Pennsylvania",0.06,"Williamstown","Dauphin","Out of Territory","Syracuse"]
[17101,"State of Pennsylvania",0.06,"Harrisburg","Dauphin","Out of Territory","Syracuse"]
[17102,"State of Pennsylvania",0.06,"Harrisburg","Dauphin","Out of Territory","Syracuse"]
[17103,"State of Pennsylvania",0.06,"Harrisburg","Dauphin","Out of Territory","Syracuse"]
[17104,"State of Pennsylvania",0.06,"Harrisburg","Dauphin","Out of Territory","Syracuse"]
[17105,"State of Pennsylvania",0.06,"Harrisburg","Dauphin","Out of Territory","Syracuse"]
[17106,"State of Pennsylvania",0.06,"Harrisburg","Dauphin","Out of Territory","Syracuse"]
[17107,"State of Pennsylvania",0.06,"Harrisburg","Dauphin","Out of Territory","Syracuse"]
[17108,"State of Pennsylvania",0.06,"Harrisburg","Dauphin","Out of Territory","Syracuse"]
[17109,"State of Pennsylvania",0.06,"Harrisburg","Dauphin","Out of Territory","Syracuse"]
[17110,"State of Pennsylvania",0.06,"Harrisburg","Dauphin","Out of Territory","Syracuse"]
[17111,"State of Pennsylvania",0.06,"Harrisburg","Dauphin","Out of Territory","Syracuse"]
[17112,"State of Pennsylvania",0.06,"Harrisburg","Dauphin","Out of Territory","Syracuse"]
[17113,"State of Pennsylvania",0.06,"Harrisburg","Dauphin","Out of Territory","Syracuse"]
[17120,"State of Pennsylvania",0.06,"Harrisburg","Dauphin","Out of Territory","Syracuse"]
[17121,"State of Pennsylvania",0.06,"Harrisburg","Dauphin","Out of Territory","Syracuse"]
[17122,"State of Pennsylvania",0.06,"Harrisburg","Dauphin","Out of Territory","Syracuse"]
[17123,"State of Pennsylvania",0.06,"Harrisburg","Dauphin","Out of Territory","Syracuse"]
[17124,"State of Pennsylvania",0.06,"Harrisburg","Dauphin","Out of Territory","Syracuse"]
[17125,"State of Pennsylvania",0.06,"Harrisburg","Dauphin","Out of Territory","Syracuse"]
[17126,"State of Pennsylvania",0.06,"Harrisburg","Dauphin","Out of Territory","Syracuse"]
[17127,"State of Pennsylvania",0.06,"Harrisburg","Dauphin","Out of Territory","Syracuse"]
[17128,"State of Pennsylvania",0.06,"Harrisburg","Dauphin","Out of Territory","Syracuse"]
[17129,"State of Pennsylvania",0.06,"Harrisburg","Dauphin","Out of Territory","Syracuse"]
[17130,"State of Pennsylvania",0.06,"Harrisburg","Dauphin","Out of Territory","Syracuse"]
[17140,"State of Pennsylvania",0.06,"Harrisburg","Dauphin","Out of Territory","Syracuse"]
[17177,"State of Pennsylvania",0.06,"Harrisburg","Dauphin","Out of Territory","Syracuse"]
[12167,"County of Delaware",0.08,"Stamford","Delaware","Central","Binghamton"]
[12406,"County of Delaware",0.08,"Arkville","Delaware","Central","Binghamton"]
[12421,"County of Delaware",0.08,"Denver","Delaware","Central","Binghamton"]
[12430,"County of Delaware",0.08,"Fleischmanns","Delaware","Central","Binghamton"]
[12434,"County of Delaware",0.08,"Grand Gorge","Delaware","Central","Binghamton"]
[12438,"County of Delaware",0.08,"Halcottsville","Delaware","Central","Binghamton"]
[12455,"County of Delaware",0.08,"Margaretville","Delaware","Central","Binghamton"]
[12459,"County of Delaware",0.08,"New Kingston","Delaware","Central","Binghamton"]
[12474,"County of Delaware",0.08,"Roxbury","Delaware","Central","Binghamton"]
[13731,"County of Delaware",0.08,"Andes","Delaware","Central","Binghamton"]
[13739,"County of Delaware",0.08,"Bloomville","Delaware","Central","Binghamton"]
[13740,"County of Delaware",0.08,"Bovina Center","Delaware","Central","Binghamton"]
[13750,"County of Delaware",0.08,"Davenport","Delaware","Central","Binghamton"]
[13751,"County of Delaware",0.08,"Davenport Center","Delaware","Central","Binghamton"]
[13752,"County of Delaware",0.08,"Delancey","Delaware","Central","Binghamton"]
[13753,"County of Delaware",0.08,"Delhi","Delaware","Central","Binghamton"]
[13755,"County of Delaware",0.08,"Downsville","Delaware","Central","Binghamton"]
[13756,"County of Delaware",0.08,"East Branch","Delaware","Central","Binghamton"]
[13757,"County of Delaware",0.08,"East Meredith","Delaware","Central","Binghamton"]
[13774,"County of Delaware",0.08,"Fishs Eddy","Delaware","Central","Binghamton"]
[13775,"County of Delaware",0.08,"Franklin","Delaware","Central","Binghamton"]
[13782,"County of Delaware",0.08,"Hamden","Delaware","Central","Binghamton"]
[13783,"County of Delaware",0.08,"Hancock","Delaware","Central","Binghamton"]
[13786,"County of Delaware",0.08,"Harpersfield","Delaware","Central","Binghamton"]
[13788,"County of Delaware",0.08,"Hobart","Delaware","Central","Binghamton"]
[13804,"County of Delaware",0.08,"Masonville","Delaware","Central","Binghamton"]
[13806,"County of Delaware",0.08,"Meridale","Delaware","Central","Binghamton"]
[13838,"County of Delaware",0.08,"Sidney","Delaware","Central","Binghamton"]
[13839,"County of Delaware",0.08,"Sidney Center","Delaware","Central","Binghamton"]
[13842,"County of Delaware",0.08,"South Kortright","Delaware","Central","Binghamton"]
[13846,"County of Delaware",0.08,"Treadwell","Delaware","Central","Binghamton"]
[13847,"County of Delaware",0.08,"Trout Creek","Delaware","Central","Binghamton"]
[13856,"County of Delaware",0.08,"Walton","Delaware","Central","Binghamton"]
[13860,"County of Delaware",0.08,"West Davenport","Delaware","Central","Binghamton"]
[19087,"State of Pennsylvania",0.06,"Wayne","Delaware","Out of Territory","Syracuse"]
[19008,"State of Pennsylvania",0.06,"Broomall","Delaware","Out of Territory","Syracuse"]
[19010,"State of Pennsylvania",0.06,"Bryn Mawr","Delaware","Out of Territory","Syracuse"]
[19013,"State of Pennsylvania",0.06,"Chester","Delaware","Out of Territory","Syracuse"]
[19014,"State of Pennsylvania",0.06,"Aston","Delaware","Out of Territory","Syracuse"]
[19015,"State of Pennsylvania",0.06,"Brookhaven","Delaware","Out of Territory","Syracuse"]
[19016,"State of Pennsylvania",0.06,"Chester","Delaware","Out of Territory","Syracuse"]
[19017,"State of Pennsylvania",0.06,"Chester Heights","Delaware","Out of Territory","Syracuse"]
[19018,"State of Pennsylvania",0.06,"Clifton Heights","Delaware","Out of Territory","Syracuse"]
[19022,"State of Pennsylvania",0.06,"Crum Lynne","Delaware","Out of Territory","Syracuse"]
[19023,"State of Pennsylvania",0.06,"Darby","Delaware","Out of Territory","Syracuse"]
[19026,"State of Pennsylvania",0.06,"Drexel Hill","Delaware","Out of Territory","Syracuse"]
[19028,"State of Pennsylvania",0.06,"Edgemont","Delaware","Out of Territory","Syracuse"]
[19029,"State of Pennsylvania",0.06,"Essington","Delaware","Out of Territory","Syracuse"]
[19032,"State of Pennsylvania",0.06,"Folcroft","Delaware","Out of Territory","Syracuse"]
[19033,"State of Pennsylvania",0.06,"Folsom","Delaware","Out of Territory","Syracuse"]
[19036,"State of Pennsylvania",0.06,"Glenolden","Delaware","Out of Territory","Syracuse"]
[19037,"State of Pennsylvania",0.06,"Glen Riddle Lima","Delaware","Out of Territory","Syracuse"]
[19039,"State of Pennsylvania",0.06,"Gradyville","Delaware","Out of Territory","Syracuse"]
[19043,"State of Pennsylvania",0.06,"Holmes","Delaware","Out of Territory","Syracuse"]
[19050,"State of Pennsylvania",0.06,"Lansdowne","Delaware","Out of Territory","Syracuse"]
[19052,"State of Pennsylvania",0.06,"Lenni","Delaware","Out of Territory","Syracuse"]
[19060,"State of Pennsylvania",0.06,"Garnet Valley","Delaware","Out of Territory","Syracuse"]
[19061,"State of Pennsylvania",0.06,"Marcus Hook","Delaware","Out of Territory","Syracuse"]
[19063,"State of Pennsylvania",0.06,"Media","Delaware","Out of Territory","Syracuse"]
[19064,"State of Pennsylvania",0.06,"Springfield","Delaware","Out of Territory","Syracuse"]
[19065,"State of Pennsylvania",0.06,"Media","Delaware","Out of Territory","Syracuse"]
[19070,"State of Pennsylvania",0.06,"Morton","Delaware","Out of Territory","Syracuse"]
[19073,"State of Pennsylvania",0.06,"Newtown Square","Delaware","Out of Territory","Syracuse"]
[19074,"State of Pennsylvania",0.06,"Norwood","Delaware","Out of Territory","Syracuse"]
[19076,"State of Pennsylvania",0.06,"Prospect Park","Delaware","Out of Territory","Syracuse"]
[19078,"State of Pennsylvania",0.06,"Ridley Park","Delaware","Out of Territory","Syracuse"]
[19079,"State of Pennsylvania",0.06,"Sharon Hill","Delaware","Out of Territory","Syracuse"]
[19080,"State of Pennsylvania",0.06,"Wayne","Delaware","Out of Territory","Syracuse"]
[19081,"State of Pennsylvania",0.06,"Swarthmore","Delaware","Out of Territory","Syracuse"]
[19082,"State of Pennsylvania",0.06,"Upper Darby","Delaware","Out of Territory","Syracuse"]
[19083,"State of Pennsylvania",0.06,"Havertown","Delaware","Out of Territory","Syracuse"]
[19085,"State of Pennsylvania",0.06,"Villanova","Delaware","Out of Territory","Syracuse"]
[19086,"State of Pennsylvania",0.06,"Wallingford","Delaware","Out of Territory","Syracuse"]
[19088,"State of Pennsylvania",0.06,"Wayne","Delaware","Out of Territory","Syracuse"]
[19089,"State of Pennsylvania",0.06,"Wayne","Delaware","Out of Territory","Syracuse"]
[19091,"State of Pennsylvania",0.06,"Media","Delaware","Out of Territory","Syracuse"]
[19094,"State of Pennsylvania",0.06,"Woodlyn","Delaware","Out of Territory","Syracuse"]
[19098,"State of Pennsylvania",0.06,"Holmes","Delaware","Out of Territory","Syracuse"]
[19113,"State of Pennsylvania",0.06,"Philadelphia","Delaware","Out of Territory","Syracuse"]
[19317,"State of Pennsylvania",0.06,"Chadds Ford","Delaware","Out of Territory","Syracuse"]
[19319,"State of Pennsylvania",0.06,"Cheyney","Delaware","Out of Territory","Syracuse"]
[19331,"State of Pennsylvania",0.06,"Concordville","Delaware","Out of Territory","Syracuse"]
[19339,"State of Pennsylvania",0.06,"Concordville","Delaware","Out of Territory","Syracuse"]
[19340,"State of Pennsylvania",0.06,"Concordville","Delaware","Out of Territory","Syracuse"]
[19342,"State of Pennsylvania",0.06,"Glen Mills","Delaware","Out of Territory","Syracuse"]
[19373,"State of Pennsylvania",0.06,"Thornton","Delaware","Out of Territory","Syracuse"]
[12501,"County of Dutchess",8.1250000000000003E-2,"Amenia","Dutchess","Eastern","Albany"]
[12504,"County of Dutchess",8.1250000000000003E-2,"Annandale On Hudson","Dutchess","Eastern","Albany"]
[12506,"County of Dutchess",8.1250000000000003E-2,"Bangall","Dutchess","Eastern","Albany"]
[12507,"County of Dutchess",8.1250000000000003E-2,"Barrytown","Dutchess","Eastern","Albany"]
[12508,"County of Dutchess",8.1250000000000003E-2,"Beacon","Dutchess","Eastern","Albany"]
[12510,"County of Dutchess",8.1250000000000003E-2,"Billings","Dutchess","Eastern","Albany"]
[12511,"County of Dutchess",8.1250000000000003E-2,"Castle Point","Dutchess","Eastern","Albany"]
[12512,"County of Dutchess",8.1250000000000003E-2,"Chelsea","Dutchess","Eastern","Albany"]
[12514,"County of Dutchess",8.1250000000000003E-2,"Clinton Corners","Dutchess","Eastern","Albany"]
[12522,"County of Dutchess",8.1250000000000003E-2,"Dover Plains","Dutchess","Eastern","Albany"]
[12524,"County of Dutchess",8.1250000000000003E-2,"Fishkill","Dutchess","Eastern","Albany"]
[12527,"County of Dutchess",8.1250000000000003E-2,"Glenham","Dutchess","Eastern","Albany"]
[12531,"County of Dutchess",8.1250000000000003E-2,"Holmes","Dutchess","Eastern","Albany"]
[12533,"County of Dutchess",8.1250000000000003E-2,"Hopewell Junction","Dutchess","Eastern","Albany"]
[12537,"County of Dutchess",8.1250000000000003E-2,"Hughsonville","Dutchess","Eastern","Albany"]
[12538,"County of Dutchess",8.1250000000000003E-2,"Hyde Park","Dutchess","Eastern","Albany"]
[12540,"County of Dutchess",8.1250000000000003E-2,"Lagrangeville","Dutchess","Eastern","Albany"]
[12545,"County of Dutchess",8.1250000000000003E-2,"Millbrook","Dutchess","Eastern","Albany"]
[12546,"County of Dutchess",8.1250000000000003E-2,"Millerton","Dutchess","Eastern","Albany"]
[12564,"County of Dutchess",8.1250000000000003E-2,"Pawling","Dutchess","Eastern","Albany"]
[12567,"County of Dutchess",8.1250000000000003E-2,"Pine Plains","Dutchess","Eastern","Albany"]
[12569,"County of Dutchess",8.1250000000000003E-2,"Pleasant Valley","Dutchess","Eastern","Albany"]
[12570,"County of Dutchess",8.1250000000000003E-2,"Poughquag","Dutchess","Eastern","Albany"]
[12571,"County of Dutchess",8.1250000000000003E-2,"Red Hook","Dutchess","Eastern","Albany"]
[12572,"County of Dutchess",8.1250000000000003E-2,"Rhinebeck","Dutchess","Eastern","Albany"]
[12574,"County of Dutchess",8.1250000000000003E-2,"Rhinecliff","Dutchess","Eastern","Albany"]
[12578,"County of Dutchess",8.1250000000000003E-2,"Salt Point","Dutchess","Eastern","Albany"]
[12580,"County of Dutchess",8.1250000000000003E-2,"Staatsburg","Dutchess","Eastern","Albany"]
[12581,"County of Dutchess",8.1250000000000003E-2,"Stanfordville","Dutchess","Eastern","Albany"]
[12582,"County of Dutchess",8.1250000000000003E-2,"Stormville","Dutchess","Eastern","Albany"]
[12583,"County of Dutchess",8.1250000000000003E-2,"Tivoli","Dutchess","Eastern","Albany"]
[12585,"County of Dutchess",8.1250000000000003E-2,"Verbank","Dutchess","Eastern","Albany"]
[12590,"County of Dutchess",8.1250000000000003E-2,"Wappingers Falls","Dutchess","Eastern","Albany"]
[12592,"County of Dutchess",8.1250000000000003E-2,"Wassaic","Dutchess","Eastern","Albany"]
[12594,"County of Dutchess",8.1250000000000003E-2,"Wingdale","Dutchess","Eastern","Albany"]
[12601,"County of Dutchess",8.1250000000000003E-2,"Poughkeepsie","Dutchess","Eastern","Albany"]
[12602,"County of Dutchess",8.1250000000000003E-2,"Poughkeepsie","Dutchess","Eastern","Albany"]
[12603,"County of Dutchess",8.1250000000000003E-2,"Poughkeepsie","Dutchess","Eastern","Albany"]
[12604,"County of Dutchess",8.1250000000000003E-2,"Poughkeepsie","Dutchess","Eastern","Albany"]
[15821,"State of Pennsylvania",0.06,"Benezett","Elk","Out of Territory","Syracuse"]
[15822,"State of Pennsylvania",0.06,"Brandy Camp","Elk","Out of Territory","Syracuse"]
[15823,"State of Pennsylvania",0.06,"Brockport","Elk","Out of Territory","Syracuse"]
[15827,"State of Pennsylvania",0.06,"Byrnedale","Elk","Out of Territory","Syracuse"]
[15831,"State of Pennsylvania",0.06,"Dagus Mines","Elk","Out of Territory","Syracuse"]
[15841,"State of Pennsylvania",0.06,"Force","Elk","Out of Territory","Syracuse"]
[15845,"State of Pennsylvania",0.06,"Johnsonburg","Elk","Out of Territory","Syracuse"]
[15846,"State of Pennsylvania",0.06,"Kersey","Elk","Out of Territory","Syracuse"]
[15853,"State of Pennsylvania",0.06,"Ridgway","Elk","Out of Territory","Syracuse"]
[15857,"State of Pennsylvania",0.06,"Saint Marys","Elk","Out of Territory","Syracuse"]
[15868,"State of Pennsylvania",0.06,"Weedville","Elk","Out of Territory","Syracuse"]
[15870,"State of Pennsylvania",0.06,"Wilcox","Elk","Out of Territory","Syracuse"]
[16728,"State of Pennsylvania",0.06,"De Young","Elk","Out of Territory","Syracuse"]
[16734,"State of Pennsylvania",0.06,"James City","Elk","Out of Territory","Syracuse"]
[14001,"County of Erie",8.7499999999999994E-2,"Akron","Erie","Western","Buffalo"]
[14004,"County of Erie",8.7499999999999994E-2,"Alden","Erie","Western","Buffalo"]
[14006,"County of Erie",8.7499999999999994E-2,"Angola","Erie","Western","Buffalo"]
[14010,"County of Erie",8.7499999999999994E-2,"Athol Springs","Erie","Western","Buffalo"]
[14025,"County of Erie",8.7499999999999994E-2,"Boston","Erie","Western","Buffalo"]
[14026,"County of Erie",8.7499999999999994E-2,"Bowmansville","Erie","Western","Buffalo"]
[14027,"County of Erie",8.7499999999999994E-2,"Brant","Erie","Western","Buffalo"]
[14030,"County of Erie",8.7499999999999994E-2,"Chaffee","Erie","Western","Buffalo"]
[14031,"County of Erie",8.7499999999999994E-2,"Clarence","Erie","Western","Buffalo"]
[14032,"County of Erie",8.7499999999999994E-2,"Clarence Center","Erie","Western","Buffalo"]
[14033,"County of Erie",8.7499999999999994E-2,"Colden","Erie","Western","Buffalo"]
[14034,"County of Erie",8.7499999999999994E-2,"Collins","Erie","Western","Buffalo"]
[14035,"County of Erie",8.7499999999999994E-2,"Collins Center","Erie","Western","Buffalo"]
[14038,"County of Erie",8.7499999999999994E-2,"Crittenden","Erie","Western","Buffalo"]
[14043,"County of Erie",8.7499999999999994E-2,"Depew","Erie","Western","Buffalo"]
[14047,"County of Erie",8.7499999999999994E-2,"Derby","Erie","Western","Buffalo"]
[14051,"County of Erie",8.7499999999999994E-2,"East Amherst","Erie","Western","Buffalo"]
[14052,"County of Erie",8.7499999999999994E-2,"East Aurora","Erie","Western","Buffalo"]
[14055,"County of Erie",8.7499999999999994E-2,"East Concord","Erie","Western","Buffalo"]
[14057,"County of Erie",8.7499999999999994E-2,"Eden","Erie","Western","Buffalo"]
[14059,"County of Erie",8.7499999999999994E-2,"Elma","Erie","Western","Buffalo"]
[14061,"County of Erie",8.7499999999999994E-2,"Farnham","Erie","Western","Buffalo"]
[14068,"County of Erie",8.7499999999999994E-2,"Getzville","Erie","Western","Buffalo"]
[14069,"County of Erie",8.7499999999999994E-2,"Glenwood","Erie","Western","Buffalo"]
[14072,"County of Erie",8.7499999999999994E-2,"Grand Island","Erie","Western","Buffalo"]
[14075,"County of Erie",8.7499999999999994E-2,"Hamburg","Erie","Western","Buffalo"]
[14080,"County of Erie",8.7499999999999994E-2,"Holland","Erie","Western","Buffalo"]
[14085,"County of Erie",8.7499999999999994E-2,"Lake View","Erie","Western","Buffalo"]
[14086,"County of Erie",8.7499999999999994E-2,"Lancaster","Erie","Western","Buffalo"]
[14091,"County of Erie",8.7499999999999994E-2,"Lawtons","Erie","Western","Buffalo"]
[14102,"County of Erie",8.7499999999999994E-2,"Marilla","Erie","Western","Buffalo"]
[14110,"County of Erie",8.7499999999999994E-2,"North Boston","Erie","Western","Buffalo"]
[14111,"County of Erie",8.7499999999999994E-2,"North Collins","Erie","Western","Buffalo"]
[14112,"County of Erie",8.7499999999999994E-2,"North Evans","Erie","Western","Buffalo"]
[14127,"County of Erie",8.7499999999999994E-2,"Orchard Park","Erie","Western","Buffalo"]
[14134,"County of Erie",8.7499999999999994E-2,"Sardinia","Erie","Western","Buffalo"]
[14139,"County of Erie",8.7499999999999994E-2,"South Wales","Erie","Western","Buffalo"]
[14140,"County of Erie",8.7499999999999994E-2,"Spring Brook","Erie","Western","Buffalo"]
[14141,"County of Erie",8.7499999999999994E-2,"Springville","Erie","Western","Buffalo"]
[14150,"County of Erie",8.7499999999999994E-2,"Tonawanda","Erie","Western","Buffalo"]
[14151,"County of Erie",8.7499999999999994E-2,"Tonawanda","Erie","Western","Buffalo"]
[14169,"County of Erie",8.7499999999999994E-2,"Wales Center","Erie","Western","Buffalo"]
[14170,"County of Erie",8.7499999999999994E-2,"West Falls","Erie","Western","Buffalo"]
[14201,"County of Erie",8.7499999999999994E-2,"Buffalo","Erie","Western","Buffalo"]
[14202,"County of Erie",8.7499999999999994E-2,"Buffalo","Erie","Western","Buffalo"]
[14203,"County of Erie",8.7499999999999994E-2,"Buffalo","Erie","Western","Buffalo"]
[14204,"County of Erie",8.7499999999999994E-2,"Buffalo","Erie","Western","Buffalo"]
[14205,"County of Erie",8.7499999999999994E-2,"Buffalo","Erie","Western","Buffalo"]
[14206,"County of Erie",8.7499999999999994E-2,"Buffalo","Erie","Western","Buffalo"]
[14207,"County of Erie",8.7499999999999994E-2,"Buffalo","Erie","Western","Buffalo"]
[14208,"County of Erie",8.7499999999999994E-2,"Buffalo","Erie","Western","Buffalo"]
[14209,"County of Erie",8.7499999999999994E-2,"Buffalo","Erie","Western","Buffalo"]
[14210,"County of Erie",8.7499999999999994E-2,"Buffalo","Erie","Western","Buffalo"]
[14211,"County of Erie",8.7499999999999994E-2,"Buffalo","Erie","Western","Buffalo"]
[14212,"County of Erie",8.7499999999999994E-2,"Buffalo","Erie","Western","Buffalo"]
[14213,"County of Erie",8.7499999999999994E-2,"Buffalo","Erie","Western","Buffalo"]
[14214,"County of Erie",8.7499999999999994E-2,"Buffalo","Erie","Western","Buffalo"]
[14215,"County of Erie",8.7499999999999994E-2,"Buffalo","Erie","Western","Buffalo"]
[14216,"County of Erie",8.7499999999999994E-2,"Buffalo","Erie","Western","Buffalo"]
[14217,"County of Erie",8.7499999999999994E-2,"Buffalo","Erie","Western","Buffalo"]
[14218,"County of Erie",8.7499999999999994E-2,"Buffalo","Erie","Western","Buffalo"]
[14219,"County of Erie",8.7499999999999994E-2,"Buffalo","Erie","Western","Buffalo"]
[14220,"County of Erie",8.7499999999999994E-2,"Buffalo","Erie","Western","Buffalo"]
[14221,"County of Erie",8.7499999999999994E-2,"Buffalo","Erie","Western","Buffalo"]
[14222,"County of Erie",8.7499999999999994E-2,"Buffalo","Erie","Western","Buffalo"]
[14223,"County of Erie",8.7499999999999994E-2,"Buffalo","Erie","Western","Buffalo"]
[14224,"County of Erie",8.7499999999999994E-2,"Buffalo","Erie","Western","Buffalo"]
[14225,"County of Erie",8.7499999999999994E-2,"Buffalo","Erie","Western","Buffalo"]
[14226,"County of Erie",8.7499999999999994E-2,"Buffalo","Erie","Western","Buffalo"]
[14227,"County of Erie",8.7499999999999994E-2,"Buffalo","Erie","Western","Buffalo"]
[14228,"County of Erie",8.7499999999999994E-2,"Buffalo","Erie","Western","Buffalo"]
[14231,"County of Erie",8.7499999999999994E-2,"Buffalo","Erie","Western","Buffalo"]
[14233,"County of Erie",8.7499999999999994E-2,"Buffalo","Erie","Western","Buffalo"]
[14240,"County of Erie",8.7499999999999994E-2,"Buffalo","Erie","Western","Buffalo"]
[14241,"County of Erie",8.7499999999999994E-2,"Buffalo","Erie","Western","Buffalo"]
[14260,"County of Erie",8.7499999999999994E-2,"Buffalo","Erie","Western","Buffalo"]
[14261,"County of Erie",8.7499999999999994E-2,"Buffalo","Erie","Western","Buffalo"]
[14263,"County of Erie",8.7499999999999994E-2,"Buffalo","Erie","Western","Buffalo"]
[14264,"County of Erie",8.7499999999999994E-2,"Buffalo","Erie","Western","Buffalo"]
[14265,"County of Erie",8.7499999999999994E-2,"Buffalo","Erie","Western","Buffalo"]
[14267,"County of Erie",8.7499999999999994E-2,"Buffalo","Erie","Western","Buffalo"]
[14269,"County of Erie",8.7499999999999994E-2,"Buffalo","Erie","Western","Buffalo"]
[14270,"County of Erie",8.7499999999999994E-2,"Buffalo","Erie","Western","Buffalo"]
[14272,"County of Erie",8.7499999999999994E-2,"Buffalo","Erie","Western","Buffalo"]
[14273,"County of Erie",8.7499999999999994E-2,"Buffalo","Erie","Western","Buffalo"]
[14276,"County of Erie",8.7499999999999994E-2,"Buffalo","Erie","Western","Buffalo"]
[14280,"County of Erie",8.7499999999999994E-2,"Buffalo","Erie","Western","Buffalo"]
[16401,"State of Pennsylvania",0.06,"Albion","Erie","Western","Jamestown"]
[16407,"State of Pennsylvania",0.06,"Corry","Erie","Western","Jamestown"]
[16410,"State of Pennsylvania",0.06,"Cranesville","Erie","Western","Jamestown"]
[16411,"State of Pennsylvania",0.06,"East Springfield","Erie","Western","Jamestown"]
[16412,"State of Pennsylvania",0.06,"Edinboro","Erie","Western","Jamestown"]
[16413,"State of Pennsylvania",0.06,"Elgin","Erie","Western","Jamestown"]
[16415,"State of Pennsylvania",0.06,"Fairview","Erie","Western","Jamestown"]
[16417,"State of Pennsylvania",0.06,"Girard","Erie","Western","Jamestown"]
[16421,"State of Pennsylvania",0.06,"Harborcreek","Erie","Western","Jamestown"]
[16423,"State of Pennsylvania",0.06,"Lake City","Erie","Western","Jamestown"]
[16426,"State of Pennsylvania",0.06,"Mc Kean","Erie","Western","Jamestown"]
[16427,"State of Pennsylvania",0.06,"Mill Village","Erie","Western","Jamestown"]
[16428,"State of Pennsylvania",0.06,"North East","Erie","Western","Jamestown"]
[16430,"State of Pennsylvania",0.06,"North Springfield","Erie","Western","Jamestown"]
[16438,"State of Pennsylvania",0.06,"Union City","Erie","Western","Jamestown"]
[16441,"State of Pennsylvania",0.06,"Waterford","Erie","Western","Jamestown"]
[16442,"State of Pennsylvania",0.06,"Wattsburg","Erie","Western","Jamestown"]
[16443,"State of Pennsylvania",0.06,"West Springfield","Erie","Western","Jamestown"]
[16444,"State of Pennsylvania",0.06,"Edinboro","Erie","Western","Jamestown"]
[16475,"State of Pennsylvania",0.06,"Albion","Erie","Western","Jamestown"]
[16501,"State of Pennsylvania",0.06,"Erie","Erie","Western","Jamestown"]
[16502,"State of Pennsylvania",0.06,"Erie","Erie","Western","Jamestown"]
[16503,"State of Pennsylvania",0.06,"Erie","Erie","Western","Jamestown"]
[16504,"State of Pennsylvania",0.06,"Erie","Erie","Western","Jamestown"]
[16505,"State of Pennsylvania",0.06,"Erie","Erie","Western","Jamestown"]
[16506,"State of Pennsylvania",0.06,"Erie","Erie","Western","Jamestown"]
[16507,"State of Pennsylvania",0.06,"Erie","Erie","Western","Jamestown"]
[16508,"State of Pennsylvania",0.06,"Erie","Erie","Western","Jamestown"]
[16509,"State of Pennsylvania",0.06,"Erie","Erie","Western","Jamestown"]
[16510,"State of Pennsylvania",0.06,"Erie","Erie","Western","Jamestown"]
[16511,"State of Pennsylvania",0.06,"Erie","Erie","Western","Jamestown"]
[16512,"State of Pennsylvania",0.06,"Erie","Erie","Western","Jamestown"]
[16514,"State of Pennsylvania",0.06,"Erie","Erie","Western","Jamestown"]
[16515,"State of Pennsylvania",0.06,"Erie","Erie","Western","Jamestown"]
[16522,"State of Pennsylvania",0.06,"Erie","Erie","Western","Jamestown"]
[16530,"State of Pennsylvania",0.06,"Erie","Erie","Western","Jamestown"]
[16531,"State of Pennsylvania",0.06,"Erie","Erie","Western","Jamestown"]
[16534,"State of Pennsylvania",0.06,"Erie","Erie","Western","Jamestown"]
[16538,"State of Pennsylvania",0.06,"Erie","Erie","Western","Jamestown"]
[16541,"State of Pennsylvania",0.06,"Erie","Erie","Western","Jamestown"]
[16544,"State of Pennsylvania",0.06,"Erie","Erie","Western","Jamestown"]
[16546,"State of Pennsylvania",0.06,"Erie","Erie","Western","Jamestown"]
[16550,"State of Pennsylvania",0.06,"Erie","Erie","Western","Jamestown"]
[16553,"State of Pennsylvania",0.06,"Erie","Erie","Western","Jamestown"]
[16563,"State of Pennsylvania",0.06,"Erie","Erie","Western","Jamestown"]
[16565,"State of Pennsylvania",0.06,"Erie","Erie","Western","Jamestown"]
[12851,"County of Essex",0.08,"Minerva","Essex","Eastern","Plattsburgh"]
[12852,"County of Essex",0.08,"Newcomb","Essex","Eastern","Plattsburgh"]
[12855,"County of Essex",0.08,"North Hudson","Essex","Eastern","Plattsburgh"]
[12857,"County of Essex",0.08,"Olmstedville","Essex","Eastern","Plattsburgh"]
[12858,"County of Essex",0.08,"Paradox","Essex","Eastern","Plattsburgh"]
[12870,"County of Essex",0.08,"Schroon Lake","Essex","Eastern","Plattsburgh"]
[12872,"County of Essex",0.08,"Severance","Essex","Eastern","Plattsburgh"]
[12879,"County of Essex",0.08,"Newcomb","Essex","Eastern","Plattsburgh"]
[12883,"County of Essex",0.08,"Ticonderoga","Essex","Eastern","Plattsburgh"]
[12913,"County of Essex",0.08,"Bloomingdale","Essex","Eastern","Plattsburgh"]
[12928,"County of Essex",0.08,"Crown Point","Essex","Eastern","Plattsburgh"]
[12932,"County of Essex",0.08,"Elizabethtown","Essex","Eastern","Plattsburgh"]
[12936,"County of Essex",0.08,"Essex","Essex","Eastern","Plattsburgh"]
[12941,"County of Essex",0.08,"Jay","Essex","Eastern","Plattsburgh"]
[12942,"County of Essex",0.08,"Keene","Essex","Eastern","Plattsburgh"]
[12943,"County of Essex",0.08,"Keene Valley","Essex","Eastern","Plattsburgh"]
[12946,"County of Essex",0.08,"Lake Placid","Essex","Eastern","Plattsburgh"]
[12950,"County of Essex",0.08,"Lewis","Essex","Eastern","Plattsburgh"]
[12956,"County of Essex",0.08,"Mineville","Essex","Eastern","Plattsburgh"]
[12960,"County of Essex",0.08,"Moriah","Essex","Eastern","Plattsburgh"]
[12961,"County of Essex",0.08,"Moriah Center","Essex","Eastern","Plattsburgh"]
[12964,"County of Essex",0.08,"New Russia","Essex","Eastern","Plattsburgh"]
[12974,"County of Essex",0.08,"Port Henry","Essex","Eastern","Plattsburgh"]
[12975,"County of Essex",0.08,"Port Kent","Essex","Eastern","Plattsburgh"]
[12977,"County of Essex",0.08,"Ray Brook","Essex","Eastern","Plattsburgh"]
[12987,"County of Essex",0.08,"Upper Jay","Essex","Eastern","Plattsburgh"]
[12993,"County of Essex",0.08,"Westport","Essex","Eastern","Plattsburgh"]
[12996,"County of Essex",0.08,"Willsboro","Essex","Eastern","Plattsburgh"]
[12997,"County of Essex",0.08,"Wilmington","Essex","Eastern","Plattsburgh"]
[12998,"County of Essex",0.08,"Witherbee","Essex","Eastern","Plattsburgh"]
[5824,"State of Vermont",0.06,"Concord","Essex","Eastern","Burlington"]
[5837,"State of Vermont",0.06,"East Haven","Essex","Eastern","Burlington"]
[5840,"State of Vermont",0.06,"Granby","Essex","Eastern","Burlington"]
[5846,"State of Vermont",0.06,"Island Pond","Essex","Eastern","Burlington"]
[5858,"State of Vermont",0.06,"North Concord","Essex","Eastern","Burlington"]
[5901,"State of Vermont",0.06,"Averill","Essex","Eastern","Burlington"]
[5902,"State of Vermont",0.06,"Beecher Falls","Essex","Eastern","Burlington"]
[5903,"State of Vermont",0.06,"Canaan","Essex","Eastern","Burlington"]
[5904,"State of Vermont",0.06,"Gilman","Essex","Eastern","Burlington"]
[5905,"State of Vermont",0.06,"Guildhall","Essex","Eastern","Burlington"]
[5906,"State of Vermont",0.06,"Lunenburg","Essex","Eastern","Burlington"]
[5907,"State of Vermont",0.06,"Norton","Essex","Eastern","Burlington"]
[15401,"State of Pennsylvania",0.06,"Uniontown","Fayette","Out of Territory","Syracuse"]
[15410,"State of Pennsylvania",0.06,"Adah","Fayette","Out of Territory","Syracuse"]
[15413,"State of Pennsylvania",0.06,"Allison","Fayette","Out of Territory","Syracuse"]
[15415,"State of Pennsylvania",0.06,"Brier Hill","Fayette","Out of Territory","Syracuse"]
[15416,"State of Pennsylvania",0.06,"Brownfield","Fayette","Out of Territory","Syracuse"]
[15417,"State of Pennsylvania",0.06,"Brownsville","Fayette","Out of Territory","Syracuse"]
[15420,"State of Pennsylvania",0.06,"Cardale","Fayette","Out of Territory","Syracuse"]
[15421,"State of Pennsylvania",0.06,"Chalk Hill","Fayette","Out of Territory","Syracuse"]
[15422,"State of Pennsylvania",0.06,"Chestnut Ridge","Fayette","Out of Territory","Syracuse"]
[15425,"State of Pennsylvania",0.06,"Connellsville","Fayette","Out of Territory","Syracuse"]
[15428,"State of Pennsylvania",0.06,"Dawson","Fayette","Out of Territory","Syracuse"]
[15430,"State of Pennsylvania",0.06,"Dickerson Run","Fayette","Out of Territory","Syracuse"]
[15431,"State of Pennsylvania",0.06,"Dunbar","Fayette","Out of Territory","Syracuse"]
[15433,"State of Pennsylvania",0.06,"East Millsboro","Fayette","Out of Territory","Syracuse"]
[15435,"State of Pennsylvania",0.06,"Fairbank","Fayette","Out of Territory","Syracuse"]
[15436,"State of Pennsylvania",0.06,"Fairchance","Fayette","Out of Territory","Syracuse"]
[15437,"State of Pennsylvania",0.06,"Farmington","Fayette","Out of Territory","Syracuse"]
[15438,"State of Pennsylvania",0.06,"Fayette City","Fayette","Out of Territory","Syracuse"]
[15440,"State of Pennsylvania",0.06,"Gibbon Glade","Fayette","Out of Territory","Syracuse"]
[15442,"State of Pennsylvania",0.06,"Grindstone","Fayette","Out of Territory","Syracuse"]
[15443,"State of Pennsylvania",0.06,"Hibbs","Fayette","Out of Territory","Syracuse"]
[15444,"State of Pennsylvania",0.06,"Hiller","Fayette","Out of Territory","Syracuse"]
[15445,"State of Pennsylvania",0.06,"Hopwood","Fayette","Out of Territory","Syracuse"]
[15446,"State of Pennsylvania",0.06,"Indian Head","Fayette","Out of Territory","Syracuse"]
[15447,"State of Pennsylvania",0.06,"Isabella","Fayette","Out of Territory","Syracuse"]
[15449,"State of Pennsylvania",0.06,"Keisterville","Fayette","Out of Territory","Syracuse"]
[15450,"State of Pennsylvania",0.06,"La Belle","Fayette","Out of Territory","Syracuse"]
[15451,"State of Pennsylvania",0.06,"Lake Lynn","Fayette","Out of Territory","Syracuse"]
[15454,"State of Pennsylvania",0.06,"Leckrone","Fayette","Out of Territory","Syracuse"]
[15455,"State of Pennsylvania",0.06,"Leisenring","Fayette","Out of Territory","Syracuse"]
[15456,"State of Pennsylvania",0.06,"Lemont Furnace","Fayette","Out of Territory","Syracuse"]
[15458,"State of Pennsylvania",0.06,"Mc Clellandtown","Fayette","Out of Territory","Syracuse"]
[15459,"State of Pennsylvania",0.06,"Markleysburg","Fayette","Out of Territory","Syracuse"]
[15460,"State of Pennsylvania",0.06,"Martin","Fayette","Out of Territory","Syracuse"]
[15461,"State of Pennsylvania",0.06,"Masontown","Fayette","Out of Territory","Syracuse"]
[15462,"State of Pennsylvania",0.06,"Melcroft","Fayette","Out of Territory","Syracuse"]
[15463,"State of Pennsylvania",0.06,"Merrittstown","Fayette","Out of Territory","Syracuse"]
[15464,"State of Pennsylvania",0.06,"Mill Run","Fayette","Out of Territory","Syracuse"]
[15465,"State of Pennsylvania",0.06,"Mount Braddock","Fayette","Out of Territory","Syracuse"]
[15466,"State of Pennsylvania",0.06,"Newell","Fayette","Out of Territory","Syracuse"]
[15467,"State of Pennsylvania",0.06,"New Geneva","Fayette","Out of Territory","Syracuse"]
[15468,"State of Pennsylvania",0.06,"New Salem","Fayette","Out of Territory","Syracuse"]
[15469,"State of Pennsylvania",0.06,"Normalville","Fayette","Out of Territory","Syracuse"]
[15470,"State of Pennsylvania",0.06,"Ohiopyle","Fayette","Out of Territory","Syracuse"]
[15472,"State of Pennsylvania",0.06,"Oliver","Fayette","Out of Territory","Syracuse"]
[15473,"State of Pennsylvania",0.06,"Perryopolis","Fayette","Out of Territory","Syracuse"]
[15474,"State of Pennsylvania",0.06,"Point Marion","Fayette","Out of Territory","Syracuse"]
[15475,"State of Pennsylvania",0.06,"Republic","Fayette","Out of Territory","Syracuse"]
[15476,"State of Pennsylvania",0.06,"Ronco","Fayette","Out of Territory","Syracuse"]
[15478,"State of Pennsylvania",0.06,"Smithfield","Fayette","Out of Territory","Syracuse"]
[15480,"State of Pennsylvania",0.06,"Smock","Fayette","Out of Territory","Syracuse"]
[15482,"State of Pennsylvania",0.06,"Star Junction","Fayette","Out of Territory","Syracuse"]
[15484,"State of Pennsylvania",0.06,"Uledi","Fayette","Out of Territory","Syracuse"]
[15486,"State of Pennsylvania",0.06,"Vanderbilt","Fayette","Out of Territory","Syracuse"]
[15488,"State of Pennsylvania",0.06,"Waltersburg","Fayette","Out of Territory","Syracuse"]
[15489,"State of Pennsylvania",0.06,"West Leisenring","Fayette","Out of Territory","Syracuse"]
[15490,"State of Pennsylvania",0.06,"White","Fayette","Out of Territory","Syracuse"]
[15492,"State of Pennsylvania",0.06,"Wickhaven","Fayette","Out of Territory","Syracuse"]
[15631,"State of Pennsylvania",0.06,"Everson","Fayette","Out of Territory","Syracuse"]
[15439,"State of Pennsylvania",0.06,"Gans","Fayette","Out of Territory","Syracuse"]
[15012,"State of Pennsylvania",0.06,"Belle Vernon","Fayette","Out of Territory","Syracuse"]
[15828,"State of Pennsylvania",0.06,"Clarington","Forest","Out of Territory","Syracuse"]
[16217,"State of Pennsylvania",0.06,"Cooksburg","Forest","Out of Territory","Syracuse"]
[16239,"State of Pennsylvania",0.06,"Marienville","Forest","Out of Territory","Syracuse"]
[16321,"State of Pennsylvania",0.06,"East Hickory","Forest","Out of Territory","Syracuse"]
[16322,"State of Pennsylvania",0.06,"Endeavor","Forest","Out of Territory","Syracuse"]
[16353,"State of Pennsylvania",0.06,"Tionesta","Forest","Out of Territory","Syracuse"]
[16370,"State of Pennsylvania",0.06,"West Hickory","Forest","Out of Territory","Syracuse"]
[5478,"City of Saint Albans",0.06,"Saint Albans","Franklin","Eastern","Burlington"]
[5479,"City of Saint Albans",0.06,"Saint Albans","Franklin","Eastern","Burlington"]
[12914,"County of Franklin",0.08,"Bombay","Franklin","Eastern","Plattsburgh"]
[12915,"County of Franklin",0.08,"Brainardsville","Franklin","Eastern","Plattsburgh"]
[12916,"County of Franklin",0.08,"Brushton","Franklin","Eastern","Plattsburgh"]
[12917,"County of Franklin",0.08,"Burke","Franklin","Eastern","Plattsburgh"]
[12920,"County of Franklin",0.08,"Chateaugay","Franklin","Eastern","Plattsburgh"]
[12926,"County of Franklin",0.08,"Constable","Franklin","Eastern","Plattsburgh"]
[12930,"County of Franklin",0.08,"Dickinson Center","Franklin","Eastern","Plattsburgh"]
[12937,"County of Franklin",0.08,"Fort Covington","Franklin","Eastern","Plattsburgh"]
[12939,"County of Franklin",0.08,"Gabriels","Franklin","Eastern","Plattsburgh"]
[12945,"County of Franklin",0.08,"Lake Clear","Franklin","Eastern","Plattsburgh"]
[12953,"County of Franklin",0.08,"Malone","Franklin","Eastern","Plattsburgh"]
[12957,"County of Franklin",0.08,"Moira","Franklin","Eastern","Plattsburgh"]
[12966,"County of Franklin",0.08,"North Bangor","Franklin","Eastern","Plattsburgh"]
[12969,"County of Franklin",0.08,"Owls Head","Franklin","Eastern","Plattsburgh"]
[12970,"County of Franklin",0.08,"Paul Smiths","Franklin","Eastern","Plattsburgh"]
[12976,"County of Franklin",0.08,"Rainbow Lake","Franklin","Eastern","Plattsburgh"]
[12980,"County of Franklin",0.08,"Saint Regis Falls","Franklin","Eastern","Plattsburgh"]
[12983,"County of Franklin",0.08,"Saranac Lake","Franklin","Eastern","Plattsburgh"]
[12986,"County of Franklin",0.08,"Tupper Lake","Franklin","Eastern","Plattsburgh"]
[12989,"County of Franklin",0.08,"Vermontville","Franklin","Eastern","Plattsburgh"]
[12995,"County of Franklin",0.08,"Whippleville","Franklin","Eastern","Plattsburgh"]
[13655,"County of Franklin",0.08,"Hogansburg","Franklin","Eastern","Plattsburgh"]
[17201,"State of Pennsylvania",0.06,"Chambersburg","Franklin","Out of Territory","Syracuse"]
[17202,"State of Pennsylvania",0.06,"Chambersburg","Franklin","Out of Territory","Syracuse"]
[17210,"State of Pennsylvania",0.06,"Amberson","Franklin","Out of Territory","Syracuse"]
[17214,"State of Pennsylvania",0.06,"Blue Ridge Summit","Franklin","Out of Territory","Syracuse"]
[17217,"State of Pennsylvania",0.06,"Concord","Franklin","Out of Territory","Syracuse"]
[17219,"State of Pennsylvania",0.06,"Doylesburg","Franklin","Out of Territory","Syracuse"]
[17220,"State of Pennsylvania",0.06,"Dry Run","Franklin","Out of Territory","Syracuse"]
[17221,"State of Pennsylvania",0.06,"Fannettsburg","Franklin","Out of Territory","Syracuse"]
[17222,"State of Pennsylvania",0.06,"Fayetteville","Franklin","Out of Territory","Syracuse"]
[17224,"State of Pennsylvania",0.06,"Fort Loudon","Franklin","Out of Territory","Syracuse"]
[17225,"State of Pennsylvania",0.06,"Greencastle","Franklin","Out of Territory","Syracuse"]
[17231,"State of Pennsylvania",0.06,"Lemasters","Franklin","Out of Territory","Syracuse"]
[17232,"State of Pennsylvania",0.06,"Lurgan","Franklin","Out of Territory","Syracuse"]
[17235,"State of Pennsylvania",0.06,"Marion","Franklin","Out of Territory","Syracuse"]
[17236,"State of Pennsylvania",0.06,"Mercersburg","Franklin","Out of Territory","Syracuse"]
[17237,"State of Pennsylvania",0.06,"Mont Alto","Franklin","Out of Territory","Syracuse"]
[17244,"State of Pennsylvania",0.06,"Orrstown","Franklin","Out of Territory","Syracuse"]
[17246,"State of Pennsylvania",0.06,"Pleasant Hall","Franklin","Out of Territory","Syracuse"]
[17247,"State of Pennsylvania",0.06,"Quincy","Franklin","Out of Territory","Syracuse"]
[17250,"State of Pennsylvania",0.06,"Rouzerville","Franklin","Out of Territory","Syracuse"]
[17251,"State of Pennsylvania",0.06,"Roxbury","Franklin","Out of Territory","Syracuse"]
[17252,"State of Pennsylvania",0.06,"Saint Thomas","Franklin","Out of Territory","Syracuse"]
[17254,"State of Pennsylvania",0.06,"Scotland","Franklin","Out of Territory","Syracuse"]
[17256,"State of Pennsylvania",0.06,"Shady Grove","Franklin","Out of Territory","Syracuse"]
[17261,"State of Pennsylvania",0.06,"South Mountain","Franklin","Out of Territory","Syracuse"]
[17262,"State of Pennsylvania",0.06,"Spring Run","Franklin","Out of Territory","Syracuse"]
[17263,"State of Pennsylvania",0.06,"State Line","Franklin","Out of Territory","Syracuse"]
[17265,"State of Pennsylvania",0.06,"Upperstrasburg","Franklin","Out of Territory","Syracuse"]
[17268,"State of Pennsylvania",0.06,"Waynesboro","Franklin","Out of Territory","Syracuse"]
[17271,"State of Pennsylvania",0.06,"Willow Hill","Franklin","Out of Territory","Syracuse"]
[17272,"State of Pennsylvania",0.06,"Zullinger","Franklin","Out of Territory","Syracuse"]
[5441,"State of Vermont",0.06,"Bakersfield","Franklin","Eastern","Burlington"]
[5447,"State of Vermont",0.06,"East Berkshire","Franklin","Eastern","Burlington"]
[5448,"State of Vermont",0.06,"East Fairfield","Franklin","Eastern","Burlington"]
[5450,"State of Vermont",0.06,"Enosburg Falls","Franklin","Eastern","Burlington"]
[5455,"State of Vermont",0.06,"Fairfield","Franklin","Eastern","Burlington"]
[5457,"State of Vermont",0.06,"Franklin","Franklin","Eastern","Burlington"]
[5459,"State of Vermont",0.06,"Highgate Center","Franklin","Eastern","Burlington"]
[5460,"State of Vermont",0.06,"Highgate Springs","Franklin","Eastern","Burlington"]
[5470,"State of Vermont",0.06,"Montgomery","Franklin","Eastern","Burlington"]
[5471,"State of Vermont",0.06,"Montgomery Center","Franklin","Eastern","Burlington"]
[5476,"State of Vermont",0.06,"Richford","Franklin","Eastern","Burlington"]
[5481,"State of Vermont",0.06,"Saint Albans Bay","Franklin","Eastern","Burlington"]
[5483,"State of Vermont",0.06,"Sheldon","Franklin","Eastern","Burlington"]
[5485,"State of Vermont",0.06,"Sheldon Springs","Franklin","Eastern","Burlington"]
[5488,"State of Vermont",0.06,"Swanton","Franklin","Eastern","Burlington"]
[12078,"City of Gloversville",0.08,"Gloversville","Fulton","Eastern","Albany"]
[12095,"City of Johnstown",0.08,"Johnstown","Fulton","Eastern","Albany"]
[12025,"County of Fulton",0.08,"Broadalbin","Fulton","Eastern","Albany"]
[12032,"County of Fulton",0.08,"Caroga Lake","Fulton","Eastern","Albany"]
[12117,"County of Fulton",0.08,"Mayfield","Fulton","Eastern","Albany"]
[12134,"County of Fulton",0.08,"Northville","Fulton","Eastern","Albany"]
[13470,"County of Fulton",0.08,"Stratford","Fulton","Eastern","Albany"]
[15536,"State of Pennsylvania",0.06,"Crystal Spring","Fulton","Out of Territory","Syracuse"]
[16689,"State of Pennsylvania",0.06,"Waterfall","Fulton","Out of Territory","Syracuse"]
[16691,"State of Pennsylvania",0.06,"Wells Tannery","Fulton","Out of Territory","Syracuse"]
[17212,"State of Pennsylvania",0.06,"Big Cove Tannery","Fulton","Out of Territory","Syracuse"]
[17215,"State of Pennsylvania",0.06,"Burnt Cabins","Fulton","Out of Territory","Syracuse"]
[17223,"State of Pennsylvania",0.06,"Fort Littleton","Fulton","Out of Territory","Syracuse"]
[17228,"State of Pennsylvania",0.06,"Harrisonville","Fulton","Out of Territory","Syracuse"]
[17229,"State of Pennsylvania",0.06,"Hustontown","Fulton","Out of Territory","Syracuse"]
[17233,"State of Pennsylvania",0.06,"Mc Connellsburg","Fulton","Out of Territory","Syracuse"]
[17238,"State of Pennsylvania",0.06,"Needmore","Fulton","Out of Territory","Syracuse"]
[17267,"State of Pennsylvania",0.06,"Warfordsburg","Fulton","Out of Territory","Syracuse"]
[14005,"County of Genesee",0.08,"Alexander","Genesee","Western","Buffalo"]
[14013,"County of Genesee",0.08,"Basom","Genesee","Western","Buffalo"]
[14020,"County of Genesee",0.08,"Batavia","Genesee","Western","Buffalo"]
[14021,"County of Genesee",0.08,"Batavia","Genesee","Western","Buffalo"]
[14036,"County of Genesee",0.08,"Corfu","Genesee","Western","Buffalo"]
[14040,"County of Genesee",0.08,"Darien Center","Genesee","Western","Buffalo"]
[14054,"County of Genesee",0.08,"East Bethany","Genesee","Western","Buffalo"]
[14056,"County of Genesee",0.08,"East Pembroke","Genesee","Western","Buffalo"]
[14058,"County of Genesee",0.08,"Elba","Genesee","Western","Buffalo"]
[14125,"County of Genesee",0.08,"Oakfield","Genesee","Western","Buffalo"]
[14143,"County of Genesee",0.08,"Stafford","Genesee","Western","Buffalo"]
[14416,"County of Genesee",0.08,"Bergen","Genesee","Western","Buffalo"]
[14422,"County of Genesee",0.08,"Byron","Genesee","Western","Buffalo"]
[14482,"County of Genesee",0.08,"Le Roy","Genesee","Western","Buffalo"]
[14525,"County of Genesee",0.08,"Pavilion","Genesee","Western","Buffalo"]
[14557,"County of Genesee",0.08,"South Byron","Genesee","Western","Buffalo"]
[14486,"County of Genesee",0.08,"Linwood","Genesee","Western","Rochester"]
[5440,"State of Vermont",0.06,"Alburgh","Grand Isle","Eastern","Burlington"]
[5458,"State of Vermont",0.06,"Grand Isle","Grand Isle","Eastern","Burlington"]
[5463,"State of Vermont",0.06,"Isle La Motte","Grand Isle","Eastern","Burlington"]
[5474,"State of Vermont",0.06,"North Hero","Grand Isle","Eastern","Burlington"]
[5486,"State of Vermont",0.06,"South Hero","Grand Isle","Eastern","Burlington"]
[12015,"County of Greene",0.08,"Athens","Greene","Eastern","Albany"]
[12042,"County of Greene",0.08,"Climax","Greene","Eastern","Albany"]
[12051,"County of Greene",0.08,"Coxsackie","Greene","Eastern","Albany"]
[12058,"County of Greene",0.08,"Earlton","Greene","Eastern","Albany"]
[12083,"County of Greene",0.08,"Greenville","Greene","Eastern","Albany"]
[12087,"County of Greene",0.08,"Hannacroix","Greene","Eastern","Albany"]
[12124,"County of Greene",0.08,"New Baltimore","Greene","Eastern","Albany"]
[12176,"County of Greene",0.08,"Surprise","Greene","Eastern","Albany"]
[12192,"County of Greene",0.08,"West Coxsackie","Greene","Eastern","Albany"]
[12405,"County of Greene",0.08,"Acra","Greene","Eastern","Albany"]
[12407,"County of Greene",0.08,"Ashland","Greene","Eastern","Albany"]
[12413,"County of Greene",0.08,"Cairo","Greene","Eastern","Albany"]
[12414,"County of Greene",0.08,"Catskill","Greene","Eastern","Albany"]
[12418,"County of Greene",0.08,"Cornwallville","Greene","Eastern","Albany"]
[12422,"County of Greene",0.08,"Durham","Greene","Eastern","Albany"]
[12423,"County of Greene",0.08,"East Durham","Greene","Eastern","Albany"]
[12424,"County of Greene",0.08,"East Jewett","Greene","Eastern","Albany"]
[12427,"County of Greene",0.08,"Elka Park","Greene","Eastern","Albany"]
[12431,"County of Greene",0.08,"Freehold","Greene","Eastern","Albany"]
[12436,"County of Greene",0.08,"Haines Falls","Greene","Eastern","Albany"]
[12439,"County of Greene",0.08,"Hensonville","Greene","Eastern","Albany"]
[12442,"County of Greene",0.08,"Hunter","Greene","Eastern","Albany"]
[12444,"County of Greene",0.08,"Jewett","Greene","Eastern","Albany"]
[12450,"County of Greene",0.08,"Lanesville","Greene","Eastern","Albany"]
[12451,"County of Greene",0.08,"Leeds","Greene","Eastern","Albany"]
[12452,"County of Greene",0.08,"Lexington","Greene","Eastern","Albany"]
[12454,"County of Greene",0.08,"Maplecrest","Greene","Eastern","Albany"]
[12460,"County of Greene",0.08,"Oak Hill","Greene","Eastern","Albany"]
[12463,"County of Greene",0.08,"Palenville","Greene","Eastern","Albany"]
[12468,"County of Greene",0.08,"Prattsville","Greene","Eastern","Albany"]
[12470,"County of Greene",0.08,"Purling","Greene","Eastern","Albany"]
[12473,"County of Greene",0.08,"Round Top","Greene","Eastern","Albany"]
[12482,"County of Greene",0.08,"South Cairo","Greene","Eastern","Albany"]
[12485,"County of Greene",0.08,"Tannersville","Greene","Eastern","Albany"]
[12492,"County of Greene",0.08,"West Kill","Greene","Eastern","Albany"]
[12496,"County of Greene",0.08,"Windham","Greene","Eastern","Albany"]
[15310,"State of Pennsylvania",0.06,"Aleppo","Greene","Out of Territory","Syracuse"]
[15315,"State of Pennsylvania",0.06,"Bobtown","Greene","Out of Territory","Syracuse"]
[15316,"State of Pennsylvania",0.06,"Brave","Greene","Out of Territory","Syracuse"]
[15320,"State of Pennsylvania",0.06,"Carmichaels","Greene","Out of Territory","Syracuse"]
[15325,"State of Pennsylvania",0.06,"Crucible","Greene","Out of Territory","Syracuse"]
[15327,"State of Pennsylvania",0.06,"Dilliner","Greene","Out of Territory","Syracuse"]
[15334,"State of Pennsylvania",0.06,"Garards Fort","Greene","Out of Territory","Syracuse"]
[15337,"State of Pennsylvania",0.06,"Graysville","Greene","Out of Territory","Syracuse"]
[15338,"State of Pennsylvania",0.06,"Greensboro","Greene","Out of Territory","Syracuse"]
[15341,"State of Pennsylvania",0.06,"Holbrook","Greene","Out of Territory","Syracuse"]
[15344,"State of Pennsylvania",0.06,"Jefferson","Greene","Out of Territory","Syracuse"]
[15346,"State of Pennsylvania",0.06,"Mather","Greene","Out of Territory","Syracuse"]
[15349,"State of Pennsylvania",0.06,"Mount Morris","Greene","Out of Territory","Syracuse"]
[15351,"State of Pennsylvania",0.06,"Nemacolin","Greene","Out of Territory","Syracuse"]
[15352,"State of Pennsylvania",0.06,"New Freeport","Greene","Out of Territory","Syracuse"]
[15353,"State of Pennsylvania",0.06,"Nineveh","Greene","Out of Territory","Syracuse"]
[15357,"State of Pennsylvania",0.06,"Rices Landing","Greene","Out of Territory","Syracuse"]
[15359,"State of Pennsylvania",0.06,"Rogersville","Greene","Out of Territory","Syracuse"]
[15362,"State of Pennsylvania",0.06,"Spraggs","Greene","Out of Territory","Syracuse"]
[15364,"State of Pennsylvania",0.06,"Sycamore","Greene","Out of Territory","Syracuse"]
[15370,"State of Pennsylvania",0.06,"Waynesburg","Greene","Out of Territory","Syracuse"]
[15380,"State of Pennsylvania",0.06,"Wind Ridge","Greene","Out of Territory","Syracuse"]
[15322,"State of Pennsylvania",0.06,"Clarksville","Greene","Out of Territory","Syracuse"]
[12108,"County of Hamilton",0.08,"Lake Pleasant","Hamilton","Eastern","Albany"]
[12139,"County of Hamilton",0.08,"Piseco","Hamilton","Eastern","Albany"]
[12164,"County of Hamilton",0.08,"Speculator","Hamilton","Eastern","Albany"]
[12190,"County of Hamilton",0.08,"Wells","Hamilton","Eastern","Albany"]
[12812,"County of Hamilton",0.08,"Blue Mountain Lake","Hamilton","Eastern","Albany"]
[12842,"County of Hamilton",0.08,"Indian Lake","Hamilton","Eastern","Albany"]
[12847,"County of Hamilton",0.08,"Long Lake","Hamilton","Eastern","Albany"]
[12864,"County of Hamilton",0.08,"Sabael","Hamilton","Eastern","Albany"]
[13353,"County of Hamilton",0.08,"Hoffmeister","Hamilton","Eastern","Albany"]
[13360,"County of Hamilton",0.08,"Inlet","Hamilton","Eastern","Albany"]
[13436,"County of Hamilton",0.08,"Raquette Lake","Hamilton","Eastern","Albany"]
[13324,"County of Herkimer",8.2500000000000004E-2,"Cold Brook","Herkimer","Central","Utica"]
[13329,"County of Herkimer",8.2500000000000004E-2,"Dolgeville","Herkimer","Central","Utica"]
[13331,"County of Herkimer",8.2500000000000004E-2,"Eagle Bay","Herkimer","Central","Utica"]
[13340,"County of Herkimer",8.2500000000000004E-2,"Frankfort","Herkimer","Central","Utica"]
[13350,"County of Herkimer",8.2500000000000004E-2,"Herkimer","Herkimer","Central","Utica"]
[13357,"County of Herkimer",8.2500000000000004E-2,"Ilion","Herkimer","Central","Utica"]
[13361,"County of Herkimer",8.2500000000000004E-2,"Jordanville","Herkimer","Central","Utica"]
[13365,"County of Herkimer",8.2500000000000004E-2,"Little Falls","Herkimer","Central","Utica"]
[13406,"County of Herkimer",8.2500000000000004E-2,"Middleville","Herkimer","Central","Utica"]
[13407,"County of Herkimer",8.2500000000000004E-2,"Mohawk","Herkimer","Central","Utica"]
[13416,"County of Herkimer",8.2500000000000004E-2,"Newport","Herkimer","Central","Utica"]
[13420,"County of Herkimer",8.2500000000000004E-2,"Old Forge","Herkimer","Central","Utica"]
[13431,"County of Herkimer",8.2500000000000004E-2,"Poland","Herkimer","Central","Utica"]
[13454,"County of Herkimer",8.2500000000000004E-2,"Salisbury Center","Herkimer","Central","Utica"]
[13472,"County of Herkimer",8.2500000000000004E-2,"Thendara","Herkimer","Central","Utica"]
[13491,"County of Herkimer",8.2500000000000004E-2,"West Winfield","Herkimer","Central","Utica"]
[13475,"County of Herkimer",8.2500000000000004E-2,"Van Hornesville","Herkimer","Central","Binghamton"]
[16611,"State of Pennsylvania",0.06,"Alexandria","Huntingdon","Out of Territory","Syracuse"]
[16621,"State of Pennsylvania",0.06,"Broad Top","Huntingdon","Out of Territory","Syracuse"]
[16622,"State of Pennsylvania",0.06,"Calvin","Huntingdon","Out of Territory","Syracuse"]
[16623,"State of Pennsylvania",0.06,"Cassville","Huntingdon","Out of Territory","Syracuse"]
[16634,"State of Pennsylvania",0.06,"Dudley","Huntingdon","Out of Territory","Syracuse"]
[16638,"State of Pennsylvania",0.06,"Entriken","Huntingdon","Out of Territory","Syracuse"]
[16647,"State of Pennsylvania",0.06,"Hesston","Huntingdon","Out of Territory","Syracuse"]
[16652,"State of Pennsylvania",0.06,"Huntingdon","Huntingdon","Out of Territory","Syracuse"]
[16654,"State of Pennsylvania",0.06,"Huntingdon","Huntingdon","Out of Territory","Syracuse"]
[16657,"State of Pennsylvania",0.06,"James Creek","Huntingdon","Out of Territory","Syracuse"]
[16660,"State of Pennsylvania",0.06,"Mc Connellstown","Huntingdon","Out of Territory","Syracuse"]
[16669,"State of Pennsylvania",0.06,"Petersburg","Huntingdon","Out of Territory","Syracuse"]
[16674,"State of Pennsylvania",0.06,"Robertsdale","Huntingdon","Out of Territory","Syracuse"]
[16683,"State of Pennsylvania",0.06,"Spruce Creek","Huntingdon","Out of Territory","Syracuse"]
[16685,"State of Pennsylvania",0.06,"Todd","Huntingdon","Out of Territory","Syracuse"]
[16877,"State of Pennsylvania",0.06,"Warriors Mark","Huntingdon","Out of Territory","Syracuse"]
[17052,"State of Pennsylvania",0.06,"Mapleton Depot","Huntingdon","Out of Territory","Syracuse"]
[17060,"State of Pennsylvania",0.06,"Mill Creek","Huntingdon","Out of Territory","Syracuse"]
[17213,"State of Pennsylvania",0.06,"Blairs Mills","Huntingdon","Out of Territory","Syracuse"]
[17239,"State of Pennsylvania",0.06,"Neelyton","Huntingdon","Out of Territory","Syracuse"]
[17243,"State of Pennsylvania",0.06,"Orbisonia","Huntingdon","Out of Territory","Syracuse"]
[17249,"State of Pennsylvania",0.06,"Rockhill Furnace","Huntingdon","Out of Territory","Syracuse"]
[17253,"State of Pennsylvania",0.06,"Saltillo","Huntingdon","Out of Territory","Syracuse"]
[17255,"State of Pennsylvania",0.06,"Shade Gap","Huntingdon","Out of Territory","Syracuse"]
[17260,"State of Pennsylvania",0.06,"Shirleysburg","Huntingdon","Out of Territory","Syracuse"]
[17264,"State of Pennsylvania",0.06,"Three Springs","Huntingdon","Out of Territory","Syracuse"]
[17066,"State of Pennsylvania",0.06,"Mount Union","Huntingdon","Out of Territory","Syracuse"]
[15681,"State of Pennsylvania",0.06,"Saltsburg","Indiana","Out of Territory","Syracuse"]
[15701,"State of Pennsylvania",0.06,"Indiana","Indiana","Out of Territory","Syracuse"]
[15705,"State of Pennsylvania",0.06,"Indiana","Indiana","Out of Territory","Syracuse"]
[15710,"State of Pennsylvania",0.06,"Alverda","Indiana","Out of Territory","Syracuse"]
[15712,"State of Pennsylvania",0.06,"Arcadia","Indiana","Out of Territory","Syracuse"]
[15713,"State of Pennsylvania",0.06,"Aultman","Indiana","Out of Territory","Syracuse"]
[15716,"State of Pennsylvania",0.06,"Black Lick","Indiana","Out of Territory","Syracuse"]
[15717,"State of Pennsylvania",0.06,"Blairsville","Indiana","Out of Territory","Syracuse"]
[15720,"State of Pennsylvania",0.06,"Brush Valley","Indiana","Out of Territory","Syracuse"]
[15723,"State of Pennsylvania",0.06,"Chambersville","Indiana","Out of Territory","Syracuse"]
[15724,"State of Pennsylvania",0.06,"Cherry Tree","Indiana","Out of Territory","Syracuse"]
[15725,"State of Pennsylvania",0.06,"Clarksburg","Indiana","Out of Territory","Syracuse"]
[15727,"State of Pennsylvania",0.06,"Clune","Indiana","Out of Territory","Syracuse"]
[15728,"State of Pennsylvania",0.06,"Clymer","Indiana","Out of Territory","Syracuse"]
[15729,"State of Pennsylvania",0.06,"Commodore","Indiana","Out of Territory","Syracuse"]
[15731,"State of Pennsylvania",0.06,"Coral","Indiana","Out of Territory","Syracuse"]
[15732,"State of Pennsylvania",0.06,"Creekside","Indiana","Out of Territory","Syracuse"]
[15734,"State of Pennsylvania",0.06,"Dixonville","Indiana","Out of Territory","Syracuse"]
[15739,"State of Pennsylvania",0.06,"Ernest","Indiana","Out of Territory","Syracuse"]
[15741,"State of Pennsylvania",0.06,"Gipsy","Indiana","Out of Territory","Syracuse"]
[15742,"State of Pennsylvania",0.06,"Glen Campbell","Indiana","Out of Territory","Syracuse"]
[15745,"State of Pennsylvania",0.06,"Heilwood","Indiana","Out of Territory","Syracuse"]
[15746,"State of Pennsylvania",0.06,"Hillsdale","Indiana","Out of Territory","Syracuse"]
[15747,"State of Pennsylvania",0.06,"Home","Indiana","Out of Territory","Syracuse"]
[15748,"State of Pennsylvania",0.06,"Homer City","Indiana","Out of Territory","Syracuse"]
[15750,"State of Pennsylvania",0.06,"Josephine","Indiana","Out of Territory","Syracuse"]
[15752,"State of Pennsylvania",0.06,"Kent","Indiana","Out of Territory","Syracuse"]
[15754,"State of Pennsylvania",0.06,"Lucernemines","Indiana","Out of Territory","Syracuse"]
[15756,"State of Pennsylvania",0.06,"Mc Intyre","Indiana","Out of Territory","Syracuse"]
[15758,"State of Pennsylvania",0.06,"Marchand","Indiana","Out of Territory","Syracuse"]
[15759,"State of Pennsylvania",0.06,"Marion Center","Indiana","Out of Territory","Syracuse"]
[15761,"State of Pennsylvania",0.06,"Mentcle","Indiana","Out of Territory","Syracuse"]
[15763,"State of Pennsylvania",0.06,"Northpoint","Indiana","Out of Territory","Syracuse"]
[15765,"State of Pennsylvania",0.06,"Penn Run","Indiana","Out of Territory","Syracuse"]
[15771,"State of Pennsylvania",0.06,"Rochester Mills","Indiana","Out of Territory","Syracuse"]
[15772,"State of Pennsylvania",0.06,"Rossiter","Indiana","Out of Territory","Syracuse"]
[15774,"State of Pennsylvania",0.06,"Shelocta","Indiana","Out of Territory","Syracuse"]
[15777,"State of Pennsylvania",0.06,"Starford","Indiana","Out of Territory","Syracuse"]
[15783,"State of Pennsylvania",0.06,"West Lebanon","Indiana","Out of Territory","Syracuse"]
[15920,"State of Pennsylvania",0.06,"Armagh","Indiana","Out of Territory","Syracuse"]
[15929,"State of Pennsylvania",0.06,"Dilltown","Indiana","Out of Territory","Syracuse"]
[15949,"State of Pennsylvania",0.06,"Robinson","Indiana","Out of Territory","Syracuse"]
[15957,"State of Pennsylvania",0.06,"Strongstown","Indiana","Out of Territory","Syracuse"]
[16211,"State of Pennsylvania",0.06,"Beyer","Indiana","Out of Territory","Syracuse"]
[16246,"State of Pennsylvania",0.06,"Plumville","Indiana","Out of Territory","Syracuse"]
[16256,"State of Pennsylvania",0.06,"Smicksburg","Indiana","Out of Territory","Syracuse"]
[13601,"County of Jefferson",0.08,"Watertown","Jefferson","Central","Watertown"]
[13602,"County of Jefferson",0.08,"Fort Drum","Jefferson","Central","Watertown"]
[13603,"County of Jefferson",0.08,"Watertown","Jefferson","Central","Watertown"]
[13605,"County of Jefferson",0.08,"Adams","Jefferson","Central","Watertown"]
[13606,"County of Jefferson",0.08,"Adams Center","Jefferson","Central","Watertown"]
[13607,"County of Jefferson",0.08,"Alexandria Bay","Jefferson","Central","Watertown"]
[13608,"County of Jefferson",0.08,"Antwerp","Jefferson","Central","Watertown"]
[13611,"County of Jefferson",0.08,"Belleville","Jefferson","Central","Watertown"]
[13612,"County of Jefferson",0.08,"Black River","Jefferson","Central","Watertown"]
[13615,"County of Jefferson",0.08,"Brownville","Jefferson","Central","Watertown"]
[13616,"County of Jefferson",0.08,"Calcium","Jefferson","Central","Watertown"]
[13618,"County of Jefferson",0.08,"Cape Vincent","Jefferson","Central","Watertown"]
[13619,"County of Jefferson",0.08,"Carthage","Jefferson","Central","Watertown"]
[13622,"County of Jefferson",0.08,"Chaumont","Jefferson","Central","Watertown"]
[13624,"County of Jefferson",0.08,"Clayton","Jefferson","Central","Watertown"]
[13628,"County of Jefferson",0.08,"Deferiet","Jefferson","Central","Watertown"]
[13632,"County of Jefferson",0.08,"Depauville","Jefferson","Central","Watertown"]
[13634,"County of Jefferson",0.08,"Dexter","Jefferson","Central","Watertown"]
[13636,"County of Jefferson",0.08,"Ellisburg","Jefferson","Central","Watertown"]
[13637,"County of Jefferson",0.08,"Evans Mills","Jefferson","Central","Watertown"]
[13638,"County of Jefferson",0.08,"Felts Mills","Jefferson","Central","Watertown"]
[13640,"County of Jefferson",0.08,"Wellesley Island","Jefferson","Central","Watertown"]
[13641,"County of Jefferson",0.08,"Fishers Landing","Jefferson","Central","Watertown"]
[13643,"County of Jefferson",0.08,"Great Bend","Jefferson","Central","Watertown"]
[13650,"County of Jefferson",0.08,"Henderson","Jefferson","Central","Watertown"]
[13651,"County of Jefferson",0.08,"Henderson Harbor","Jefferson","Central","Watertown"]
[13656,"County of Jefferson",0.08,"La Fargeville","Jefferson","Central","Watertown"]
[13657,"County of Jefferson",0.08,"Limerick","Jefferson","Central","Watertown"]
[13659,"County of Jefferson",0.08,"Lorraine","Jefferson","Central","Watertown"]
[13661,"County of Jefferson",0.08,"Mannsville","Jefferson","Central","Watertown"]
[13665,"County of Jefferson",0.08,"Natural Bridge","Jefferson","Central","Watertown"]
[13671,"County of Jefferson",0.08,"Oxbow","Jefferson","Central","Watertown"]
[13673,"County of Jefferson",0.08,"Philadelphia","Jefferson","Central","Watertown"]
[13674,"County of Jefferson",0.08,"Pierrepont Manor","Jefferson","Central","Watertown"]
[13675,"County of Jefferson",0.08,"Plessis","Jefferson","Central","Watertown"]
[13679,"County of Jefferson",0.08,"Redwood","Jefferson","Central","Watertown"]
[13682,"County of Jefferson",0.08,"Rodman","Jefferson","Central","Watertown"]
[13685,"County of Jefferson",0.08,"Sackets Harbor","Jefferson","Central","Watertown"]
[13691,"County of Jefferson",0.08,"Theresa","Jefferson","Central","Watertown"]
[13692,"County of Jefferson",0.08,"Thousand Island Park","Jefferson","Central","Watertown"]
[13693,"County of Jefferson",0.08,"Three Mile Bay","Jefferson","Central","Watertown"]
[15711,"State of Pennsylvania",0.06,"Anita","Jefferson","Out of Territory","Syracuse"]
[15715,"State of Pennsylvania",0.06,"Big Run","Jefferson","Out of Territory","Syracuse"]
[15730,"State of Pennsylvania",0.06,"Coolspring","Jefferson","Out of Territory","Syracuse"]
[15733,"State of Pennsylvania",0.06,"De Lancey","Jefferson","Out of Territory","Syracuse"]
[15744,"State of Pennsylvania",0.06,"Hamilton","Jefferson","Out of Territory","Syracuse"]
[15764,"State of Pennsylvania",0.06,"Oliveburg","Jefferson","Out of Territory","Syracuse"]
[15767,"State of Pennsylvania",0.06,"Punxsutawney","Jefferson","Out of Territory","Syracuse"]
[15770,"State of Pennsylvania",0.06,"Ringgold","Jefferson","Out of Territory","Syracuse"]
[15776,"State of Pennsylvania",0.06,"Sprankle Mills","Jefferson","Out of Territory","Syracuse"]
[15778,"State of Pennsylvania",0.06,"Timblin","Jefferson","Out of Territory","Syracuse"]
[15780,"State of Pennsylvania",0.06,"Valier","Jefferson","Out of Territory","Syracuse"]
[15781,"State of Pennsylvania",0.06,"Walston","Jefferson","Out of Territory","Syracuse"]
[15784,"State of Pennsylvania",0.06,"Worthville","Jefferson","Out of Territory","Syracuse"]
[15824,"State of Pennsylvania",0.06,"Brockway","Jefferson","Out of Territory","Syracuse"]
[15825,"State of Pennsylvania",0.06,"Brookville","Jefferson","Out of Territory","Syracuse"]
[15829,"State of Pennsylvania",0.06,"Corsica","Jefferson","Out of Territory","Syracuse"]
[15840,"State of Pennsylvania",0.06,"Falls Creek","Jefferson","Out of Territory","Syracuse"]
[15847,"State of Pennsylvania",0.06,"Knox Dale","Jefferson","Out of Territory","Syracuse"]
[15851,"State of Pennsylvania",0.06,"Reynoldsville","Jefferson","Out of Territory","Syracuse"]
[15860,"State of Pennsylvania",0.06,"Sigel","Jefferson","Out of Territory","Syracuse"]
[15863,"State of Pennsylvania",0.06,"Stump Creek","Jefferson","Out of Territory","Syracuse"]
[15864,"State of Pennsylvania",0.06,"Summerville","Jefferson","Out of Territory","Syracuse"]
[15865,"State of Pennsylvania",0.06,"Sykesville","Jefferson","Out of Territory","Syracuse"]
[17014,"State of Pennsylvania",0.06,"Cocolamus","Juniata","Out of Territory","Syracuse"]
[17021,"State of Pennsylvania",0.06,"East Waterford","Juniata","Out of Territory","Syracuse"]
[17035,"State of Pennsylvania",0.06,"Honey Grove","Juniata","Out of Territory","Syracuse"]
[17049,"State of Pennsylvania",0.06,"Mc Alisterville","Juniata","Out of Territory","Syracuse"]
[17056,"State of Pennsylvania",0.06,"Mexico","Juniata","Out of Territory","Syracuse"]
[17058,"State of Pennsylvania",0.06,"Mifflin","Juniata","Out of Territory","Syracuse"]
[17059,"State of Pennsylvania",0.06,"Mifflintown","Juniata","Out of Territory","Syracuse"]
[17076,"State of Pennsylvania",0.06,"Oakland Mills","Juniata","Out of Territory","Syracuse"]
[17082,"State of Pennsylvania",0.06,"Port Royal","Juniata","Out of Territory","Syracuse"]
[17086,"State of Pennsylvania",0.06,"Richfield","Juniata","Out of Territory","Syracuse"]
[17094,"State of Pennsylvania",0.06,"Thompsontown","Juniata","Out of Territory","Syracuse"]
[11201,"New York City",8.8749999999999996E-2,"Brooklyn","Kings","Out of Territory","Syracuse"]
[11202,"New York City",8.8749999999999996E-2,"Brooklyn","Kings","Out of Territory","Syracuse"]
[11203,"New York City",8.8749999999999996E-2,"Brooklyn","Kings","Out of Territory","Syracuse"]
[11204,"New York City",8.8749999999999996E-2,"Brooklyn","Kings","Out of Territory","Syracuse"]
[11205,"New York City",8.8749999999999996E-2,"Brooklyn","Kings","Out of Territory","Syracuse"]
[11206,"New York City",8.8749999999999996E-2,"Brooklyn","Kings","Out of Territory","Syracuse"]
[11207,"New York City",8.8749999999999996E-2,"Brooklyn","Kings","Out of Territory","Syracuse"]
[11208,"New York City",8.8749999999999996E-2,"Brooklyn","Kings","Out of Territory","Syracuse"]
[11209,"New York City",8.8749999999999996E-2,"Brooklyn","Kings","Out of Territory","Syracuse"]
[11210,"New York City",8.8749999999999996E-2,"Brooklyn","Kings","Out of Territory","Syracuse"]
[11211,"New York City",8.8749999999999996E-2,"Brooklyn","Kings","Out of Territory","Syracuse"]
[11212,"New York City",8.8749999999999996E-2,"Brooklyn","Kings","Out of Territory","Syracuse"]
[11213,"New York City",8.8749999999999996E-2,"Brooklyn","Kings","Out of Territory","Syracuse"]
[11214,"New York City",8.8749999999999996E-2,"Brooklyn","Kings","Out of Territory","Syracuse"]
[11215,"New York City",8.8749999999999996E-2,"Brooklyn","Kings","Out of Territory","Syracuse"]
[11216,"New York City",8.8749999999999996E-2,"Brooklyn","Kings","Out of Territory","Syracuse"]
[11217,"New York City",8.8749999999999996E-2,"Brooklyn","Kings","Out of Territory","Syracuse"]
[11218,"New York City",8.8749999999999996E-2,"Brooklyn","Kings","Out of Territory","Syracuse"]
[11219,"New York City",8.8749999999999996E-2,"Brooklyn","Kings","Out of Territory","Syracuse"]
[11220,"New York City",8.8749999999999996E-2,"Brooklyn","Kings","Out of Territory","Syracuse"]
[11221,"New York City",8.8749999999999996E-2,"Brooklyn","Kings","Out of Territory","Syracuse"]
[11222,"New York City",8.8749999999999996E-2,"Brooklyn","Kings","Out of Territory","Syracuse"]
[11223,"New York City",8.8749999999999996E-2,"Brooklyn","Kings","Out of Territory","Syracuse"]
[11224,"New York City",8.8749999999999996E-2,"Brooklyn","Kings","Out of Territory","Syracuse"]
[11225,"New York City",8.8749999999999996E-2,"Brooklyn","Kings","Out of Territory","Syracuse"]
[11226,"New York City",8.8749999999999996E-2,"Brooklyn","Kings","Out of Territory","Syracuse"]
[11228,"New York City",8.8749999999999996E-2,"Brooklyn","Kings","Out of Territory","Syracuse"]
[11229,"New York City",8.8749999999999996E-2,"Brooklyn","Kings","Out of Territory","Syracuse"]
[11230,"New York City",8.8749999999999996E-2,"Brooklyn","Kings","Out of Territory","Syracuse"]
[11231,"New York City",8.8749999999999996E-2,"Brooklyn","Kings","Out of Territory","Syracuse"]
[11232,"New York City",8.8749999999999996E-2,"Brooklyn","Kings","Out of Territory","Syracuse"]
[11233,"New York City",8.8749999999999996E-2,"Brooklyn","Kings","Out of Territory","Syracuse"]
[11234,"New York City",8.8749999999999996E-2,"Brooklyn","Kings","Out of Territory","Syracuse"]
[11235,"New York City",8.8749999999999996E-2,"Brooklyn","Kings","Out of Territory","Syracuse"]
[11236,"New York City",8.8749999999999996E-2,"Brooklyn","Kings","Out of Territory","Syracuse"]
[11237,"New York City",8.8749999999999996E-2,"Brooklyn","Kings","Out of Territory","Syracuse"]
[11238,"New York City",8.8749999999999996E-2,"Brooklyn","Kings","Out of Territory","Syracuse"]
[11239,"New York City",8.8749999999999996E-2,"Brooklyn","Kings","Out of Territory","Syracuse"]
[11241,"New York City",8.8749999999999996E-2,"Brooklyn","Kings","Out of Territory","Syracuse"]
[11242,"New York City",8.8749999999999996E-2,"Brooklyn","Kings","Out of Territory","Syracuse"]
[11243,"New York City",8.8749999999999996E-2,"Brooklyn","Kings","Out of Territory","Syracuse"]
[11245,"New York City",8.8749999999999996E-2,"Brooklyn","Kings","Out of Territory","Syracuse"]
[11247,"New York City",8.8749999999999996E-2,"Brooklyn","Kings","Out of Territory","Syracuse"]
[11249,"New York City",8.8749999999999996E-2,"Brooklyn","Kings","Out of Territory","Syracuse"]
[11252,"New York City",8.8749999999999996E-2,"Brooklyn","Kings","Out of Territory","Syracuse"]
[11256,"New York City",8.8749999999999996E-2,"Brooklyn","Kings","Out of Territory","Syracuse"]
[18403,"State of Pennsylvania",0.06,"Archbald","Lackawanna","Out of Territory","Syracuse"]
[18407,"State of Pennsylvania",0.06,"Carbondale","Lackawanna","Out of Territory","Syracuse"]
[18410,"State of Pennsylvania",0.06,"Chinchilla","Lackawanna","Out of Territory","Syracuse"]
[18411,"State of Pennsylvania",0.06,"Clarks Summit","Lackawanna","Out of Territory","Syracuse"]
[18414,"State of Pennsylvania",0.06,"Dalton","Lackawanna","Out of Territory","Syracuse"]
[18416,"State of Pennsylvania",0.06,"Elmhurst","Lackawanna","Out of Territory","Syracuse"]
[18420,"State of Pennsylvania",0.06,"Fleetville","Lackawanna","Out of Territory","Syracuse"]
[18433,"State of Pennsylvania",0.06,"Jermyn","Lackawanna","Out of Territory","Syracuse"]
[18434,"State of Pennsylvania",0.06,"Jessup","Lackawanna","Out of Territory","Syracuse"]
[18440,"State of Pennsylvania",0.06,"La Plume","Lackawanna","Out of Territory","Syracuse"]
[18444,"State of Pennsylvania",0.06,"Moscow","Lackawanna","Out of Territory","Syracuse"]
[18447,"State of Pennsylvania",0.06,"Olyphant","Lackawanna","Out of Territory","Syracuse"]
[18448,"State of Pennsylvania",0.06,"Olyphant","Lackawanna","Out of Territory","Syracuse"]
[18452,"State of Pennsylvania",0.06,"Peckville","Lackawanna","Out of Territory","Syracuse"]
[18471,"State of Pennsylvania",0.06,"Waverly","Lackawanna","Out of Territory","Syracuse"]
[18501,"State of Pennsylvania",0.06,"Scranton","Lackawanna","Out of Territory","Syracuse"]
[18502,"State of Pennsylvania",0.06,"Scranton","Lackawanna","Out of Territory","Syracuse"]
[18503,"State of Pennsylvania",0.06,"Scranton","Lackawanna","Out of Territory","Syracuse"]
[18504,"State of Pennsylvania",0.06,"Scranton","Lackawanna","Out of Territory","Syracuse"]
[18505,"State of Pennsylvania",0.06,"Scranton","Lackawanna","Out of Territory","Syracuse"]
[18507,"State of Pennsylvania",0.06,"Moosic","Lackawanna","Out of Territory","Syracuse"]
[18508,"State of Pennsylvania",0.06,"Scranton","Lackawanna","Out of Territory","Syracuse"]
[18509,"State of Pennsylvania",0.06,"Scranton","Lackawanna","Out of Territory","Syracuse"]
[18510,"State of Pennsylvania",0.06,"Scranton","Lackawanna","Out of Territory","Syracuse"]
[18512,"State of Pennsylvania",0.06,"Scranton","Lackawanna","Out of Territory","Syracuse"]
[18515,"State of Pennsylvania",0.06,"Scranton","Lackawanna","Out of Territory","Syracuse"]
[18517,"State of Pennsylvania",0.06,"Taylor","Lackawanna","Out of Territory","Syracuse"]
[18518,"State of Pennsylvania",0.06,"Old Forge","Lackawanna","Out of Territory","Syracuse"]
[18519,"State of Pennsylvania",0.06,"Scranton","Lackawanna","Out of Territory","Syracuse"]
[18540,"State of Pennsylvania",0.06,"Scranton","Lackawanna","Out of Territory","Syracuse"]
[18577,"State of Pennsylvania",0.06,"Scranton","Lackawanna","Out of Territory","Syracuse"]
[18653,"State of Pennsylvania",0.06,"Ransom","Lackawanna","Out of Territory","Syracuse"]
[5442,"State of Vermont",0.06,"Belvidere Center","Lamoille","Eastern","Burlington"]
[5464,"State of Vermont",0.06,"Jeffersonville","Lamoille","Eastern","Burlington"]
[5492,"State of Vermont",0.06,"Waterville","Lamoille","Eastern","Burlington"]
[5652,"State of Vermont",0.06,"Eden","Lamoille","Eastern","Burlington"]
[5653,"State of Vermont",0.06,"Eden Mills","Lamoille","Eastern","Burlington"]
[5655,"State of Vermont",0.06,"Hyde Park","Lamoille","Eastern","Burlington"]
[5656,"State of Vermont",0.06,"Johnson","Lamoille","Eastern","Burlington"]
[5657,"State of Vermont",0.06,"Lake Elmore","Lamoille","Eastern","Burlington"]
[5661,"State of Vermont",0.06,"Morrisville","Lamoille","Eastern","Burlington"]
[5662,"State of Vermont",0.06,"Moscow","Lamoille","Eastern","Burlington"]
[5665,"State of Vermont",0.06,"North Hyde Park","Lamoille","Eastern","Burlington"]
[5672,"State of Vermont",0.06,"Stowe","Lamoille","Eastern","Burlington"]
[5680,"State of Vermont",0.06,"Wolcott","Lamoille","Eastern","Burlington"]
[17022,"State of Pennsylvania",0.06,"Elizabethtown","Lancaster","Out of Territory","Syracuse"]
[17501,"State of Pennsylvania",0.06,"Akron","Lancaster","Out of Territory","Syracuse"]
[17502,"State of Pennsylvania",0.06,"Bainbridge","Lancaster","Out of Territory","Syracuse"]
[17503,"State of Pennsylvania",0.06,"Bart","Lancaster","Out of Territory","Syracuse"]
[17504,"State of Pennsylvania",0.06,"Bausman","Lancaster","Out of Territory","Syracuse"]
[17505,"State of Pennsylvania",0.06,"Bird In Hand","Lancaster","Out of Territory","Syracuse"]
[17506,"State of Pennsylvania",0.06,"Blue Ball","Lancaster","Out of Territory","Syracuse"]
[17507,"State of Pennsylvania",0.06,"Bowmansville","Lancaster","Out of Territory","Syracuse"]
[17508,"State of Pennsylvania",0.06,"Brownstown","Lancaster","Out of Territory","Syracuse"]
[17509,"State of Pennsylvania",0.06,"Christiana","Lancaster","Out of Territory","Syracuse"]
[17512,"State of Pennsylvania",0.06,"Columbia","Lancaster","Out of Territory","Syracuse"]
[17516,"State of Pennsylvania",0.06,"Conestoga","Lancaster","Out of Territory","Syracuse"]
[17517,"State of Pennsylvania",0.06,"Denver","Lancaster","Out of Territory","Syracuse"]
[17518,"State of Pennsylvania",0.06,"Drumore","Lancaster","Out of Territory","Syracuse"]
[17519,"State of Pennsylvania",0.06,"East Earl","Lancaster","Out of Territory","Syracuse"]
[17520,"State of Pennsylvania",0.06,"East Petersburg","Lancaster","Out of Territory","Syracuse"]
[17521,"State of Pennsylvania",0.06,"Elm","Lancaster","Out of Territory","Syracuse"]
[17522,"State of Pennsylvania",0.06,"Ephrata","Lancaster","Out of Territory","Syracuse"]
[17527,"State of Pennsylvania",0.06,"Gap","Lancaster","Out of Territory","Syracuse"]
[17528,"State of Pennsylvania",0.06,"Goodville","Lancaster","Out of Territory","Syracuse"]
[17529,"State of Pennsylvania",0.06,"Gordonville","Lancaster","Out of Territory","Syracuse"]
[17532,"State of Pennsylvania",0.06,"Holtwood","Lancaster","Out of Territory","Syracuse"]
[17533,"State of Pennsylvania",0.06,"Hopeland","Lancaster","Out of Territory","Syracuse"]
[17534,"State of Pennsylvania",0.06,"Intercourse","Lancaster","Out of Territory","Syracuse"]
[17535,"State of Pennsylvania",0.06,"Kinzers","Lancaster","Out of Territory","Syracuse"]
[17536,"State of Pennsylvania",0.06,"Kirkwood","Lancaster","Out of Territory","Syracuse"]
[17537,"State of Pennsylvania",0.06,"Lampeter","Lancaster","Out of Territory","Syracuse"]
[17538,"State of Pennsylvania",0.06,"Landisville","Lancaster","Out of Territory","Syracuse"]
[17540,"State of Pennsylvania",0.06,"Leola","Lancaster","Out of Territory","Syracuse"]
[17543,"State of Pennsylvania",0.06,"Lititz","Lancaster","Out of Territory","Syracuse"]
[17545,"State of Pennsylvania",0.06,"Manheim","Lancaster","Out of Territory","Syracuse"]
[17547,"State of Pennsylvania",0.06,"Marietta","Lancaster","Out of Territory","Syracuse"]
[17549,"State of Pennsylvania",0.06,"Martindale","Lancaster","Out of Territory","Syracuse"]
[17550,"State of Pennsylvania",0.06,"Maytown","Lancaster","Out of Territory","Syracuse"]
[17551,"State of Pennsylvania",0.06,"Millersville","Lancaster","Out of Territory","Syracuse"]
[17552,"State of Pennsylvania",0.06,"Mount Joy","Lancaster","Out of Territory","Syracuse"]
[17554,"State of Pennsylvania",0.06,"Mountville","Lancaster","Out of Territory","Syracuse"]
[17555,"State of Pennsylvania",0.06,"Narvon","Lancaster","Out of Territory","Syracuse"]
[17557,"State of Pennsylvania",0.06,"New Holland","Lancaster","Out of Territory","Syracuse"]
[17560,"State of Pennsylvania",0.06,"New Providence","Lancaster","Out of Territory","Syracuse"]
[17562,"State of Pennsylvania",0.06,"Paradise","Lancaster","Out of Territory","Syracuse"]
[17563,"State of Pennsylvania",0.06,"Peach Bottom","Lancaster","Out of Territory","Syracuse"]
[17564,"State of Pennsylvania",0.06,"Penryn","Lancaster","Out of Territory","Syracuse"]
[17565,"State of Pennsylvania",0.06,"Pequea","Lancaster","Out of Territory","Syracuse"]
[17566,"State of Pennsylvania",0.06,"Quarryville","Lancaster","Out of Territory","Syracuse"]
[17567,"State of Pennsylvania",0.06,"Reamstown","Lancaster","Out of Territory","Syracuse"]
[17568,"State of Pennsylvania",0.06,"Refton","Lancaster","Out of Territory","Syracuse"]
[17569,"State of Pennsylvania",0.06,"Reinholds","Lancaster","Out of Territory","Syracuse"]
[17570,"State of Pennsylvania",0.06,"Rheems","Lancaster","Out of Territory","Syracuse"]
[17572,"State of Pennsylvania",0.06,"Ronks","Lancaster","Out of Territory","Syracuse"]
[17573,"State of Pennsylvania",0.06,"Lancaster","Lancaster","Out of Territory","Syracuse"]
[17575,"State of Pennsylvania",0.06,"Silver Spring","Lancaster","Out of Territory","Syracuse"]
[17576,"State of Pennsylvania",0.06,"Smoketown","Lancaster","Out of Territory","Syracuse"]
[17578,"State of Pennsylvania",0.06,"Stevens","Lancaster","Out of Territory","Syracuse"]
[17579,"State of Pennsylvania",0.06,"Strasburg","Lancaster","Out of Territory","Syracuse"]
[17580,"State of Pennsylvania",0.06,"Talmage","Lancaster","Out of Territory","Syracuse"]
[17581,"State of Pennsylvania",0.06,"Terre Hill","Lancaster","Out of Territory","Syracuse"]
[17582,"State of Pennsylvania",0.06,"Washington Boro","Lancaster","Out of Territory","Syracuse"]
[17583,"State of Pennsylvania",0.06,"West Willow","Lancaster","Out of Territory","Syracuse"]
[17584,"State of Pennsylvania",0.06,"Willow Street","Lancaster","Out of Territory","Syracuse"]
[17585,"State of Pennsylvania",0.06,"Witmer","Lancaster","Out of Territory","Syracuse"]
[17601,"State of Pennsylvania",0.06,"Lancaster","Lancaster","Out of Territory","Syracuse"]
[17602,"State of Pennsylvania",0.06,"Lancaster","Lancaster","Out of Territory","Syracuse"]
[17603,"State of Pennsylvania",0.06,"Lancaster","Lancaster","Out of Territory","Syracuse"]
[17604,"State of Pennsylvania",0.06,"Lancaster","Lancaster","Out of Territory","Syracuse"]
[17605,"State of Pennsylvania",0.06,"Lancaster","Lancaster","Out of Territory","Syracuse"]
[17606,"State of Pennsylvania",0.06,"Lancaster","Lancaster","Out of Territory","Syracuse"]
[17607,"State of Pennsylvania",0.06,"Lancaster","Lancaster","Out of Territory","Syracuse"]
[17608,"State of Pennsylvania",0.06,"Lancaster","Lancaster","Out of Territory","Syracuse"]
[17611,"State of Pennsylvania",0.06,"Lancaster","Lancaster","Out of Territory","Syracuse"]
[17622,"State of Pennsylvania",0.06,"Lancaster","Lancaster","Out of Territory","Syracuse"]
[17699,"State of Pennsylvania",0.06,"Lancaster","Lancaster","Out of Territory","Syracuse"]
[19501,"State of Pennsylvania",0.06,"Adamstown","Lancaster","Out of Territory","Syracuse"]
[16101,"State of Pennsylvania",0.06,"New Castle","Lawrence","Out of Territory","Syracuse"]
[16102,"State of Pennsylvania",0.06,"New Castle","Lawrence","Out of Territory","Syracuse"]
[16103,"State of Pennsylvania",0.06,"New Castle","Lawrence","Out of Territory","Syracuse"]
[16105,"State of Pennsylvania",0.06,"New Castle","Lawrence","Out of Territory","Syracuse"]
[16107,"State of Pennsylvania",0.06,"New Castle","Lawrence","Out of Territory","Syracuse"]
[16108,"State of Pennsylvania",0.06,"New Castle","Lawrence","Out of Territory","Syracuse"]
[16112,"State of Pennsylvania",0.06,"Bessemer","Lawrence","Out of Territory","Syracuse"]
[16116,"State of Pennsylvania",0.06,"Edinburg","Lawrence","Out of Territory","Syracuse"]
[16117,"State of Pennsylvania",0.06,"Ellwood City","Lawrence","Out of Territory","Syracuse"]
[16120,"State of Pennsylvania",0.06,"Enon Valley","Lawrence","Out of Territory","Syracuse"]
[16132,"State of Pennsylvania",0.06,"Hillsville","Lawrence","Out of Territory","Syracuse"]
[16143,"State of Pennsylvania",0.06,"Pulaski","Lawrence","Out of Territory","Syracuse"]
[16156,"State of Pennsylvania",0.06,"Volant","Lawrence","Out of Territory","Syracuse"]
[16157,"State of Pennsylvania",0.06,"Wampum","Lawrence","Out of Territory","Syracuse"]
[16160,"State of Pennsylvania",0.06,"West Pittsburg","Lawrence","Out of Territory","Syracuse"]
[16172,"State of Pennsylvania",0.06,"New Wilmington","Lawrence","Out of Territory","Syracuse"]
[16140,"State of Pennsylvania",0.06,"New Bedford","Lawrence","Out of Territory","Syracuse"]
[16155,"State of Pennsylvania",0.06,"Villa Maria","Lawrence","Out of Territory","Syracuse"]
[16142,"State of Pennsylvania",0.06,"New Wilmington","Lawrence","Out of Territory","Syracuse"]
[17003,"State of Pennsylvania",0.06,"Annville","Lebanon","Out of Territory","Syracuse"]
[17010,"State of Pennsylvania",0.06,"Campbelltown","Lebanon","Out of Territory","Syracuse"]
[17016,"State of Pennsylvania",0.06,"Cornwall","Lebanon","Out of Territory","Syracuse"]
[17026,"State of Pennsylvania",0.06,"Fredericksburg","Lebanon","Out of Territory","Syracuse"]
[17038,"State of Pennsylvania",0.06,"Jonestown","Lebanon","Out of Territory","Syracuse"]
[17039,"State of Pennsylvania",0.06,"Kleinfeltersville","Lebanon","Out of Territory","Syracuse"]
[17041,"State of Pennsylvania",0.06,"Lawn","Lebanon","Out of Territory","Syracuse"]
[17042,"State of Pennsylvania",0.06,"Lebanon","Lebanon","Out of Territory","Syracuse"]
[17046,"State of Pennsylvania",0.06,"Lebanon","Lebanon","Out of Territory","Syracuse"]
[17064,"State of Pennsylvania",0.06,"Mount Gretna","Lebanon","Out of Territory","Syracuse"]
[17067,"State of Pennsylvania",0.06,"Myerstown","Lebanon","Out of Territory","Syracuse"]
[17073,"State of Pennsylvania",0.06,"Newmanstown","Lebanon","Out of Territory","Syracuse"]
[17077,"State of Pennsylvania",0.06,"Ono","Lebanon","Out of Territory","Syracuse"]
[17078,"State of Pennsylvania",0.06,"Palmyra","Lebanon","Out of Territory","Syracuse"]
[17083,"State of Pennsylvania",0.06,"Quentin","Lebanon","Out of Territory","Syracuse"]
[17085,"State of Pennsylvania",0.06,"Rexmont","Lebanon","Out of Territory","Syracuse"]
[17087,"State of Pennsylvania",0.06,"Richland","Lebanon","Out of Territory","Syracuse"]
[17088,"State of Pennsylvania",0.06,"Schaefferstown","Lebanon","Out of Territory","Syracuse"]
[18011,"State of Pennsylvania",0.06,"Alburtis","Lehigh","Out of Territory","Syracuse"]
[18031,"State of Pennsylvania",0.06,"Breinigsville","Lehigh","Out of Territory","Syracuse"]
[18032,"State of Pennsylvania",0.06,"Catasauqua","Lehigh","Out of Territory","Syracuse"]
[18034,"State of Pennsylvania",0.06,"Center Valley","Lehigh","Out of Territory","Syracuse"]
[18036,"State of Pennsylvania",0.06,"Coopersburg","Lehigh","Out of Territory","Syracuse"]
[18037,"State of Pennsylvania",0.06,"Coplay","Lehigh","Out of Territory","Syracuse"]
[18046,"State of Pennsylvania",0.06,"East Texas","Lehigh","Out of Territory","Syracuse"]
[18049,"State of Pennsylvania",0.06,"Emmaus","Lehigh","Out of Territory","Syracuse"]
[18051,"State of Pennsylvania",0.06,"Fogelsville","Lehigh","Out of Territory","Syracuse"]
[18052,"State of Pennsylvania",0.06,"Whitehall","Lehigh","Out of Territory","Syracuse"]
[18053,"State of Pennsylvania",0.06,"Germansville","Lehigh","Out of Territory","Syracuse"]
[18059,"State of Pennsylvania",0.06,"Laurys Station","Lehigh","Out of Territory","Syracuse"]
[18060,"State of Pennsylvania",0.06,"Limeport","Lehigh","Out of Territory","Syracuse"]
[18062,"State of Pennsylvania",0.06,"Macungie","Lehigh","Out of Territory","Syracuse"]
[18065,"State of Pennsylvania",0.06,"Neffs","Lehigh","Out of Territory","Syracuse"]
[18066,"State of Pennsylvania",0.06,"New Tripoli","Lehigh","Out of Territory","Syracuse"]
[18068,"State of Pennsylvania",0.06,"Old Zionsville","Lehigh","Out of Territory","Syracuse"]
[18069,"State of Pennsylvania",0.06,"Orefield","Lehigh","Out of Territory","Syracuse"]
[18078,"State of Pennsylvania",0.06,"Schnecksville","Lehigh","Out of Territory","Syracuse"]
[18079,"State of Pennsylvania",0.06,"Slatedale","Lehigh","Out of Territory","Syracuse"]
[18080,"State of Pennsylvania",0.06,"Slatington","Lehigh","Out of Territory","Syracuse"]
[18087,"State of Pennsylvania",0.06,"Trexlertown","Lehigh","Out of Territory","Syracuse"]
[18092,"State of Pennsylvania",0.06,"Zionsville","Lehigh","Out of Territory","Syracuse"]
[18098,"State of Pennsylvania",0.06,"Emmaus","Lehigh","Out of Territory","Syracuse"]
[18099,"State of Pennsylvania",0.06,"Emmaus","Lehigh","Out of Territory","Syracuse"]
[18101,"State of Pennsylvania",0.06,"Allentown","Lehigh","Out of Territory","Syracuse"]
[18102,"State of Pennsylvania",0.06,"Allentown","Lehigh","Out of Territory","Syracuse"]
[18103,"State of Pennsylvania",0.06,"Allentown","Lehigh","Out of Territory","Syracuse"]
[18104,"State of Pennsylvania",0.06,"Allentown","Lehigh","Out of Territory","Syracuse"]
[18105,"State of Pennsylvania",0.06,"Allentown","Lehigh","Out of Territory","Syracuse"]
[18106,"State of Pennsylvania",0.06,"Allentown","Lehigh","Out of Territory","Syracuse"]
[18109,"State of Pennsylvania",0.06,"Allentown","Lehigh","Out of Territory","Syracuse"]
[18195,"State of Pennsylvania",0.06,"Allentown","Lehigh","Out of Territory","Syracuse"]
[18025,"State of Pennsylvania",0.06,"Bethlehem","Lehigh","Out of Territory","Syracuse"]
[13631,"County of Lewis",0.08,"Denmark","Lewis","Central","Watertown"]
[13305,"County of Lewis",0.08,"Beaver Falls","Lewis","Central","Watertown"]
[13312,"County of Lewis",0.08,"Brantingham","Lewis","Central","Watertown"]
[13325,"County of Lewis",0.08,"Constableville","Lewis","Central","Watertown"]
[13327,"County of Lewis",0.08,"Croghan","Lewis","Central","Watertown"]
[13343,"County of Lewis",0.08,"Glenfield","Lewis","Central","Watertown"]
[13345,"County of Lewis",0.08,"Greig","Lewis","Central","Watertown"]
[13367,"County of Lewis",0.08,"Lowville","Lewis","Central","Watertown"]
[13368,"County of Lewis",0.08,"Lyons Falls","Lewis","Central","Watertown"]
[13404,"County of Lewis",0.08,"Martinsburg","Lewis","Central","Watertown"]
[13433,"County of Lewis",0.08,"Port Leyden","Lewis","Central","Watertown"]
[13473,"County of Lewis",0.08,"Turin","Lewis","Central","Watertown"]
[13489,"County of Lewis",0.08,"West Leyden","Lewis","Central","Watertown"]
[13620,"County of Lewis",0.08,"Castorland","Lewis","Central","Watertown"]
[13626,"County of Lewis",0.08,"Copenhagen","Lewis","Central","Watertown"]
[13627,"County of Lewis",0.08,"Deer River","Lewis","Central","Watertown"]
[13648,"County of Lewis",0.08,"Harrisville","Lewis","Central","Watertown"]
[14414,"County of Livingston",0.08,"Avon","Livingston","Western","Rochester"]
[14423,"County of Livingston",0.08,"Caledonia","Livingston","Western","Rochester"]
[14435,"County of Livingston",0.08,"Conesus","Livingston","Western","Rochester"]
[14437,"County of Livingston",0.08,"Dansville","Livingston","Western","Rochester"]
[14454,"County of Livingston",0.08,"Geneseo","Livingston","Western","Rochester"]
[14462,"County of Livingston",0.08,"Groveland","Livingston","Western","Rochester"]
[14480,"County of Livingston",0.08,"Lakeville","Livingston","Western","Rochester"]
[14481,"County of Livingston",0.08,"Leicester","Livingston","Western","Rochester"]
[14485,"County of Livingston",0.08,"Lima","Livingston","Western","Rochester"]
[14487,"County of Livingston",0.08,"Livonia","Livingston","Western","Rochester"]
[14488,"County of Livingston",0.08,"Livonia Center","Livingston","Western","Rochester"]
[14510,"County of Livingston",0.08,"Mount Morris","Livingston","Western","Rochester"]
[14517,"County of Livingston",0.08,"Nunda","Livingston","Western","Rochester"]
[14533,"County of Livingston",0.08,"Piffard","Livingston","Western","Rochester"]
[14539,"County of Livingston",0.08,"Retsof","Livingston","Western","Rochester"]
[14545,"County of Livingston",0.08,"Scottsburg","Livingston","Western","Rochester"]
[14556,"County of Livingston",0.08,"Sonyea","Livingston","Western","Rochester"]
[14558,"County of Livingston",0.08,"South Lima","Livingston","Western","Rochester"]
[14592,"County of Livingston",0.08,"York","Livingston","Western","Rochester"]
[14836,"County of Livingston",0.08,"Dalton","Livingston","Western","Rochester"]
[14846,"County of Livingston",0.08,"Hunt","Livingston","Western","Rochester"]
[14466,"County of Livingston",0.08,"Hemlock","Livingston","Western","Rochester"]
[14560,"County of Livingston",0.08,"Springwater","Livingston","Western","Rochester"]
[18201,"State of Pennsylvania",0.06,"Hazleton","Luzerne","Out of Territory","Syracuse"]
[18202,"State of Pennsylvania",0.06,"Hazleton","Luzerne","Out of Territory","Syracuse"]
[18219,"State of Pennsylvania",0.06,"Conyngham","Luzerne","Out of Territory","Syracuse"]
[18221,"State of Pennsylvania",0.06,"Drifton","Luzerne","Out of Territory","Syracuse"]
[18222,"State of Pennsylvania",0.06,"Drums","Luzerne","Out of Territory","Syracuse"]
[18223,"State of Pennsylvania",0.06,"Ebervale","Luzerne","Out of Territory","Syracuse"]
[18224,"State of Pennsylvania",0.06,"Freeland","Luzerne","Out of Territory","Syracuse"]
[18225,"State of Pennsylvania",0.06,"Harleigh","Luzerne","Out of Territory","Syracuse"]
[18234,"State of Pennsylvania",0.06,"Lattimer Mines","Luzerne","Out of Territory","Syracuse"]
[18239,"State of Pennsylvania",0.06,"Milnesville","Luzerne","Out of Territory","Syracuse"]
[18246,"State of Pennsylvania",0.06,"Rock Glen","Luzerne","Out of Territory","Syracuse"]
[18247,"State of Pennsylvania",0.06,"Saint Johns","Luzerne","Out of Territory","Syracuse"]
[18249,"State of Pennsylvania",0.06,"Sugarloaf","Luzerne","Out of Territory","Syracuse"]
[18251,"State of Pennsylvania",0.06,"Sybertsville","Luzerne","Out of Territory","Syracuse"]
[18256,"State of Pennsylvania",0.06,"Weston","Luzerne","Out of Territory","Syracuse"]
[18601,"State of Pennsylvania",0.06,"Beach Haven","Luzerne","Out of Territory","Syracuse"]
[18602,"State of Pennsylvania",0.06,"Bear Creek","Luzerne","Out of Territory","Syracuse"]
[18611,"State of Pennsylvania",0.06,"Cambra","Luzerne","Out of Territory","Syracuse"]
[18612,"State of Pennsylvania",0.06,"Dallas","Luzerne","Out of Territory","Syracuse"]
[18617,"State of Pennsylvania",0.06,"Glen Lyon","Luzerne","Out of Territory","Syracuse"]
[18618,"State of Pennsylvania",0.06,"Harveys Lake","Luzerne","Out of Territory","Syracuse"]
[18621,"State of Pennsylvania",0.06,"Hunlock Creek","Luzerne","Out of Territory","Syracuse"]
[18622,"State of Pennsylvania",0.06,"Huntington Mills","Luzerne","Out of Territory","Syracuse"]
[18627,"State of Pennsylvania",0.06,"Lehman","Luzerne","Out of Territory","Syracuse"]
[18634,"State of Pennsylvania",0.06,"Nanticoke","Luzerne","Out of Territory","Syracuse"]
[18635,"State of Pennsylvania",0.06,"Nescopeck","Luzerne","Out of Territory","Syracuse"]
[18640,"State of Pennsylvania",0.06,"Pittston","Luzerne","Out of Territory","Syracuse"]
[18641,"State of Pennsylvania",0.06,"Pittston","Luzerne","Out of Territory","Syracuse"]
[18642,"State of Pennsylvania",0.06,"Duryea","Luzerne","Out of Territory","Syracuse"]
[18643,"State of Pennsylvania",0.06,"Pittston","Luzerne","Out of Territory","Syracuse"]
[18644,"State of Pennsylvania",0.06,"Wyoming","Luzerne","Out of Territory","Syracuse"]
[18651,"State of Pennsylvania",0.06,"Plymouth","Luzerne","Out of Territory","Syracuse"]
[18654,"State of Pennsylvania",0.06,"Shawanese","Luzerne","Out of Territory","Syracuse"]
[18655,"State of Pennsylvania",0.06,"Shickshinny","Luzerne","Out of Territory","Syracuse"]
[18656,"State of Pennsylvania",0.06,"Sweet Valley","Luzerne","Out of Territory","Syracuse"]
[18660,"State of Pennsylvania",0.06,"Wapwallopen","Luzerne","Out of Territory","Syracuse"]
[18661,"State of Pennsylvania",0.06,"White Haven","Luzerne","Out of Territory","Syracuse"]
[18690,"State of Pennsylvania",0.06,"Dallas","Luzerne","Out of Territory","Syracuse"]
[18701,"State of Pennsylvania",0.06,"Wilkes Barre","Luzerne","Out of Territory","Syracuse"]
[18702,"State of Pennsylvania",0.06,"Wilkes Barre","Luzerne","Out of Territory","Syracuse"]
[18703,"State of Pennsylvania",0.06,"Wilkes Barre","Luzerne","Out of Territory","Syracuse"]
[18704,"State of Pennsylvania",0.06,"Kingston","Luzerne","Out of Territory","Syracuse"]
[18705,"State of Pennsylvania",0.06,"Wilkes Barre","Luzerne","Out of Territory","Syracuse"]
[18706,"State of Pennsylvania",0.06,"Wilkes Barre","Luzerne","Out of Territory","Syracuse"]
[18707,"State of Pennsylvania",0.06,"Mountain Top","Luzerne","Out of Territory","Syracuse"]
[18708,"State of Pennsylvania",0.06,"Shavertown","Luzerne","Out of Territory","Syracuse"]
[18709,"State of Pennsylvania",0.06,"Luzerne","Luzerne","Out of Territory","Syracuse"]
[18710,"State of Pennsylvania",0.06,"Wilkes Barre","Luzerne","Out of Territory","Syracuse"]
[18711,"State of Pennsylvania",0.06,"Wilkes Barre","Luzerne","Out of Territory","Syracuse"]
[18762,"State of Pennsylvania",0.06,"Wilkes Barre","Luzerne","Out of Territory","Syracuse"]
[18764,"State of Pennsylvania",0.06,"Wilkes Barre","Luzerne","Out of Territory","Syracuse"]
[18765,"State of Pennsylvania",0.06,"Wilkes Barre","Luzerne","Out of Territory","Syracuse"]
[18766,"State of Pennsylvania",0.06,"Wilkes Barre","Luzerne","Out of Territory","Syracuse"]
[18767,"State of Pennsylvania",0.06,"Wilkes Barre","Luzerne","Out of Territory","Syracuse"]
[18769,"State of Pennsylvania",0.06,"Wilkes Barre","Luzerne","Out of Territory","Syracuse"]
[18773,"State of Pennsylvania",0.06,"Wilkes Barre","Luzerne","Out of Territory","Syracuse"]
[17701,"State of Pennsylvania",0.06,"Williamsport","Lycoming","Out of Territory","Syracuse"]
[17702,"State of Pennsylvania",0.06,"Williamsport","Lycoming","Out of Territory","Syracuse"]
[17703,"State of Pennsylvania",0.06,"Williamsport","Lycoming","Out of Territory","Syracuse"]
[17705,"State of Pennsylvania",0.06,"Williamsport","Lycoming","Out of Territory","Syracuse"]
[17720,"State of Pennsylvania",0.06,"Antes Fort","Lycoming","Out of Territory","Syracuse"]
[17723,"State of Pennsylvania",0.06,"Cammal","Lycoming","Out of Territory","Syracuse"]
[17727,"State of Pennsylvania",0.06,"Cedar Run","Lycoming","Out of Territory","Syracuse"]
[17728,"State of Pennsylvania",0.06,"Cogan Station","Lycoming","Out of Territory","Syracuse"]
[17737,"State of Pennsylvania",0.06,"Hughesville","Lycoming","Out of Territory","Syracuse"]
[17739,"State of Pennsylvania",0.06,"Jersey Mills","Lycoming","Out of Territory","Syracuse"]
[17740,"State of Pennsylvania",0.06,"Jersey Shore","Lycoming","Out of Territory","Syracuse"]
[17742,"State of Pennsylvania",0.06,"Lairdsville","Lycoming","Out of Territory","Syracuse"]
[17744,"State of Pennsylvania",0.06,"Linden","Lycoming","Out of Territory","Syracuse"]
[17752,"State of Pennsylvania",0.06,"Montgomery","Lycoming","Out of Territory","Syracuse"]
[17754,"State of Pennsylvania",0.06,"Montoursville","Lycoming","Out of Territory","Syracuse"]
[17756,"State of Pennsylvania",0.06,"Muncy","Lycoming","Out of Territory","Syracuse"]
[17762,"State of Pennsylvania",0.06,"Picture Rocks","Lycoming","Out of Territory","Syracuse"]
[17763,"State of Pennsylvania",0.06,"Ralston","Lycoming","Out of Territory","Syracuse"]
[17769,"State of Pennsylvania",0.06,"Slate Run","Lycoming","Out of Territory","Syracuse"]
[17771,"State of Pennsylvania",0.06,"Trout Run","Lycoming","Out of Territory","Syracuse"]
[17774,"State of Pennsylvania",0.06,"Unityville","Lycoming","Out of Territory","Syracuse"]
[17776,"State of Pennsylvania",0.06,"Waterville","Lycoming","Out of Territory","Syracuse"]
[13421,"City of Oneida",0.08,"Oneida","Madison","Central","Utica"]
[13032,"County of Madison",0.08,"Canastota","Madison","Central","Syracuse"]
[13035,"County of Madison",0.08,"Cazenovia","Madison","Central","Syracuse"]
[13037,"County of Madison",0.08,"Chittenango","Madison","Central","Syracuse"]
[13043,"County of Madison",0.08,"Clockville","Madison","Central","Syracuse"]
[13052,"County of Madison",0.08,"De Ruyter","Madison","Central","Syracuse"]
[13061,"County of Madison",0.08,"Erieville","Madison","Central","Syracuse"]
[13072,"County of Madison",0.08,"Georgetown","Madison","Central","Syracuse"]
[13122,"County of Madison",0.08,"New Woodstock","Madison","Central","Syracuse"]
[13134,"County of Madison",0.08,"Peterboro","Madison","Central","Syracuse"]
[13163,"County of Madison",0.08,"Wampsville","Madison","Central","Syracuse"]
[13310,"County of Madison",0.08,"Bouckville","Madison","Central","Syracuse"]
[13314,"County of Madison",0.08,"Brookfield","Madison","Central","Syracuse"]
[13334,"County of Madison",0.08,"Eaton","Madison","Central","Syracuse"]
[13346,"County of Madison",0.08,"Hamilton","Madison","Central","Syracuse"]
[13355,"County of Madison",0.08,"Hubbardsville","Madison","Central","Syracuse"]
[13364,"County of Madison",0.08,"Leonardsville","Madison","Central","Syracuse"]
[13402,"County of Madison",0.08,"Madison","Madison","Central","Syracuse"]
[13408,"County of Madison",0.08,"Morrisville","Madison","Central","Syracuse"]
[13409,"County of Madison",0.08,"Munnsville","Madison","Central","Syracuse"]
[13418,"County of Madison",0.08,"North Brookfield","Madison","Central","Syracuse"]
[13465,"County of Madison",0.08,"Solsville","Madison","Central","Syracuse"]
[13484,"County of Madison",0.08,"West Eaton","Madison","Central","Syracuse"]
[13485,"County of Madison",0.08,"West Edmeston","Madison","Central","Syracuse"]
[16333,"State of Pennsylvania",0.06,"Ludlow","McKean","Western","Jamestown"]
[16701,"State of Pennsylvania",0.06,"Bradford","McKean","Western","Jamestown"]
[16724,"State of Pennsylvania",0.06,"Crosby","McKean","Western","Jamestown"]
[16725,"State of Pennsylvania",0.06,"Custer City","McKean","Western","Jamestown"]
[16726,"State of Pennsylvania",0.06,"Cyclone","McKean","Western","Jamestown"]
[16727,"State of Pennsylvania",0.06,"Derrick City","McKean","Western","Jamestown"]
[16729,"State of Pennsylvania",0.06,"Duke Center","McKean","Western","Jamestown"]
[16730,"State of Pennsylvania",0.06,"East Smethport","McKean","Western","Jamestown"]
[16731,"State of Pennsylvania",0.06,"Eldred","McKean","Western","Jamestown"]
[16732,"State of Pennsylvania",0.06,"Gifford","McKean","Western","Jamestown"]
[16733,"State of Pennsylvania",0.06,"Hazel Hurst","McKean","Western","Jamestown"]
[16735,"State of Pennsylvania",0.06,"Kane","McKean","Western","Jamestown"]
[16738,"State of Pennsylvania",0.06,"Lewis Run","McKean","Western","Jamestown"]
[16740,"State of Pennsylvania",0.06,"Mount Jewett","McKean","Western","Jamestown"]
[16743,"State of Pennsylvania",0.06,"Port Allegany","McKean","Western","Jamestown"]
[16744,"State of Pennsylvania",0.06,"Rew","McKean","Western","Jamestown"]
[16745,"State of Pennsylvania",0.06,"Rixford","McKean","Western","Jamestown"]
[16749,"State of Pennsylvania",0.06,"Smethport","McKean","Western","Jamestown"]
[16750,"State of Pennsylvania",0.06,"Turtlepoint","McKean","Western","Jamestown"]
[16134,"State of Pennsylvania",0.06,"Jamestown","Mercer","Western","Jamestown"]
[16113,"State of Pennsylvania",0.06,"Clark","Mercer","Out of Territory","Syracuse"]
[16114,"State of Pennsylvania",0.06,"Clarks Mills","Mercer","Out of Territory","Syracuse"]
[16121,"State of Pennsylvania",0.06,"Farrell","Mercer","Out of Territory","Syracuse"]
[16124,"State of Pennsylvania",0.06,"Fredonia","Mercer","Out of Territory","Syracuse"]
[16125,"State of Pennsylvania",0.06,"Greenville","Mercer","Out of Territory","Syracuse"]
[16127,"State of Pennsylvania",0.06,"Grove City","Mercer","Out of Territory","Syracuse"]
[16130,"State of Pennsylvania",0.06,"Hadley","Mercer","Out of Territory","Syracuse"]
[16133,"State of Pennsylvania",0.06,"Jackson Center","Mercer","Out of Territory","Syracuse"]
[16137,"State of Pennsylvania",0.06,"Mercer","Mercer","Out of Territory","Syracuse"]
[16145,"State of Pennsylvania",0.06,"Sandy Lake","Mercer","Out of Territory","Syracuse"]
[16146,"State of Pennsylvania",0.06,"Sharon","Mercer","Out of Territory","Syracuse"]
[16148,"State of Pennsylvania",0.06,"Hermitage","Mercer","Out of Territory","Syracuse"]
[16150,"State of Pennsylvania",0.06,"Sharpsville","Mercer","Out of Territory","Syracuse"]
[16151,"State of Pennsylvania",0.06,"Sheakleyville","Mercer","Out of Territory","Syracuse"]
[16153,"State of Pennsylvania",0.06,"Stoneboro","Mercer","Out of Territory","Syracuse"]
[16154,"State of Pennsylvania",0.06,"Transfer","Mercer","Out of Territory","Syracuse"]
[16159,"State of Pennsylvania",0.06,"West Middlesex","Mercer","Out of Territory","Syracuse"]
[16161,"State of Pennsylvania",0.06,"Wheatland","Mercer","Out of Territory","Syracuse"]
[16311,"State of Pennsylvania",0.06,"Carlton","Mercer","Out of Territory","Syracuse"]
[17002,"State of Pennsylvania",0.06,"Allensville","Mifflin","Out of Territory","Syracuse"]
[17004,"State of Pennsylvania",0.06,"Belleville","Mifflin","Out of Territory","Syracuse"]
[17009,"State of Pennsylvania",0.06,"Burnham","Mifflin","Out of Territory","Syracuse"]
[17029,"State of Pennsylvania",0.06,"Granville","Mifflin","Out of Territory","Syracuse"]
[17044,"State of Pennsylvania",0.06,"Lewistown","Mifflin","Out of Territory","Syracuse"]
[17051,"State of Pennsylvania",0.06,"Mc Veytown","Mifflin","Out of Territory","Syracuse"]
[17054,"State of Pennsylvania",0.06,"Mattawana","Mifflin","Out of Territory","Syracuse"]
[17063,"State of Pennsylvania",0.06,"Milroy","Mifflin","Out of Territory","Syracuse"]
[17075,"State of Pennsylvania",0.06,"Newton Hamilton","Mifflin","Out of Territory","Syracuse"]
[17084,"State of Pennsylvania",0.06,"Reedsville","Mifflin","Out of Territory","Syracuse"]
[17099,"State of Pennsylvania",0.06,"Yeagertown","Mifflin","Out of Territory","Syracuse"]
[17841,"State of Pennsylvania",0.06,"Mc Clure","Mifflin","Out of Territory","Syracuse"]
[14410,"County of Monroe",0.08,"Adams Basin","Monroe","Western","Rochester"]
[14420,"County of Monroe",0.08,"Brockport","Monroe","Western","Rochester"]
[14428,"County of Monroe",0.08,"Churchville","Monroe","Western","Rochester"]
[14430,"County of Monroe",0.08,"Clarkson","Monroe","Western","Rochester"]
[14445,"County of Monroe",0.08,"East Rochester","Monroe","Western","Rochester"]
[14450,"County of Monroe",0.08,"Fairport","Monroe","Western","Rochester"]
[14464,"County of Monroe",0.08,"Hamlin","Monroe","Western","Rochester"]
[14467,"County of Monroe",0.08,"Henrietta","Monroe","Western","Rochester"]
[14468,"County of Monroe",0.08,"Hilton","Monroe","Western","Rochester"]
[14472,"County of Monroe",0.08,"Honeoye Falls","Monroe","Western","Rochester"]
[14506,"County of Monroe",0.08,"Mendon","Monroe","Western","Rochester"]
[14511,"County of Monroe",0.08,"Mumford","Monroe","Western","Rochester"]
[14514,"County of Monroe",0.08,"North Chili","Monroe","Western","Rochester"]
[14515,"County of Monroe",0.08,"North Greece","Monroe","Western","Rochester"]
[14526,"County of Monroe",0.08,"Penfield","Monroe","Western","Rochester"]
[14534,"County of Monroe",0.08,"Pittsford","Monroe","Western","Rochester"]
[14543,"County of Monroe",0.08,"Rush","Monroe","Western","Rochester"]
[14546,"County of Monroe",0.08,"Scottsville","Monroe","Western","Rochester"]
[14559,"County of Monroe",0.08,"Spencerport","Monroe","Western","Rochester"]
[14580,"County of Monroe",0.08,"Webster","Monroe","Western","Rochester"]
[14586,"County of Monroe",0.08,"West Henrietta","Monroe","Western","Rochester"]
[14602,"County of Monroe",0.08,"Rochester","Monroe","Western","Rochester"]
[14603,"County of Monroe",0.08,"Rochester","Monroe","Western","Rochester"]
[14604,"County of Monroe",0.08,"Rochester","Monroe","Western","Rochester"]
[14605,"County of Monroe",0.08,"Rochester","Monroe","Western","Rochester"]
[14606,"County of Monroe",0.08,"Rochester","Monroe","Western","Rochester"]
[14607,"County of Monroe",0.08,"Rochester","Monroe","Western","Rochester"]
[14608,"County of Monroe",0.08,"Rochester","Monroe","Western","Rochester"]
[14609,"County of Monroe",0.08,"Rochester","Monroe","Western","Rochester"]
[14610,"County of Monroe",0.08,"Rochester","Monroe","Western","Rochester"]
[14611,"County of Monroe",0.08,"Rochester","Monroe","Western","Rochester"]
[14612,"County of Monroe",0.08,"Rochester","Monroe","Western","Rochester"]
[14613,"County of Monroe",0.08,"Rochester","Monroe","Western","Rochester"]
[14614,"County of Monroe",0.08,"Rochester","Monroe","Western","Rochester"]
[14615,"County of Monroe",0.08,"Rochester","Monroe","Western","Rochester"]
[14616,"County of Monroe",0.08,"Rochester","Monroe","Western","Rochester"]
[14617,"County of Monroe",0.08,"Rochester","Monroe","Western","Rochester"]
[14618,"County of Monroe",0.08,"Rochester","Monroe","Western","Rochester"]
[14619,"County of Monroe",0.08,"Rochester","Monroe","Western","Rochester"]
[14620,"County of Monroe",0.08,"Rochester","Monroe","Western","Rochester"]
[14621,"County of Monroe",0.08,"Rochester","Monroe","Western","Rochester"]
[14622,"County of Monroe",0.08,"Rochester","Monroe","Western","Rochester"]
[14623,"County of Monroe",0.08,"Rochester","Monroe","Western","Rochester"]
[14624,"County of Monroe",0.08,"Rochester","Monroe","Western","Rochester"]
[14625,"County of Monroe",0.08,"Rochester","Monroe","Western","Rochester"]
[14626,"County of Monroe",0.08,"Rochester","Monroe","Western","Rochester"]
[14627,"County of Monroe",0.08,"Rochester","Monroe","Western","Rochester"]
[14638,"County of Monroe",0.08,"Rochester","Monroe","Western","Rochester"]
[14639,"County of Monroe",0.08,"Rochester","Monroe","Western","Rochester"]
[14642,"County of Monroe",0.08,"Rochester","Monroe","Western","Rochester"]
[14643,"County of Monroe",0.08,"Rochester","Monroe","Western","Rochester"]
[14644,"County of Monroe",0.08,"Rochester","Monroe","Western","Rochester"]
[14646,"County of Monroe",0.08,"Rochester","Monroe","Western","Rochester"]
[14647,"County of Monroe",0.08,"Rochester","Monroe","Western","Rochester"]
[14649,"County of Monroe",0.08,"Rochester","Monroe","Western","Rochester"]
[14650,"County of Monroe",0.08,"Rochester","Monroe","Western","Rochester"]
[14651,"County of Monroe",0.08,"Rochester","Monroe","Western","Rochester"]
[14652,"County of Monroe",0.08,"Rochester","Monroe","Western","Rochester"]
[14653,"County of Monroe",0.08,"Rochester","Monroe","Western","Rochester"]
[14692,"County of Monroe",0.08,"Rochester","Monroe","Western","Rochester"]
[14694,"County of Monroe",0.08,"Rochester","Monroe","Western","Rochester"]
[14508,"County of Monroe",0.08,"Morton","Monroe","Western","Buffalo"]
[18058,"State of Pennsylvania",0.06,"Kunkletown","Monroe","Out of Territory","Syracuse"]
[18301,"State of Pennsylvania",0.06,"East Stroudsburg","Monroe","Out of Territory","Syracuse"]
[18302,"State of Pennsylvania",0.06,"East Stroudsburg","Monroe","Out of Territory","Syracuse"]
[18320,"State of Pennsylvania",0.06,"Analomink","Monroe","Out of Territory","Syracuse"]
[18321,"State of Pennsylvania",0.06,"Bartonsville","Monroe","Out of Territory","Syracuse"]
[18322,"State of Pennsylvania",0.06,"Brodheadsville","Monroe","Out of Territory","Syracuse"]
[18323,"State of Pennsylvania",0.06,"Buck Hill Falls","Monroe","Out of Territory","Syracuse"]
[18326,"State of Pennsylvania",0.06,"Cresco","Monroe","Out of Territory","Syracuse"]
[18327,"State of Pennsylvania",0.06,"Delaware Water Gap","Monroe","Out of Territory","Syracuse"]
[18330,"State of Pennsylvania",0.06,"Effort","Monroe","Out of Territory","Syracuse"]
[18331,"State of Pennsylvania",0.06,"Gilbert","Monroe","Out of Territory","Syracuse"]
[18332,"State of Pennsylvania",0.06,"Henryville","Monroe","Out of Territory","Syracuse"]
[18333,"State of Pennsylvania",0.06,"Kresgeville","Monroe","Out of Territory","Syracuse"]
[18334,"State of Pennsylvania",0.06,"Long Pond","Monroe","Out of Territory","Syracuse"]
[18335,"State of Pennsylvania",0.06,"Marshalls Creek","Monroe","Out of Territory","Syracuse"]
[18341,"State of Pennsylvania",0.06,"Minisink Hills","Monroe","Out of Territory","Syracuse"]
[18342,"State of Pennsylvania",0.06,"Mountainhome","Monroe","Out of Territory","Syracuse"]
[18344,"State of Pennsylvania",0.06,"Mount Pocono","Monroe","Out of Territory","Syracuse"]
[18346,"State of Pennsylvania",0.06,"Pocono Summit","Monroe","Out of Territory","Syracuse"]
[18347,"State of Pennsylvania",0.06,"Pocono Lake","Monroe","Out of Territory","Syracuse"]
[18348,"State of Pennsylvania",0.06,"Pocono Lake Preserve","Monroe","Out of Territory","Syracuse"]
[18349,"State of Pennsylvania",0.06,"Pocono Manor","Monroe","Out of Territory","Syracuse"]
[18350,"State of Pennsylvania",0.06,"Pocono Pines","Monroe","Out of Territory","Syracuse"]
[18352,"State of Pennsylvania",0.06,"Reeders","Monroe","Out of Territory","Syracuse"]
[18353,"State of Pennsylvania",0.06,"Saylorsburg","Monroe","Out of Territory","Syracuse"]
[18354,"State of Pennsylvania",0.06,"Sciota","Monroe","Out of Territory","Syracuse"]
[18355,"State of Pennsylvania",0.06,"Scotrun","Monroe","Out of Territory","Syracuse"]
[18356,"State of Pennsylvania",0.06,"Shawnee On Delaware","Monroe","Out of Territory","Syracuse"]
[18357,"State of Pennsylvania",0.06,"Skytop","Monroe","Out of Territory","Syracuse"]
[18360,"State of Pennsylvania",0.06,"Stroudsburg","Monroe","Out of Territory","Syracuse"]
[18370,"State of Pennsylvania",0.06,"Swiftwater","Monroe","Out of Territory","Syracuse"]
[18372,"State of Pennsylvania",0.06,"Tannersville","Monroe","Out of Territory","Syracuse"]
[18466,"State of Pennsylvania",0.06,"Tobyhanna","Monroe","Out of Territory","Syracuse"]
[18610,"State of Pennsylvania",0.06,"Blakeslee","Monroe","Out of Territory","Syracuse"]
[18325,"State of Pennsylvania",0.06,"Canadensis","Monroe","Out of Territory","Syracuse"]
[12010,"County of Montgomery",0.08,"Amsterdam","Montgomery","Eastern","Albany"]
[12016,"County of Montgomery",0.08,"Auriesville","Montgomery","Eastern","Albany"]
[12066,"County of Montgomery",0.08,"Esperance","Montgomery","Eastern","Albany"]
[12068,"County of Montgomery",0.08,"Fonda","Montgomery","Eastern","Albany"]
[12069,"County of Montgomery",0.08,"Fort Hunter","Montgomery","Eastern","Albany"]
[12070,"County of Montgomery",0.08,"Fort Johnson","Montgomery","Eastern","Albany"]
[12072,"County of Montgomery",0.08,"Fultonville","Montgomery","Eastern","Albany"]
[12086,"County of Montgomery",0.08,"Hagaman","Montgomery","Eastern","Albany"]
[12166,"County of Montgomery",0.08,"Sprakers","Montgomery","Eastern","Albany"]
[12177,"County of Montgomery",0.08,"Tribes Hill","Montgomery","Eastern","Albany"]
[13317,"County of Montgomery",0.08,"Canajoharie","Montgomery","Eastern","Albany"]
[13339,"County of Montgomery",0.08,"Fort Plain","Montgomery","Eastern","Albany"]
[13410,"County of Montgomery",0.08,"Nelliston","Montgomery","Eastern","Albany"]
[13428,"County of Montgomery",0.08,"Palatine Bridge","Montgomery","Eastern","Albany"]
[13452,"County of Montgomery",0.08,"Saint Johnsville","Montgomery","Eastern","Albany"]
[19003,"State of Pennsylvania",0.06,"Ardmore","Montgomery","Out of Territory","Syracuse"]
[19041,"State of Pennsylvania",0.06,"Haverford","Montgomery","Out of Territory","Syracuse"]
[18041,"State of Pennsylvania",0.06,"East Greenville","Montgomery","Out of Territory","Syracuse"]
[18054,"State of Pennsylvania",0.06,"Green Lane","Montgomery","Out of Territory","Syracuse"]
[18070,"State of Pennsylvania",0.06,"Palm","Montgomery","Out of Territory","Syracuse"]
[18073,"State of Pennsylvania",0.06,"Pennsburg","Montgomery","Out of Territory","Syracuse"]
[18074,"State of Pennsylvania",0.06,"Perkiomenville","Montgomery","Out of Territory","Syracuse"]
[18076,"State of Pennsylvania",0.06,"Red Hill","Montgomery","Out of Territory","Syracuse"]
[18084,"State of Pennsylvania",0.06,"Sumneytown","Montgomery","Out of Territory","Syracuse"]
[18915,"State of Pennsylvania",0.06,"Colmar","Montgomery","Out of Territory","Syracuse"]
[18918,"State of Pennsylvania",0.06,"Earlington","Montgomery","Out of Territory","Syracuse"]
[18924,"State of Pennsylvania",0.06,"Franconia","Montgomery","Out of Territory","Syracuse"]
[18936,"State of Pennsylvania",0.06,"Montgomeryville","Montgomery","Out of Territory","Syracuse"]
[18957,"State of Pennsylvania",0.06,"Salford","Montgomery","Out of Territory","Syracuse"]
[18958,"State of Pennsylvania",0.06,"Salfordville","Montgomery","Out of Territory","Syracuse"]
[18964,"State of Pennsylvania",0.06,"Souderton","Montgomery","Out of Territory","Syracuse"]
[18969,"State of Pennsylvania",0.06,"Telford","Montgomery","Out of Territory","Syracuse"]
[18971,"State of Pennsylvania",0.06,"Tylersport","Montgomery","Out of Territory","Syracuse"]
[18979,"State of Pennsylvania",0.06,"Woxall","Montgomery","Out of Territory","Syracuse"]
[19001,"State of Pennsylvania",0.06,"Abington","Montgomery","Out of Territory","Syracuse"]
[19002,"State of Pennsylvania",0.06,"Ambler","Montgomery","Out of Territory","Syracuse"]
[19004,"State of Pennsylvania",0.06,"Bala Cynwyd","Montgomery","Out of Territory","Syracuse"]
[19006,"State of Pennsylvania",0.06,"Huntingdon Valley","Montgomery","Out of Territory","Syracuse"]
[19009,"State of Pennsylvania",0.06,"Bryn Athyn","Montgomery","Out of Territory","Syracuse"]
[19012,"State of Pennsylvania",0.06,"Cheltenham","Montgomery","Out of Territory","Syracuse"]
[19025,"State of Pennsylvania",0.06,"Dresher","Montgomery","Out of Territory","Syracuse"]
[19027,"State of Pennsylvania",0.06,"Elkins Park","Montgomery","Out of Territory","Syracuse"]
[19031,"State of Pennsylvania",0.06,"Flourtown","Montgomery","Out of Territory","Syracuse"]
[19034,"State of Pennsylvania",0.06,"Fort Washington","Montgomery","Out of Territory","Syracuse"]
[19035,"State of Pennsylvania",0.06,"Gladwyne","Montgomery","Out of Territory","Syracuse"]
[19038,"State of Pennsylvania",0.06,"Glenside","Montgomery","Out of Territory","Syracuse"]
[19040,"State of Pennsylvania",0.06,"Hatboro","Montgomery","Out of Territory","Syracuse"]
[19044,"State of Pennsylvania",0.06,"Horsham","Montgomery","Out of Territory","Syracuse"]
[19046,"State of Pennsylvania",0.06,"Jenkintown","Montgomery","Out of Territory","Syracuse"]
[19066,"State of Pennsylvania",0.06,"Merion Station","Montgomery","Out of Territory","Syracuse"]
[19072,"State of Pennsylvania",0.06,"Narberth","Montgomery","Out of Territory","Syracuse"]
[19075,"State of Pennsylvania",0.06,"Oreland","Montgomery","Out of Territory","Syracuse"]
[19090,"State of Pennsylvania",0.06,"Willow Grove","Montgomery","Out of Territory","Syracuse"]
[19095,"State of Pennsylvania",0.06,"Wyncote","Montgomery","Out of Territory","Syracuse"]
[19096,"State of Pennsylvania",0.06,"Wynnewood","Montgomery","Out of Territory","Syracuse"]
[19401,"State of Pennsylvania",0.06,"Norristown","Montgomery","Out of Territory","Syracuse"]
[19403,"State of Pennsylvania",0.06,"Norristown","Montgomery","Out of Territory","Syracuse"]
[19404,"State of Pennsylvania",0.06,"Norristown","Montgomery","Out of Territory","Syracuse"]
[19405,"State of Pennsylvania",0.06,"Bridgeport","Montgomery","Out of Territory","Syracuse"]
[19406,"State of Pennsylvania",0.06,"King Of Prussia","Montgomery","Out of Territory","Syracuse"]
[19407,"State of Pennsylvania",0.06,"Audubon","Montgomery","Out of Territory","Syracuse"]
[19408,"State of Pennsylvania",0.06,"Eagleville","Montgomery","Out of Territory","Syracuse"]
[19409,"State of Pennsylvania",0.06,"Fairview Village","Montgomery","Out of Territory","Syracuse"]
[19415,"State of Pennsylvania",0.06,"Eagleville","Montgomery","Out of Territory","Syracuse"]
[19422,"State of Pennsylvania",0.06,"Blue Bell","Montgomery","Out of Territory","Syracuse"]
[19423,"State of Pennsylvania",0.06,"Cedars","Montgomery","Out of Territory","Syracuse"]
[19424,"State of Pennsylvania",0.06,"Blue Bell","Montgomery","Out of Territory","Syracuse"]
[19426,"State of Pennsylvania",0.06,"Collegeville","Montgomery","Out of Territory","Syracuse"]
[19428,"State of Pennsylvania",0.06,"Conshohocken","Montgomery","Out of Territory","Syracuse"]
[19429,"State of Pennsylvania",0.06,"Conshohocken","Montgomery","Out of Territory","Syracuse"]
[19430,"State of Pennsylvania",0.06,"Creamery","Montgomery","Out of Territory","Syracuse"]
[19435,"State of Pennsylvania",0.06,"Frederick","Montgomery","Out of Territory","Syracuse"]
[19436,"State of Pennsylvania",0.06,"Gwynedd","Montgomery","Out of Territory","Syracuse"]
[19437,"State of Pennsylvania",0.06,"Gwynedd Valley","Montgomery","Out of Territory","Syracuse"]
[19438,"State of Pennsylvania",0.06,"Harleysville","Montgomery","Out of Territory","Syracuse"]
[19440,"State of Pennsylvania",0.06,"Hatfield","Montgomery","Out of Territory","Syracuse"]
[19441,"State of Pennsylvania",0.06,"Harleysville","Montgomery","Out of Territory","Syracuse"]
[19443,"State of Pennsylvania",0.06,"Kulpsville","Montgomery","Out of Territory","Syracuse"]
[19444,"State of Pennsylvania",0.06,"Lafayette Hill","Montgomery","Out of Territory","Syracuse"]
[19446,"State of Pennsylvania",0.06,"Lansdale","Montgomery","Out of Territory","Syracuse"]
[19450,"State of Pennsylvania",0.06,"Lederach","Montgomery","Out of Territory","Syracuse"]
[19451,"State of Pennsylvania",0.06,"Mainland","Montgomery","Out of Territory","Syracuse"]
[19453,"State of Pennsylvania",0.06,"Mont Clare","Montgomery","Out of Territory","Syracuse"]
[19454,"State of Pennsylvania",0.06,"North Wales","Montgomery","Out of Territory","Syracuse"]
[19455,"State of Pennsylvania",0.06,"North Wales","Montgomery","Out of Territory","Syracuse"]
[19456,"State of Pennsylvania",0.06,"Oaks","Montgomery","Out of Territory","Syracuse"]
[19462,"State of Pennsylvania",0.06,"Plymouth Meeting","Montgomery","Out of Territory","Syracuse"]
[19464,"State of Pennsylvania",0.06,"Pottstown","Montgomery","Out of Territory","Syracuse"]
[19468,"State of Pennsylvania",0.06,"Royersford","Montgomery","Out of Territory","Syracuse"]
[19472,"State of Pennsylvania",0.06,"Sassamansville","Montgomery","Out of Territory","Syracuse"]
[19473,"State of Pennsylvania",0.06,"Schwenksville","Montgomery","Out of Territory","Syracuse"]
[19474,"State of Pennsylvania",0.06,"Skippack","Montgomery","Out of Territory","Syracuse"]
[19477,"State of Pennsylvania",0.06,"Spring House","Montgomery","Out of Territory","Syracuse"]
[19478,"State of Pennsylvania",0.06,"Spring Mount","Montgomery","Out of Territory","Syracuse"]
[19484,"State of Pennsylvania",0.06,"Valley Forge","Montgomery","Out of Territory","Syracuse"]
[19486,"State of Pennsylvania",0.06,"West Point","Montgomery","Out of Territory","Syracuse"]
[19490,"State of Pennsylvania",0.06,"Worcester","Montgomery","Out of Territory","Syracuse"]
[19492,"State of Pennsylvania",0.06,"Zieglerville","Montgomery","Out of Territory","Syracuse"]
[19525,"State of Pennsylvania",0.06,"Gilbertsville","Montgomery","Out of Territory","Syracuse"]
[17821,"State of Pennsylvania",0.06,"Danville","Montour","Out of Territory","Syracuse"]
[17822,"State of Pennsylvania",0.06,"Danville","Montour","Out of Territory","Syracuse"]
[17884,"State of Pennsylvania",0.06,"Washingtonville","Montour","Out of Territory","Syracuse"]
[11001,"County of Nassau",8.6249999999999993E-2,"Floral Park","Nassau","Out of Territory","Syracuse"]
[11002,"County of Nassau",8.6249999999999993E-2,"Floral Park","Nassau","Out of Territory","Syracuse"]
[11003,"County of Nassau",8.6249999999999993E-2,"Elmont","Nassau","Out of Territory","Syracuse"]
[11010,"County of Nassau",8.6249999999999993E-2,"Franklin Square","Nassau","Out of Territory","Syracuse"]
[11020,"County of Nassau",8.6249999999999993E-2,"Great Neck","Nassau","Out of Territory","Syracuse"]
[11021,"County of Nassau",8.6249999999999993E-2,"Great Neck","Nassau","Out of Territory","Syracuse"]
[11022,"County of Nassau",8.6249999999999993E-2,"Great Neck","Nassau","Out of Territory","Syracuse"]
[11023,"County of Nassau",8.6249999999999993E-2,"Great Neck","Nassau","Out of Territory","Syracuse"]
[11024,"County of Nassau",8.6249999999999993E-2,"Great Neck","Nassau","Out of Territory","Syracuse"]
[11026,"County of Nassau",8.6249999999999993E-2,"Great Neck","Nassau","Out of Territory","Syracuse"]
[11027,"County of Nassau",8.6249999999999993E-2,"Great Neck","Nassau","Out of Territory","Syracuse"]
[11030,"County of Nassau",8.6249999999999993E-2,"Manhasset","Nassau","Out of Territory","Syracuse"]
[11040,"County of Nassau",8.6249999999999993E-2,"New Hyde Park","Nassau","Out of Territory","Syracuse"]
[11042,"County of Nassau",8.6249999999999993E-2,"New Hyde Park","Nassau","Out of Territory","Syracuse"]
[11050,"County of Nassau",8.6249999999999993E-2,"Port Washington","Nassau","Out of Territory","Syracuse"]
[11051,"County of Nassau",8.6249999999999993E-2,"Port Washington","Nassau","Out of Territory","Syracuse"]
[11052,"County of Nassau",8.6249999999999993E-2,"Port Washington","Nassau","Out of Territory","Syracuse"]
[11053,"County of Nassau",8.6249999999999993E-2,"Port Washington","Nassau","Out of Territory","Syracuse"]
[11054,"County of Nassau",8.6249999999999993E-2,"Port Washington","Nassau","Out of Territory","Syracuse"]
[11055,"County of Nassau",8.6249999999999993E-2,"Port Washington","Nassau","Out of Territory","Syracuse"]
[11096,"County of Nassau",8.6249999999999993E-2,"Inwood","Nassau","Out of Territory","Syracuse"]
[11501,"County of Nassau",8.6249999999999993E-2,"Mineola","Nassau","Out of Territory","Syracuse"]
[11507,"County of Nassau",8.6249999999999993E-2,"Albertson","Nassau","Out of Territory","Syracuse"]
[11509,"County of Nassau",8.6249999999999993E-2,"Atlantic Beach","Nassau","Out of Territory","Syracuse"]
[11510,"County of Nassau",8.6249999999999993E-2,"Baldwin","Nassau","Out of Territory","Syracuse"]
[11514,"County of Nassau",8.6249999999999993E-2,"Carle Place","Nassau","Out of Territory","Syracuse"]
[11516,"County of Nassau",8.6249999999999993E-2,"Cedarhurst","Nassau","Out of Territory","Syracuse"]
[11518,"County of Nassau",8.6249999999999993E-2,"East Rockaway","Nassau","Out of Territory","Syracuse"]
[11520,"County of Nassau",8.6249999999999993E-2,"Freeport","Nassau","Out of Territory","Syracuse"]
[11530,"County of Nassau",8.6249999999999993E-2,"Garden City","Nassau","Out of Territory","Syracuse"]
[11531,"County of Nassau",8.6249999999999993E-2,"Garden City","Nassau","Out of Territory","Syracuse"]
[11542,"County of Nassau",8.6249999999999993E-2,"Glen Cove","Nassau","Out of Territory","Syracuse"]
[11545,"County of Nassau",8.6249999999999993E-2,"Glen Head","Nassau","Out of Territory","Syracuse"]
[11547,"County of Nassau",8.6249999999999993E-2,"Glenwood Landing","Nassau","Out of Territory","Syracuse"]
[11548,"County of Nassau",8.6249999999999993E-2,"Greenvale","Nassau","Out of Territory","Syracuse"]
[11549,"County of Nassau",8.6249999999999993E-2,"Hempstead","Nassau","Out of Territory","Syracuse"]
[11550,"County of Nassau",8.6249999999999993E-2,"Hempstead","Nassau","Out of Territory","Syracuse"]
[11551,"County of Nassau",8.6249999999999993E-2,"Hempstead","Nassau","Out of Territory","Syracuse"]
[11552,"County of Nassau",8.6249999999999993E-2,"West Hempstead","Nassau","Out of Territory","Syracuse"]
[11553,"County of Nassau",8.6249999999999993E-2,"Uniondale","Nassau","Out of Territory","Syracuse"]
[11554,"County of Nassau",8.6249999999999993E-2,"East Meadow","Nassau","Out of Territory","Syracuse"]
[11555,"County of Nassau",8.6249999999999993E-2,"Uniondale","Nassau","Out of Territory","Syracuse"]
[11556,"County of Nassau",8.6249999999999993E-2,"Uniondale","Nassau","Out of Territory","Syracuse"]
[11557,"County of Nassau",8.6249999999999993E-2,"Hewlett","Nassau","Out of Territory","Syracuse"]
[11558,"County of Nassau",8.6249999999999993E-2,"Island Park","Nassau","Out of Territory","Syracuse"]
[11559,"County of Nassau",8.6249999999999993E-2,"Lawrence","Nassau","Out of Territory","Syracuse"]
[11560,"County of Nassau",8.6249999999999993E-2,"Locust Valley","Nassau","Out of Territory","Syracuse"]
[11561,"County of Nassau",8.6249999999999993E-2,"Long Beach","Nassau","Out of Territory","Syracuse"]
[11563,"County of Nassau",8.6249999999999993E-2,"Lynbrook","Nassau","Out of Territory","Syracuse"]
[11565,"County of Nassau",8.6249999999999993E-2,"Malverne","Nassau","Out of Territory","Syracuse"]
[11566,"County of Nassau",8.6249999999999993E-2,"Merrick","Nassau","Out of Territory","Syracuse"]
[11568,"County of Nassau",8.6249999999999993E-2,"Old Westbury","Nassau","Out of Territory","Syracuse"]
[11569,"County of Nassau",8.6249999999999993E-2,"Point Lookout","Nassau","Out of Territory","Syracuse"]
[11570,"County of Nassau",8.6249999999999993E-2,"Rockville Centre","Nassau","Out of Territory","Syracuse"]
[11571,"County of Nassau",8.6249999999999993E-2,"Rockville Centre","Nassau","Out of Territory","Syracuse"]
[11572,"County of Nassau",8.6249999999999993E-2,"Oceanside","Nassau","Out of Territory","Syracuse"]
[11575,"County of Nassau",8.6249999999999993E-2,"Roosevelt","Nassau","Out of Territory","Syracuse"]
[11576,"County of Nassau",8.6249999999999993E-2,"Roslyn","Nassau","Out of Territory","Syracuse"]
[11577,"County of Nassau",8.6249999999999993E-2,"Roslyn Heights","Nassau","Out of Territory","Syracuse"]
[11579,"County of Nassau",8.6249999999999993E-2,"Sea Cliff","Nassau","Out of Territory","Syracuse"]
[11580,"County of Nassau",8.6249999999999993E-2,"Valley Stream","Nassau","Out of Territory","Syracuse"]
[11581,"County of Nassau",8.6249999999999993E-2,"Valley Stream","Nassau","Out of Territory","Syracuse"]
[11582,"County of Nassau",8.6249999999999993E-2,"Valley Stream","Nassau","Out of Territory","Syracuse"]
[11590,"County of Nassau",8.6249999999999993E-2,"Westbury","Nassau","Out of Territory","Syracuse"]
[11596,"County of Nassau",8.6249999999999993E-2,"Williston Park","Nassau","Out of Territory","Syracuse"]
[11598,"County of Nassau",8.6249999999999993E-2,"Woodmere","Nassau","Out of Territory","Syracuse"]
[11599,"County of Nassau",8.6249999999999993E-2,"Garden City","Nassau","Out of Territory","Syracuse"]
[11709,"County of Nassau",8.6249999999999993E-2,"Bayville","Nassau","Out of Territory","Syracuse"]
[11710,"County of Nassau",8.6249999999999993E-2,"Bellmore","Nassau","Out of Territory","Syracuse"]
[11714,"County of Nassau",8.6249999999999993E-2,"Bethpage","Nassau","Out of Territory","Syracuse"]
[11732,"County of Nassau",8.6249999999999993E-2,"East Norwich","Nassau","Out of Territory","Syracuse"]
[11735,"County of Nassau",8.6249999999999993E-2,"Farmingdale","Nassau","Out of Territory","Syracuse"]
[11737,"County of Nassau",8.6249999999999993E-2,"Farmingdale","Nassau","Out of Territory","Syracuse"]
[11753,"County of Nassau",8.6249999999999993E-2,"Jericho","Nassau","Out of Territory","Syracuse"]
[11756,"County of Nassau",8.6249999999999993E-2,"Levittown","Nassau","Out of Territory","Syracuse"]
[11758,"County of Nassau",8.6249999999999993E-2,"Massapequa","Nassau","Out of Territory","Syracuse"]
[11762,"County of Nassau",8.6249999999999993E-2,"Massapequa Park","Nassau","Out of Territory","Syracuse"]
[11765,"County of Nassau",8.6249999999999993E-2,"Mill Neck","Nassau","Out of Territory","Syracuse"]
[11771,"County of Nassau",8.6249999999999993E-2,"Oyster Bay","Nassau","Out of Territory","Syracuse"]
[11773,"County of Nassau",8.6249999999999993E-2,"Syosset","Nassau","Out of Territory","Syracuse"]
[11783,"County of Nassau",8.6249999999999993E-2,"Seaford","Nassau","Out of Territory","Syracuse"]
[11791,"County of Nassau",8.6249999999999993E-2,"Syosset","Nassau","Out of Territory","Syracuse"]
[11793,"County of Nassau",8.6249999999999993E-2,"Wantagh","Nassau","Out of Territory","Syracuse"]
[11797,"County of Nassau",8.6249999999999993E-2,"Woodbury","Nassau","Out of Territory","Syracuse"]
[11801,"County of Nassau",8.6249999999999993E-2,"Hicksville","Nassau","Out of Territory","Syracuse"]
[11802,"County of Nassau",8.6249999999999993E-2,"Hicksville","Nassau","Out of Territory","Syracuse"]
[11803,"County of Nassau",8.6249999999999993E-2,"Plainview","Nassau","Out of Territory","Syracuse"]
[11804,"County of Nassau",8.6249999999999993E-2,"Old Bethpage","Nassau","Out of Territory","Syracuse"]
[11815,"County of Nassau",8.6249999999999993E-2,"Hicksville","Nassau","Out of Territory","Syracuse"]
[11819,"County of Nassau",8.6249999999999993E-2,"Hicksville","Nassau","Out of Territory","Syracuse"]
[11853,"County of Nassau",8.6249999999999993E-2,"Jericho","Nassau","Out of Territory","Syracuse"]
[11854,"County of Nassau",8.6249999999999993E-2,"Hicksville","Nassau","Out of Territory","Syracuse"]
[10001,"New York City",8.8749999999999996E-2,"New York","New York","Out of Territory","Syracuse"]
[10002,"New York City",8.8749999999999996E-2,"New York","New York","Out of Territory","Syracuse"]
[10003,"New York City",8.8749999999999996E-2,"New York","New York","Out of Territory","Syracuse"]
[10004,"New York City",8.8749999999999996E-2,"New York","New York","Out of Territory","Syracuse"]
[10005,"New York City",8.8749999999999996E-2,"New York","New York","Out of Territory","Syracuse"]
[10006,"New York City",8.8749999999999996E-2,"New York","New York","Out of Territory","Syracuse"]
[10007,"New York City",8.8749999999999996E-2,"New York","New York","Out of Territory","Syracuse"]
[10008,"New York City",8.8749999999999996E-2,"New York","New York","Out of Territory","Syracuse"]
[10009,"New York City",8.8749999999999996E-2,"New York","New York","Out of Territory","Syracuse"]
[10010,"New York City",8.8749999999999996E-2,"New York","New York","Out of Territory","Syracuse"]
[10011,"New York City",8.8749999999999996E-2,"New York","New York","Out of Territory","Syracuse"]
[10012,"New York City",8.8749999999999996E-2,"New York","New York","Out of Territory","Syracuse"]
[10013,"New York City",8.8749999999999996E-2,"New York","New York","Out of Territory","Syracuse"]
[10014,"New York City",8.8749999999999996E-2,"New York","New York","Out of Territory","Syracuse"]
[10016,"New York City",8.8749999999999996E-2,"New York","New York","Out of Territory","Syracuse"]
[10017,"New York City",8.8749999999999996E-2,"New York","New York","Out of Territory","Syracuse"]
[10018,"New York City",8.8749999999999996E-2,"New York","New York","Out of Territory","Syracuse"]
[10019,"New York City",8.8749999999999996E-2,"New York","New York","Out of Territory","Syracuse"]
[10020,"New York City",8.8749999999999996E-2,"New York","New York","Out of Territory","Syracuse"]
[10021,"New York City",8.8749999999999996E-2,"New York","New York","Out of Territory","Syracuse"]
[10022,"New York City",8.8749999999999996E-2,"New York","New York","Out of Territory","Syracuse"]
[10023,"New York City",8.8749999999999996E-2,"New York","New York","Out of Territory","Syracuse"]
[10024,"New York City",8.8749999999999996E-2,"New York","New York","Out of Territory","Syracuse"]
[10025,"New York City",8.8749999999999996E-2,"New York","New York","Out of Territory","Syracuse"]
[10026,"New York City",8.8749999999999996E-2,"New York","New York","Out of Territory","Syracuse"]
[10027,"New York City",8.8749999999999996E-2,"New York","New York","Out of Territory","Syracuse"]
[10028,"New York City",8.8749999999999996E-2,"New York","New York","Out of Territory","Syracuse"]
[10029,"New York City",8.8749999999999996E-2,"New York","New York","Out of Territory","Syracuse"]
[10030,"New York City",8.8749999999999996E-2,"New York","New York","Out of Territory","Syracuse"]
[10031,"New York City",8.8749999999999996E-2,"New York","New York","Out of Territory","Syracuse"]
[10032,"New York City",8.8749999999999996E-2,"New York","New York","Out of Territory","Syracuse"]
[10033,"New York City",8.8749999999999996E-2,"New York","New York","Out of Territory","Syracuse"]
[10034,"New York City",8.8749999999999996E-2,"New York","New York","Out of Territory","Syracuse"]
[10035,"New York City",8.8749999999999996E-2,"New York","New York","Out of Territory","Syracuse"]
[10036,"New York City",8.8749999999999996E-2,"New York","New York","Out of Territory","Syracuse"]
[10037,"New York City",8.8749999999999996E-2,"New York","New York","Out of Territory","Syracuse"]
[10038,"New York City",8.8749999999999996E-2,"New York","New York","Out of Territory","Syracuse"]
[10039,"New York City",8.8749999999999996E-2,"New York","New York","Out of Territory","Syracuse"]
[10040,"New York City",8.8749999999999996E-2,"New York","New York","Out of Territory","Syracuse"]
[10041,"New York City",8.8749999999999996E-2,"New York","New York","Out of Territory","Syracuse"]
[10043,"New York City",8.8749999999999996E-2,"New York","New York","Out of Territory","Syracuse"]
[10044,"New York City",8.8749999999999996E-2,"New York","New York","Out of Territory","Syracuse"]
[10045,"New York City",8.8749999999999996E-2,"New York","New York","Out of Territory","Syracuse"]
[10055,"New York City",8.8749999999999996E-2,"New York","New York","Out of Territory","Syracuse"]
[10060,"New York City",8.8749999999999996E-2,"New York","New York","Out of Territory","Syracuse"]
[10065,"New York City",8.8749999999999996E-2,"New York","New York","Out of Territory","Syracuse"]
[10069,"New York City",8.8749999999999996E-2,"New York","New York","Out of Territory","Syracuse"]
[10075,"New York City",8.8749999999999996E-2,"New York","New York","Out of Territory","Syracuse"]
[10080,"New York City",8.8749999999999996E-2,"New York","New York","Out of Territory","Syracuse"]
[10081,"New York City",8.8749999999999996E-2,"New York","New York","Out of Territory","Syracuse"]
[10087,"New York City",8.8749999999999996E-2,"New York","New York","Out of Territory","Syracuse"]
[10090,"New York City",8.8749999999999996E-2,"New York","New York","Out of Territory","Syracuse"]
[10101,"New York City",8.8749999999999996E-2,"New York","New York","Out of Territory","Syracuse"]
[10102,"New York City",8.8749999999999996E-2,"New York","New York","Out of Territory","Syracuse"]
[10103,"New York City",8.8749999999999996E-2,"New York","New York","Out of Territory","Syracuse"]
[10104,"New York City",8.8749999999999996E-2,"New York","New York","Out of Territory","Syracuse"]
[10105,"New York City",8.8749999999999996E-2,"New York","New York","Out of Territory","Syracuse"]
[10106,"New York City",8.8749999999999996E-2,"New York","New York","Out of Territory","Syracuse"]
[10107,"New York City",8.8749999999999996E-2,"New York","New York","Out of Territory","Syracuse"]
[10108,"New York City",8.8749999999999996E-2,"New York","New York","Out of Territory","Syracuse"]
[10109,"New York City",8.8749999999999996E-2,"New York","New York","Out of Territory","Syracuse"]
[10110,"New York City",8.8749999999999996E-2,"New York","New York","Out of Territory","Syracuse"]
[10111,"New York City",8.8749999999999996E-2,"New York","New York","Out of Territory","Syracuse"]
[10112,"New York City",8.8749999999999996E-2,"New York","New York","Out of Territory","Syracuse"]
[10113,"New York City",8.8749999999999996E-2,"New York","New York","Out of Territory","Syracuse"]
[10114,"New York City",8.8749999999999996E-2,"New York","New York","Out of Territory","Syracuse"]
[10115,"New York City",8.8749999999999996E-2,"New York","New York","Out of Territory","Syracuse"]
[10116,"New York City",8.8749999999999996E-2,"New York","New York","Out of Territory","Syracuse"]
[10117,"New York City",8.8749999999999996E-2,"New York","New York","Out of Territory","Syracuse"]
[10118,"New York City",8.8749999999999996E-2,"New York","New York","Out of Territory","Syracuse"]
[10119,"New York City",8.8749999999999996E-2,"New York","New York","Out of Territory","Syracuse"]
[10120,"New York City",8.8749999999999996E-2,"New York","New York","Out of Territory","Syracuse"]
[10121,"New York City",8.8749999999999996E-2,"New York","New York","Out of Territory","Syracuse"]
[10122,"New York City",8.8749999999999996E-2,"New York","New York","Out of Territory","Syracuse"]
[10123,"New York City",8.8749999999999996E-2,"New York","New York","Out of Territory","Syracuse"]
[10124,"New York City",8.8749999999999996E-2,"New York","New York","Out of Territory","Syracuse"]
[10125,"New York City",8.8749999999999996E-2,"New York","New York","Out of Territory","Syracuse"]
[10126,"New York City",8.8749999999999996E-2,"New York","New York","Out of Territory","Syracuse"]
[10128,"New York City",8.8749999999999996E-2,"New York","New York","Out of Territory","Syracuse"]
[10129,"New York City",8.8749999999999996E-2,"New York","New York","Out of Territory","Syracuse"]
[10130,"New York City",8.8749999999999996E-2,"New York","New York","Out of Territory","Syracuse"]
[10131,"New York City",8.8749999999999996E-2,"New York","New York","Out of Territory","Syracuse"]
[10132,"New York City",8.8749999999999996E-2,"New York","New York","Out of Territory","Syracuse"]
[10133,"New York City",8.8749999999999996E-2,"New York","New York","Out of Territory","Syracuse"]
[10138,"New York City",8.8749999999999996E-2,"New York","New York","Out of Territory","Syracuse"]
[10150,"New York City",8.8749999999999996E-2,"New York","New York","Out of Territory","Syracuse"]
[10151,"New York City",8.8749999999999996E-2,"New York","New York","Out of Territory","Syracuse"]
[10152,"New York City",8.8749999999999996E-2,"New York","New York","Out of Territory","Syracuse"]
[10153,"New York City",8.8749999999999996E-2,"New York","New York","Out of Territory","Syracuse"]
[10154,"New York City",8.8749999999999996E-2,"New York","New York","Out of Territory","Syracuse"]
[10155,"New York City",8.8749999999999996E-2,"New York","New York","Out of Territory","Syracuse"]
[10156,"New York City",8.8749999999999996E-2,"New York","New York","Out of Territory","Syracuse"]
[10157,"New York City",8.8749999999999996E-2,"New York","New York","Out of Territory","Syracuse"]
[10158,"New York City",8.8749999999999996E-2,"New York","New York","Out of Territory","Syracuse"]
[10159,"New York City",8.8749999999999996E-2,"New York","New York","Out of Territory","Syracuse"]
[10160,"New York City",8.8749999999999996E-2,"New York","New York","Out of Territory","Syracuse"]
[10161,"New York City",8.8749999999999996E-2,"New York","New York","Out of Territory","Syracuse"]
[10162,"New York City",8.8749999999999996E-2,"New York","New York","Out of Territory","Syracuse"]
[10163,"New York City",8.8749999999999996E-2,"New York","New York","Out of Territory","Syracuse"]
[10164,"New York City",8.8749999999999996E-2,"New York","New York","Out of Territory","Syracuse"]
[10165,"New York City",8.8749999999999996E-2,"New York","New York","Out of Territory","Syracuse"]
[10166,"New York City",8.8749999999999996E-2,"New York","New York","Out of Territory","Syracuse"]
[10167,"New York City",8.8749999999999996E-2,"New York","New York","Out of Territory","Syracuse"]
[10168,"New York City",8.8749999999999996E-2,"New York","New York","Out of Territory","Syracuse"]
[10169,"New York City",8.8749999999999996E-2,"New York","New York","Out of Territory","Syracuse"]
[10170,"New York City",8.8749999999999996E-2,"New York","New York","Out of Territory","Syracuse"]
[10171,"New York City",8.8749999999999996E-2,"New York","New York","Out of Territory","Syracuse"]
[10172,"New York City",8.8749999999999996E-2,"New York","New York","Out of Territory","Syracuse"]
[10173,"New York City",8.8749999999999996E-2,"New York","New York","Out of Territory","Syracuse"]
[10174,"New York City",8.8749999999999996E-2,"New York","New York","Out of Territory","Syracuse"]
[10175,"New York City",8.8749999999999996E-2,"New York","New York","Out of Territory","Syracuse"]
[10176,"New York City",8.8749999999999996E-2,"New York","New York","Out of Territory","Syracuse"]
[10177,"New York City",8.8749999999999996E-2,"New York","New York","Out of Territory","Syracuse"]
[10178,"New York City",8.8749999999999996E-2,"New York","New York","Out of Territory","Syracuse"]
[10179,"New York City",8.8749999999999996E-2,"New York","New York","Out of Territory","Syracuse"]
[10185,"New York City",8.8749999999999996E-2,"New York","New York","Out of Territory","Syracuse"]
[10199,"New York City",8.8749999999999996E-2,"New York","New York","Out of Territory","Syracuse"]
[10203,"New York City",8.8749999999999996E-2,"New York","New York","Out of Territory","Syracuse"]
[10211,"New York City",8.8749999999999996E-2,"New York","New York","Out of Territory","Syracuse"]
[10212,"New York City",8.8749999999999996E-2,"New York","New York","Out of Territory","Syracuse"]
[10213,"New York City",8.8749999999999996E-2,"New York","New York","Out of Territory","Syracuse"]
[10242,"New York City",8.8749999999999996E-2,"New York","New York","Out of Territory","Syracuse"]
[10249,"New York City",8.8749999999999996E-2,"New York","New York","Out of Territory","Syracuse"]
[10256,"New York City",8.8749999999999996E-2,"New York","New York","Out of Territory","Syracuse"]
[10257,"New York City",8.8749999999999996E-2,"New York","New York","Out of Territory","Syracuse"]
[10258,"New York City",8.8749999999999996E-2,"New York","New York","Out of Territory","Syracuse"]
[10259,"New York City",8.8749999999999996E-2,"New York","New York","Out of Territory","Syracuse"]
[10260,"New York City",8.8749999999999996E-2,"New York","New York","Out of Territory","Syracuse"]
[10261,"New York City",8.8749999999999996E-2,"New York","New York","Out of Territory","Syracuse"]
[10265,"New York City",8.8749999999999996E-2,"New York","New York","Out of Territory","Syracuse"]
[10268,"New York City",8.8749999999999996E-2,"New York","New York","Out of Territory","Syracuse"]
[10269,"New York City",8.8749999999999996E-2,"New York","New York","Out of Territory","Syracuse"]
[10270,"New York City",8.8749999999999996E-2,"New York","New York","Out of Territory","Syracuse"]
[10271,"New York City",8.8749999999999996E-2,"New York","New York","Out of Territory","Syracuse"]
[10272,"New York City",8.8749999999999996E-2,"New York","New York","Out of Territory","Syracuse"]
[10273,"New York City",8.8749999999999996E-2,"New York","New York","Out of Territory","Syracuse"]
[10274,"New York City",8.8749999999999996E-2,"New York","New York","Out of Territory","Syracuse"]
[10275,"New York City",8.8749999999999996E-2,"New York","New York","Out of Territory","Syracuse"]
[10276,"New York City",8.8749999999999996E-2,"New York","New York","Out of Territory","Syracuse"]
[10277,"New York City",8.8749999999999996E-2,"New York","New York","Out of Territory","Syracuse"]
[10278,"New York City",8.8749999999999996E-2,"New York","New York","Out of Territory","Syracuse"]
[10279,"New York City",8.8749999999999996E-2,"New York","New York","Out of Territory","Syracuse"]
[10280,"New York City",8.8749999999999996E-2,"New York","New York","Out of Territory","Syracuse"]
[10281,"New York City",8.8749999999999996E-2,"New York","New York","Out of Territory","Syracuse"]
[10282,"New York City",8.8749999999999996E-2,"New York","New York","Out of Territory","Syracuse"]
[10285,"New York City",8.8749999999999996E-2,"New York","New York","Out of Territory","Syracuse"]
[10286,"New York City",8.8749999999999996E-2,"New York","New York","Out of Territory","Syracuse"]
[10292,"New York City",8.8749999999999996E-2,"New York","New York","Out of Territory","Syracuse"]
[14008,"County of Niagara",0.08,"Appleton","Niagara","Western","Buffalo"]
[14012,"County of Niagara",0.08,"Barker","Niagara","Western","Buffalo"]
[14028,"County of Niagara",0.08,"Burt","Niagara","Western","Buffalo"]
[14067,"County of Niagara",0.08,"Gasport","Niagara","Western","Buffalo"]
[14092,"County of Niagara",0.08,"Lewiston","Niagara","Western","Buffalo"]
[14094,"County of Niagara",0.08,"Lockport","Niagara","Western","Buffalo"]
[14095,"County of Niagara",0.08,"Lockport","Niagara","Western","Buffalo"]
[14105,"County of Niagara",0.08,"Middleport","Niagara","Western","Buffalo"]
[14107,"County of Niagara",0.08,"Model City","Niagara","Western","Buffalo"]
[14108,"County of Niagara",0.08,"Newfane","Niagara","Western","Buffalo"]
[14109,"County of Niagara",0.08,"Niagara University","Niagara","Western","Buffalo"]
[14120,"County of Niagara",0.08,"North Tonawanda","Niagara","Western","Buffalo"]
[14126,"County of Niagara",0.08,"Olcott","Niagara","Western","Buffalo"]
[14131,"County of Niagara",0.08,"Ransomville","Niagara","Western","Buffalo"]
[14132,"County of Niagara",0.08,"Sanborn","Niagara","Western","Buffalo"]
[14144,"County of Niagara",0.08,"Stella Niagara","Niagara","Western","Buffalo"]
[14172,"County of Niagara",0.08,"Wilson","Niagara","Western","Buffalo"]
[14174,"County of Niagara",0.08,"Youngstown","Niagara","Western","Buffalo"]
[14301,"County of Niagara",0.08,"Niagara Falls","Niagara","Western","Buffalo"]
[14302,"County of Niagara",0.08,"Niagara Falls","Niagara","Western","Buffalo"]
[14303,"County of Niagara",0.08,"Niagara Falls","Niagara","Western","Buffalo"]
[14304,"County of Niagara",0.08,"Niagara Falls","Niagara","Western","Buffalo"]
[14305,"County of Niagara",0.08,"Niagara Falls","Niagara","Western","Buffalo"]
[18001,"State of Pennsylvania",0.06,"Lehigh Valley","Northampton","Out of Territory","Syracuse"]
[18002,"State of Pennsylvania",0.06,"Lehigh Valley","Northampton","Out of Territory","Syracuse"]
[18003,"State of Pennsylvania",0.06,"Lehigh Valley","Northampton","Out of Territory","Syracuse"]
[18018,"State of Pennsylvania",0.06,"Bethlehem","Northampton","Out of Territory","Syracuse"]
[18013,"State of Pennsylvania",0.06,"Bangor","Northampton","Out of Territory","Syracuse"]
[18014,"State of Pennsylvania",0.06,"Bath","Northampton","Out of Territory","Syracuse"]
[18015,"State of Pennsylvania",0.06,"Bethlehem","Northampton","Out of Territory","Syracuse"]
[18016,"State of Pennsylvania",0.06,"Bethlehem","Northampton","Out of Territory","Syracuse"]
[18017,"State of Pennsylvania",0.06,"Bethlehem","Northampton","Out of Territory","Syracuse"]
[18020,"State of Pennsylvania",0.06,"Bethlehem","Northampton","Out of Territory","Syracuse"]
[18035,"State of Pennsylvania",0.06,"Cherryville","Northampton","Out of Territory","Syracuse"]
[18038,"State of Pennsylvania",0.06,"Danielsville","Northampton","Out of Territory","Syracuse"]
[18040,"State of Pennsylvania",0.06,"Easton","Northampton","Out of Territory","Syracuse"]
[18042,"State of Pennsylvania",0.06,"Easton","Northampton","Out of Territory","Syracuse"]
[18043,"State of Pennsylvania",0.06,"Easton","Northampton","Out of Territory","Syracuse"]
[18044,"State of Pennsylvania",0.06,"Easton","Northampton","Out of Territory","Syracuse"]
[18045,"State of Pennsylvania",0.06,"Easton","Northampton","Out of Territory","Syracuse"]
[18055,"State of Pennsylvania",0.06,"Hellertown","Northampton","Out of Territory","Syracuse"]
[18063,"State of Pennsylvania",0.06,"Martins Creek","Northampton","Out of Territory","Syracuse"]
[18064,"State of Pennsylvania",0.06,"Nazareth","Northampton","Out of Territory","Syracuse"]
[18067,"State of Pennsylvania",0.06,"Northampton","Northampton","Out of Territory","Syracuse"]
[18072,"State of Pennsylvania",0.06,"Pen Argyl","Northampton","Out of Territory","Syracuse"]
[18083,"State of Pennsylvania",0.06,"Stockertown","Northampton","Out of Territory","Syracuse"]
[18085,"State of Pennsylvania",0.06,"Tatamy","Northampton","Out of Territory","Syracuse"]
[18086,"State of Pennsylvania",0.06,"Treichlers","Northampton","Out of Territory","Syracuse"]
[18088,"State of Pennsylvania",0.06,"Walnutport","Northampton","Out of Territory","Syracuse"]
[18091,"State of Pennsylvania",0.06,"Wind Gap","Northampton","Out of Territory","Syracuse"]
[18343,"State of Pennsylvania",0.06,"Mount Bethel","Northampton","Out of Territory","Syracuse"]
[18351,"State of Pennsylvania",0.06,"Portland","Northampton","Out of Territory","Syracuse"]
[17017,"State of Pennsylvania",0.06,"Dalmatia","Northumberland","Out of Territory","Syracuse"]
[17730,"State of Pennsylvania",0.06,"Dewart","Northumberland","Out of Territory","Syracuse"]
[17749,"State of Pennsylvania",0.06,"Mc Ewensville","Northumberland","Out of Territory","Syracuse"]
[17772,"State of Pennsylvania",0.06,"Turbotville","Northumberland","Out of Territory","Syracuse"]
[17777,"State of Pennsylvania",0.06,"Watsontown","Northumberland","Out of Territory","Syracuse"]
[17801,"State of Pennsylvania",0.06,"Sunbury","Northumberland","Out of Territory","Syracuse"]
[17823,"State of Pennsylvania",0.06,"Dornsife","Northumberland","Out of Territory","Syracuse"]
[17824,"State of Pennsylvania",0.06,"Elysburg","Northumberland","Out of Territory","Syracuse"]
[17830,"State of Pennsylvania",0.06,"Herndon","Northumberland","Out of Territory","Syracuse"]
[17832,"State of Pennsylvania",0.06,"Marion Heights","Northumberland","Out of Territory","Syracuse"]
[17834,"State of Pennsylvania",0.06,"Kulpmont","Northumberland","Out of Territory","Syracuse"]
[17836,"State of Pennsylvania",0.06,"Leck Kill","Northumberland","Out of Territory","Syracuse"]
[17840,"State of Pennsylvania",0.06,"Locust Gap","Northumberland","Out of Territory","Syracuse"]
[17847,"State of Pennsylvania",0.06,"Milton","Northumberland","Out of Territory","Syracuse"]
[17850,"State of Pennsylvania",0.06,"Montandon","Northumberland","Out of Territory","Syracuse"]
[17851,"State of Pennsylvania",0.06,"Mount Carmel","Northumberland","Out of Territory","Syracuse"]
[17857,"State of Pennsylvania",0.06,"Northumberland","Northumberland","Out of Territory","Syracuse"]
[17860,"State of Pennsylvania",0.06,"Paxinos","Northumberland","Out of Territory","Syracuse"]
[17865,"State of Pennsylvania",0.06,"Potts Grove","Northumberland","Out of Territory","Syracuse"]
[17866,"State of Pennsylvania",0.06,"Coal Township","Northumberland","Out of Territory","Syracuse"]
[17867,"State of Pennsylvania",0.06,"Rebuck","Northumberland","Out of Territory","Syracuse"]
[17868,"State of Pennsylvania",0.06,"Riverside","Northumberland","Out of Territory","Syracuse"]
[17872,"State of Pennsylvania",0.06,"Shamokin","Northumberland","Out of Territory","Syracuse"]
[17877,"State of Pennsylvania",0.06,"Snydertown","Northumberland","Out of Territory","Syracuse"]
[17881,"State of Pennsylvania",0.06,"Trevorton","Northumberland","Out of Territory","Syracuse"]
[13440,"City of Rome",8.7499999999999994E-2,"Rome","Oneida","Central","Utica"]
[13441,"City of Rome",8.7499999999999994E-2,"Rome","Oneida","Central","Utica"]
[13442,"City of Rome",8.7499999999999994E-2,"Rome","Oneida","Central","Utica"]
[13449,"City of Rome",8.7499999999999994E-2,"Rome","Oneida","Central","Utica"]
[13501,"City of Utica",8.7499999999999994E-2,"Utica","Oneida","Central","Utica"]
[13502,"City of Utica",8.7499999999999994E-2,"Utica","Oneida","Central","Utica"]
[13503,"City of Utica",8.7499999999999994E-2,"Utica","Oneida","Central","Utica"]
[13504,"City of Utica",8.7499999999999994E-2,"Utica","Oneida","Central","Utica"]
[13505,"City of Utica",8.7499999999999994E-2,"Utica","Oneida","Central","Utica"]
[13599,"City of Utica",8.7499999999999994E-2,"Utica","Oneida","Central","Utica"]
[13054,"County of Oneida",8.7499999999999994E-2,"Durhamville","Oneida","Central","Utica"]
[13123,"County of Oneida",8.7499999999999994E-2,"North Bay","Oneida","Central","Utica"]
[13157,"County of Oneida",8.7499999999999994E-2,"Sylvan Beach","Oneida","Central","Utica"]
[13162,"County of Oneida",8.7499999999999994E-2,"Verona Beach","Oneida","Central","Utica"]
[13301,"County of Oneida",8.7499999999999994E-2,"Alder Creek","Oneida","Central","Utica"]
[13303,"County of Oneida",8.7499999999999994E-2,"Ava","Oneida","Central","Utica"]
[13304,"County of Oneida",8.7499999999999994E-2,"Barneveld","Oneida","Central","Utica"]
[13308,"County of Oneida",8.7499999999999994E-2,"Blossvale","Oneida","Central","Utica"]
[13309,"County of Oneida",8.7499999999999994E-2,"Boonville","Oneida","Central","Utica"]
[13313,"County of Oneida",8.7499999999999994E-2,"Bridgewater","Oneida","Central","Utica"]
[13316,"County of Oneida",8.7499999999999994E-2,"Camden","Oneida","Central","Utica"]
[13318,"County of Oneida",8.7499999999999994E-2,"Cassville","Oneida","Central","Utica"]
[13319,"County of Oneida",8.7499999999999994E-2,"Chadwicks","Oneida","Central","Utica"]
[13321,"County of Oneida",8.7499999999999994E-2,"Clark Mills","Oneida","Central","Utica"]
[13322,"County of Oneida",8.7499999999999994E-2,"Clayville","Oneida","Central","Utica"]
[13323,"County of Oneida",8.7499999999999994E-2,"Clinton","Oneida","Central","Utica"]
[13328,"County of Oneida",8.7499999999999994E-2,"Deansboro","Oneida","Central","Utica"]
[13338,"County of Oneida",8.7499999999999994E-2,"Forestport","Oneida","Central","Utica"]
[13341,"County of Oneida",8.7499999999999994E-2,"Franklin Springs","Oneida","Central","Utica"]
[13352,"County of Oneida",8.7499999999999994E-2,"Hinckley","Oneida","Central","Utica"]
[13354,"County of Oneida",8.7499999999999994E-2,"Holland Patent","Oneida","Central","Utica"]
[13362,"County of Oneida",8.7499999999999994E-2,"Knoxboro","Oneida","Central","Utica"]
[13363,"County of Oneida",8.7499999999999994E-2,"Lee Center","Oneida","Central","Utica"]
[13401,"County of Oneida",8.7499999999999994E-2,"Mc Connellsville","Oneida","Central","Utica"]
[13403,"County of Oneida",8.7499999999999994E-2,"Marcy","Oneida","Central","Utica"]
[13413,"County of Oneida",8.7499999999999994E-2,"New Hartford","Oneida","Central","Utica"]
[13417,"County of Oneida",8.7499999999999994E-2,"New York Mills","Oneida","Central","Utica"]
[13424,"County of Oneida",8.7499999999999994E-2,"Oriskany","Oneida","Central","Utica"]
[13425,"County of Oneida",8.7499999999999994E-2,"Oriskany Falls","Oneida","Central","Utica"]
[13435,"County of Oneida",8.7499999999999994E-2,"Prospect","Oneida","Central","Utica"]
[13438,"County of Oneida",8.7499999999999994E-2,"Remsen","Oneida","Central","Utica"]
[13455,"County of Oneida",8.7499999999999994E-2,"Sangerfield","Oneida","Central","Utica"]
[13456,"County of Oneida",8.7499999999999994E-2,"Sauquoit","Oneida","Central","Utica"]
[13461,"County of Oneida",8.7499999999999994E-2,"Sherrill","Oneida","Central","Utica"]
[13469,"County of Oneida",8.7499999999999994E-2,"Stittville","Oneida","Central","Utica"]
[13471,"County of Oneida",8.7499999999999994E-2,"Taberg","Oneida","Central","Utica"]
[13476,"County of Oneida",8.7499999999999994E-2,"Vernon","Oneida","Central","Utica"]
[13477,"County of Oneida",8.7499999999999994E-2,"Vernon Center","Oneida","Central","Utica"]
[13478,"County of Oneida",8.7499999999999994E-2,"Verona","Oneida","Central","Utica"]
[13479,"County of Oneida",8.7499999999999994E-2,"Washington Mills","Oneida","Central","Utica"]
[13480,"County of Oneida",8.7499999999999994E-2,"Waterville","Oneida","Central","Utica"]
[13483,"County of Oneida",8.7499999999999994E-2,"Westdale","Oneida","Central","Utica"]
[13486,"County of Oneida",8.7499999999999994E-2,"Westernville","Oneida","Central","Utica"]
[13490,"County of Oneida",8.7499999999999994E-2,"Westmoreland","Oneida","Central","Utica"]
[13492,"County of Oneida",8.7499999999999994E-2,"Whitesboro","Oneida","Central","Utica"]
[13494,"County of Oneida",8.7499999999999994E-2,"Woodgate","Oneida","Central","Utica"]
[13495,"County of Oneida",8.7499999999999994E-2,"Yorkville","Oneida","Central","Utica"]
[13030,"County of Onondaga",0.08,"Bridgeport","Onondaga","Central","Syracuse"]
[13082,"County of Onondaga",0.08,"Kirkville","Onondaga","Central","Syracuse"]
[13020,"County of Onondaga",0.08,"Apulia Station","Onondaga","Central","Syracuse"]
[13027,"County of Onondaga",0.08,"Baldwinsville","Onondaga","Central","Syracuse"]
[13029,"County of Onondaga",0.08,"Brewerton","Onondaga","Central","Syracuse"]
[13031,"County of Onondaga",0.08,"Camillus","Onondaga","Central","Syracuse"]
[13039,"County of Onondaga",0.08,"Cicero","Onondaga","Central","Syracuse"]
[13041,"County of Onondaga",0.08,"Clay","Onondaga","Central","Syracuse"]
[13051,"County of Onondaga",0.08,"Delphi Falls","Onondaga","Central","Syracuse"]
[13057,"County of Onondaga",0.08,"East Syracuse","Onondaga","Central","Syracuse"]
[13060,"County of Onondaga",0.08,"Elbridge","Onondaga","Central","Syracuse"]
[13063,"County of Onondaga",0.08,"Fabius","Onondaga","Central","Syracuse"]
[13066,"County of Onondaga",0.08,"Fayetteville","Onondaga","Central","Syracuse"]
[13078,"County of Onondaga",0.08,"Jamesville","Onondaga","Central","Syracuse"]
[13080,"County of Onondaga",0.08,"Jordan","Onondaga","Central","Syracuse"]
[13084,"County of Onondaga",0.08,"La Fayette","Onondaga","Central","Syracuse"]
[13088,"County of Onondaga",0.08,"Liverpool","Onondaga","Central","Syracuse"]
[13089,"County of Onondaga",0.08,"Liverpool","Onondaga","Central","Syracuse"]
[13090,"County of Onondaga",0.08,"Liverpool","Onondaga","Central","Syracuse"]
[13104,"County of Onondaga",0.08,"Manlius","Onondaga","Central","Syracuse"]
[13108,"County of Onondaga",0.08,"Marcellus","Onondaga","Central","Syracuse"]
[13110,"County of Onondaga",0.08,"Marietta","Onondaga","Central","Syracuse"]
[13112,"County of Onondaga",0.08,"Memphis","Onondaga","Central","Syracuse"]
[13116,"County of Onondaga",0.08,"Minoa","Onondaga","Central","Syracuse"]
[13119,"County of Onondaga",0.08,"Mottville","Onondaga","Central","Syracuse"]
[13120,"County of Onondaga",0.08,"Nedrow","Onondaga","Central","Syracuse"]
[13137,"County of Onondaga",0.08,"Plainville","Onondaga","Central","Syracuse"]
[13138,"County of Onondaga",0.08,"Pompey","Onondaga","Central","Syracuse"]
[13152,"County of Onondaga",0.08,"Skaneateles","Onondaga","Central","Syracuse"]
[13153,"County of Onondaga",0.08,"Skaneateles Falls","Onondaga","Central","Syracuse"]
[13159,"County of Onondaga",0.08,"Tully","Onondaga","Central","Syracuse"]
[13164,"County of Onondaga",0.08,"Warners","Onondaga","Central","Syracuse"]
[13201,"County of Onondaga",0.08,"Syracuse","Onondaga","Central","Syracuse"]
[13202,"County of Onondaga",0.08,"Syracuse","Onondaga","Central","Syracuse"]
[13203,"County of Onondaga",0.08,"Syracuse","Onondaga","Central","Syracuse"]
[13204,"County of Onondaga",0.08,"Syracuse","Onondaga","Central","Syracuse"]
[13205,"County of Onondaga",0.08,"Syracuse","Onondaga","Central","Syracuse"]
[13206,"County of Onondaga",0.08,"Syracuse","Onondaga","Central","Syracuse"]
[13207,"County of Onondaga",0.08,"Syracuse","Onondaga","Central","Syracuse"]
[13208,"County of Onondaga",0.08,"Syracuse","Onondaga","Central","Syracuse"]
[13209,"County of Onondaga",0.08,"Syracuse","Onondaga","Central","Syracuse"]
[13210,"County of Onondaga",0.08,"Syracuse","Onondaga","Central","Syracuse"]
[13211,"County of Onondaga",0.08,"Syracuse","Onondaga","Central","Syracuse"]
[13212,"County of Onondaga",0.08,"Syracuse","Onondaga","Central","Syracuse"]
[13214,"County of Onondaga",0.08,"Syracuse","Onondaga","Central","Syracuse"]
[13215,"County of Onondaga",0.08,"Syracuse","Onondaga","Central","Syracuse"]
[13217,"County of Onondaga",0.08,"Syracuse","Onondaga","Central","Syracuse"]
[13218,"County of Onondaga",0.08,"Syracuse","Onondaga","Central","Syracuse"]
[13219,"County of Onondaga",0.08,"Syracuse","Onondaga","Central","Syracuse"]
[13220,"County of Onondaga",0.08,"Syracuse","Onondaga","Central","Syracuse"]
[13221,"County of Onondaga",0.08,"Syracuse","Onondaga","Central","Syracuse"]
[13224,"County of Onondaga",0.08,"Syracuse","Onondaga","Central","Syracuse"]
[13225,"County of Onondaga",0.08,"Syracuse","Onondaga","Central","Syracuse"]
[13235,"County of Onondaga",0.08,"Syracuse","Onondaga","Central","Syracuse"]
[13244,"County of Onondaga",0.08,"Syracuse","Onondaga","Central","Syracuse"]
[13250,"County of Onondaga",0.08,"Syracuse","Onondaga","Central","Syracuse"]
[13251,"County of Onondaga",0.08,"Syracuse","Onondaga","Central","Syracuse"]
[13252,"County of Onondaga",0.08,"Syracuse","Onondaga","Central","Syracuse"]
[13261,"County of Onondaga",0.08,"Syracuse","Onondaga","Central","Syracuse"]
[13290,"County of Onondaga",0.08,"Syracuse","Onondaga","Central","Syracuse"]
[14424,"County of Ontario",7.4999999999999997E-2,"Canandaigua","Ontario","Western","Rochester"]
[14425,"County of Ontario",7.4999999999999997E-2,"Farmington","Ontario","Western","Rochester"]
[14432,"County of Ontario",7.4999999999999997E-2,"Clifton Springs","Ontario","Western","Rochester"]
[14443,"County of Ontario",7.4999999999999997E-2,"East Bloomfield","Ontario","Western","Rochester"]
[14453,"County of Ontario",7.4999999999999997E-2,"Fishers","Ontario","Western","Rochester"]
[14456,"County of Ontario",7.4999999999999997E-2,"Geneva","Ontario","Western","Rochester"]
[14461,"County of Ontario",7.4999999999999997E-2,"Gorham","Ontario","Western","Rochester"]
[14463,"County of Ontario",7.4999999999999997E-2,"Hall","Ontario","Western","Rochester"]
[14469,"County of Ontario",7.4999999999999997E-2,"Bloomfield","Ontario","Western","Rochester"]
[14471,"County of Ontario",7.4999999999999997E-2,"Honeoye","Ontario","Western","Rochester"]
[14475,"County of Ontario",7.4999999999999997E-2,"Ionia","Ontario","Western","Rochester"]
[14504,"County of Ontario",7.4999999999999997E-2,"Manchester","Ontario","Western","Rochester"]
[14512,"County of Ontario",7.4999999999999997E-2,"Naples","Ontario","Western","Rochester"]
[14518,"County of Ontario",7.4999999999999997E-2,"Oaks Corners","Ontario","Western","Rochester"]
[14532,"County of Ontario",7.4999999999999997E-2,"Phelps","Ontario","Western","Rochester"]
[14537,"County of Ontario",7.4999999999999997E-2,"Port Gibson","Ontario","Western","Rochester"]
[14547,"County of Ontario",7.4999999999999997E-2,"Seneca Castle","Ontario","Western","Rochester"]
[14548,"County of Ontario",7.4999999999999997E-2,"Shortsville","Ontario","Western","Rochester"]
[14561,"County of Ontario",7.4999999999999997E-2,"Stanley","Ontario","Western","Rochester"]
[14564,"County of Ontario",7.4999999999999997E-2,"Victor","Ontario","Western","Rochester"]
[14585,"County of Ontario",7.4999999999999997E-2,"West Bloomfield","Ontario","Western","Rochester"]
[10910,"County of Orange",8.1250000000000003E-2,"Arden","Orange","Out of Territory","Syracuse"]
[10912,"County of Orange",8.1250000000000003E-2,"Bellvale","Orange","Out of Territory","Syracuse"]
[10914,"County of Orange",8.1250000000000003E-2,"Blooming Grove","Orange","Out of Territory","Syracuse"]
[10915,"County of Orange",8.1250000000000003E-2,"Bullville","Orange","Out of Territory","Syracuse"]
[10916,"County of Orange",8.1250000000000003E-2,"Campbell Hall","Orange","Out of Territory","Syracuse"]
[10917,"County of Orange",8.1250000000000003E-2,"Central Valley","Orange","Out of Territory","Syracuse"]
[10918,"County of Orange",8.1250000000000003E-2,"Chester","Orange","Out of Territory","Syracuse"]
[10919,"County of Orange",8.1250000000000003E-2,"Circleville","Orange","Out of Territory","Syracuse"]
[10921,"County of Orange",8.1250000000000003E-2,"Florida","Orange","Out of Territory","Syracuse"]
[10922,"County of Orange",8.1250000000000003E-2,"Fort Montgomery","Orange","Out of Territory","Syracuse"]
[10924,"County of Orange",8.1250000000000003E-2,"Goshen","Orange","Out of Territory","Syracuse"]
[10925,"County of Orange",8.1250000000000003E-2,"Greenwood Lake","Orange","Out of Territory","Syracuse"]
[10926,"County of Orange",8.1250000000000003E-2,"Harriman","Orange","Out of Territory","Syracuse"]
[10928,"County of Orange",8.1250000000000003E-2,"Highland Falls","Orange","Out of Territory","Syracuse"]
[10930,"County of Orange",8.1250000000000003E-2,"Highland Mills","Orange","Out of Territory","Syracuse"]
[10932,"County of Orange",8.1250000000000003E-2,"Howells","Orange","Out of Territory","Syracuse"]
[10933,"County of Orange",8.1250000000000003E-2,"Johnson","Orange","Out of Territory","Syracuse"]
[10940,"County of Orange",8.1250000000000003E-2,"Middletown","Orange","Out of Territory","Syracuse"]
[10941,"County of Orange",8.1250000000000003E-2,"Middletown","Orange","Out of Territory","Syracuse"]
[10949,"County of Orange",8.1250000000000003E-2,"Monroe","Orange","Out of Territory","Syracuse"]
[10950,"County of Orange",8.1250000000000003E-2,"Monroe","Orange","Out of Territory","Syracuse"]
[10953,"County of Orange",8.1250000000000003E-2,"Mountainville","Orange","Out of Territory","Syracuse"]
[10958,"County of Orange",8.1250000000000003E-2,"New Hampton","Orange","Out of Territory","Syracuse"]
[10959,"County of Orange",8.1250000000000003E-2,"New Milford","Orange","Out of Territory","Syracuse"]
[10963,"County of Orange",8.1250000000000003E-2,"Otisville","Orange","Out of Territory","Syracuse"]
[10969,"County of Orange",8.1250000000000003E-2,"Pine Island","Orange","Out of Territory","Syracuse"]
[10973,"County of Orange",8.1250000000000003E-2,"Slate Hill","Orange","Out of Territory","Syracuse"]
[10975,"County of Orange",8.1250000000000003E-2,"Southfields","Orange","Out of Territory","Syracuse"]
[10979,"County of Orange",8.1250000000000003E-2,"Sterling Forest","Orange","Out of Territory","Syracuse"]
[10981,"County of Orange",8.1250000000000003E-2,"Sugar Loaf","Orange","Out of Territory","Syracuse"]
[10985,"County of Orange",8.1250000000000003E-2,"Thompson Ridge","Orange","Out of Territory","Syracuse"]
[10987,"County of Orange",8.1250000000000003E-2,"Tuxedo Park","Orange","Out of Territory","Syracuse"]
[10988,"County of Orange",8.1250000000000003E-2,"Unionville","Orange","Out of Territory","Syracuse"]
[10990,"County of Orange",8.1250000000000003E-2,"Warwick","Orange","Out of Territory","Syracuse"]
[10992,"County of Orange",8.1250000000000003E-2,"Washingtonville","Orange","Out of Territory","Syracuse"]
[10996,"County of Orange",8.1250000000000003E-2,"West Point","Orange","Out of Territory","Syracuse"]
[10997,"County of Orange",8.1250000000000003E-2,"West Point","Orange","Out of Territory","Syracuse"]
[10998,"County of Orange",8.1250000000000003E-2,"Westtown","Orange","Out of Territory","Syracuse"]
[12518,"County of Orange",8.1250000000000003E-2,"Cornwall","Orange","Out of Territory","Syracuse"]
[12520,"County of Orange",8.1250000000000003E-2,"Cornwall On Hudson","Orange","Out of Territory","Syracuse"]
[12543,"County of Orange",8.1250000000000003E-2,"Maybrook","Orange","Out of Territory","Syracuse"]
[12549,"County of Orange",8.1250000000000003E-2,"Montgomery","Orange","Out of Territory","Syracuse"]
[12550,"County of Orange",8.1250000000000003E-2,"Newburgh","Orange","Out of Territory","Syracuse"]
[12551,"County of Orange",8.1250000000000003E-2,"Newburgh","Orange","Out of Territory","Syracuse"]
[12552,"County of Orange",8.1250000000000003E-2,"Newburgh","Orange","Out of Territory","Syracuse"]
[12553,"County of Orange",8.1250000000000003E-2,"New Windsor","Orange","Out of Territory","Syracuse"]
[12555,"County of Orange",8.1250000000000003E-2,"Newburgh","Orange","Out of Territory","Syracuse"]
[12575,"County of Orange",8.1250000000000003E-2,"Rock Tavern","Orange","Out of Territory","Syracuse"]
[12577,"County of Orange",8.1250000000000003E-2,"Salisbury Mills","Orange","Out of Territory","Syracuse"]
[12584,"County of Orange",8.1250000000000003E-2,"Vails Gate","Orange","Out of Territory","Syracuse"]
[12586,"County of Orange",8.1250000000000003E-2,"Walden","Orange","Out of Territory","Syracuse"]
[12729,"County of Orange",8.1250000000000003E-2,"Cuddebackville","Orange","Out of Territory","Syracuse"]
[12746,"County of Orange",8.1250000000000003E-2,"Huguenot","Orange","Out of Territory","Syracuse"]
[12771,"County of Orange",8.1250000000000003E-2,"Port Jervis","Orange","Out of Territory","Syracuse"]
[12780,"County of Orange",8.1250000000000003E-2,"Sparrow Bush","Orange","Out of Territory","Syracuse"]
[12566,"County of Orange",8.1250000000000003E-2,"Pine Bush","Orange","Eastern","Albany"]
[5033,"State of Vermont",0.06,"Bradford","Orange","Eastern","Burlington"]
[5036,"State of Vermont",0.06,"Brookfield","Orange","Eastern","Burlington"]
[5038,"State of Vermont",0.06,"Chelsea","Orange","Eastern","Burlington"]
[5039,"State of Vermont",0.06,"Corinth","Orange","Eastern","Burlington"]
[5040,"State of Vermont",0.06,"East Corinth","Orange","Eastern","Burlington"]
[5041,"State of Vermont",0.06,"East Randolph","Orange","Eastern","Burlington"]
[5043,"State of Vermont",0.06,"East Thetford","Orange","Eastern","Burlington"]
[5045,"State of Vermont",0.06,"Fairlee","Orange","Eastern","Burlington"]
[5051,"State of Vermont",0.06,"Newbury","Orange","Eastern","Burlington"]
[5054,"State of Vermont",0.06,"North Thetford","Orange","Eastern","Burlington"]
[5058,"State of Vermont",0.06,"Post Mills","Orange","Eastern","Burlington"]
[5060,"State of Vermont",0.06,"Randolph","Orange","Eastern","Burlington"]
[5061,"State of Vermont",0.06,"Randolph Center","Orange","Eastern","Burlington"]
[5070,"State of Vermont",0.06,"South Strafford","Orange","Eastern","Burlington"]
[5072,"State of Vermont",0.06,"Strafford","Orange","Eastern","Burlington"]
[5074,"State of Vermont",0.06,"Thetford","Orange","Eastern","Burlington"]
[5075,"State of Vermont",0.06,"Thetford Center","Orange","Eastern","Burlington"]
[5076,"State of Vermont",0.06,"Topsham","Orange","Eastern","Burlington"]
[5077,"State of Vermont",0.06,"Tunbridge","Orange","Eastern","Burlington"]
[5079,"State of Vermont",0.06,"Vershire","Orange","Eastern","Burlington"]
[5081,"State of Vermont",0.06,"Wells River","Orange","Eastern","Burlington"]
[5083,"State of Vermont",0.06,"West Fairlee","Orange","Eastern","Burlington"]
[5085,"State of Vermont",0.06,"West Newbury","Orange","Eastern","Burlington"]
[5086,"State of Vermont",0.06,"West Topsham","Orange","Eastern","Burlington"]
[5675,"State of Vermont",0.06,"Washington","Orange","Eastern","Burlington"]
[5679,"State of Vermont",0.06,"Williamstown","Orange","Eastern","Burlington"]
[14098,"County of Orleans",0.08,"Lyndonville","Orleans","Western","Buffalo"]
[14103,"County of Orleans",0.08,"Medina","Orleans","Western","Buffalo"]
[14411,"County of Orleans",0.08,"Albion","Orleans","Western","Buffalo"]
[14429,"County of Orleans",0.08,"Clarendon","Orleans","Western","Buffalo"]
[14452,"County of Orleans",0.08,"Fancher","Orleans","Western","Buffalo"]
[14470,"County of Orleans",0.08,"Holley","Orleans","Western","Buffalo"]
[14476,"County of Orleans",0.08,"Kendall","Orleans","Western","Buffalo"]
[14477,"County of Orleans",0.08,"Kent","Orleans","Western","Buffalo"]
[14479,"County of Orleans",0.08,"Knowlesville","Orleans","Western","Buffalo"]
[14571,"County of Orleans",0.08,"Waterport","Orleans","Western","Buffalo"]
[5842,"State of Vermont",0.06,"Greensboro Bend","Orleans","Eastern","Burlington"]
[5820,"State of Vermont",0.06,"Albany","Orleans","Eastern","Burlington"]
[5822,"State of Vermont",0.06,"Barton","Orleans","Eastern","Burlington"]
[5823,"State of Vermont",0.06,"Beebe Plain","Orleans","Eastern","Burlington"]
[5825,"State of Vermont",0.06,"Coventry","Orleans","Eastern","Burlington"]
[5826,"State of Vermont",0.06,"Craftsbury","Orleans","Eastern","Burlington"]
[5827,"State of Vermont",0.06,"Craftsbury Common","Orleans","Eastern","Burlington"]
[5829,"State of Vermont",0.06,"Derby","Orleans","Eastern","Burlington"]
[5830,"State of Vermont",0.06,"Derby Line","Orleans","Eastern","Burlington"]
[5833,"State of Vermont",0.06,"East Charleston","Orleans","Eastern","Burlington"]
[5839,"State of Vermont",0.06,"Glover","Orleans","Eastern","Burlington"]
[5841,"State of Vermont",0.06,"Greensboro","Orleans","Eastern","Burlington"]
[5845,"State of Vermont",0.06,"Irasburg","Orleans","Eastern","Burlington"]
[5847,"State of Vermont",0.06,"Lowell","Orleans","Eastern","Burlington"]
[5853,"State of Vermont",0.06,"Morgan","Orleans","Eastern","Burlington"]
[5855,"State of Vermont",0.06,"Newport","Orleans","Eastern","Burlington"]
[5857,"State of Vermont",0.06,"Newport Center","Orleans","Eastern","Burlington"]
[5859,"State of Vermont",0.06,"North Troy","Orleans","Eastern","Burlington"]
[5860,"State of Vermont",0.06,"Orleans","Orleans","Eastern","Burlington"]
[5868,"State of Vermont",0.06,"Troy","Orleans","Eastern","Burlington"]
[5872,"State of Vermont",0.06,"West Charleston","Orleans","Eastern","Burlington"]
[5874,"State of Vermont",0.06,"Westfield","Orleans","Eastern","Burlington"]
[5875,"State of Vermont",0.06,"Barton","Orleans","Eastern","Burlington"]
[13126,"City of Oswego",0.08,"Oswego","Oswego","Central","Syracuse"]
[13042,"County of Oswego",0.08,"Cleveland","Oswego","Central","Utica"]
[13028,"County of Oswego",0.08,"Bernhards Bay","Oswego","Central","Syracuse"]
[13036,"County of Oswego",0.08,"Central Square","Oswego","Central","Syracuse"]
[13044,"County of Oswego",0.08,"Constantia","Oswego","Central","Syracuse"]
[13069,"County of Oswego",0.08,"Fulton","Oswego","Central","Syracuse"]
[13074,"County of Oswego",0.08,"Hannibal","Oswego","Central","Syracuse"]
[13076,"County of Oswego",0.08,"Hastings","Oswego","Central","Syracuse"]
[13083,"County of Oswego",0.08,"Lacona","Oswego","Central","Syracuse"]
[13093,"County of Oswego",0.08,"Lycoming","Oswego","Central","Syracuse"]
[13103,"County of Oswego",0.08,"Mallory","Oswego","Central","Syracuse"]
[13107,"County of Oswego",0.08,"Maple View","Oswego","Central","Syracuse"]
[13114,"County of Oswego",0.08,"Mexico","Oswego","Central","Syracuse"]
[13115,"County of Oswego",0.08,"Minetto","Oswego","Central","Syracuse"]
[13121,"County of Oswego",0.08,"New Haven","Oswego","Central","Syracuse"]
[13131,"County of Oswego",0.08,"Parish","Oswego","Central","Syracuse"]
[13132,"County of Oswego",0.08,"Pennellville","Oswego","Central","Syracuse"]
[13135,"County of Oswego",0.08,"Phoenix","Oswego","Central","Syracuse"]
[13142,"County of Oswego",0.08,"Pulaski","Oswego","Central","Syracuse"]
[13144,"County of Oswego",0.08,"Richland","Oswego","Central","Syracuse"]
[13145,"County of Oswego",0.08,"Sandy Creek","Oswego","Central","Syracuse"]
[13167,"County of Oswego",0.08,"West Monroe","Oswego","Central","Syracuse"]
[13302,"County of Oswego",0.08,"Altmar","Oswego","Central","Syracuse"]
[13426,"County of Oswego",0.08,"Orwell","Oswego","Central","Syracuse"]
[13437,"County of Oswego",0.08,"Redfield","Oswego","Central","Syracuse"]
[13493,"County of Oswego",0.08,"Williamstown","Oswego","Central","Syracuse"]
[12064,"County of Otsego",0.08,"East Worcester","Otsego","Central","Binghamton"]
[12116,"County of Otsego",0.08,"Maryland","Otsego","Central","Binghamton"]
[12155,"County of Otsego",0.08,"Schenevus","Otsego","Central","Binghamton"]
[12197,"County of Otsego",0.08,"Worcester","Otsego","Central","Binghamton"]
[13315,"County of Otsego",0.08,"Burlington Flats","Otsego","Central","Binghamton"]
[13320,"County of Otsego",0.08,"Cherry Valley","Otsego","Central","Binghamton"]
[13326,"County of Otsego",0.08,"Cooperstown","Otsego","Central","Binghamton"]
[13333,"County of Otsego",0.08,"East Springfield","Otsego","Central","Binghamton"]
[13335,"County of Otsego",0.08,"Edmeston","Otsego","Central","Binghamton"]
[13337,"County of Otsego",0.08,"Fly Creek","Otsego","Central","Binghamton"]
[13342,"County of Otsego",0.08,"Garrattsville","Otsego","Central","Binghamton"]
[13348,"County of Otsego",0.08,"Hartwick","Otsego","Central","Binghamton"]
[13415,"County of Otsego",0.08,"New Lisbon","Otsego","Central","Binghamton"]
[13439,"County of Otsego",0.08,"Richfield Springs","Otsego","Central","Binghamton"]
[13450,"County of Otsego",0.08,"Roseboom","Otsego","Central","Binghamton"]
[13457,"County of Otsego",0.08,"Schuyler Lake","Otsego","Central","Binghamton"]
[13468,"County of Otsego",0.08,"Springfield Center","Otsego","Central","Binghamton"]
[13482,"County of Otsego",0.08,"West Burlington","Otsego","Central","Binghamton"]
[13488,"County of Otsego",0.08,"Westford","Otsego","Central","Binghamton"]
[13747,"County of Otsego",0.08,"Colliersville","Otsego","Central","Binghamton"]
[13776,"County of Otsego",0.08,"Gilbertsville","Otsego","Central","Binghamton"]
[13796,"County of Otsego",0.08,"Laurens","Otsego","Central","Binghamton"]
[13807,"County of Otsego",0.08,"Milford","Otsego","Central","Binghamton"]
[13808,"County of Otsego",0.08,"Morris","Otsego","Central","Binghamton"]
[13810,"County of Otsego",0.08,"Mount Vision","Otsego","Central","Binghamton"]
[13820,"County of Otsego",0.08,"Oneonta","Otsego","Central","Binghamton"]
[13825,"County of Otsego",0.08,"Otego","Otsego","Central","Binghamton"]
[13834,"County of Otsego",0.08,"Portlandville","Otsego","Central","Binghamton"]
[13849,"County of Otsego",0.08,"Unadilla","Otsego","Central","Binghamton"]
[13859,"County of Otsego",0.08,"Wells Bridge","Otsego","Central","Binghamton"]
[13861,"County of Otsego",0.08,"West Oneonta","Otsego","Central","Binghamton"]
[17006,"State of Pennsylvania",0.06,"Blain","Perry","Out of Territory","Syracuse"]
[17020,"State of Pennsylvania",0.06,"Duncannon","Perry","Out of Territory","Syracuse"]
[17024,"State of Pennsylvania",0.06,"Elliottsburg","Perry","Out of Territory","Syracuse"]
[17037,"State of Pennsylvania",0.06,"Ickesburg","Perry","Out of Territory","Syracuse"]
[17040,"State of Pennsylvania",0.06,"Landisburg","Perry","Out of Territory","Syracuse"]
[17045,"State of Pennsylvania",0.06,"Liverpool","Perry","Out of Territory","Syracuse"]
[17047,"State of Pennsylvania",0.06,"Loysville","Perry","Out of Territory","Syracuse"]
[17053,"State of Pennsylvania",0.06,"Marysville","Perry","Out of Territory","Syracuse"]
[17062,"State of Pennsylvania",0.06,"Millerstown","Perry","Out of Territory","Syracuse"]
[17068,"State of Pennsylvania",0.06,"New Bloomfield","Perry","Out of Territory","Syracuse"]
[17069,"State of Pennsylvania",0.06,"New Buffalo","Perry","Out of Territory","Syracuse"]
[17071,"State of Pennsylvania",0.06,"New Germantown","Perry","Out of Territory","Syracuse"]
[17074,"State of Pennsylvania",0.06,"Newport","Perry","Out of Territory","Syracuse"]
[17090,"State of Pennsylvania",0.06,"Shermans Dale","Perry","Out of Territory","Syracuse"]
[19019,"City of Philadelphia",0.08,"Philadelphia","Philadelphia","Out of Territory","Syracuse"]
[19092,"City of Philadelphia",0.08,"Philadelphia","Philadelphia","Out of Territory","Syracuse"]
[19093,"City of Philadelphia",0.08,"Philadelphia","Philadelphia","Out of Territory","Syracuse"]
[19099,"City of Philadelphia",0.08,"Philadelphia","Philadelphia","Out of Territory","Syracuse"]
[19101,"City of Philadelphia",0.08,"Philadelphia","Philadelphia","Out of Territory","Syracuse"]
[19102,"City of Philadelphia",0.08,"Philadelphia","Philadelphia","Out of Territory","Syracuse"]
[19103,"City of Philadelphia",0.08,"Philadelphia","Philadelphia","Out of Territory","Syracuse"]
[19104,"City of Philadelphia",0.08,"Philadelphia","Philadelphia","Out of Territory","Syracuse"]
[19105,"City of Philadelphia",0.08,"Philadelphia","Philadelphia","Out of Territory","Syracuse"]
[19106,"City of Philadelphia",0.08,"Philadelphia","Philadelphia","Out of Territory","Syracuse"]
[19107,"City of Philadelphia",0.08,"Philadelphia","Philadelphia","Out of Territory","Syracuse"]
[19108,"City of Philadelphia",0.08,"Philadelphia","Philadelphia","Out of Territory","Syracuse"]
[19109,"City of Philadelphia",0.08,"Philadelphia","Philadelphia","Out of Territory","Syracuse"]
[19110,"City of Philadelphia",0.08,"Philadelphia","Philadelphia","Out of Territory","Syracuse"]
[19111,"City of Philadelphia",0.08,"Philadelphia","Philadelphia","Out of Territory","Syracuse"]
[19112,"City of Philadelphia",0.08,"Philadelphia","Philadelphia","Out of Territory","Syracuse"]
[19114,"City of Philadelphia",0.08,"Philadelphia","Philadelphia","Out of Territory","Syracuse"]
[19115,"City of Philadelphia",0.08,"Philadelphia","Philadelphia","Out of Territory","Syracuse"]
[19116,"City of Philadelphia",0.08,"Philadelphia","Philadelphia","Out of Territory","Syracuse"]
[19118,"City of Philadelphia",0.08,"Philadelphia","Philadelphia","Out of Territory","Syracuse"]
[19119,"City of Philadelphia",0.08,"Philadelphia","Philadelphia","Out of Territory","Syracuse"]
[19120,"City of Philadelphia",0.08,"Philadelphia","Philadelphia","Out of Territory","Syracuse"]
[19121,"City of Philadelphia",0.08,"Philadelphia","Philadelphia","Out of Territory","Syracuse"]
[19122,"City of Philadelphia",0.08,"Philadelphia","Philadelphia","Out of Territory","Syracuse"]
[19123,"City of Philadelphia",0.08,"Philadelphia","Philadelphia","Out of Territory","Syracuse"]
[19124,"City of Philadelphia",0.08,"Philadelphia","Philadelphia","Out of Territory","Syracuse"]
[19125,"City of Philadelphia",0.08,"Philadelphia","Philadelphia","Out of Territory","Syracuse"]
[19126,"City of Philadelphia",0.08,"Philadelphia","Philadelphia","Out of Territory","Syracuse"]
[19127,"City of Philadelphia",0.08,"Philadelphia","Philadelphia","Out of Territory","Syracuse"]
[19128,"City of Philadelphia",0.08,"Philadelphia","Philadelphia","Out of Territory","Syracuse"]
[19129,"City of Philadelphia",0.08,"Philadelphia","Philadelphia","Out of Territory","Syracuse"]
[19130,"City of Philadelphia",0.08,"Philadelphia","Philadelphia","Out of Territory","Syracuse"]
[19131,"City of Philadelphia",0.08,"Philadelphia","Philadelphia","Out of Territory","Syracuse"]
[19132,"City of Philadelphia",0.08,"Philadelphia","Philadelphia","Out of Territory","Syracuse"]
[19133,"City of Philadelphia",0.08,"Philadelphia","Philadelphia","Out of Territory","Syracuse"]
[19134,"City of Philadelphia",0.08,"Philadelphia","Philadelphia","Out of Territory","Syracuse"]
[19135,"City of Philadelphia",0.08,"Philadelphia","Philadelphia","Out of Territory","Syracuse"]
[19136,"City of Philadelphia",0.08,"Philadelphia","Philadelphia","Out of Territory","Syracuse"]
[19137,"City of Philadelphia",0.08,"Philadelphia","Philadelphia","Out of Territory","Syracuse"]
[19138,"City of Philadelphia",0.08,"Philadelphia","Philadelphia","Out of Territory","Syracuse"]
[19139,"City of Philadelphia",0.08,"Philadelphia","Philadelphia","Out of Territory","Syracuse"]
[19140,"City of Philadelphia",0.08,"Philadelphia","Philadelphia","Out of Territory","Syracuse"]
[19141,"City of Philadelphia",0.08,"Philadelphia","Philadelphia","Out of Territory","Syracuse"]
[19142,"City of Philadelphia",0.08,"Philadelphia","Philadelphia","Out of Territory","Syracuse"]
[19143,"City of Philadelphia",0.08,"Philadelphia","Philadelphia","Out of Territory","Syracuse"]
[19144,"City of Philadelphia",0.08,"Philadelphia","Philadelphia","Out of Territory","Syracuse"]
[19145,"City of Philadelphia",0.08,"Philadelphia","Philadelphia","Out of Territory","Syracuse"]
[19146,"City of Philadelphia",0.08,"Philadelphia","Philadelphia","Out of Territory","Syracuse"]
[19147,"City of Philadelphia",0.08,"Philadelphia","Philadelphia","Out of Territory","Syracuse"]
[19148,"City of Philadelphia",0.08,"Philadelphia","Philadelphia","Out of Territory","Syracuse"]
[19149,"City of Philadelphia",0.08,"Philadelphia","Philadelphia","Out of Territory","Syracuse"]
[19150,"City of Philadelphia",0.08,"Philadelphia","Philadelphia","Out of Territory","Syracuse"]
[19151,"City of Philadelphia",0.08,"Philadelphia","Philadelphia","Out of Territory","Syracuse"]
[19152,"City of Philadelphia",0.08,"Philadelphia","Philadelphia","Out of Territory","Syracuse"]
[19153,"City of Philadelphia",0.08,"Philadelphia","Philadelphia","Out of Territory","Syracuse"]
[19154,"City of Philadelphia",0.08,"Philadelphia","Philadelphia","Out of Territory","Syracuse"]
[19155,"City of Philadelphia",0.08,"Philadelphia","Philadelphia","Out of Territory","Syracuse"]
[19160,"City of Philadelphia",0.08,"Philadelphia","Philadelphia","Out of Territory","Syracuse"]
[19161,"City of Philadelphia",0.08,"Philadelphia","Philadelphia","Out of Territory","Syracuse"]
[19162,"City of Philadelphia",0.08,"Philadelphia","Philadelphia","Out of Territory","Syracuse"]
[19170,"City of Philadelphia",0.08,"Philadelphia","Philadelphia","Out of Territory","Syracuse"]
[19171,"City of Philadelphia",0.08,"Philadelphia","Philadelphia","Out of Territory","Syracuse"]
[19172,"City of Philadelphia",0.08,"Philadelphia","Philadelphia","Out of Territory","Syracuse"]
[19173,"City of Philadelphia",0.08,"Philadelphia","Philadelphia","Out of Territory","Syracuse"]
[19175,"City of Philadelphia",0.08,"Philadelphia","Philadelphia","Out of Territory","Syracuse"]
[19176,"City of Philadelphia",0.08,"Philadelphia","Philadelphia","Out of Territory","Syracuse"]
[19177,"City of Philadelphia",0.08,"Philadelphia","Philadelphia","Out of Territory","Syracuse"]
[19178,"City of Philadelphia",0.08,"Philadelphia","Philadelphia","Out of Territory","Syracuse"]
[19179,"City of Philadelphia",0.08,"Philadelphia","Philadelphia","Out of Territory","Syracuse"]
[19181,"City of Philadelphia",0.08,"Philadelphia","Philadelphia","Out of Territory","Syracuse"]
[19182,"City of Philadelphia",0.08,"Philadelphia","Philadelphia","Out of Territory","Syracuse"]
[19183,"City of Philadelphia",0.08,"Philadelphia","Philadelphia","Out of Territory","Syracuse"]
[19184,"City of Philadelphia",0.08,"Philadelphia","Philadelphia","Out of Territory","Syracuse"]
[19185,"City of Philadelphia",0.08,"Philadelphia","Philadelphia","Out of Territory","Syracuse"]
[19187,"City of Philadelphia",0.08,"Philadelphia","Philadelphia","Out of Territory","Syracuse"]
[19188,"City of Philadelphia",0.08,"Philadelphia","Philadelphia","Out of Territory","Syracuse"]
[19190,"City of Philadelphia",0.08,"Philadelphia","Philadelphia","Out of Territory","Syracuse"]
[19191,"City of Philadelphia",0.08,"Philadelphia","Philadelphia","Out of Territory","Syracuse"]
[19192,"City of Philadelphia",0.08,"Philadelphia","Philadelphia","Out of Territory","Syracuse"]
[19193,"City of Philadelphia",0.08,"Philadelphia","Philadelphia","Out of Territory","Syracuse"]
[19194,"City of Philadelphia",0.08,"Philadelphia","Philadelphia","Out of Territory","Syracuse"]
[19195,"City of Philadelphia",0.08,"Philadelphia","Philadelphia","Out of Territory","Syracuse"]
[19196,"City of Philadelphia",0.08,"Philadelphia","Philadelphia","Out of Territory","Syracuse"]
[19197,"City of Philadelphia",0.08,"Philadelphia","Philadelphia","Out of Territory","Syracuse"]
[19244,"City of Philadelphia",0.08,"Philadelphia","Philadelphia","Out of Territory","Syracuse"]
[19255,"City of Philadelphia",0.08,"Philadelphia","Philadelphia","Out of Territory","Syracuse"]
[18324,"State of Pennsylvania",0.06,"Bushkill","Pike","Out of Territory","Syracuse"]
[18328,"State of Pennsylvania",0.06,"Dingmans Ferry","Pike","Out of Territory","Syracuse"]
[18336,"State of Pennsylvania",0.06,"Matamoras","Pike","Out of Territory","Syracuse"]
[18337,"State of Pennsylvania",0.06,"Milford","Pike","Out of Territory","Syracuse"]
[18340,"State of Pennsylvania",0.06,"Millrift","Pike","Out of Territory","Syracuse"]
[18371,"State of Pennsylvania",0.06,"Tamiment","Pike","Out of Territory","Syracuse"]
[18425,"State of Pennsylvania",0.06,"Greeley","Pike","Out of Territory","Syracuse"]
[18426,"State of Pennsylvania",0.06,"Greentown","Pike","Out of Territory","Syracuse"]
[18428,"State of Pennsylvania",0.06,"Hawley","Pike","Out of Territory","Syracuse"]
[18435,"State of Pennsylvania",0.06,"Lackawaxen","Pike","Out of Territory","Syracuse"]
[18451,"State of Pennsylvania",0.06,"Paupack","Pike","Out of Territory","Syracuse"]
[18457,"State of Pennsylvania",0.06,"Rowland","Pike","Out of Territory","Syracuse"]
[18458,"State of Pennsylvania",0.06,"Shohola","Pike","Out of Territory","Syracuse"]
[18464,"State of Pennsylvania",0.06,"Tafton","Pike","Out of Territory","Syracuse"]
[16720,"State of Pennsylvania",0.06,"Austin","Potter","Central","Binghamton"]
[16746,"State of Pennsylvania",0.06,"Roulette","Potter","Central","Binghamton"]
[16748,"State of Pennsylvania",0.06,"Shinglehouse","Potter","Central","Binghamton"]
[16915,"State of Pennsylvania",0.06,"Coudersport","Potter","Central","Binghamton"]
[16922,"State of Pennsylvania",0.06,"Galeton","Potter","Central","Binghamton"]
[16923,"State of Pennsylvania",0.06,"Genesee","Potter","Central","Binghamton"]
[16927,"State of Pennsylvania",0.06,"Harrison Valley","Potter","Central","Binghamton"]
[16937,"State of Pennsylvania",0.06,"Mills","Potter","Central","Binghamton"]
[16941,"State of Pennsylvania",0.06,"Genesee","Potter","Central","Binghamton"]
[16948,"State of Pennsylvania",0.06,"Ulysses","Potter","Central","Binghamton"]
[17729,"State of Pennsylvania",0.06,"Cross Fork","Potter","Central","Binghamton"]
[10509,"County of Putnam",8.3750000000000005E-2,"Brewster","Putnam","Out of Territory","Syracuse"]
[10512,"County of Putnam",8.3750000000000005E-2,"Carmel","Putnam","Out of Territory","Syracuse"]
[10516,"County of Putnam",8.3750000000000005E-2,"Cold Spring","Putnam","Out of Territory","Syracuse"]
[10524,"County of Putnam",8.3750000000000005E-2,"Garrison","Putnam","Out of Territory","Syracuse"]
[10537,"County of Putnam",8.3750000000000005E-2,"Lake Peekskill","Putnam","Out of Territory","Syracuse"]
[10541,"County of Putnam",8.3750000000000005E-2,"Mahopac","Putnam","Out of Territory","Syracuse"]
[10542,"County of Putnam",8.3750000000000005E-2,"Mahopac Falls","Putnam","Out of Territory","Syracuse"]
[10579,"County of Putnam",8.3750000000000005E-2,"Putnam Valley","Putnam","Out of Territory","Syracuse"]
[12563,"County of Putnam",8.3750000000000005E-2,"Patterson","Putnam","Out of Territory","Syracuse"]
[11004,"New York City",8.8749999999999996E-2,"Glen Oaks","Queens","Out of Territory","Syracuse"]
[11005,"New York City",8.8749999999999996E-2,"Floral Park","Queens","Out of Territory","Syracuse"]
[11101,"New York City",8.8749999999999996E-2,"Long Island City","Queens","Out of Territory","Syracuse"]
[11102,"New York City",8.8749999999999996E-2,"Astoria","Queens","Out of Territory","Syracuse"]
[11103,"New York City",8.8749999999999996E-2,"Astoria","Queens","Out of Territory","Syracuse"]
[11104,"New York City",8.8749999999999996E-2,"Sunnyside","Queens","Out of Territory","Syracuse"]
[11105,"New York City",8.8749999999999996E-2,"Astoria","Queens","Out of Territory","Syracuse"]
[11106,"New York City",8.8749999999999996E-2,"Astoria","Queens","Out of Territory","Syracuse"]
[11109,"New York City",8.8749999999999996E-2,"Long Island City","Queens","Out of Territory","Syracuse"]
[11120,"New York City",8.8749999999999996E-2,"Long Island City","Queens","Out of Territory","Syracuse"]
[11351,"New York City",8.8749999999999996E-2,"Flushing","Queens","Out of Territory","Syracuse"]
[11352,"New York City",8.8749999999999996E-2,"Flushing","Queens","Out of Territory","Syracuse"]
[11354,"New York City",8.8749999999999996E-2,"Flushing","Queens","Out of Territory","Syracuse"]
[11355,"New York City",8.8749999999999996E-2,"Flushing","Queens","Out of Territory","Syracuse"]
[11356,"New York City",8.8749999999999996E-2,"College Point","Queens","Out of Territory","Syracuse"]
[11357,"New York City",8.8749999999999996E-2,"Whitestone","Queens","Out of Territory","Syracuse"]
[11358,"New York City",8.8749999999999996E-2,"Flushing","Queens","Out of Territory","Syracuse"]
[11359,"New York City",8.8749999999999996E-2,"Bayside","Queens","Out of Territory","Syracuse"]
[11360,"New York City",8.8749999999999996E-2,"Bayside","Queens","Out of Territory","Syracuse"]
[11361,"New York City",8.8749999999999996E-2,"Bayside","Queens","Out of Territory","Syracuse"]
[11362,"New York City",8.8749999999999996E-2,"Little Neck","Queens","Out of Territory","Syracuse"]
[11363,"New York City",8.8749999999999996E-2,"Little Neck","Queens","Out of Territory","Syracuse"]
[11364,"New York City",8.8749999999999996E-2,"Oakland Gardens","Queens","Out of Territory","Syracuse"]
[11365,"New York City",8.8749999999999996E-2,"Fresh Meadows","Queens","Out of Territory","Syracuse"]
[11366,"New York City",8.8749999999999996E-2,"Fresh Meadows","Queens","Out of Territory","Syracuse"]
[11367,"New York City",8.8749999999999996E-2,"Flushing","Queens","Out of Territory","Syracuse"]
[11368,"New York City",8.8749999999999996E-2,"Corona","Queens","Out of Territory","Syracuse"]
[11369,"New York City",8.8749999999999996E-2,"East Elmhurst","Queens","Out of Territory","Syracuse"]
[11370,"New York City",8.8749999999999996E-2,"East Elmhurst","Queens","Out of Territory","Syracuse"]
[11371,"New York City",8.8749999999999996E-2,"Flushing","Queens","Out of Territory","Syracuse"]
[11372,"New York City",8.8749999999999996E-2,"Jackson Heights","Queens","Out of Territory","Syracuse"]
[11373,"New York City",8.8749999999999996E-2,"Elmhurst","Queens","Out of Territory","Syracuse"]
[11374,"New York City",8.8749999999999996E-2,"Rego Park","Queens","Out of Territory","Syracuse"]
[11375,"New York City",8.8749999999999996E-2,"Forest Hills","Queens","Out of Territory","Syracuse"]
[11377,"New York City",8.8749999999999996E-2,"Woodside","Queens","Out of Territory","Syracuse"]
[11378,"New York City",8.8749999999999996E-2,"Maspeth","Queens","Out of Territory","Syracuse"]
[11379,"New York City",8.8749999999999996E-2,"Middle Village","Queens","Out of Territory","Syracuse"]
[11380,"New York City",8.8749999999999996E-2,"Elmhurst","Queens","Out of Territory","Syracuse"]
[11381,"New York City",8.8749999999999996E-2,"Flushing","Queens","Out of Territory","Syracuse"]
[11385,"New York City",8.8749999999999996E-2,"Ridgewood","Queens","Out of Territory","Syracuse"]
[11386,"New York City",8.8749999999999996E-2,"Ridgewood","Queens","Out of Territory","Syracuse"]
[11405,"New York City",8.8749999999999996E-2,"Jamaica","Queens","Out of Territory","Syracuse"]
[11411,"New York City",8.8749999999999996E-2,"Cambria Heights","Queens","Out of Territory","Syracuse"]
[11412,"New York City",8.8749999999999996E-2,"Saint Albans","Queens","Out of Territory","Syracuse"]
[11413,"New York City",8.8749999999999996E-2,"Springfield Gardens","Queens","Out of Territory","Syracuse"]
[11414,"New York City",8.8749999999999996E-2,"Howard Beach","Queens","Out of Territory","Syracuse"]
[11415,"New York City",8.8749999999999996E-2,"Kew Gardens","Queens","Out of Territory","Syracuse"]
[11416,"New York City",8.8749999999999996E-2,"Ozone Park","Queens","Out of Territory","Syracuse"]
[11417,"New York City",8.8749999999999996E-2,"Ozone Park","Queens","Out of Territory","Syracuse"]
[11418,"New York City",8.8749999999999996E-2,"Richmond Hill","Queens","Out of Territory","Syracuse"]
[11419,"New York City",8.8749999999999996E-2,"South Richmond Hill","Queens","Out of Territory","Syracuse"]
[11420,"New York City",8.8749999999999996E-2,"South Ozone Park","Queens","Out of Territory","Syracuse"]
[11421,"New York City",8.8749999999999996E-2,"Woodhaven","Queens","Out of Territory","Syracuse"]
[11422,"New York City",8.8749999999999996E-2,"Rosedale","Queens","Out of Territory","Syracuse"]
[11423,"New York City",8.8749999999999996E-2,"Hollis","Queens","Out of Territory","Syracuse"]
[11424,"New York City",8.8749999999999996E-2,"Jamaica","Queens","Out of Territory","Syracuse"]
[11425,"New York City",8.8749999999999996E-2,"Jamaica","Queens","Out of Territory","Syracuse"]
[11426,"New York City",8.8749999999999996E-2,"Bellerose","Queens","Out of Territory","Syracuse"]
[11427,"New York City",8.8749999999999996E-2,"Queens Village","Queens","Out of Territory","Syracuse"]
[11428,"New York City",8.8749999999999996E-2,"Queens Village","Queens","Out of Territory","Syracuse"]
[11429,"New York City",8.8749999999999996E-2,"Queens Village","Queens","Out of Territory","Syracuse"]
[11430,"New York City",8.8749999999999996E-2,"Jamaica","Queens","Out of Territory","Syracuse"]
[11431,"New York City",8.8749999999999996E-2,"Jamaica","Queens","Out of Territory","Syracuse"]
[11432,"New York City",8.8749999999999996E-2,"Jamaica","Queens","Out of Territory","Syracuse"]
[11433,"New York City",8.8749999999999996E-2,"Jamaica","Queens","Out of Territory","Syracuse"]
[11434,"New York City",8.8749999999999996E-2,"Jamaica","Queens","Out of Territory","Syracuse"]
[11435,"New York City",8.8749999999999996E-2,"Jamaica","Queens","Out of Territory","Syracuse"]
[11436,"New York City",8.8749999999999996E-2,"Jamaica","Queens","Out of Territory","Syracuse"]
[11439,"New York City",8.8749999999999996E-2,"Jamaica","Queens","Out of Territory","Syracuse"]
[11451,"New York City",8.8749999999999996E-2,"Jamaica","Queens","Out of Territory","Syracuse"]
[11499,"New York City",8.8749999999999996E-2,"Jamaica","Queens","Out of Territory","Syracuse"]
[11690,"New York City",8.8749999999999996E-2,"Far Rockaway","Queens","Out of Territory","Syracuse"]
[11691,"New York City",8.8749999999999996E-2,"Far Rockaway","Queens","Out of Territory","Syracuse"]
[11692,"New York City",8.8749999999999996E-2,"Arverne","Queens","Out of Territory","Syracuse"]
[11693,"New York City",8.8749999999999996E-2,"Far Rockaway","Queens","Out of Territory","Syracuse"]
[11694,"New York City",8.8749999999999996E-2,"Rockaway Park","Queens","Out of Territory","Syracuse"]
[11695,"New York City",8.8749999999999996E-2,"Far Rockaway","Queens","Out of Territory","Syracuse"]
[11697,"New York City",8.8749999999999996E-2,"Breezy Point","Queens","Out of Territory","Syracuse"]
[12024,"County of Rensselaer",0.08,"Brainard","Rensselaer","Eastern","Albany"]
[12018,"County of Rensselaer",0.08,"Averill Park","Rensselaer","Eastern","Albany"]
[12022,"County of Rensselaer",0.08,"Berlin","Rensselaer","Eastern","Albany"]
[12033,"County of Rensselaer",0.08,"Castleton On Hudson","Rensselaer","Eastern","Albany"]
[12040,"County of Rensselaer",0.08,"Cherry Plain","Rensselaer","Eastern","Albany"]
[12052,"County of Rensselaer",0.08,"Cropseyville","Rensselaer","Eastern","Albany"]
[12061,"County of Rensselaer",0.08,"East Greenbush","Rensselaer","Eastern","Albany"]
[12062,"County of Rensselaer",0.08,"East Nassau","Rensselaer","Eastern","Albany"]
[12063,"County of Rensselaer",0.08,"East Schodack","Rensselaer","Eastern","Albany"]
[12082,"County of Rensselaer",0.08,"Grafton","Rensselaer","Eastern","Albany"]
[12089,"County of Rensselaer",0.08,"Hoosick","Rensselaer","Eastern","Albany"]
[12090,"County of Rensselaer",0.08,"Hoosick Falls","Rensselaer","Eastern","Albany"]
[12094,"County of Rensselaer",0.08,"Johnsonville","Rensselaer","Eastern","Albany"]
[12121,"County of Rensselaer",0.08,"Melrose","Rensselaer","Eastern","Albany"]
[12123,"County of Rensselaer",0.08,"Nassau","Rensselaer","Eastern","Albany"]
[12133,"County of Rensselaer",0.08,"North Hoosick","Rensselaer","Eastern","Albany"]
[12138,"County of Rensselaer",0.08,"Petersburg","Rensselaer","Eastern","Albany"]
[12140,"County of Rensselaer",0.08,"Poestenkill","Rensselaer","Eastern","Albany"]
[12144,"County of Rensselaer",0.08,"Rensselaer","Rensselaer","Eastern","Albany"]
[12153,"County of Rensselaer",0.08,"Sand Lake","Rensselaer","Eastern","Albany"]
[12154,"County of Rensselaer",0.08,"Schaghticoke","Rensselaer","Eastern","Albany"]
[12156,"County of Rensselaer",0.08,"Schodack Landing","Rensselaer","Eastern","Albany"]
[12168,"County of Rensselaer",0.08,"Stephentown","Rensselaer","Eastern","Albany"]
[12169,"County of Rensselaer",0.08,"Stephentown","Rensselaer","Eastern","Albany"]
[12180,"County of Rensselaer",0.08,"Troy","Rensselaer","Eastern","Albany"]
[12181,"County of Rensselaer",0.08,"Troy","Rensselaer","Eastern","Albany"]
[12182,"County of Rensselaer",0.08,"Troy","Rensselaer","Eastern","Albany"]
[12185,"County of Rensselaer",0.08,"Valley Falls","Rensselaer","Eastern","Albany"]
[12196,"County of Rensselaer",0.08,"West Sand Lake","Rensselaer","Eastern","Albany"]
[12198,"County of Rensselaer",0.08,"Wynantskill","Rensselaer","Eastern","Albany"]
[12028,"County of Rensselaer",0.08,"Buskirk","Rensselaer","Eastern","Albany"]
[12057,"County of Rensselaer",0.08,"Eagle Bridge","Rensselaer","Eastern","Albany"]
[10301,"New York City",8.8749999999999996E-2,"Staten Island","Richmond","Out of Territory","Syracuse"]
[10302,"New York City",8.8749999999999996E-2,"Staten Island","Richmond","Out of Territory","Syracuse"]
[10303,"New York City",8.8749999999999996E-2,"Staten Island","Richmond","Out of Territory","Syracuse"]
[10304,"New York City",8.8749999999999996E-2,"Staten Island","Richmond","Out of Territory","Syracuse"]
[10305,"New York City",8.8749999999999996E-2,"Staten Island","Richmond","Out of Territory","Syracuse"]
[10306,"New York City",8.8749999999999996E-2,"Staten Island","Richmond","Out of Territory","Syracuse"]
[10307,"New York City",8.8749999999999996E-2,"Staten Island","Richmond","Out of Territory","Syracuse"]
[10308,"New York City",8.8749999999999996E-2,"Staten Island","Richmond","Out of Territory","Syracuse"]
[10309,"New York City",8.8749999999999996E-2,"Staten Island","Richmond","Out of Territory","Syracuse"]
[10310,"New York City",8.8749999999999996E-2,"Staten Island","Richmond","Out of Territory","Syracuse"]
[10311,"New York City",8.8749999999999996E-2,"Staten Island","Richmond","Out of Territory","Syracuse"]
[10312,"New York City",8.8749999999999996E-2,"Staten Island","Richmond","Out of Territory","Syracuse"]
[10313,"New York City",8.8749999999999996E-2,"Staten Island","Richmond","Out of Territory","Syracuse"]
[10314,"New York City",8.8749999999999996E-2,"Staten Island","Richmond","Out of Territory","Syracuse"]
[10911,"County of Rockland",8.3750000000000005E-2,"Bear Mountain","Rockland","Out of Territory","Syracuse"]
[10901,"County of Rockland",8.3750000000000005E-2,"Suffern","Rockland","Out of Territory","Syracuse"]
[10913,"County of Rockland",8.3750000000000005E-2,"Blauvelt","Rockland","Out of Territory","Syracuse"]
[10920,"County of Rockland",8.3750000000000005E-2,"Congers","Rockland","Out of Territory","Syracuse"]
[10923,"County of Rockland",8.3750000000000005E-2,"Garnerville","Rockland","Out of Territory","Syracuse"]
[10927,"County of Rockland",8.3750000000000005E-2,"Haverstraw","Rockland","Out of Territory","Syracuse"]
[10931,"County of Rockland",8.3750000000000005E-2,"Hillburn","Rockland","Out of Territory","Syracuse"]
[10952,"County of Rockland",8.3750000000000005E-2,"Monsey","Rockland","Out of Territory","Syracuse"]
[10954,"County of Rockland",8.3750000000000005E-2,"Nanuet","Rockland","Out of Territory","Syracuse"]
[10956,"County of Rockland",8.3750000000000005E-2,"New City","Rockland","Out of Territory","Syracuse"]
[10960,"County of Rockland",8.3750000000000005E-2,"Nyack","Rockland","Out of Territory","Syracuse"]
[10962,"County of Rockland",8.3750000000000005E-2,"Orangeburg","Rockland","Out of Territory","Syracuse"]
[10964,"County of Rockland",8.3750000000000005E-2,"Palisades","Rockland","Out of Territory","Syracuse"]
[10965,"County of Rockland",8.3750000000000005E-2,"Pearl River","Rockland","Out of Territory","Syracuse"]
[10968,"County of Rockland",8.3750000000000005E-2,"Piermont","Rockland","Out of Territory","Syracuse"]
[10970,"County of Rockland",8.3750000000000005E-2,"Pomona","Rockland","Out of Territory","Syracuse"]
[10974,"County of Rockland",8.3750000000000005E-2,"Sloatsburg","Rockland","Out of Territory","Syracuse"]
[10976,"County of Rockland",8.3750000000000005E-2,"Sparkill","Rockland","Out of Territory","Syracuse"]
[10977,"County of Rockland",8.3750000000000005E-2,"Spring Valley","Rockland","Out of Territory","Syracuse"]
[10980,"County of Rockland",8.3750000000000005E-2,"Stony Point","Rockland","Out of Territory","Syracuse"]
[10982,"County of Rockland",8.3750000000000005E-2,"Tallman","Rockland","Out of Territory","Syracuse"]
[10983,"County of Rockland",8.3750000000000005E-2,"Tappan","Rockland","Out of Territory","Syracuse"]
[10984,"County of Rockland",8.3750000000000005E-2,"Thiells","Rockland","Out of Territory","Syracuse"]
[10986,"County of Rockland",8.3750000000000005E-2,"Tomkins Cove","Rockland","Out of Territory","Syracuse"]
[10989,"County of Rockland",8.3750000000000005E-2,"Valley Cottage","Rockland","Out of Territory","Syracuse"]
[10993,"County of Rockland",8.3750000000000005E-2,"West Haverstraw","Rockland","Out of Territory","Syracuse"]
[10994,"County of Rockland",8.3750000000000005E-2,"West Nyack","Rockland","Out of Territory","Syracuse"]
[5751,"City of Killington",0.06,"Killington","Rutland","Eastern","Burlington"]
[5701,"City of Rutland",0.06,"Rutland","Rutland","Eastern","Burlington"]
[5702,"City of Rutland",0.06,"Rutland","Rutland","Eastern","Burlington"]
[5730,"State of Vermont",0.06,"Belmont","Rutland","Eastern","Burlington"]
[5731,"State of Vermont",0.06,"Benson","Rutland","Eastern","Burlington"]
[5732,"State of Vermont",0.06,"Bomoseen","Rutland","Eastern","Burlington"]
[5733,"State of Vermont",0.06,"Brandon","Rutland","Eastern","Burlington"]
[5735,"State of Vermont",0.06,"Castleton","Rutland","Eastern","Burlington"]
[5736,"State of Vermont",0.06,"Center Rutland","Rutland","Eastern","Burlington"]
[5737,"State of Vermont",0.06,"Chittenden","Rutland","Eastern","Burlington"]
[5738,"State of Vermont",0.06,"Cuttingsville","Rutland","Eastern","Burlington"]
[5739,"State of Vermont",0.06,"Danby","Rutland","Eastern","Burlington"]
[5741,"State of Vermont",0.06,"East Poultney","Rutland","Eastern","Burlington"]
[5742,"State of Vermont",0.06,"East Wallingford","Rutland","Eastern","Burlington"]
[5743,"State of Vermont",0.06,"Fair Haven","Rutland","Eastern","Burlington"]
[5744,"State of Vermont",0.06,"Florence","Rutland","Eastern","Burlington"]
[5745,"State of Vermont",0.06,"Forest Dale","Rutland","Eastern","Burlington"]
[5750,"State of Vermont",0.06,"Hydeville","Rutland","Eastern","Burlington"]
[5757,"State of Vermont",0.06,"Middletown Springs","Rutland","Eastern","Burlington"]
[5758,"State of Vermont",0.06,"Mount Holly","Rutland","Eastern","Burlington"]
[5759,"State of Vermont",0.06,"North Clarendon","Rutland","Eastern","Burlington"]
[5761,"State of Vermont",0.06,"Pawlet","Rutland","Eastern","Burlington"]
[5762,"State of Vermont",0.06,"Pittsfield","Rutland","Eastern","Burlington"]
[5763,"State of Vermont",0.06,"Pittsford","Rutland","Eastern","Burlington"]
[5764,"State of Vermont",0.06,"Poultney","Rutland","Eastern","Burlington"]
[5765,"State of Vermont",0.06,"Proctor","Rutland","Eastern","Burlington"]
[5773,"State of Vermont",0.06,"Wallingford","Rutland","Eastern","Burlington"]
[5774,"State of Vermont",0.06,"Wells","Rutland","Eastern","Burlington"]
[5775,"State of Vermont",0.06,"West Pawlet","Rutland","Eastern","Burlington"]
[5777,"State of Vermont",0.06,"West Rutland","Rutland","Eastern","Burlington"]
[12922,"County of Saint Lawrence",0.08,"Childwold","Saint Lawrence","Central","Potsdam"]
[12927,"County of Saint Lawrence",0.08,"Cranberry Lake","Saint Lawrence","Central","Potsdam"]
[12949,"County of Saint Lawrence",0.08,"Lawrenceville","Saint Lawrence","Central","Potsdam"]
[12965,"County of Saint Lawrence",0.08,"Nicholville","Saint Lawrence","Central","Potsdam"]
[12967,"County of Saint Lawrence",0.08,"North Lawrence","Saint Lawrence","Central","Potsdam"]
[12973,"County of Saint Lawrence",0.08,"Piercefield","Saint Lawrence","Central","Potsdam"]
[13613,"County of Saint Lawrence",0.08,"Brasher Falls","Saint Lawrence","Central","Potsdam"]
[13614,"County of Saint Lawrence",0.08,"Brier Hill","Saint Lawrence","Central","Potsdam"]
[13617,"County of Saint Lawrence",0.08,"Canton","Saint Lawrence","Central","Potsdam"]
[13621,"County of Saint Lawrence",0.08,"Chase Mills","Saint Lawrence","Central","Potsdam"]
[13623,"County of Saint Lawrence",0.08,"Chippewa Bay","Saint Lawrence","Central","Potsdam"]
[13625,"County of Saint Lawrence",0.08,"Colton","Saint Lawrence","Central","Potsdam"]
[13630,"County of Saint Lawrence",0.08,"De Kalb Junction","Saint Lawrence","Central","Potsdam"]
[13633,"County of Saint Lawrence",0.08,"De Peyster","Saint Lawrence","Central","Potsdam"]
[13635,"County of Saint Lawrence",0.08,"Edwards","Saint Lawrence","Central","Potsdam"]
[13639,"County of Saint Lawrence",0.08,"Fine","Saint Lawrence","Central","Potsdam"]
[13642,"County of Saint Lawrence",0.08,"Gouverneur","Saint Lawrence","Central","Potsdam"]
[13645,"County of Saint Lawrence",0.08,"Hailesboro","Saint Lawrence","Central","Potsdam"]
[13646,"County of Saint Lawrence",0.08,"Hammond","Saint Lawrence","Central","Potsdam"]
[13647,"County of Saint Lawrence",0.08,"Hannawa Falls","Saint Lawrence","Central","Potsdam"]
[13649,"County of Saint Lawrence",0.08,"Helena","Saint Lawrence","Central","Potsdam"]
[13652,"County of Saint Lawrence",0.08,"Hermon","Saint Lawrence","Central","Potsdam"]
[13654,"County of Saint Lawrence",0.08,"Heuvelton","Saint Lawrence","Central","Potsdam"]
[13658,"County of Saint Lawrence",0.08,"Lisbon","Saint Lawrence","Central","Potsdam"]
[13660,"County of Saint Lawrence",0.08,"Madrid","Saint Lawrence","Central","Potsdam"]
[13662,"County of Saint Lawrence",0.08,"Massena","Saint Lawrence","Central","Potsdam"]
[13664,"County of Saint Lawrence",0.08,"Morristown","Saint Lawrence","Central","Potsdam"]
[13666,"County of Saint Lawrence",0.08,"Newton Falls","Saint Lawrence","Central","Potsdam"]
[13667,"County of Saint Lawrence",0.08,"Norfolk","Saint Lawrence","Central","Potsdam"]
[13668,"County of Saint Lawrence",0.08,"Norwood","Saint Lawrence","Central","Potsdam"]
[13669,"County of Saint Lawrence",0.08,"Ogdensburg","Saint Lawrence","Central","Potsdam"]
[13670,"County of Saint Lawrence",0.08,"Oswegatchie","Saint Lawrence","Central","Potsdam"]
[13672,"County of Saint Lawrence",0.08,"Parishville","Saint Lawrence","Central","Potsdam"]
[13676,"County of Saint Lawrence",0.08,"Potsdam","Saint Lawrence","Central","Potsdam"]
[13677,"County of Saint Lawrence",0.08,"Pyrites","Saint Lawrence","Central","Potsdam"]
[13678,"County of Saint Lawrence",0.08,"Raymondville","Saint Lawrence","Central","Potsdam"]
[13680,"County of Saint Lawrence",0.08,"Rensselaer Falls","Saint Lawrence","Central","Potsdam"]
[13681,"County of Saint Lawrence",0.08,"Richville","Saint Lawrence","Central","Potsdam"]
[13683,"County of Saint Lawrence",0.08,"Rooseveltown","Saint Lawrence","Central","Potsdam"]
[13684,"County of Saint Lawrence",0.08,"Russell","Saint Lawrence","Central","Potsdam"]
[13687,"County of Saint Lawrence",0.08,"South Colton","Saint Lawrence","Central","Potsdam"]
[13690,"County of Saint Lawrence",0.08,"Star Lake","Saint Lawrence","Central","Potsdam"]
[13694,"County of Saint Lawrence",0.08,"Waddington","Saint Lawrence","Central","Potsdam"]
[13695,"County of Saint Lawrence",0.08,"Wanakena","Saint Lawrence","Central","Potsdam"]
[13696,"County of Saint Lawrence",0.08,"West Stockholm","Saint Lawrence","Central","Potsdam"]
[13697,"County of Saint Lawrence",0.08,"Winthrop","Saint Lawrence","Central","Potsdam"]
[13699,"County of Saint Lawrence",0.08,"Potsdam","Saint Lawrence","Central","Potsdam"]
[12866,"City of Saratoga Springs",7.0000000000000007E-2,"Saratoga Springs","Saratoga","Eastern","Albany"]
[12019,"County of Saratoga",7.0000000000000007E-2,"Ballston Lake","Saratoga","Eastern","Albany"]
[12020,"County of Saratoga",7.0000000000000007E-2,"Ballston Spa","Saratoga","Eastern","Albany"]
[12027,"County of Saratoga",7.0000000000000007E-2,"Burnt Hills","Saratoga","Eastern","Albany"]
[12065,"County of Saratoga",7.0000000000000007E-2,"Clifton Park","Saratoga","Eastern","Albany"]
[12074,"County of Saratoga",7.0000000000000007E-2,"Galway","Saratoga","Eastern","Albany"]
[12118,"County of Saratoga",7.0000000000000007E-2,"Mechanicville","Saratoga","Eastern","Albany"]
[12148,"County of Saratoga",7.0000000000000007E-2,"Rexford","Saratoga","Eastern","Albany"]
[12151,"County of Saratoga",7.0000000000000007E-2,"Round Lake","Saratoga","Eastern","Albany"]
[12170,"County of Saratoga",7.0000000000000007E-2,"Stillwater","Saratoga","Eastern","Albany"]
[12188,"County of Saratoga",7.0000000000000007E-2,"Waterford","Saratoga","Eastern","Albany"]
[12803,"County of Saratoga",7.0000000000000007E-2,"South Glens Falls","Saratoga","Eastern","Albany"]
[12822,"County of Saratoga",7.0000000000000007E-2,"Corinth","Saratoga","Eastern","Albany"]
[12831,"County of Saratoga",7.0000000000000007E-2,"Gansevoort","Saratoga","Eastern","Albany"]
[12833,"County of Saratoga",7.0000000000000007E-2,"Greenfield Center","Saratoga","Eastern","Albany"]
[12835,"County of Saratoga",7.0000000000000007E-2,"Hadley","Saratoga","Eastern","Albany"]
[12850,"County of Saratoga",7.0000000000000007E-2,"Middle Grove","Saratoga","Eastern","Albany"]
[12859,"County of Saratoga",7.0000000000000007E-2,"Porter Corners","Saratoga","Eastern","Albany"]
[12863,"County of Saratoga",7.0000000000000007E-2,"Rock City Falls","Saratoga","Eastern","Albany"]
[12871,"County of Saratoga",7.0000000000000007E-2,"Schuylerville","Saratoga","Eastern","Albany"]
[12884,"County of Saratoga",7.0000000000000007E-2,"Victory Mills","Saratoga","Eastern","Albany"]
[12008,"County of Schenectady",0.08,"Alplaus","Schenectady","Eastern","Albany"]
[12053,"County of Schenectady",0.08,"Delanson","Schenectady","Eastern","Albany"]
[12056,"County of Schenectady",0.08,"Duanesburg","Schenectady","Eastern","Albany"]
[12137,"County of Schenectady",0.08,"Pattersonville","Schenectady","Eastern","Albany"]
[12141,"County of Schenectady",0.08,"Quaker Street","Schenectady","Eastern","Albany"]
[12150,"County of Schenectady",0.08,"Rotterdam Junction","Schenectady","Eastern","Albany"]
[12301,"County of Schenectady",0.08,"Schenectady","Schenectady","Eastern","Albany"]
[12302,"County of Schenectady",0.08,"Schenectady","Schenectady","Eastern","Albany"]
[12303,"County of Schenectady",0.08,"Schenectady","Schenectady","Eastern","Albany"]
[12304,"County of Schenectady",0.08,"Schenectady","Schenectady","Eastern","Albany"]
[12305,"County of Schenectady",0.08,"Schenectady","Schenectady","Eastern","Albany"]
[12306,"County of Schenectady",0.08,"Schenectady","Schenectady","Eastern","Albany"]
[12307,"County of Schenectady",0.08,"Schenectady","Schenectady","Eastern","Albany"]
[12308,"County of Schenectady",0.08,"Schenectady","Schenectady","Eastern","Albany"]
[12309,"County of Schenectady",0.08,"Schenectady","Schenectady","Eastern","Albany"]
[12325,"County of Schenectady",0.08,"Schenectady","Schenectady","Eastern","Albany"]
[12345,"County of Schenectady",0.08,"Schenectady","Schenectady","Eastern","Albany"]
[12031,"County of Schoharie",0.08,"Carlisle","Schoharie","Eastern","Albany"]
[12035,"County of Schoharie",0.08,"Central Bridge","Schoharie","Eastern","Albany"]
[12036,"County of Schoharie",0.08,"Charlotteville","Schoharie","Eastern","Albany"]
[12043,"County of Schoharie",0.08,"Cobleskill","Schoharie","Eastern","Albany"]
[12071,"County of Schoharie",0.08,"Fultonham","Schoharie","Eastern","Albany"]
[12073,"County of Schoharie",0.08,"Gallupville","Schoharie","Eastern","Albany"]
[12076,"County of Schoharie",0.08,"Gilboa","Schoharie","Eastern","Albany"]
[12092,"County of Schoharie",0.08,"Howes Cave","Schoharie","Eastern","Albany"]
[12093,"County of Schoharie",0.08,"Jefferson","Schoharie","Eastern","Albany"]
[12122,"County of Schoharie",0.08,"Middleburgh","Schoharie","Eastern","Albany"]
[12131,"County of Schoharie",0.08,"North Blenheim","Schoharie","Eastern","Albany"]
[12149,"County of Schoharie",0.08,"Richmondville","Schoharie","Eastern","Albany"]
[12157,"County of Schoharie",0.08,"Schoharie","Schoharie","Eastern","Albany"]
[12160,"County of Schoharie",0.08,"Sloansville","Schoharie","Eastern","Albany"]
[12175,"County of Schoharie",0.08,"Summit","Schoharie","Eastern","Albany"]
[12187,"County of Schoharie",0.08,"Warnerville","Schoharie","Eastern","Albany"]
[12194,"County of Schoharie",0.08,"West Fulton","Schoharie","Eastern","Albany"]
[13459,"County of Schoharie",0.08,"Sharon Springs","Schoharie","Eastern","Albany"]
[14805,"County of Schuyler",0.08,"Alpine","Schuyler","Central","Binghamton"]
[14812,"County of Schuyler",0.08,"Beaver Dams","Schuyler","Central","Binghamton"]
[14815,"County of Schuyler",0.08,"Bradford","Schuyler","Central","Binghamton"]
[14818,"County of Schuyler",0.08,"Burdett","Schuyler","Central","Binghamton"]
[14824,"County of Schuyler",0.08,"Cayuta","Schuyler","Central","Binghamton"]
[14841,"County of Schuyler",0.08,"Hector","Schuyler","Central","Binghamton"]
[14863,"County of Schuyler",0.08,"Mecklenburg","Schuyler","Central","Binghamton"]
[14865,"County of Schuyler",0.08,"Montour Falls","Schuyler","Central","Binghamton"]
[14869,"County of Schuyler",0.08,"Odessa","Schuyler","Central","Binghamton"]
[14876,"County of Schuyler",0.08,"Reading Center","Schuyler","Central","Binghamton"]
[14878,"County of Schuyler",0.08,"Rock Stream","Schuyler","Central","Binghamton"]
[14887,"County of Schuyler",0.08,"Tyrone","Schuyler","Central","Binghamton"]
[14891,"County of Schuyler",0.08,"Watkins Glen","Schuyler","Central","Binghamton"]
[14893,"County of Schuyler",0.08,"Wayne","Schuyler","Central","Binghamton"]
[17901,"State of Pennsylvania",0.06,"Pottsville","Schuylkill","Out of Territory","Syracuse"]
[17921,"State of Pennsylvania",0.06,"Ashland","Schuylkill","Out of Territory","Syracuse"]
[17922,"State of Pennsylvania",0.06,"Auburn","Schuylkill","Out of Territory","Syracuse"]
[17923,"State of Pennsylvania",0.06,"Branchdale","Schuylkill","Out of Territory","Syracuse"]
[17925,"State of Pennsylvania",0.06,"Brockton","Schuylkill","Out of Territory","Syracuse"]
[17929,"State of Pennsylvania",0.06,"Cressona","Schuylkill","Out of Territory","Syracuse"]
[17930,"State of Pennsylvania",0.06,"Cumbola","Schuylkill","Out of Territory","Syracuse"]
[17931,"State of Pennsylvania",0.06,"Frackville","Schuylkill","Out of Territory","Syracuse"]
[17932,"State of Pennsylvania",0.06,"Frackville","Schuylkill","Out of Territory","Syracuse"]
[17933,"State of Pennsylvania",0.06,"Friedensburg","Schuylkill","Out of Territory","Syracuse"]
[17934,"State of Pennsylvania",0.06,"Gilberton","Schuylkill","Out of Territory","Syracuse"]
[17935,"State of Pennsylvania",0.06,"Girardville","Schuylkill","Out of Territory","Syracuse"]
[17936,"State of Pennsylvania",0.06,"Gordon","Schuylkill","Out of Territory","Syracuse"]
[17938,"State of Pennsylvania",0.06,"Hegins","Schuylkill","Out of Territory","Syracuse"]
[17941,"State of Pennsylvania",0.06,"Klingerstown","Schuylkill","Out of Territory","Syracuse"]
[17943,"State of Pennsylvania",0.06,"Lavelle","Schuylkill","Out of Territory","Syracuse"]
[17944,"State of Pennsylvania",0.06,"Llewellyn","Schuylkill","Out of Territory","Syracuse"]
[17945,"State of Pennsylvania",0.06,"Locustdale","Schuylkill","Out of Territory","Syracuse"]
[17946,"State of Pennsylvania",0.06,"Lost Creek","Schuylkill","Out of Territory","Syracuse"]
[17948,"State of Pennsylvania",0.06,"Mahanoy City","Schuylkill","Out of Territory","Syracuse"]
[17949,"State of Pennsylvania",0.06,"Mahanoy Plane","Schuylkill","Out of Territory","Syracuse"]
[17951,"State of Pennsylvania",0.06,"Mar Lin","Schuylkill","Out of Territory","Syracuse"]
[17952,"State of Pennsylvania",0.06,"Mary D","Schuylkill","Out of Territory","Syracuse"]
[17953,"State of Pennsylvania",0.06,"Middleport","Schuylkill","Out of Territory","Syracuse"]
[17954,"State of Pennsylvania",0.06,"Minersville","Schuylkill","Out of Territory","Syracuse"]
[17957,"State of Pennsylvania",0.06,"Muir","Schuylkill","Out of Territory","Syracuse"]
[17959,"State of Pennsylvania",0.06,"New Philadelphia","Schuylkill","Out of Territory","Syracuse"]
[17960,"State of Pennsylvania",0.06,"New Ringgold","Schuylkill","Out of Territory","Syracuse"]
[17961,"State of Pennsylvania",0.06,"Orwigsburg","Schuylkill","Out of Territory","Syracuse"]
[17963,"State of Pennsylvania",0.06,"Pine Grove","Schuylkill","Out of Territory","Syracuse"]
[17964,"State of Pennsylvania",0.06,"Pitman","Schuylkill","Out of Territory","Syracuse"]
[17965,"State of Pennsylvania",0.06,"Port Carbon","Schuylkill","Out of Territory","Syracuse"]
[17966,"State of Pennsylvania",0.06,"Ravine","Schuylkill","Out of Territory","Syracuse"]
[17967,"State of Pennsylvania",0.06,"Ringtown","Schuylkill","Out of Territory","Syracuse"]
[17968,"State of Pennsylvania",0.06,"Sacramento","Schuylkill","Out of Territory","Syracuse"]
[17970,"State of Pennsylvania",0.06,"Saint Clair","Schuylkill","Out of Territory","Syracuse"]
[17972,"State of Pennsylvania",0.06,"Schuylkill Haven","Schuylkill","Out of Territory","Syracuse"]
[17974,"State of Pennsylvania",0.06,"Seltzer","Schuylkill","Out of Territory","Syracuse"]
[17976,"State of Pennsylvania",0.06,"Shenandoah","Schuylkill","Out of Territory","Syracuse"]
[17978,"State of Pennsylvania",0.06,"Spring Glen","Schuylkill","Out of Territory","Syracuse"]
[17979,"State of Pennsylvania",0.06,"Summit Station","Schuylkill","Out of Territory","Syracuse"]
[17980,"State of Pennsylvania",0.06,"Tower City","Schuylkill","Out of Territory","Syracuse"]
[17981,"State of Pennsylvania",0.06,"Tremont","Schuylkill","Out of Territory","Syracuse"]
[17982,"State of Pennsylvania",0.06,"Tuscarora","Schuylkill","Out of Territory","Syracuse"]
[17983,"State of Pennsylvania",0.06,"Valley View","Schuylkill","Out of Territory","Syracuse"]
[17985,"State of Pennsylvania",0.06,"Zion Grove","Schuylkill","Out of Territory","Syracuse"]
[18211,"State of Pennsylvania",0.06,"Andreas","Schuylkill","Out of Territory","Syracuse"]
[18214,"State of Pennsylvania",0.06,"Barnesville","Schuylkill","Out of Territory","Syracuse"]
[18218,"State of Pennsylvania",0.06,"Coaldale","Schuylkill","Out of Territory","Syracuse"]
[18220,"State of Pennsylvania",0.06,"Delano","Schuylkill","Out of Territory","Syracuse"]
[18231,"State of Pennsylvania",0.06,"Kelayres","Schuylkill","Out of Territory","Syracuse"]
[18237,"State of Pennsylvania",0.06,"McAdoo","Schuylkill","Out of Territory","Syracuse"]
[18241,"State of Pennsylvania",0.06,"Nuremberg","Schuylkill","Out of Territory","Syracuse"]
[18242,"State of Pennsylvania",0.06,"Oneida","Schuylkill","Out of Territory","Syracuse"]
[18245,"State of Pennsylvania",0.06,"Quakake","Schuylkill","Out of Territory","Syracuse"]
[18248,"State of Pennsylvania",0.06,"Sheppton","Schuylkill","Out of Territory","Syracuse"]
[18252,"State of Pennsylvania",0.06,"Tamaqua","Schuylkill","Out of Territory","Syracuse"]
[19549,"State of Pennsylvania",0.06,"Port Clinton","Schuylkill","Out of Territory","Syracuse"]
[13065,"County of Seneca",0.08,"Fayette","Seneca","Central","Syracuse"]
[13148,"County of Seneca",0.08,"Seneca Falls","Seneca","Central","Syracuse"]
[13165,"County of Seneca",0.08,"Waterloo","Seneca","Central","Syracuse"]
[14521,"County of Seneca",0.08,"Ovid","Seneca","Central","Syracuse"]
[14541,"County of Seneca",0.08,"Romulus","Seneca","Central","Syracuse"]
[14588,"County of Seneca",0.08,"Willard","Seneca","Central","Syracuse"]
[14847,"County of Seneca",0.08,"Interlaken","Seneca","Central","Syracuse"]
[14860,"County of Seneca",0.08,"Lodi","Seneca","Central","Syracuse"]
[17812,"State of Pennsylvania",0.06,"Beaver Springs","Snyder","Out of Territory","Syracuse"]
[17813,"State of Pennsylvania",0.06,"Beavertown","Snyder","Out of Territory","Syracuse"]
[17827,"State of Pennsylvania",0.06,"Freeburg","Snyder","Out of Territory","Syracuse"]
[17831,"State of Pennsylvania",0.06,"Hummels Wharf","Snyder","Out of Territory","Syracuse"]
[17833,"State of Pennsylvania",0.06,"Kreamer","Snyder","Out of Territory","Syracuse"]
[17842,"State of Pennsylvania",0.06,"Middleburg","Snyder","Out of Territory","Syracuse"]
[17843,"State of Pennsylvania",0.06,"Beaver Springs","Snyder","Out of Territory","Syracuse"]
[17853,"State of Pennsylvania",0.06,"Mount Pleasant Mills","Snyder","Out of Territory","Syracuse"]
[17861,"State of Pennsylvania",0.06,"Paxtonville","Snyder","Out of Territory","Syracuse"]
[17862,"State of Pennsylvania",0.06,"Penns Creek","Snyder","Out of Territory","Syracuse"]
[17864,"State of Pennsylvania",0.06,"Port Trevorton","Snyder","Out of Territory","Syracuse"]
[17870,"State of Pennsylvania",0.06,"Selinsgrove","Snyder","Out of Territory","Syracuse"]
[17876,"State of Pennsylvania",0.06,"Shamokin Dam","Snyder","Out of Territory","Syracuse"]
[17882,"State of Pennsylvania",0.06,"Troxelville","Snyder","Out of Territory","Syracuse"]
[15411,"State of Pennsylvania",0.06,"Addison","Somerset","Out of Territory","Syracuse"]
[15424,"State of Pennsylvania",0.06,"Confluence","Somerset","Out of Territory","Syracuse"]
[15485,"State of Pennsylvania",0.06,"Ursina","Somerset","Out of Territory","Syracuse"]
[15501,"State of Pennsylvania",0.06,"Somerset","Somerset","Out of Territory","Syracuse"]
[15502,"State of Pennsylvania",0.06,"Hidden Valley","Somerset","Out of Territory","Syracuse"]
[15510,"State of Pennsylvania",0.06,"Somerset","Somerset","Out of Territory","Syracuse"]
[15520,"State of Pennsylvania",0.06,"Acosta","Somerset","Out of Territory","Syracuse"]
[15530,"State of Pennsylvania",0.06,"Berlin","Somerset","Out of Territory","Syracuse"]
[15531,"State of Pennsylvania",0.06,"Boswell","Somerset","Out of Territory","Syracuse"]
[15532,"State of Pennsylvania",0.06,"Boynton","Somerset","Out of Territory","Syracuse"]
[15538,"State of Pennsylvania",0.06,"Fairhope","Somerset","Out of Territory","Syracuse"]
[15540,"State of Pennsylvania",0.06,"Fort Hill","Somerset","Out of Territory","Syracuse"]
[15541,"State of Pennsylvania",0.06,"Friedens","Somerset","Out of Territory","Syracuse"]
[15542,"State of Pennsylvania",0.06,"Garrett","Somerset","Out of Territory","Syracuse"]
[15544,"State of Pennsylvania",0.06,"Gray","Somerset","Out of Territory","Syracuse"]
[15546,"State of Pennsylvania",0.06,"Jenners","Somerset","Out of Territory","Syracuse"]
[15547,"State of Pennsylvania",0.06,"Jennerstown","Somerset","Out of Territory","Syracuse"]
[15548,"State of Pennsylvania",0.06,"Kantner","Somerset","Out of Territory","Syracuse"]
[15549,"State of Pennsylvania",0.06,"Listie","Somerset","Out of Territory","Syracuse"]
[15551,"State of Pennsylvania",0.06,"Markleton","Somerset","Out of Territory","Syracuse"]
[15552,"State of Pennsylvania",0.06,"Meyersdale","Somerset","Out of Territory","Syracuse"]
[15553,"State of Pennsylvania",0.06,"New Baltimore","Somerset","Out of Territory","Syracuse"]
[15555,"State of Pennsylvania",0.06,"Quecreek","Somerset","Out of Territory","Syracuse"]
[15557,"State of Pennsylvania",0.06,"Rockwood","Somerset","Out of Territory","Syracuse"]
[15558,"State of Pennsylvania",0.06,"Salisbury","Somerset","Out of Territory","Syracuse"]
[15560,"State of Pennsylvania",0.06,"Shanksville","Somerset","Out of Territory","Syracuse"]
[15561,"State of Pennsylvania",0.06,"Sipesville","Somerset","Out of Territory","Syracuse"]
[15562,"State of Pennsylvania",0.06,"Springs","Somerset","Out of Territory","Syracuse"]
[15563,"State of Pennsylvania",0.06,"Stoystown","Somerset","Out of Territory","Syracuse"]
[15564,"State of Pennsylvania",0.06,"Wellersburg","Somerset","Out of Territory","Syracuse"]
[15565,"State of Pennsylvania",0.06,"West Salisbury","Somerset","Out of Territory","Syracuse"]
[15924,"State of Pennsylvania",0.06,"Cairnbrook","Somerset","Out of Territory","Syracuse"]
[15926,"State of Pennsylvania",0.06,"Central City","Somerset","Out of Territory","Syracuse"]
[15928,"State of Pennsylvania",0.06,"Davidsville","Somerset","Out of Territory","Syracuse"]
[15935,"State of Pennsylvania",0.06,"Hollsopple","Somerset","Out of Territory","Syracuse"]
[15936,"State of Pennsylvania",0.06,"Hooversville","Somerset","Out of Territory","Syracuse"]
[15937,"State of Pennsylvania",0.06,"Jerome","Somerset","Out of Territory","Syracuse"]
[15953,"State of Pennsylvania",0.06,"Seanor","Somerset","Out of Territory","Syracuse"]
[15959,"State of Pennsylvania",0.06,"Tire Hill","Somerset","Out of Territory","Syracuse"]
[15963,"State of Pennsylvania",0.06,"Windber","Somerset","Out of Territory","Syracuse"]
[14830,"City of Corning",0.08,"Corning","Steuben","Central","Binghamton"]
[14831,"City of Corning",0.08,"Corning","Steuben","Central","Binghamton"]
[14843,"City of Hornell",0.08,"Hornell","Steuben","Central","Binghamton"]
[14529,"County of Steuben",0.08,"Perkinsville","Steuben","Central","Binghamton"]
[14572,"County of Steuben",0.08,"Wayland","Steuben","Central","Binghamton"]
[14801,"County of Steuben",0.08,"Addison","Steuben","Central","Binghamton"]
[14807,"County of Steuben",0.08,"Arkport","Steuben","Central","Binghamton"]
[14808,"County of Steuben",0.08,"Atlanta","Steuben","Central","Binghamton"]
[14809,"County of Steuben",0.08,"Avoca","Steuben","Central","Binghamton"]
[14810,"County of Steuben",0.08,"Bath","Steuben","Central","Binghamton"]
[14819,"County of Steuben",0.08,"Cameron","Steuben","Central","Binghamton"]
[14820,"County of Steuben",0.08,"Cameron Mills","Steuben","Central","Binghamton"]
[14821,"County of Steuben",0.08,"Campbell","Steuben","Central","Binghamton"]
[14823,"County of Steuben",0.08,"Canisteo","Steuben","Central","Binghamton"]
[14826,"County of Steuben",0.08,"Cohocton","Steuben","Central","Binghamton"]
[14827,"County of Steuben",0.08,"Coopers Plains","Steuben","Central","Binghamton"]
[14839,"County of Steuben",0.08,"Greenwood","Steuben","Central","Binghamton"]
[14840,"County of Steuben",0.08,"Hammondsport","Steuben","Central","Binghamton"]
[14855,"County of Steuben",0.08,"Jasper","Steuben","Central","Binghamton"]
[14856,"County of Steuben",0.08,"Kanona","Steuben","Central","Binghamton"]
[14858,"County of Steuben",0.08,"Lindley","Steuben","Central","Binghamton"]
[14870,"County of Steuben",0.08,"Painted Post","Steuben","Central","Binghamton"]
[14873,"County of Steuben",0.08,"Prattsburgh","Steuben","Central","Binghamton"]
[14874,"County of Steuben",0.08,"Pulteney","Steuben","Central","Binghamton"]
[14877,"County of Steuben",0.08,"Rexville","Steuben","Central","Binghamton"]
[14879,"County of Steuben",0.08,"Savona","Steuben","Central","Binghamton"]
[14885,"County of Steuben",0.08,"Troupsburg","Steuben","Central","Binghamton"]
[14898,"County of Steuben",0.08,"Woodhull","Steuben","Central","Binghamton"]
[11701,"County of Suffolk",8.6249999999999993E-2,"Amityville","Suffolk","Out of Territory","Syracuse"]
[11702,"County of Suffolk",8.6249999999999993E-2,"Babylon","Suffolk","Out of Territory","Syracuse"]
[11703,"County of Suffolk",8.6249999999999993E-2,"North Babylon","Suffolk","Out of Territory","Syracuse"]
[11704,"County of Suffolk",8.6249999999999993E-2,"West Babylon","Suffolk","Out of Territory","Syracuse"]
[11705,"County of Suffolk",8.6249999999999993E-2,"Bayport","Suffolk","Out of Territory","Syracuse"]
[11706,"County of Suffolk",8.6249999999999993E-2,"Bay Shore","Suffolk","Out of Territory","Syracuse"]
[11707,"County of Suffolk",8.6249999999999993E-2,"West Babylon","Suffolk","Out of Territory","Syracuse"]
[11713,"County of Suffolk",8.6249999999999993E-2,"Bellport","Suffolk","Out of Territory","Syracuse"]
[11715,"County of Suffolk",8.6249999999999993E-2,"Blue Point","Suffolk","Out of Territory","Syracuse"]
[11716,"County of Suffolk",8.6249999999999993E-2,"Bohemia","Suffolk","Out of Territory","Syracuse"]
[11717,"County of Suffolk",8.6249999999999993E-2,"Brentwood","Suffolk","Out of Territory","Syracuse"]
[11718,"County of Suffolk",8.6249999999999993E-2,"Brightwaters","Suffolk","Out of Territory","Syracuse"]
[11719,"County of Suffolk",8.6249999999999993E-2,"Brookhaven","Suffolk","Out of Territory","Syracuse"]
[11720,"County of Suffolk",8.6249999999999993E-2,"Centereach","Suffolk","Out of Territory","Syracuse"]
[11721,"County of Suffolk",8.6249999999999993E-2,"Centerport","Suffolk","Out of Territory","Syracuse"]
[11722,"County of Suffolk",8.6249999999999993E-2,"Central Islip","Suffolk","Out of Territory","Syracuse"]
[11724,"County of Suffolk",8.6249999999999993E-2,"Cold Spring Harbor","Suffolk","Out of Territory","Syracuse"]
[11725,"County of Suffolk",8.6249999999999993E-2,"Commack","Suffolk","Out of Territory","Syracuse"]
[11726,"County of Suffolk",8.6249999999999993E-2,"Copiague","Suffolk","Out of Territory","Syracuse"]
[11727,"County of Suffolk",8.6249999999999993E-2,"Coram","Suffolk","Out of Territory","Syracuse"]
[11729,"County of Suffolk",8.6249999999999993E-2,"Deer Park","Suffolk","Out of Territory","Syracuse"]
[11730,"County of Suffolk",8.6249999999999993E-2,"East Islip","Suffolk","Out of Territory","Syracuse"]
[11731,"County of Suffolk",8.6249999999999993E-2,"East Northport","Suffolk","Out of Territory","Syracuse"]
[11733,"County of Suffolk",8.6249999999999993E-2,"East Setauket","Suffolk","Out of Territory","Syracuse"]
[11738,"County of Suffolk",8.6249999999999993E-2,"Farmingville","Suffolk","Out of Territory","Syracuse"]
[11739,"County of Suffolk",8.6249999999999993E-2,"Great River","Suffolk","Out of Territory","Syracuse"]
[11740,"County of Suffolk",8.6249999999999993E-2,"Greenlawn","Suffolk","Out of Territory","Syracuse"]
[11741,"County of Suffolk",8.6249999999999993E-2,"Holbrook","Suffolk","Out of Territory","Syracuse"]
[11742,"County of Suffolk",8.6249999999999993E-2,"Holtsville","Suffolk","Out of Territory","Syracuse"]
[11743,"County of Suffolk",8.6249999999999993E-2,"Huntington","Suffolk","Out of Territory","Syracuse"]
[11746,"County of Suffolk",8.6249999999999993E-2,"Huntington Station","Suffolk","Out of Territory","Syracuse"]
[11747,"County of Suffolk",8.6249999999999993E-2,"Melville","Suffolk","Out of Territory","Syracuse"]
[11749,"County of Suffolk",8.6249999999999993E-2,"Islandia","Suffolk","Out of Territory","Syracuse"]
[11751,"County of Suffolk",8.6249999999999993E-2,"Islip","Suffolk","Out of Territory","Syracuse"]
[11752,"County of Suffolk",8.6249999999999993E-2,"Islip Terrace","Suffolk","Out of Territory","Syracuse"]
[11754,"County of Suffolk",8.6249999999999993E-2,"Kings Park","Suffolk","Out of Territory","Syracuse"]
[11755,"County of Suffolk",8.6249999999999993E-2,"Lake Grove","Suffolk","Out of Territory","Syracuse"]
[11757,"County of Suffolk",8.6249999999999993E-2,"Lindenhurst","Suffolk","Out of Territory","Syracuse"]
[11760,"County of Suffolk",8.6249999999999993E-2,"Melville","Suffolk","Out of Territory","Syracuse"]
[11763,"County of Suffolk",8.6249999999999993E-2,"Medford","Suffolk","Out of Territory","Syracuse"]
[11764,"County of Suffolk",8.6249999999999993E-2,"Miller Place","Suffolk","Out of Territory","Syracuse"]
[11766,"County of Suffolk",8.6249999999999993E-2,"Mount Sinai","Suffolk","Out of Territory","Syracuse"]
[11767,"County of Suffolk",8.6249999999999993E-2,"Nesconset","Suffolk","Out of Territory","Syracuse"]
[11768,"County of Suffolk",8.6249999999999993E-2,"Northport","Suffolk","Out of Territory","Syracuse"]
[11769,"County of Suffolk",8.6249999999999993E-2,"Oakdale","Suffolk","Out of Territory","Syracuse"]
[11770,"County of Suffolk",8.6249999999999993E-2,"Ocean Beach","Suffolk","Out of Territory","Syracuse"]
[11772,"County of Suffolk",8.6249999999999993E-2,"Patchogue","Suffolk","Out of Territory","Syracuse"]
[11775,"County of Suffolk",8.6249999999999993E-2,"Melville","Suffolk","Out of Territory","Syracuse"]
[11776,"County of Suffolk",8.6249999999999993E-2,"Port Jefferson Station","Suffolk","Out of Territory","Syracuse"]
[11777,"County of Suffolk",8.6249999999999993E-2,"Port Jefferson","Suffolk","Out of Territory","Syracuse"]
[11778,"County of Suffolk",8.6249999999999993E-2,"Rocky Point","Suffolk","Out of Territory","Syracuse"]
[11779,"County of Suffolk",8.6249999999999993E-2,"Ronkonkoma","Suffolk","Out of Territory","Syracuse"]
[11780,"County of Suffolk",8.6249999999999993E-2,"Saint James","Suffolk","Out of Territory","Syracuse"]
[11782,"County of Suffolk",8.6249999999999993E-2,"Sayville","Suffolk","Out of Territory","Syracuse"]
[11784,"County of Suffolk",8.6249999999999993E-2,"Selden","Suffolk","Out of Territory","Syracuse"]
[11786,"County of Suffolk",8.6249999999999993E-2,"Shoreham","Suffolk","Out of Territory","Syracuse"]
[11787,"County of Suffolk",8.6249999999999993E-2,"Smithtown","Suffolk","Out of Territory","Syracuse"]
[11788,"County of Suffolk",8.6249999999999993E-2,"Hauppauge","Suffolk","Out of Territory","Syracuse"]
[11789,"County of Suffolk",8.6249999999999993E-2,"Sound Beach","Suffolk","Out of Territory","Syracuse"]
[11790,"County of Suffolk",8.6249999999999993E-2,"Stony Brook","Suffolk","Out of Territory","Syracuse"]
[11792,"County of Suffolk",8.6249999999999993E-2,"Wading River","Suffolk","Out of Territory","Syracuse"]
[11794,"County of Suffolk",8.6249999999999993E-2,"Stony Brook","Suffolk","Out of Territory","Syracuse"]
[11795,"County of Suffolk",8.6249999999999993E-2,"West Islip","Suffolk","Out of Territory","Syracuse"]
[11796,"County of Suffolk",8.6249999999999993E-2,"West Sayville","Suffolk","Out of Territory","Syracuse"]
[11798,"County of Suffolk",8.6249999999999993E-2,"Wyandanch","Suffolk","Out of Territory","Syracuse"]
[11901,"County of Suffolk",8.6249999999999993E-2,"Riverhead","Suffolk","Out of Territory","Syracuse"]
[11930,"County of Suffolk",8.6249999999999993E-2,"Amagansett","Suffolk","Out of Territory","Syracuse"]
[11931,"County of Suffolk",8.6249999999999993E-2,"Aquebogue","Suffolk","Out of Territory","Syracuse"]
[11932,"County of Suffolk",8.6249999999999993E-2,"Bridgehampton","Suffolk","Out of Territory","Syracuse"]
[11933,"County of Suffolk",8.6249999999999993E-2,"Calverton","Suffolk","Out of Territory","Syracuse"]
[11934,"County of Suffolk",8.6249999999999993E-2,"Center Moriches","Suffolk","Out of Territory","Syracuse"]
[11935,"County of Suffolk",8.6249999999999993E-2,"Cutchogue","Suffolk","Out of Territory","Syracuse"]
[11937,"County of Suffolk",8.6249999999999993E-2,"East Hampton","Suffolk","Out of Territory","Syracuse"]
[11939,"County of Suffolk",8.6249999999999993E-2,"East Marion","Suffolk","Out of Territory","Syracuse"]
[11940,"County of Suffolk",8.6249999999999993E-2,"East Moriches","Suffolk","Out of Territory","Syracuse"]
[11941,"County of Suffolk",8.6249999999999993E-2,"Eastport","Suffolk","Out of Territory","Syracuse"]
[11942,"County of Suffolk",8.6249999999999993E-2,"East Quogue","Suffolk","Out of Territory","Syracuse"]
[11944,"County of Suffolk",8.6249999999999993E-2,"Greenport","Suffolk","Out of Territory","Syracuse"]
[11946,"County of Suffolk",8.6249999999999993E-2,"Hampton Bays","Suffolk","Out of Territory","Syracuse"]
[11947,"County of Suffolk",8.6249999999999993E-2,"Jamesport","Suffolk","Out of Territory","Syracuse"]
[11948,"County of Suffolk",8.6249999999999993E-2,"Laurel","Suffolk","Out of Territory","Syracuse"]
[11949,"County of Suffolk",8.6249999999999993E-2,"Manorville","Suffolk","Out of Territory","Syracuse"]
[11950,"County of Suffolk",8.6249999999999993E-2,"Mastic","Suffolk","Out of Territory","Syracuse"]
[11951,"County of Suffolk",8.6249999999999993E-2,"Mastic Beach","Suffolk","Out of Territory","Syracuse"]
[11952,"County of Suffolk",8.6249999999999993E-2,"Mattituck","Suffolk","Out of Territory","Syracuse"]
[11953,"County of Suffolk",8.6249999999999993E-2,"Middle Island","Suffolk","Out of Territory","Syracuse"]
[11954,"County of Suffolk",8.6249999999999993E-2,"Montauk","Suffolk","Out of Territory","Syracuse"]
[11955,"County of Suffolk",8.6249999999999993E-2,"Moriches","Suffolk","Out of Territory","Syracuse"]
[11956,"County of Suffolk",8.6249999999999993E-2,"New Suffolk","Suffolk","Out of Territory","Syracuse"]
[11957,"County of Suffolk",8.6249999999999993E-2,"Orient","Suffolk","Out of Territory","Syracuse"]
[11958,"County of Suffolk",8.6249999999999993E-2,"Peconic","Suffolk","Out of Territory","Syracuse"]
[11959,"County of Suffolk",8.6249999999999993E-2,"Quogue","Suffolk","Out of Territory","Syracuse"]
[11960,"County of Suffolk",8.6249999999999993E-2,"Remsenburg","Suffolk","Out of Territory","Syracuse"]
[11961,"County of Suffolk",8.6249999999999993E-2,"Ridge","Suffolk","Out of Territory","Syracuse"]
[11962,"County of Suffolk",8.6249999999999993E-2,"Sagaponack","Suffolk","Out of Territory","Syracuse"]
[11963,"County of Suffolk",8.6249999999999993E-2,"Sag Harbor","Suffolk","Out of Territory","Syracuse"]
[11964,"County of Suffolk",8.6249999999999993E-2,"Shelter Island","Suffolk","Out of Territory","Syracuse"]
[11965,"County of Suffolk",8.6249999999999993E-2,"Shelter Island Heights","Suffolk","Out of Territory","Syracuse"]
[11967,"County of Suffolk",8.6249999999999993E-2,"Shirley","Suffolk","Out of Territory","Syracuse"]
[11968,"County of Suffolk",8.6249999999999993E-2,"Southampton","Suffolk","Out of Territory","Syracuse"]
[11969,"County of Suffolk",8.6249999999999993E-2,"Southampton","Suffolk","Out of Territory","Syracuse"]
[11970,"County of Suffolk",8.6249999999999993E-2,"South Jamesport","Suffolk","Out of Territory","Syracuse"]
[11971,"County of Suffolk",8.6249999999999993E-2,"Southold","Suffolk","Out of Territory","Syracuse"]
[11972,"County of Suffolk",8.6249999999999993E-2,"Speonk","Suffolk","Out of Territory","Syracuse"]
[11973,"County of Suffolk",8.6249999999999993E-2,"Upton","Suffolk","Out of Territory","Syracuse"]
[11975,"County of Suffolk",8.6249999999999993E-2,"Wainscott","Suffolk","Out of Territory","Syracuse"]
[11976,"County of Suffolk",8.6249999999999993E-2,"Water Mill","Suffolk","Out of Territory","Syracuse"]
[11977,"County of Suffolk",8.6249999999999993E-2,"Westhampton","Suffolk","Out of Territory","Syracuse"]
[11978,"County of Suffolk",8.6249999999999993E-2,"Westhampton Beach","Suffolk","Out of Territory","Syracuse"]
[11980,"County of Suffolk",8.6249999999999993E-2,"Yaphank","Suffolk","Out of Territory","Syracuse"]
[501,"County of Suffolk",8.6249999999999993E-2,"Holtsville","Suffolk","Out of Territory","Syracuse"]
[544,"County of Suffolk",8.6249999999999993E-2,"Holtsville","Suffolk","Out of Territory","Syracuse"]
[6390,"County of Suffolk",8.6249999999999993E-2,"Fishers Island","Suffolk","Out of Territory","Syracuse"]
[12760,"County of Sullivan",0.08,"Long Eddy","Sullivan","Central","Binghamton"]
[12785,"County of Sullivan",0.08,"Westbrookville","Sullivan","Out of Territory","Syracuse"]
[12701,"County of Sullivan",0.08,"Monticello","Sullivan","Eastern","Albany"]
[12719,"County of Sullivan",0.08,"Barryville","Sullivan","Eastern","Albany"]
[12720,"County of Sullivan",0.08,"Bethel","Sullivan","Eastern","Albany"]
[12721,"County of Sullivan",0.08,"Bloomingburg","Sullivan","Eastern","Albany"]
[12722,"County of Sullivan",0.08,"Burlingham","Sullivan","Eastern","Albany"]
[12723,"County of Sullivan",0.08,"Callicoon","Sullivan","Eastern","Albany"]
[12724,"County of Sullivan",0.08,"Callicoon Center","Sullivan","Eastern","Albany"]
[12725,"County of Sullivan",0.08,"Claryville","Sullivan","Eastern","Albany"]
[12726,"County of Sullivan",0.08,"Cochecton","Sullivan","Eastern","Albany"]
[12732,"County of Sullivan",0.08,"Eldred","Sullivan","Eastern","Albany"]
[12733,"County of Sullivan",0.08,"Fallsburg","Sullivan","Eastern","Albany"]
[12734,"County of Sullivan",0.08,"Ferndale","Sullivan","Eastern","Albany"]
[12736,"County of Sullivan",0.08,"Fremont Center","Sullivan","Eastern","Albany"]
[12737,"County of Sullivan",0.08,"Glen Spey","Sullivan","Eastern","Albany"]
[12738,"County of Sullivan",0.08,"Glen Wild","Sullivan","Eastern","Albany"]
[12740,"County of Sullivan",0.08,"Grahamsville","Sullivan","Eastern","Albany"]
[12741,"County of Sullivan",0.08,"Hankins","Sullivan","Eastern","Albany"]
[12742,"County of Sullivan",0.08,"Harris","Sullivan","Eastern","Albany"]
[12743,"County of Sullivan",0.08,"Highland Lake","Sullivan","Eastern","Albany"]
[12745,"County of Sullivan",0.08,"Hortonville","Sullivan","Eastern","Albany"]
[12747,"County of Sullivan",0.08,"Hurleyville","Sullivan","Eastern","Albany"]
[12748,"County of Sullivan",0.08,"Jeffersonville","Sullivan","Eastern","Albany"]
[12749,"County of Sullivan",0.08,"Kauneonga Lake","Sullivan","Eastern","Albany"]
[12750,"County of Sullivan",0.08,"Kenoza Lake","Sullivan","Eastern","Albany"]
[12751,"County of Sullivan",0.08,"Kiamesha Lake","Sullivan","Eastern","Albany"]
[12752,"County of Sullivan",0.08,"Lake Huntington","Sullivan","Eastern","Albany"]
[12754,"County of Sullivan",0.08,"Liberty","Sullivan","Eastern","Albany"]
[12758,"County of Sullivan",0.08,"Livingston Manor","Sullivan","Eastern","Albany"]
[12759,"County of Sullivan",0.08,"Loch Sheldrake","Sullivan","Eastern","Albany"]
[12762,"County of Sullivan",0.08,"Mongaup Valley","Sullivan","Eastern","Albany"]
[12763,"County of Sullivan",0.08,"Mountain Dale","Sullivan","Eastern","Albany"]
[12764,"County of Sullivan",0.08,"Narrowsburg","Sullivan","Eastern","Albany"]
[12765,"County of Sullivan",0.08,"Neversink","Sullivan","Eastern","Albany"]
[12766,"County of Sullivan",0.08,"North Branch","Sullivan","Eastern","Albany"]
[12767,"County of Sullivan",0.08,"Obernburg","Sullivan","Eastern","Albany"]
[12768,"County of Sullivan",0.08,"Parksville","Sullivan","Eastern","Albany"]
[12769,"County of Sullivan",0.08,"Phillipsport","Sullivan","Eastern","Albany"]
[12770,"County of Sullivan",0.08,"Pond Eddy","Sullivan","Eastern","Albany"]
[12775,"County of Sullivan",0.08,"Rock Hill","Sullivan","Eastern","Albany"]
[12776,"County of Sullivan",0.08,"Roscoe","Sullivan","Eastern","Albany"]
[12777,"County of Sullivan",0.08,"Forestburgh","Sullivan","Eastern","Albany"]
[12778,"County of Sullivan",0.08,"Smallwood","Sullivan","Eastern","Albany"]
[12779,"County of Sullivan",0.08,"South Fallsburg","Sullivan","Eastern","Albany"]
[12781,"County of Sullivan",0.08,"Summitville","Sullivan","Eastern","Albany"]
[12783,"County of Sullivan",0.08,"Swan Lake","Sullivan","Eastern","Albany"]
[12784,"County of Sullivan",0.08,"Thompsonville","Sullivan","Eastern","Albany"]
[12786,"County of Sullivan",0.08,"White Lake","Sullivan","Eastern","Albany"]
[12787,"County of Sullivan",0.08,"White Sulphur Springs","Sullivan","Eastern","Albany"]
[12788,"County of Sullivan",0.08,"Woodbourne","Sullivan","Eastern","Albany"]
[12789,"County of Sullivan",0.08,"Woodridge","Sullivan","Eastern","Albany"]
[12790,"County of Sullivan",0.08,"Wurtsboro","Sullivan","Eastern","Albany"]
[12791,"County of Sullivan",0.08,"Youngsville","Sullivan","Eastern","Albany"]
[12792,"County of Sullivan",0.08,"Yulan","Sullivan","Eastern","Albany"]
[17731,"State of Pennsylvania",0.06,"Eagles Mere","Sullivan","Out of Territory","Syracuse"]
[17758,"State of Pennsylvania",0.06,"Muncy Valley","Sullivan","Out of Territory","Syracuse"]
[17768,"State of Pennsylvania",0.06,"Shunk","Sullivan","Out of Territory","Syracuse"]
[18614,"State of Pennsylvania",0.06,"Dushore","Sullivan","Out of Territory","Syracuse"]
[18616,"State of Pennsylvania",0.06,"Forksville","Sullivan","Out of Territory","Syracuse"]
[18619,"State of Pennsylvania",0.06,"Hillsgrove","Sullivan","Out of Territory","Syracuse"]
[18626,"State of Pennsylvania",0.06,"Laporte","Sullivan","Out of Territory","Syracuse"]
[18628,"State of Pennsylvania",0.06,"Lopez","Sullivan","Out of Territory","Syracuse"]
[18632,"State of Pennsylvania",0.06,"Mildred","Sullivan","Out of Territory","Syracuse"]
[18413,"State of Pennsylvania",0.06,"Clifford","Susquehanna","Central","Binghamton"]
[18421,"State of Pennsylvania",0.06,"Forest City","Susquehanna","Central","Binghamton"]
[18430,"State of Pennsylvania",0.06,"Herrick Center","Susquehanna","Central","Binghamton"]
[18441,"State of Pennsylvania",0.06,"Lenoxville","Susquehanna","Central","Binghamton"]
[18465,"State of Pennsylvania",0.06,"Thompson","Susquehanna","Central","Binghamton"]
[18470,"State of Pennsylvania",0.06,"Union Dale","Susquehanna","Central","Binghamton"]
[18801,"State of Pennsylvania",0.06,"Montrose","Susquehanna","Central","Binghamton"]
[18812,"State of Pennsylvania",0.06,"Brackney","Susquehanna","Central","Binghamton"]
[18813,"State of Pennsylvania",0.06,"Brooklyn","Susquehanna","Central","Binghamton"]
[18816,"State of Pennsylvania",0.06,"Dimock","Susquehanna","Central","Binghamton"]
[18818,"State of Pennsylvania",0.06,"Friendsville","Susquehanna","Central","Binghamton"]
[18820,"State of Pennsylvania",0.06,"Gibson","Susquehanna","Central","Binghamton"]
[18821,"State of Pennsylvania",0.06,"Great Bend","Susquehanna","Central","Binghamton"]
[18822,"State of Pennsylvania",0.06,"Hallstead","Susquehanna","Central","Binghamton"]
[18823,"State of Pennsylvania",0.06,"Harford","Susquehanna","Central","Binghamton"]
[18824,"State of Pennsylvania",0.06,"Hop Bottom","Susquehanna","Central","Binghamton"]
[18825,"State of Pennsylvania",0.06,"Jackson","Susquehanna","Central","Binghamton"]
[18826,"State of Pennsylvania",0.06,"Kingsley","Susquehanna","Central","Binghamton"]
[18827,"State of Pennsylvania",0.06,"Lanesboro","Susquehanna","Central","Binghamton"]
[18828,"State of Pennsylvania",0.06,"Lawton","Susquehanna","Central","Binghamton"]
[18830,"State of Pennsylvania",0.06,"Little Meadows","Susquehanna","Central","Binghamton"]
[18834,"State of Pennsylvania",0.06,"New Milford","Susquehanna","Central","Binghamton"]
[18842,"State of Pennsylvania",0.06,"South Gibson","Susquehanna","Central","Binghamton"]
[18843,"State of Pennsylvania",0.06,"South Montrose","Susquehanna","Central","Binghamton"]
[18844,"State of Pennsylvania",0.06,"Springville","Susquehanna","Central","Binghamton"]
[18847,"State of Pennsylvania",0.06,"Susquehanna","Susquehanna","Central","Binghamton"]
[13732,"County of Tioga",0.08,"Apalachin","Tioga","Central","Binghamton"]
[13734,"County of Tioga",0.08,"Barton","Tioga","Central","Binghamton"]
[13736,"County of Tioga",0.08,"Berkshire","Tioga","Central","Binghamton"]
[13743,"County of Tioga",0.08,"Candor","Tioga","Central","Binghamton"]
[13811,"County of Tioga",0.08,"Newark Valley","Tioga","Central","Binghamton"]
[13812,"County of Tioga",0.08,"Nichols","Tioga","Central","Binghamton"]
[13827,"County of Tioga",0.08,"Owego","Tioga","Central","Binghamton"]
[13835,"County of Tioga",0.08,"Richford","Tioga","Central","Binghamton"]
[13840,"County of Tioga",0.08,"Smithboro","Tioga","Central","Binghamton"]
[13845,"County of Tioga",0.08,"Tioga Center","Tioga","Central","Binghamton"]
[13864,"County of Tioga",0.08,"Willseyville","Tioga","Central","Binghamton"]
[14859,"County of Tioga",0.08,"Lockwood","Tioga","Central","Binghamton"]
[14883,"County of Tioga",0.08,"Spencer","Tioga","Central","Binghamton"]
[14892,"County of Tioga",0.08,"Waverly","Tioga","Central","Binghamton"]
[16901,"State of Pennsylvania",0.06,"Wellsboro","Tioga","Central","Binghamton"]
[16911,"State of Pennsylvania",0.06,"Arnot","Tioga","Central","Binghamton"]
[16912,"State of Pennsylvania",0.06,"Blossburg","Tioga","Central","Binghamton"]
[16917,"State of Pennsylvania",0.06,"Covington","Tioga","Central","Binghamton"]
[16920,"State of Pennsylvania",0.06,"Elkland","Tioga","Central","Binghamton"]
[16921,"State of Pennsylvania",0.06,"Gaines","Tioga","Central","Binghamton"]
[16928,"State of Pennsylvania",0.06,"Knoxville","Tioga","Central","Binghamton"]
[16929,"State of Pennsylvania",0.06,"Lawrenceville","Tioga","Central","Binghamton"]
[16930,"State of Pennsylvania",0.06,"Liberty","Tioga","Central","Binghamton"]
[16932,"State of Pennsylvania",0.06,"Mainesburg","Tioga","Central","Binghamton"]
[16933,"State of Pennsylvania",0.06,"Mansfield","Tioga","Central","Binghamton"]
[16935,"State of Pennsylvania",0.06,"Middlebury Center","Tioga","Central","Binghamton"]
[16936,"State of Pennsylvania",0.06,"Millerton","Tioga","Central","Binghamton"]
[16938,"State of Pennsylvania",0.06,"Morris","Tioga","Central","Binghamton"]
[16939,"State of Pennsylvania",0.06,"Morris Run","Tioga","Central","Binghamton"]
[16940,"State of Pennsylvania",0.06,"Nelson","Tioga","Central","Binghamton"]
[16942,"State of Pennsylvania",0.06,"Osceola","Tioga","Central","Binghamton"]
[16943,"State of Pennsylvania",0.06,"Sabinsville","Tioga","Central","Binghamton"]
[16946,"State of Pennsylvania",0.06,"Tioga","Tioga","Central","Binghamton"]
[16950,"State of Pennsylvania",0.06,"Westfield","Tioga","Central","Binghamton"]
[17765,"State of Pennsylvania",0.06,"Roaring Branch","Tioga","Central","Binghamton"]
[14851,"City of Ithaca",0.08,"Ithaca","Tompkins","Central","Binghamton"]
[14853,"City of Ithaca",0.08,"Ithaca","Tompkins","Central","Binghamton"]
[14850,"City of Ithaca",0.08,"Ithaca","Tompkins","Central","Binghamton"]
[14852,"City of Ithaca",0.08,"Ithaca","Tompkins","Central","Binghamton"]
[13053,"County of Tompkins",0.08,"Dryden","Tompkins","Central","Binghamton"]
[13062,"County of Tompkins",0.08,"Etna","Tompkins","Central","Binghamton"]
[13068,"County of Tompkins",0.08,"Freeville","Tompkins","Central","Binghamton"]
[13073,"County of Tompkins",0.08,"Groton","Tompkins","Central","Binghamton"]
[13102,"County of Tompkins",0.08,"Mc Lean","Tompkins","Central","Binghamton"]
[14817,"County of Tompkins",0.08,"Brooktondale","Tompkins","Central","Binghamton"]
[14854,"County of Tompkins",0.08,"Jacksonville","Tompkins","Central","Binghamton"]
[14867,"County of Tompkins",0.08,"Newfield","Tompkins","Central","Binghamton"]
[14881,"County of Tompkins",0.08,"Slaterville Springs","Tompkins","Central","Binghamton"]
[14882,"County of Tompkins",0.08,"Lansing","Tompkins","Central","Binghamton"]
[14886,"County of Tompkins",0.08,"Trumansburg","Tompkins","Central","Binghamton"]
[12401,"County of Ulster",0.08,"Kingston","Ulster","Eastern","Albany"]
[12402,"County of Ulster",0.08,"Kingston","Ulster","Eastern","Albany"]
[12404,"County of Ulster",0.08,"Accord","Ulster","Eastern","Albany"]
[12409,"County of Ulster",0.08,"Bearsville","Ulster","Eastern","Albany"]
[12410,"County of Ulster",0.08,"Big Indian","Ulster","Eastern","Albany"]
[12411,"County of Ulster",0.08,"Bloomington","Ulster","Eastern","Albany"]
[12412,"County of Ulster",0.08,"Boiceville","Ulster","Eastern","Albany"]
[12416,"County of Ulster",0.08,"Chichester","Ulster","Eastern","Albany"]
[12417,"County of Ulster",0.08,"Connelly","Ulster","Eastern","Albany"]
[12419,"County of Ulster",0.08,"Cottekill","Ulster","Eastern","Albany"]
[12420,"County of Ulster",0.08,"Cragsmoor","Ulster","Eastern","Albany"]
[12428,"County of Ulster",0.08,"Ellenville","Ulster","Eastern","Albany"]
[12429,"County of Ulster",0.08,"Esopus","Ulster","Eastern","Albany"]
[12432,"County of Ulster",0.08,"Glasco","Ulster","Eastern","Albany"]
[12433,"County of Ulster",0.08,"Glenford","Ulster","Eastern","Albany"]
[12435,"County of Ulster",0.08,"Greenfield Park","Ulster","Eastern","Albany"]
[12440,"County of Ulster",0.08,"High Falls","Ulster","Eastern","Albany"]
[12441,"County of Ulster",0.08,"Highmount","Ulster","Eastern","Albany"]
[12443,"County of Ulster",0.08,"Hurley","Ulster","Eastern","Albany"]
[12446,"County of Ulster",0.08,"Kerhonkson","Ulster","Eastern","Albany"]
[12448,"County of Ulster",0.08,"Lake Hill","Ulster","Eastern","Albany"]
[12449,"County of Ulster",0.08,"Lake Katrine","Ulster","Eastern","Albany"]
[12453,"County of Ulster",0.08,"Malden On Hudson","Ulster","Eastern","Albany"]
[12456,"County of Ulster",0.08,"Mount Marion","Ulster","Eastern","Albany"]
[12457,"County of Ulster",0.08,"Mount Tremper","Ulster","Eastern","Albany"]
[12458,"County of Ulster",0.08,"Napanoch","Ulster","Eastern","Albany"]
[12461,"County of Ulster",0.08,"Olivebridge","Ulster","Eastern","Albany"]
[12464,"County of Ulster",0.08,"Phoenicia","Ulster","Eastern","Albany"]
[12465,"County of Ulster",0.08,"Pine Hill","Ulster","Eastern","Albany"]
[12466,"County of Ulster",0.08,"Port Ewen","Ulster","Eastern","Albany"]
[12471,"County of Ulster",0.08,"Rifton","Ulster","Eastern","Albany"]
[12472,"County of Ulster",0.08,"Rosendale","Ulster","Eastern","Albany"]
[12475,"County of Ulster",0.08,"Ruby","Ulster","Eastern","Albany"]
[12477,"County of Ulster",0.08,"Saugerties","Ulster","Eastern","Albany"]
[12480,"County of Ulster",0.08,"Shandaken","Ulster","Eastern","Albany"]
[12481,"County of Ulster",0.08,"Shokan","Ulster","Eastern","Albany"]
[12483,"County of Ulster",0.08,"Spring Glen","Ulster","Eastern","Albany"]
[12484,"County of Ulster",0.08,"Stone Ridge","Ulster","Eastern","Albany"]
[12486,"County of Ulster",0.08,"Tillson","Ulster","Eastern","Albany"]
[12487,"County of Ulster",0.08,"Ulster Park","Ulster","Eastern","Albany"]
[12489,"County of Ulster",0.08,"Wawarsing","Ulster","Eastern","Albany"]
[12490,"County of Ulster",0.08,"West Camp","Ulster","Eastern","Albany"]
[12491,"County of Ulster",0.08,"West Hurley","Ulster","Eastern","Albany"]
[12493,"County of Ulster",0.08,"West Park","Ulster","Eastern","Albany"]
[12494,"County of Ulster",0.08,"West Shokan","Ulster","Eastern","Albany"]
[12495,"County of Ulster",0.08,"Willow","Ulster","Eastern","Albany"]
[12498,"County of Ulster",0.08,"Woodstock","Ulster","Eastern","Albany"]
[12515,"County of Ulster",0.08,"Clintondale","Ulster","Eastern","Albany"]
[12525,"County of Ulster",0.08,"Gardiner","Ulster","Eastern","Albany"]
[12528,"County of Ulster",0.08,"Highland","Ulster","Eastern","Albany"]
[12542,"County of Ulster",0.08,"Marlboro","Ulster","Eastern","Albany"]
[12547,"County of Ulster",0.08,"Milton","Ulster","Eastern","Albany"]
[12548,"County of Ulster",0.08,"Modena","Ulster","Eastern","Albany"]
[12561,"County of Ulster",0.08,"New Paltz","Ulster","Eastern","Albany"]
[12568,"County of Ulster",0.08,"Plattekill","Ulster","Eastern","Albany"]
[12588,"County of Ulster",0.08,"Walker Valley","Ulster","Eastern","Albany"]
[12589,"County of Ulster",0.08,"Wallkill","Ulster","Eastern","Albany"]
[17810,"State of Pennsylvania",0.06,"Allenwood","Union","Out of Territory","Syracuse"]
[17829,"State of Pennsylvania",0.06,"Hartleton","Union","Out of Territory","Syracuse"]
[17835,"State of Pennsylvania",0.06,"Laurelton","Union","Out of Territory","Syracuse"]
[17837,"State of Pennsylvania",0.06,"Lewisburg","Union","Out of Territory","Syracuse"]
[17844,"State of Pennsylvania",0.06,"Mifflinburg","Union","Out of Territory","Syracuse"]
[17845,"State of Pennsylvania",0.06,"Millmont","Union","Out of Territory","Syracuse"]
[17855,"State of Pennsylvania",0.06,"New Berlin","Union","Out of Territory","Syracuse"]
[17856,"State of Pennsylvania",0.06,"New Columbia","Union","Out of Territory","Syracuse"]
[17880,"State of Pennsylvania",0.06,"Swengel","Union","Out of Territory","Syracuse"]
[17883,"State of Pennsylvania",0.06,"Vicksburg","Union","Out of Territory","Syracuse"]
[17885,"State of Pennsylvania",0.06,"Weikert","Union","Out of Territory","Syracuse"]
[17886,"State of Pennsylvania",0.06,"West Milton","Union","Out of Territory","Syracuse"]
[17887,"State of Pennsylvania",0.06,"White Deer","Union","Out of Territory","Syracuse"]
[17889,"State of Pennsylvania",0.06,"Winfield","Union","Out of Territory","Syracuse"]
[16301,"State of Pennsylvania",0.06,"Oil City","Venango","Out of Territory","Syracuse"]
[16317,"State of Pennsylvania",0.06,"Cooperstown","Venango","Out of Territory","Syracuse"]
[16319,"State of Pennsylvania",0.06,"Cranberry","Venango","Out of Territory","Syracuse"]
[16323,"State of Pennsylvania",0.06,"Franklin","Venango","Out of Territory","Syracuse"]
[16341,"State of Pennsylvania",0.06,"Pleasantville","Venango","Out of Territory","Syracuse"]
[16342,"State of Pennsylvania",0.06,"Polk","Venango","Out of Territory","Syracuse"]
[16343,"State of Pennsylvania",0.06,"Reno","Venango","Out of Territory","Syracuse"]
[16344,"State of Pennsylvania",0.06,"Rouseville","Venango","Out of Territory","Syracuse"]
[16346,"State of Pennsylvania",0.06,"Seneca","Venango","Out of Territory","Syracuse"]
[16362,"State of Pennsylvania",0.06,"Utica","Venango","Out of Territory","Syracuse"]
[16364,"State of Pennsylvania",0.06,"Venus","Venango","Out of Territory","Syracuse"]
[16372,"State of Pennsylvania",0.06,"Clintonville","Venango","Out of Territory","Syracuse"]
[16373,"State of Pennsylvania",0.06,"Emlenton","Venango","Out of Territory","Syracuse"]
[16374,"State of Pennsylvania",0.06,"Kennerdell","Venango","Out of Territory","Syracuse"]
[12801,"City of Glens Falls",7.0000000000000007E-2,"Glens Falls","Warren","Eastern","Albany"]
[12804,"County of Warren",7.0000000000000007E-2,"Queensbury","Warren","Eastern","Albany"]
[12808,"County of Warren",7.0000000000000007E-2,"Adirondack","Warren","Eastern","Albany"]
[12810,"County of Warren",7.0000000000000007E-2,"Athol","Warren","Eastern","Albany"]
[12811,"County of Warren",7.0000000000000007E-2,"Bakers Mills","Warren","Eastern","Albany"]
[12814,"County of Warren",7.0000000000000007E-2,"Bolton Landing","Warren","Eastern","Albany"]
[12815,"County of Warren",7.0000000000000007E-2,"Brant Lake","Warren","Eastern","Albany"]
[12817,"County of Warren",7.0000000000000007E-2,"Chestertown","Warren","Eastern","Albany"]
[12820,"County of Warren",7.0000000000000007E-2,"Cleverdale","Warren","Eastern","Albany"]
[12824,"County of Warren",7.0000000000000007E-2,"Diamond Point","Warren","Eastern","Albany"]
[12836,"County of Warren",7.0000000000000007E-2,"Hague","Warren","Eastern","Albany"]
[12843,"County of Warren",7.0000000000000007E-2,"Johnsburg","Warren","Eastern","Albany"]
[12845,"County of Warren",7.0000000000000007E-2,"Lake George","Warren","Eastern","Albany"]
[12846,"County of Warren",7.0000000000000007E-2,"Lake Luzerne","Warren","Eastern","Albany"]
[12853,"County of Warren",7.0000000000000007E-2,"North Creek","Warren","Eastern","Albany"]
[12856,"County of Warren",7.0000000000000007E-2,"North River","Warren","Eastern","Albany"]
[12860,"County of Warren",7.0000000000000007E-2,"Pottersville","Warren","Eastern","Albany"]
[12862,"County of Warren",7.0000000000000007E-2,"Riparius","Warren","Eastern","Albany"]
[12874,"County of Warren",7.0000000000000007E-2,"Silver Bay","Warren","Eastern","Albany"]
[12878,"County of Warren",7.0000000000000007E-2,"Stony Creek","Warren","Eastern","Albany"]
[12885,"County of Warren",7.0000000000000007E-2,"Warrensburg","Warren","Eastern","Albany"]
[12886,"County of Warren",7.0000000000000007E-2,"Wevertown","Warren","Eastern","Albany"]
[12844,"County of Warren",7.0000000000000007E-2,"Kattskill Bay","Warren","Eastern","Albany"]
[16312,"State of Pennsylvania",0.06,"Chandlers Valley","Warren","Western","Jamestown"]
[16313,"State of Pennsylvania",0.06,"Clarendon","Warren","Western","Jamestown"]
[16329,"State of Pennsylvania",0.06,"Irvine","Warren","Western","Jamestown"]
[16340,"State of Pennsylvania",0.06,"Pittsfield","Warren","Western","Jamestown"]
[16345,"State of Pennsylvania",0.06,"Russell","Warren","Western","Jamestown"]
[16347,"State of Pennsylvania",0.06,"Sheffield","Warren","Western","Jamestown"]
[16350,"State of Pennsylvania",0.06,"Sugar Grove","Warren","Western","Jamestown"]
[16351,"State of Pennsylvania",0.06,"Tidioute","Warren","Western","Jamestown"]
[16352,"State of Pennsylvania",0.06,"Tiona","Warren","Western","Jamestown"]
[16365,"State of Pennsylvania",0.06,"Warren","Warren","Western","Jamestown"]
[16366,"State of Pennsylvania",0.06,"Warren","Warren","Western","Jamestown"]
[16367,"State of Pennsylvania",0.06,"Warren","Warren","Western","Jamestown"]
[16368,"State of Pennsylvania",0.06,"Warren","Warren","Western","Jamestown"]
[16369,"State of Pennsylvania",0.06,"Warren","Warren","Western","Jamestown"]
[16371,"State of Pennsylvania",0.06,"Youngsville","Warren","Western","Jamestown"]
[16402,"State of Pennsylvania",0.06,"Bear Lake","Warren","Western","Jamestown"]
[16405,"State of Pennsylvania",0.06,"Columbus","Warren","Western","Jamestown"]
[16416,"State of Pennsylvania",0.06,"Garland","Warren","Western","Jamestown"]
[16420,"State of Pennsylvania",0.06,"Grand Valley","Warren","Western","Jamestown"]
[16436,"State of Pennsylvania",0.06,"Spring Creek","Warren","Western","Jamestown"]
[12809,"County of Washington",7.0000000000000007E-2,"Argyle","Washington","Eastern","Albany"]
[12816,"County of Washington",7.0000000000000007E-2,"Cambridge","Washington","Eastern","Albany"]
[12819,"County of Washington",7.0000000000000007E-2,"Clemons","Washington","Eastern","Albany"]
[12821,"County of Washington",7.0000000000000007E-2,"Comstock","Washington","Eastern","Albany"]
[12823,"County of Washington",7.0000000000000007E-2,"Cossayuna","Washington","Eastern","Albany"]
[12827,"County of Washington",7.0000000000000007E-2,"Fort Ann","Washington","Eastern","Albany"]
[12828,"County of Washington",7.0000000000000007E-2,"Fort Edward","Washington","Eastern","Albany"]
[12832,"County of Washington",7.0000000000000007E-2,"Granville","Washington","Eastern","Albany"]
[12834,"County of Washington",7.0000000000000007E-2,"Greenwich","Washington","Eastern","Albany"]
[12837,"County of Washington",7.0000000000000007E-2,"Hampton","Washington","Eastern","Albany"]
[12838,"County of Washington",7.0000000000000007E-2,"Hartford","Washington","Eastern","Albany"]
[12839,"County of Washington",7.0000000000000007E-2,"Hudson Falls","Washington","Eastern","Albany"]
[12841,"County of Washington",7.0000000000000007E-2,"Huletts Landing","Washington","Eastern","Albany"]
[12848,"County of Washington",7.0000000000000007E-2,"Middle Falls","Washington","Eastern","Albany"]
[12849,"County of Washington",7.0000000000000007E-2,"Middle Granville","Washington","Eastern","Albany"]
[12854,"County of Washington",7.0000000000000007E-2,"North Granville","Washington","Eastern","Albany"]
[12861,"County of Washington",7.0000000000000007E-2,"Putnam Station","Washington","Eastern","Albany"]
[12865,"County of Washington",7.0000000000000007E-2,"Salem","Washington","Eastern","Albany"]
[12873,"County of Washington",7.0000000000000007E-2,"Shushan","Washington","Eastern","Albany"]
[12887,"County of Washington",7.0000000000000007E-2,"Whitehall","Washington","Eastern","Albany"]
[15004,"State of Pennsylvania",0.06,"Atlasburg","Washington","Out of Territory","Syracuse"]
[15019,"State of Pennsylvania",0.06,"Bulger","Washington","Out of Territory","Syracuse"]
[15021,"State of Pennsylvania",0.06,"Burgettstown","Washington","Out of Territory","Syracuse"]
[15022,"State of Pennsylvania",0.06,"Charleroi","Washington","Out of Territory","Syracuse"]
[15033,"State of Pennsylvania",0.06,"Donora","Washington","Out of Territory","Syracuse"]
[15038,"State of Pennsylvania",0.06,"Elrama","Washington","Out of Territory","Syracuse"]
[15053,"State of Pennsylvania",0.06,"Joffre","Washington","Out of Territory","Syracuse"]
[15054,"State of Pennsylvania",0.06,"Langeloth","Washington","Out of Territory","Syracuse"]
[15055,"State of Pennsylvania",0.06,"Lawrence","Washington","Out of Territory","Syracuse"]
[15057,"State of Pennsylvania",0.06,"Mc Donald","Washington","Out of Territory","Syracuse"]
[15060,"State of Pennsylvania",0.06,"Midway","Washington","Out of Territory","Syracuse"]
[15063,"State of Pennsylvania",0.06,"Monongahela","Washington","Out of Territory","Syracuse"]
[15067,"State of Pennsylvania",0.06,"New Eagle","Washington","Out of Territory","Syracuse"]
[15078,"State of Pennsylvania",0.06,"Slovan","Washington","Out of Territory","Syracuse"]
[15301,"State of Pennsylvania",0.06,"Washington","Washington","Out of Territory","Syracuse"]
[15311,"State of Pennsylvania",0.06,"Amity","Washington","Out of Territory","Syracuse"]
[15312,"State of Pennsylvania",0.06,"Avella","Washington","Out of Territory","Syracuse"]
[15313,"State of Pennsylvania",0.06,"Beallsville","Washington","Out of Territory","Syracuse"]
[15314,"State of Pennsylvania",0.06,"Bentleyville","Washington","Out of Territory","Syracuse"]
[15317,"State of Pennsylvania",0.06,"Canonsburg","Washington","Out of Territory","Syracuse"]
[15321,"State of Pennsylvania",0.06,"Cecil","Washington","Out of Territory","Syracuse"]
[15323,"State of Pennsylvania",0.06,"Claysville","Washington","Out of Territory","Syracuse"]
[15324,"State of Pennsylvania",0.06,"Cokeburg","Washington","Out of Territory","Syracuse"]
[15329,"State of Pennsylvania",0.06,"Prosperity","Washington","Out of Territory","Syracuse"]
[15330,"State of Pennsylvania",0.06,"Eighty Four","Washington","Out of Territory","Syracuse"]
[15331,"State of Pennsylvania",0.06,"Ellsworth","Washington","Out of Territory","Syracuse"]
[15332,"State of Pennsylvania",0.06,"Finleyville","Washington","Out of Territory","Syracuse"]
[15333,"State of Pennsylvania",0.06,"Fredericktown","Washington","Out of Territory","Syracuse"]
[15336,"State of Pennsylvania",0.06,"Gastonville","Washington","Out of Territory","Syracuse"]
[15339,"State of Pennsylvania",0.06,"Hendersonville","Washington","Out of Territory","Syracuse"]
[15340,"State of Pennsylvania",0.06,"Hickory","Washington","Out of Territory","Syracuse"]
[15342,"State of Pennsylvania",0.06,"Houston","Washington","Out of Territory","Syracuse"]
[15345,"State of Pennsylvania",0.06,"Marianna","Washington","Out of Territory","Syracuse"]
[15347,"State of Pennsylvania",0.06,"Meadow Lands","Washington","Out of Territory","Syracuse"]
[15348,"State of Pennsylvania",0.06,"Millsboro","Washington","Out of Territory","Syracuse"]
[15350,"State of Pennsylvania",0.06,"Muse","Washington","Out of Territory","Syracuse"]
[15358,"State of Pennsylvania",0.06,"Richeyville","Washington","Out of Territory","Syracuse"]
[15360,"State of Pennsylvania",0.06,"Scenery Hill","Washington","Out of Territory","Syracuse"]
[15361,"State of Pennsylvania",0.06,"Southview","Washington","Out of Territory","Syracuse"]
[15363,"State of Pennsylvania",0.06,"Strabane","Washington","Out of Territory","Syracuse"]
[15365,"State of Pennsylvania",0.06,"Taylorstown","Washington","Out of Territory","Syracuse"]
[15366,"State of Pennsylvania",0.06,"Van Voorhis","Washington","Out of Territory","Syracuse"]
[15367,"State of Pennsylvania",0.06,"Venetia","Washington","Out of Territory","Syracuse"]
[15368,"State of Pennsylvania",0.06,"Vestaburg","Washington","Out of Territory","Syracuse"]
[15376,"State of Pennsylvania",0.06,"West Alexander","Washington","Out of Territory","Syracuse"]
[15377,"State of Pennsylvania",0.06,"West Finley","Washington","Out of Territory","Syracuse"]
[15378,"State of Pennsylvania",0.06,"Westland","Washington","Out of Territory","Syracuse"]
[15379,"State of Pennsylvania",0.06,"West Middletown","Washington","Out of Territory","Syracuse"]
[15412,"State of Pennsylvania",0.06,"Allenport","Washington","Out of Territory","Syracuse"]
[15419,"State of Pennsylvania",0.06,"California","Washington","Out of Territory","Syracuse"]
[15423,"State of Pennsylvania",0.06,"Coal Center","Washington","Out of Territory","Syracuse"]
[15427,"State of Pennsylvania",0.06,"Daisytown","Washington","Out of Territory","Syracuse"]
[15429,"State of Pennsylvania",0.06,"Denbo","Washington","Out of Territory","Syracuse"]
[15432,"State of Pennsylvania",0.06,"Dunlevy","Washington","Out of Territory","Syracuse"]
[15434,"State of Pennsylvania",0.06,"Elco","Washington","Out of Territory","Syracuse"]
[15477,"State of Pennsylvania",0.06,"Roscoe","Washington","Out of Territory","Syracuse"]
[15483,"State of Pennsylvania",0.06,"Stockdale","Washington","Out of Territory","Syracuse"]
[5601,"State of Vermont",0.06,"Montpelier","Washington","Eastern","Burlington"]
[5602,"State of Vermont",0.06,"Montpelier","Washington","Eastern","Burlington"]
[5603,"State of Vermont",0.06,"Montpelier","Washington","Eastern","Burlington"]
[5604,"State of Vermont",0.06,"Montpelier","Washington","Eastern","Burlington"]
[5609,"State of Vermont",0.06,"Montpelier","Washington","Eastern","Burlington"]
[5620,"State of Vermont",0.06,"Montpelier","Washington","Eastern","Burlington"]
[5633,"State of Vermont",0.06,"Montpelier","Washington","Eastern","Burlington"]
[5640,"State of Vermont",0.06,"Adamant","Washington","Eastern","Burlington"]
[5641,"State of Vermont",0.06,"Barre","Washington","Eastern","Burlington"]
[5647,"State of Vermont",0.06,"Cabot","Washington","Eastern","Burlington"]
[5648,"State of Vermont",0.06,"Calais","Washington","Eastern","Burlington"]
[5649,"State of Vermont",0.06,"East Barre","Washington","Eastern","Burlington"]
[5650,"State of Vermont",0.06,"East Calais","Washington","Eastern","Burlington"]
[5651,"State of Vermont",0.06,"East Montpelier","Washington","Eastern","Burlington"]
[5654,"State of Vermont",0.06,"Graniteville","Washington","Eastern","Burlington"]
[5658,"State of Vermont",0.06,"Marshfield","Washington","Eastern","Burlington"]
[5660,"State of Vermont",0.06,"Moretown","Washington","Eastern","Burlington"]
[5663,"State of Vermont",0.06,"Northfield","Washington","Eastern","Burlington"]
[5664,"State of Vermont",0.06,"Northfield Falls","Washington","Eastern","Burlington"]
[5666,"State of Vermont",0.06,"North Montpelier","Washington","Eastern","Burlington"]
[5667,"State of Vermont",0.06,"Plainfield","Washington","Eastern","Burlington"]
[5670,"State of Vermont",0.06,"South Barre","Washington","Eastern","Burlington"]
[5671,"State of Vermont",0.06,"Waterbury","Washington","Eastern","Burlington"]
[5673,"State of Vermont",0.06,"Waitsfield","Washington","Eastern","Burlington"]
[5674,"State of Vermont",0.06,"Warren","Washington","Eastern","Burlington"]
[5676,"State of Vermont",0.06,"Waterbury","Washington","Eastern","Burlington"]
[5677,"State of Vermont",0.06,"Waterbury Center","Washington","Eastern","Burlington"]
[5678,"State of Vermont",0.06,"Websterville","Washington","Eastern","Burlington"]
[5681,"State of Vermont",0.06,"Woodbury","Washington","Eastern","Burlington"]
[5682,"State of Vermont",0.06,"Worcester","Washington","Eastern","Burlington"]
[13143,"County of Wayne",0.08,"Red Creek","Wayne","Western","Rochester"]
[13146,"County of Wayne",0.08,"Savannah","Wayne","Western","Rochester"]
[13154,"County of Wayne",0.08,"South Butler","Wayne","Western","Rochester"]
[14413,"County of Wayne",0.08,"Alton","Wayne","Western","Rochester"]
[14433,"County of Wayne",0.08,"Clyde","Wayne","Western","Rochester"]
[14449,"County of Wayne",0.08,"East Williamson","Wayne","Western","Rochester"]
[14489,"County of Wayne",0.08,"Lyons","Wayne","Western","Rochester"]
[14502,"County of Wayne",0.08,"Macedon","Wayne","Western","Rochester"]
[14505,"County of Wayne",0.08,"Marion","Wayne","Western","Rochester"]
[14513,"County of Wayne",0.08,"Newark","Wayne","Western","Rochester"]
[14516,"County of Wayne",0.08,"North Rose","Wayne","Western","Rochester"]
[14519,"County of Wayne",0.08,"Ontario","Wayne","Western","Rochester"]
[14520,"County of Wayne",0.08,"Ontario Center","Wayne","Western","Rochester"]
[14522,"County of Wayne",0.08,"Palmyra","Wayne","Western","Rochester"]
[14538,"County of Wayne",0.08,"Pultneyville","Wayne","Western","Rochester"]
[14542,"County of Wayne",0.08,"Rose","Wayne","Western","Rochester"]
[14551,"County of Wayne",0.08,"Sodus","Wayne","Western","Rochester"]
[14555,"County of Wayne",0.08,"Sodus Point","Wayne","Western","Rochester"]
[14563,"County of Wayne",0.08,"Union Hill","Wayne","Western","Rochester"]
[14568,"County of Wayne",0.08,"Walworth","Wayne","Western","Rochester"]
[14589,"County of Wayne",0.08,"Williamson","Wayne","Western","Rochester"]
[14590,"County of Wayne",0.08,"Wolcott","Wayne","Western","Rochester"]
[18424,"State of Pennsylvania",0.06,"Gouldsboro","Wayne","Out of Territory","Syracuse"]
[18405,"State of Pennsylvania",0.06,"Beach Lake","Wayne","Out of Territory","Syracuse"]
[18415,"State of Pennsylvania",0.06,"Damascus","Wayne","Out of Territory","Syracuse"]
[18417,"State of Pennsylvania",0.06,"Equinunk","Wayne","Out of Territory","Syracuse"]
[18427,"State of Pennsylvania",0.06,"Hamlin","Wayne","Out of Territory","Syracuse"]
[18431,"State of Pennsylvania",0.06,"Honesdale","Wayne","Out of Territory","Syracuse"]
[18436,"State of Pennsylvania",0.06,"Lake Ariel","Wayne","Out of Territory","Syracuse"]
[18437,"State of Pennsylvania",0.06,"Lake Como","Wayne","Out of Territory","Syracuse"]
[18438,"State of Pennsylvania",0.06,"Lakeville","Wayne","Out of Territory","Syracuse"]
[18439,"State of Pennsylvania",0.06,"Lakewood","Wayne","Out of Territory","Syracuse"]
[18443,"State of Pennsylvania",0.06,"Milanville","Wayne","Out of Territory","Syracuse"]
[18445,"State of Pennsylvania",0.06,"Newfoundland","Wayne","Out of Territory","Syracuse"]
[18449,"State of Pennsylvania",0.06,"Orson","Wayne","Out of Territory","Syracuse"]
[18453,"State of Pennsylvania",0.06,"Pleasant Mount","Wayne","Out of Territory","Syracuse"]
[18454,"State of Pennsylvania",0.06,"Poyntelle","Wayne","Out of Territory","Syracuse"]
[18455,"State of Pennsylvania",0.06,"Preston Park","Wayne","Out of Territory","Syracuse"]
[18456,"State of Pennsylvania",0.06,"Prompton","Wayne","Out of Territory","Syracuse"]
[18459,"State of Pennsylvania",0.06,"South Canaan","Wayne","Out of Territory","Syracuse"]
[18460,"State of Pennsylvania",0.06,"South Sterling","Wayne","Out of Territory","Syracuse"]
[18461,"State of Pennsylvania",0.06,"Starlight","Wayne","Out of Territory","Syracuse"]
[18462,"State of Pennsylvania",0.06,"Starrucca","Wayne","Out of Territory","Syracuse"]
[18463,"State of Pennsylvania",0.06,"Sterling","Wayne","Out of Territory","Syracuse"]
[18469,"State of Pennsylvania",0.06,"Tyler Hill","Wayne","Out of Territory","Syracuse"]
[18472,"State of Pennsylvania",0.06,"Waymart","Wayne","Out of Territory","Syracuse"]
[18473,"State of Pennsylvania",0.06,"White Mills","Wayne","Out of Territory","Syracuse"]
[10550,"City of Mount Vernon",8.3750000000000005E-2,"Mount Vernon","Westchester","Out of Territory","Syracuse"]
[10551,"City of Mount Vernon",8.3750000000000005E-2,"Mount Vernon","Westchester","Out of Territory","Syracuse"]
[10552,"City of Mount Vernon",8.3750000000000005E-2,"Mount Vernon","Westchester","Out of Territory","Syracuse"]
[10553,"City of Mount Vernon",8.3750000000000005E-2,"Mount Vernon","Westchester","Out of Territory","Syracuse"]
[10801,"City of New Rochelle",8.3750000000000005E-2,"New Rochelle","Westchester","Out of Territory","Syracuse"]
[10802,"City of New Rochelle",8.3750000000000005E-2,"New Rochelle","Westchester","Out of Territory","Syracuse"]
[10804,"City of New Rochelle",8.3750000000000005E-2,"New Rochelle","Westchester","Out of Territory","Syracuse"]
[10805,"City of New Rochelle",8.3750000000000005E-2,"New Rochelle","Westchester","Out of Territory","Syracuse"]
[10603,"City of White Plains",8.3750000000000005E-2,"White Plains","Westchester","Out of Territory","Syracuse"]
[10607,"City of White Plains",8.3750000000000005E-2,"White Plains","Westchester","Out of Territory","Syracuse"]
[10601,"City of White Plains",8.3750000000000005E-2,"White Plains","Westchester","Out of Territory","Syracuse"]
[10602,"City of White Plains",8.3750000000000005E-2,"White Plains","Westchester","Out of Territory","Syracuse"]
[10605,"City of White Plains",8.3750000000000005E-2,"White Plains","Westchester","Out of Territory","Syracuse"]
[10606,"City of White Plains",8.3750000000000005E-2,"White Plains","Westchester","Out of Territory","Syracuse"]
[10610,"City of White Plains",8.3750000000000005E-2,"White Plains","Westchester","Out of Territory","Syracuse"]
[10701,"City of Yonkers",8.8749999999999996E-2,"Yonkers","Westchester","Out of Territory","Syracuse"]
[10702,"City of Yonkers",8.8749999999999996E-2,"Yonkers","Westchester","Out of Territory","Syracuse"]
[10703,"City of Yonkers",8.8749999999999996E-2,"Yonkers","Westchester","Out of Territory","Syracuse"]
[10704,"City of Yonkers",8.8749999999999996E-2,"Yonkers","Westchester","Out of Territory","Syracuse"]
[10705,"City of Yonkers",8.8749999999999996E-2,"Yonkers","Westchester","Out of Territory","Syracuse"]
[10710,"City of Yonkers",8.8749999999999996E-2,"Yonkers","Westchester","Out of Territory","Syracuse"]
[10501,"County of Westchester",7.3749999999999996E-2,"Amawalk","Westchester","Out of Territory","Syracuse"]
[10502,"County of Westchester",7.3749999999999996E-2,"Ardsley","Westchester","Out of Territory","Syracuse"]
[10503,"County of Westchester",7.3749999999999996E-2,"Ardsley On Hudson","Westchester","Out of Territory","Syracuse"]
[10504,"County of Westchester",7.3749999999999996E-2,"Armonk","Westchester","Out of Territory","Syracuse"]
[10505,"County of Westchester",7.3749999999999996E-2,"Baldwin Place","Westchester","Out of Territory","Syracuse"]
[10506,"County of Westchester",7.3749999999999996E-2,"Bedford","Westchester","Out of Territory","Syracuse"]
[10507,"County of Westchester",7.3749999999999996E-2,"Bedford Hills","Westchester","Out of Territory","Syracuse"]
[10510,"County of Westchester",7.3749999999999996E-2,"Briarcliff Manor","Westchester","Out of Territory","Syracuse"]
[10511,"County of Westchester",7.3749999999999996E-2,"Buchanan","Westchester","Out of Territory","Syracuse"]
[10514,"County of Westchester",7.3749999999999996E-2,"Chappaqua","Westchester","Out of Territory","Syracuse"]
[10517,"County of Westchester",7.3749999999999996E-2,"Crompond","Westchester","Out of Territory","Syracuse"]
[10518,"County of Westchester",7.3749999999999996E-2,"Cross River","Westchester","Out of Territory","Syracuse"]
[10519,"County of Westchester",7.3749999999999996E-2,"Croton Falls","Westchester","Out of Territory","Syracuse"]
[10520,"County of Westchester",7.3749999999999996E-2,"Croton On Hudson","Westchester","Out of Territory","Syracuse"]
[10521,"County of Westchester",7.3749999999999996E-2,"Croton On Hudson","Westchester","Out of Territory","Syracuse"]
[10522,"County of Westchester",7.3749999999999996E-2,"Dobbs Ferry","Westchester","Out of Territory","Syracuse"]
[10523,"County of Westchester",7.3749999999999996E-2,"Elmsford","Westchester","Out of Territory","Syracuse"]
[10526,"County of Westchester",7.3749999999999996E-2,"Goldens Bridge","Westchester","Out of Territory","Syracuse"]
[10527,"County of Westchester",7.3749999999999996E-2,"Granite Springs","Westchester","Out of Territory","Syracuse"]
[10528,"County of Westchester",7.3749999999999996E-2,"Harrison","Westchester","Out of Territory","Syracuse"]
[10530,"County of Westchester",7.3749999999999996E-2,"Hartsdale","Westchester","Out of Territory","Syracuse"]
[10532,"County of Westchester",7.3749999999999996E-2,"Hawthorne","Westchester","Out of Territory","Syracuse"]
[10533,"County of Westchester",7.3749999999999996E-2,"Irvington","Westchester","Out of Territory","Syracuse"]
[10535,"County of Westchester",7.3749999999999996E-2,"Jefferson Valley","Westchester","Out of Territory","Syracuse"]
[10536,"County of Westchester",7.3749999999999996E-2,"Katonah","Westchester","Out of Territory","Syracuse"]
[10538,"County of Westchester",7.3749999999999996E-2,"Larchmont","Westchester","Out of Territory","Syracuse"]
[10540,"County of Westchester",7.3749999999999996E-2,"Lincolndale","Westchester","Out of Territory","Syracuse"]
[10543,"County of Westchester",7.3749999999999996E-2,"Mamaroneck","Westchester","Out of Territory","Syracuse"]
[10545,"County of Westchester",7.3749999999999996E-2,"Maryknoll","Westchester","Out of Territory","Syracuse"]
[10546,"County of Westchester",7.3749999999999996E-2,"Millwood","Westchester","Out of Territory","Syracuse"]
[10547,"County of Westchester",7.3749999999999996E-2,"Mohegan Lake","Westchester","Out of Territory","Syracuse"]
[10548,"County of Westchester",7.3749999999999996E-2,"Montrose","Westchester","Out of Territory","Syracuse"]
[10549,"County of Westchester",7.3749999999999996E-2,"Mount Kisco","Westchester","Out of Territory","Syracuse"]
[10560,"County of Westchester",7.3749999999999996E-2,"North Salem","Westchester","Out of Territory","Syracuse"]
[10562,"County of Westchester",7.3749999999999996E-2,"Ossining","Westchester","Out of Territory","Syracuse"]
[10566,"County of Westchester",7.3749999999999996E-2,"Peekskill","Westchester","Out of Territory","Syracuse"]
[10567,"County of Westchester",7.3749999999999996E-2,"Cortlandt Manor","Westchester","Out of Territory","Syracuse"]
[10570,"County of Westchester",7.3749999999999996E-2,"Pleasantville","Westchester","Out of Territory","Syracuse"]
[10573,"County of Westchester",7.3749999999999996E-2,"Port Chester","Westchester","Out of Territory","Syracuse"]
[10576,"County of Westchester",7.3749999999999996E-2,"Pound Ridge","Westchester","Out of Territory","Syracuse"]
[10577,"County of Westchester",7.3749999999999996E-2,"Purchase","Westchester","Out of Territory","Syracuse"]
[10578,"County of Westchester",7.3749999999999996E-2,"Purdys","Westchester","Out of Territory","Syracuse"]
[10580,"County of Westchester",7.3749999999999996E-2,"Rye","Westchester","Out of Territory","Syracuse"]
[10583,"County of Westchester",7.3749999999999996E-2,"Scarsdale","Westchester","Out of Territory","Syracuse"]
[10587,"County of Westchester",7.3749999999999996E-2,"Shenorock","Westchester","Out of Territory","Syracuse"]
[10588,"County of Westchester",7.3749999999999996E-2,"Shrub Oak","Westchester","Out of Territory","Syracuse"]
[10589,"County of Westchester",7.3749999999999996E-2,"Somers","Westchester","Out of Territory","Syracuse"]
[10590,"County of Westchester",7.3749999999999996E-2,"South Salem","Westchester","Out of Territory","Syracuse"]
[10591,"County of Westchester",7.3749999999999996E-2,"Tarrytown","Westchester","Out of Territory","Syracuse"]
[10594,"County of Westchester",7.3749999999999996E-2,"Thornwood","Westchester","Out of Territory","Syracuse"]
[10595,"County of Westchester",7.3749999999999996E-2,"Valhalla","Westchester","Out of Territory","Syracuse"]
[10596,"County of Westchester",7.3749999999999996E-2,"Verplanck","Westchester","Out of Territory","Syracuse"]
[10597,"County of Westchester",7.3749999999999996E-2,"Waccabuc","Westchester","Out of Territory","Syracuse"]
[10598,"County of Westchester",7.3749999999999996E-2,"Yorktown Heights","Westchester","Out of Territory","Syracuse"]
[10604,"County of Westchester",7.3749999999999996E-2,"West Harrison","Westchester","Out of Territory","Syracuse"]
[10706,"County of Westchester",7.3749999999999996E-2,"Hastings On Hudson","Westchester","Out of Territory","Syracuse"]
[10707,"County of Westchester",7.3749999999999996E-2,"Tuckahoe","Westchester","Out of Territory","Syracuse"]
[10709,"County of Westchester",7.3749999999999996E-2,"Eastchester","Westchester","Out of Territory","Syracuse"]
[10803,"County of Westchester",7.3749999999999996E-2,"Pelham","Westchester","Out of Territory","Syracuse"]
[10708,"County of Westchester",7.3749999999999996E-2,"Bronxville","Westchester","Out of Territory","Syracuse"]
[15618,"State of Pennsylvania",0.06,"Avonmore","Westmoreland","Out of Territory","Syracuse"]
[15622,"State of Pennsylvania",0.06,"Champion","Westmoreland","Out of Territory","Syracuse"]
[15954,"State of Pennsylvania",0.06,"Seward","Westmoreland","Out of Territory","Syracuse"]
[15062,"State of Pennsylvania",0.06,"Monessen","Westmoreland","Out of Territory","Syracuse"]
[15068,"State of Pennsylvania",0.06,"New Kensington","Westmoreland","Out of Territory","Syracuse"]
[15069,"State of Pennsylvania",0.06,"New Kensington","Westmoreland","Out of Territory","Syracuse"]
[15072,"State of Pennsylvania",0.06,"Pricedale","Westmoreland","Out of Territory","Syracuse"]
[15083,"State of Pennsylvania",0.06,"Sutersville","Westmoreland","Out of Territory","Syracuse"]
[15085,"State of Pennsylvania",0.06,"Trafford","Westmoreland","Out of Territory","Syracuse"]
[15087,"State of Pennsylvania",0.06,"Webster","Westmoreland","Out of Territory","Syracuse"]
[15089,"State of Pennsylvania",0.06,"West Newton","Westmoreland","Out of Territory","Syracuse"]
[15448,"State of Pennsylvania",0.06,"Jacobs Creek","Westmoreland","Out of Territory","Syracuse"]
[15479,"State of Pennsylvania",0.06,"Smithton","Westmoreland","Out of Territory","Syracuse"]
[15601,"State of Pennsylvania",0.06,"Greensburg","Westmoreland","Out of Territory","Syracuse"]
[15605,"State of Pennsylvania",0.06,"Greensburg","Westmoreland","Out of Territory","Syracuse"]
[15606,"State of Pennsylvania",0.06,"Greensburg","Westmoreland","Out of Territory","Syracuse"]
[15610,"State of Pennsylvania",0.06,"Acme","Westmoreland","Out of Territory","Syracuse"]
[15611,"State of Pennsylvania",0.06,"Adamsburg","Westmoreland","Out of Territory","Syracuse"]
[15612,"State of Pennsylvania",0.06,"Alverton","Westmoreland","Out of Territory","Syracuse"]
[15613,"State of Pennsylvania",0.06,"Apollo","Westmoreland","Out of Territory","Syracuse"]
[15615,"State of Pennsylvania",0.06,"Ardara","Westmoreland","Out of Territory","Syracuse"]
[15616,"State of Pennsylvania",0.06,"Armbrust","Westmoreland","Out of Territory","Syracuse"]
[15617,"State of Pennsylvania",0.06,"Arona","Westmoreland","Out of Territory","Syracuse"]
[15619,"State of Pennsylvania",0.06,"Bovard","Westmoreland","Out of Territory","Syracuse"]
[15620,"State of Pennsylvania",0.06,"Bradenville","Westmoreland","Out of Territory","Syracuse"]
[15621,"State of Pennsylvania",0.06,"Calumet","Westmoreland","Out of Territory","Syracuse"]
[15623,"State of Pennsylvania",0.06,"Claridge","Westmoreland","Out of Territory","Syracuse"]
[15624,"State of Pennsylvania",0.06,"Crabtree","Westmoreland","Out of Territory","Syracuse"]
[15625,"State of Pennsylvania",0.06,"Darragh","Westmoreland","Out of Territory","Syracuse"]
[15626,"State of Pennsylvania",0.06,"Delmont","Westmoreland","Out of Territory","Syracuse"]
[15627,"State of Pennsylvania",0.06,"Derry","Westmoreland","Out of Territory","Syracuse"]
[15628,"State of Pennsylvania",0.06,"Donegal","Westmoreland","Out of Territory","Syracuse"]
[15629,"State of Pennsylvania",0.06,"East Vandergrift","Westmoreland","Out of Territory","Syracuse"]
[15632,"State of Pennsylvania",0.06,"Export","Westmoreland","Out of Territory","Syracuse"]
[15633,"State of Pennsylvania",0.06,"Forbes Road","Westmoreland","Out of Territory","Syracuse"]
[15634,"State of Pennsylvania",0.06,"Grapeville","Westmoreland","Out of Territory","Syracuse"]
[15635,"State of Pennsylvania",0.06,"Hannastown","Westmoreland","Out of Territory","Syracuse"]
[15636,"State of Pennsylvania",0.06,"Harrison City","Westmoreland","Out of Territory","Syracuse"]
[15637,"State of Pennsylvania",0.06,"Herminie","Westmoreland","Out of Territory","Syracuse"]
[15638,"State of Pennsylvania",0.06,"Hostetter","Westmoreland","Out of Territory","Syracuse"]
[15639,"State of Pennsylvania",0.06,"Hunker","Westmoreland","Out of Territory","Syracuse"]
[15640,"State of Pennsylvania",0.06,"Hutchinson","Westmoreland","Out of Territory","Syracuse"]
[15641,"State of Pennsylvania",0.06,"Hyde Park","Westmoreland","Out of Territory","Syracuse"]
[15642,"State of Pennsylvania",0.06,"Irwin","Westmoreland","Out of Territory","Syracuse"]
[15644,"State of Pennsylvania",0.06,"Jeannette","Westmoreland","Out of Territory","Syracuse"]
[15646,"State of Pennsylvania",0.06,"Jones Mills","Westmoreland","Out of Territory","Syracuse"]
[15647,"State of Pennsylvania",0.06,"Larimer","Westmoreland","Out of Territory","Syracuse"]
[15650,"State of Pennsylvania",0.06,"Latrobe","Westmoreland","Out of Territory","Syracuse"]
[15655,"State of Pennsylvania",0.06,"Laughlintown","Westmoreland","Out of Territory","Syracuse"]
[15658,"State of Pennsylvania",0.06,"Ligonier","Westmoreland","Out of Territory","Syracuse"]
[15660,"State of Pennsylvania",0.06,"Lowber","Westmoreland","Out of Territory","Syracuse"]
[15661,"State of Pennsylvania",0.06,"Loyalhanna","Westmoreland","Out of Territory","Syracuse"]
[15662,"State of Pennsylvania",0.06,"Luxor","Westmoreland","Out of Territory","Syracuse"]
[15663,"State of Pennsylvania",0.06,"Madison","Westmoreland","Out of Territory","Syracuse"]
[15664,"State of Pennsylvania",0.06,"Mammoth","Westmoreland","Out of Territory","Syracuse"]
[15665,"State of Pennsylvania",0.06,"Manor","Westmoreland","Out of Territory","Syracuse"]
[15666,"State of Pennsylvania",0.06,"Mount Pleasant","Westmoreland","Out of Territory","Syracuse"]
[15668,"State of Pennsylvania",0.06,"Murrysville","Westmoreland","Out of Territory","Syracuse"]
[15670,"State of Pennsylvania",0.06,"New Alexandria","Westmoreland","Out of Territory","Syracuse"]
[15671,"State of Pennsylvania",0.06,"New Derry","Westmoreland","Out of Territory","Syracuse"]
[15672,"State of Pennsylvania",0.06,"New Stanton","Westmoreland","Out of Territory","Syracuse"]
[15674,"State of Pennsylvania",0.06,"Norvelt","Westmoreland","Out of Territory","Syracuse"]
[15675,"State of Pennsylvania",0.06,"Penn","Westmoreland","Out of Territory","Syracuse"]
[15676,"State of Pennsylvania",0.06,"Pleasant Unity","Westmoreland","Out of Territory","Syracuse"]
[15677,"State of Pennsylvania",0.06,"Rector","Westmoreland","Out of Territory","Syracuse"]
[15678,"State of Pennsylvania",0.06,"Rillton","Westmoreland","Out of Territory","Syracuse"]
[15679,"State of Pennsylvania",0.06,"Ruffs Dale","Westmoreland","Out of Territory","Syracuse"]
[15680,"State of Pennsylvania",0.06,"Salina","Westmoreland","Out of Territory","Syracuse"]
[15683,"State of Pennsylvania",0.06,"Scottdale","Westmoreland","Out of Territory","Syracuse"]
[15684,"State of Pennsylvania",0.06,"Slickville","Westmoreland","Out of Territory","Syracuse"]
[15685,"State of Pennsylvania",0.06,"Southwest","Westmoreland","Out of Territory","Syracuse"]
[15687,"State of Pennsylvania",0.06,"Stahlstown","Westmoreland","Out of Territory","Syracuse"]
[15688,"State of Pennsylvania",0.06,"Tarrs","Westmoreland","Out of Territory","Syracuse"]
[15689,"State of Pennsylvania",0.06,"United","Westmoreland","Out of Territory","Syracuse"]
[15690,"State of Pennsylvania",0.06,"Vandergrift","Westmoreland","Out of Territory","Syracuse"]
[15691,"State of Pennsylvania",0.06,"Wendel","Westmoreland","Out of Territory","Syracuse"]
[15692,"State of Pennsylvania",0.06,"Westmoreland City","Westmoreland","Out of Territory","Syracuse"]
[15693,"State of Pennsylvania",0.06,"Whitney","Westmoreland","Out of Territory","Syracuse"]
[15695,"State of Pennsylvania",0.06,"Wyano","Westmoreland","Out of Territory","Syracuse"]
[15696,"State of Pennsylvania",0.06,"Youngstown","Westmoreland","Out of Territory","Syracuse"]
[15697,"State of Pennsylvania",0.06,"Youngwood","Westmoreland","Out of Territory","Syracuse"]
[15698,"State of Pennsylvania",0.06,"Yukon","Westmoreland","Out of Territory","Syracuse"]
[15779,"State of Pennsylvania",0.06,"Torrance","Westmoreland","Out of Territory","Syracuse"]
[15923,"State of Pennsylvania",0.06,"Bolivar","Westmoreland","Out of Territory","Syracuse"]
[15944,"State of Pennsylvania",0.06,"New Florence","Westmoreland","Out of Territory","Syracuse"]
[5341,"City of East Dover",0.06,"East Dover","Windham","Eastern","Burlington"]
[5343,"City of Jamaica",0.06,"Jamaica","Windham","Eastern","Burlington"]
[5356,"City of West Dover",0.06,"West Dover","Windham","Eastern","Burlington"]
[5363,"City of Wilmington",0.06,"Wilmington","Windham","Eastern","Burlington"]
[5101,"State of Vermont",0.06,"Bellows Falls","Windham","Eastern","Burlington"]
[5141,"State of Vermont",0.06,"Cambridgeport","Windham","Eastern","Burlington"]
[5146,"State of Vermont",0.06,"Grafton","Windham","Eastern","Burlington"]
[5148,"State of Vermont",0.06,"Londonderry","Windham","Eastern","Burlington"]
[5154,"State of Vermont",0.06,"Saxtons River","Windham","Eastern","Burlington"]
[5155,"State of Vermont",0.06,"South Londonderry","Windham","Eastern","Burlington"]
[5158,"State of Vermont",0.06,"Westminster","Windham","Eastern","Burlington"]
[5159,"State of Vermont",0.06,"Westminster Station","Windham","Eastern","Burlington"]
[5301,"State of Vermont",0.06,"Brattleboro","Windham","Eastern","Burlington"]
[5302,"State of Vermont",0.06,"Brattleboro","Windham","Eastern","Burlington"]
[5303,"State of Vermont",0.06,"Brattleboro","Windham","Eastern","Burlington"]
[5304,"State of Vermont",0.06,"Brattleboro","Windham","Eastern","Burlington"]
[5342,"State of Vermont",0.06,"Jacksonville","Windham","Eastern","Burlington"]
[5344,"State of Vermont",0.06,"Marlboro","Windham","Eastern","Burlington"]
[5345,"State of Vermont",0.06,"Newfane","Windham","Eastern","Burlington"]
[5346,"State of Vermont",0.06,"Putney","Windham","Eastern","Burlington"]
[5351,"State of Vermont",0.06,"South Newfane","Windham","Eastern","Burlington"]
[5353,"State of Vermont",0.06,"Townshend","Windham","Eastern","Burlington"]
[5354,"State of Vermont",0.06,"Vernon","Windham","Eastern","Burlington"]
[5355,"State of Vermont",0.06,"Wardsboro","Windham","Eastern","Burlington"]
[5357,"State of Vermont",0.06,"West Dummerston","Windham","Eastern","Burlington"]
[5358,"State of Vermont",0.06,"West Halifax","Windham","Eastern","Burlington"]
[5359,"State of Vermont",0.06,"West Townshend","Windham","Eastern","Burlington"]
[5360,"State of Vermont",0.06,"West Wardsboro","Windham","Eastern","Burlington"]
[5361,"State of Vermont",0.06,"Whitingham","Windham","Eastern","Burlington"]
[5362,"State of Vermont",0.06,"Williamsville","Windham","Eastern","Burlington"]
[5001,"State of Vermont",0.06,"White River Junction","Windsor","Eastern","Burlington"]
[5009,"State of Vermont",0.06,"White River Junction","Windsor","Eastern","Burlington"]
[5030,"State of Vermont",0.06,"Ascutney","Windsor","Eastern","Burlington"]
[5031,"State of Vermont",0.06,"Barnard","Windsor","Eastern","Burlington"]
[5032,"State of Vermont",0.06,"Bethel","Windsor","Eastern","Burlington"]
[5034,"State of Vermont",0.06,"Bridgewater","Windsor","Eastern","Burlington"]
[5035,"State of Vermont",0.06,"Bridgewater Corners","Windsor","Eastern","Burlington"]
[5037,"State of Vermont",0.06,"Brownsville","Windsor","Eastern","Burlington"]
[5047,"State of Vermont",0.06,"Hartford","Windsor","Eastern","Burlington"]
[5048,"State of Vermont",0.06,"Hartland","Windsor","Eastern","Burlington"]
[5049,"State of Vermont",0.06,"Hartland Four Corners","Windsor","Eastern","Burlington"]
[5052,"State of Vermont",0.06,"North Hartland","Windsor","Eastern","Burlington"]
[5053,"State of Vermont",0.06,"North Pomfret","Windsor","Eastern","Burlington"]
[5055,"State of Vermont",0.06,"Norwich","Windsor","Eastern","Burlington"]
[5056,"State of Vermont",0.06,"Plymouth","Windsor","Eastern","Burlington"]
[5059,"State of Vermont",0.06,"Quechee","Windsor","Eastern","Burlington"]
[5062,"State of Vermont",0.06,"Reading","Windsor","Eastern","Burlington"]
[5065,"State of Vermont",0.06,"Sharon","Windsor","Eastern","Burlington"]
[5067,"State of Vermont",0.06,"South Pomfret","Windsor","Eastern","Burlington"]
[5068,"State of Vermont",0.06,"South Royalton","Windsor","Eastern","Burlington"]
[5071,"State of Vermont",0.06,"South Woodstock","Windsor","Eastern","Burlington"]
[5073,"State of Vermont",0.06,"Taftsville","Windsor","Eastern","Burlington"]
[5084,"State of Vermont",0.06,"West Hartford","Windsor","Eastern","Burlington"]
[5088,"State of Vermont",0.06,"Wilder","Windsor","Eastern","Burlington"]
[5089,"State of Vermont",0.06,"Windsor","Windsor","Eastern","Burlington"]
[5091,"State of Vermont",0.06,"Woodstock","Windsor","Eastern","Burlington"]
[5142,"State of Vermont",0.06,"Cavendish","Windsor","Eastern","Burlington"]
[5143,"State of Vermont",0.06,"Chester","Windsor","Eastern","Burlington"]
[5149,"State of Vermont",0.06,"Ludlow","Windsor","Eastern","Burlington"]
[5150,"State of Vermont",0.06,"North Springfield","Windsor","Eastern","Burlington"]
[5151,"State of Vermont",0.06,"Perkinsville","Windsor","Eastern","Burlington"]
[5153,"State of Vermont",0.06,"Proctorsville","Windsor","Eastern","Burlington"]
[5156,"State of Vermont",0.06,"Springfield","Windsor","Eastern","Burlington"]
[5161,"State of Vermont",0.06,"Weston","Windsor","Eastern","Burlington"]
[5746,"State of Vermont",0.06,"Gaysville","Windsor","Eastern","Burlington"]
[5767,"State of Vermont",0.06,"Rochester","Windsor","Eastern","Burlington"]
[5772,"State of Vermont",0.06,"Stockbridge","Windsor","Eastern","Burlington"]
[14009,"County of Wyoming",0.08,"Arcade","Wyoming","Western","Buffalo"]
[14011,"County of Wyoming",0.08,"Attica","Wyoming","Western","Buffalo"]
[14024,"County of Wyoming",0.08,"Bliss","Wyoming","Western","Buffalo"]
[14037,"County of Wyoming",0.08,"Cowlesville","Wyoming","Western","Buffalo"]
[14039,"County of Wyoming",0.08,"Dale","Wyoming","Western","Buffalo"]
[14066,"County of Wyoming",0.08,"Gainesville","Wyoming","Western","Buffalo"]
[14082,"County of Wyoming",0.08,"Java Center","Wyoming","Western","Buffalo"]
[14083,"County of Wyoming",0.08,"Java Village","Wyoming","Western","Buffalo"]
[14113,"County of Wyoming",0.08,"North Java","Wyoming","Western","Buffalo"]
[14130,"County of Wyoming",0.08,"Pike","Wyoming","Western","Buffalo"]
[14145,"County of Wyoming",0.08,"Strykersville","Wyoming","Western","Buffalo"]
[14167,"County of Wyoming",0.08,"Varysburg","Wyoming","Western","Buffalo"]
[14427,"County of Wyoming",0.08,"Castile","Wyoming","Western","Buffalo"]
[14530,"County of Wyoming",0.08,"Perry","Wyoming","Western","Buffalo"]
[14536,"County of Wyoming",0.08,"Portageville","Wyoming","Western","Buffalo"]
[14549,"County of Wyoming",0.08,"Silver Lake","Wyoming","Western","Buffalo"]
[14550,"County of Wyoming",0.08,"Silver Springs","Wyoming","Western","Buffalo"]
[14569,"County of Wyoming",0.08,"Warsaw","Wyoming","Western","Buffalo"]
[14591,"County of Wyoming",0.08,"Wyoming","Wyoming","Western","Buffalo"]
[18623,"State of Pennsylvania",0.06,"Laceyville","Wyoming","Central","Binghamton"]
[18630,"State of Pennsylvania",0.06,"Meshoppen","Wyoming","Central","Binghamton"]
[18419,"State of Pennsylvania",0.06,"Factoryville","Wyoming","Out of Territory","Syracuse"]
[18446,"State of Pennsylvania",0.06,"Nicholson","Wyoming","Out of Territory","Syracuse"]
[18615,"State of Pennsylvania",0.06,"Falls","Wyoming","Out of Territory","Syracuse"]
[18625,"State of Pennsylvania",0.06,"Lake Winola","Wyoming","Out of Territory","Syracuse"]
[18629,"State of Pennsylvania",0.06,"Mehoopany","Wyoming","Out of Territory","Syracuse"]
[18636,"State of Pennsylvania",0.06,"Noxen","Wyoming","Out of Territory","Syracuse"]
[18657,"State of Pennsylvania",0.06,"Tunkhannock","Wyoming","Out of Territory","Syracuse"]
[14415,"County of Yates",0.08,"Bellona","Yates","Western","Rochester"]
[14418,"County of Yates",0.08,"Branchport","Yates","Western","Rochester"]
[14441,"County of Yates",0.08,"Dresden","Yates","Western","Rochester"]
[14478,"County of Yates",0.08,"Keuka Park","Yates","Western","Rochester"]
[14507,"County of Yates",0.08,"Middlesex","Yates","Western","Rochester"]
[14527,"County of Yates",0.08,"Penn Yan","Yates","Western","Rochester"]
[14544,"County of Yates",0.08,"Rushville","Yates","Western","Rochester"]
[14837,"County of Yates",0.08,"Dundee","Yates","Western","Rochester"]
[14842,"County of Yates",0.08,"Himrod","Yates","Western","Rochester"]
[14857,"County of Yates",0.08,"Lakemont","Yates","Western","Rochester"]
[17019,"State of Pennsylvania",0.06,"Dillsburg","York","Out of Territory","Syracuse"]
[17302,"State of Pennsylvania",0.06,"Airville","York","Out of Territory","Syracuse"]
[17309,"State of Pennsylvania",0.06,"Brogue","York","Out of Territory","Syracuse"]
[17311,"State of Pennsylvania",0.06,"Codorus","York","Out of Territory","Syracuse"]
[17312,"State of Pennsylvania",0.06,"Craley","York","Out of Territory","Syracuse"]
[17313,"State of Pennsylvania",0.06,"Dallastown","York","Out of Territory","Syracuse"]
[17314,"State of Pennsylvania",0.06,"Delta","York","Out of Territory","Syracuse"]
[17315,"State of Pennsylvania",0.06,"Dover","York","Out of Territory","Syracuse"]
[17317,"State of Pennsylvania",0.06,"East Prospect","York","Out of Territory","Syracuse"]
[17318,"State of Pennsylvania",0.06,"Emigsville","York","Out of Territory","Syracuse"]
[17319,"State of Pennsylvania",0.06,"Etters","York","Out of Territory","Syracuse"]
[17321,"State of Pennsylvania",0.06,"Fawn Grove","York","Out of Territory","Syracuse"]
[17322,"State of Pennsylvania",0.06,"Felton","York","Out of Territory","Syracuse"]
[17323,"State of Pennsylvania",0.06,"Franklintown","York","Out of Territory","Syracuse"]
[17327,"State of Pennsylvania",0.06,"Glen Rock","York","Out of Territory","Syracuse"]
[17329,"State of Pennsylvania",0.06,"Glenville","York","Out of Territory","Syracuse"]
[17331,"State of Pennsylvania",0.06,"Hanover","York","Out of Territory","Syracuse"]
[17332,"State of Pennsylvania",0.06,"Hanover","York","Out of Territory","Syracuse"]
[17333,"State of Pennsylvania",0.06,"Hanover","York","Out of Territory","Syracuse"]
[17334,"State of Pennsylvania",0.06,"Hanover","York","Out of Territory","Syracuse"]
[17335,"State of Pennsylvania",0.06,"Hanover","York","Out of Territory","Syracuse"]
[17339,"State of Pennsylvania",0.06,"Lewisberry","York","Out of Territory","Syracuse"]
[17342,"State of Pennsylvania",0.06,"Loganville","York","Out of Territory","Syracuse"]
[17345,"State of Pennsylvania",0.06,"Manchester","York","Out of Territory","Syracuse"]
[17347,"State of Pennsylvania",0.06,"Mount Wolf","York","Out of Territory","Syracuse"]
[17349,"State of Pennsylvania",0.06,"New Freedom","York","Out of Territory","Syracuse"]
[17352,"State of Pennsylvania",0.06,"New Park","York","Out of Territory","Syracuse"]
[17354,"State of Pennsylvania",0.06,"Porters Sideling","York","Out of Territory","Syracuse"]
[17355,"State of Pennsylvania",0.06,"Railroad","York","Out of Territory","Syracuse"]
[17356,"State of Pennsylvania",0.06,"Red Lion","York","Out of Territory","Syracuse"]
[17358,"State of Pennsylvania",0.06,"Rossville","York","Out of Territory","Syracuse"]
[17360,"State of Pennsylvania",0.06,"Seven Valleys","York","Out of Territory","Syracuse"]
[17361,"State of Pennsylvania",0.06,"Shrewsbury","York","Out of Territory","Syracuse"]
[17362,"State of Pennsylvania",0.06,"Spring Grove","York","Out of Territory","Syracuse"]
[17363,"State of Pennsylvania",0.06,"Stewartstown","York","Out of Territory","Syracuse"]
[17364,"State of Pennsylvania",0.06,"Thomasville","York","Out of Territory","Syracuse"]
[17365,"State of Pennsylvania",0.06,"Wellsville","York","Out of Territory","Syracuse"]
[17366,"State of Pennsylvania",0.06,"Windsor","York","Out of Territory","Syracuse"]
[17368,"State of Pennsylvania",0.06,"Wrightsville","York","Out of Territory","Syracuse"]
[17370,"State of Pennsylvania",0.06,"York Haven","York","Out of Territory","Syracuse"]
[17371,"State of Pennsylvania",0.06,"York New Salem","York","Out of Territory","Syracuse"]
[17401,"State of Pennsylvania",0.06,"York","York","Out of Territory","Syracuse"]
[17402,"State of Pennsylvania",0.06,"York","York","Out of Territory","Syracuse"]
[17403,"State of Pennsylvania",0.06,"York","York","Out of Territory","Syracuse"]
[17404,"State of Pennsylvania",0.06,"York","York","Out of Territory","Syracuse"]
[17405,"State of Pennsylvania",0.06,"York","York","Out of Territory","Syracuse"]
[17406,"State of Pennsylvania",0.06,"York","York","Out of Territory","Syracuse"]
[17407,"State of Pennsylvania",0.06,"York","York","Out of Territory","Syracuse"]
[17408,"State of Pennsylvania",0.06,"York","York","Out of Territory","Syracuse"]

{"sheet":"Master Lease Agreement","index":3,"n_rows":114,"n_cols":12,"rows_kept":114,"cut":false,"hidden":false,"merged":[[0,5,0,7],[4,8,4,9],[4,10,4,11],[5,1,5,11],[6,3,6,7],[6,8,6,9],[6,10,6,11],[45,1,45,11],[7,2,7,11],[8,1,8,11],[9,1,11,11],[12,1,12,11],[13,1,21,11],[22,1,24,11],[25,1,29,11],[30,1,33,11],[34,1,37,11],[38,1,41,11],[42,1,44,11],[46,1,47,11],[48,1,49,4],[48,5,49,5],[50,1,50,4],[50,5,50,7],[50,8,50,10],[104,1,111,11],[51,1,51,11],[52,1,52,4],[53,1,53,4],[53,5,53,7],[53,8,53,10],[59,1,63,11],[64,1,75,11],[76,1,81,11],[82,1,89,11],[90,1,99,11],[100,1,103,11]]}
[null,null,null,null,null,"MASTER AGREEMENT"]
[null,null,null,null,null,null,null,null,"Usherwood Office Technology"]
[null,null,null,null,null,null,null,null,"1005 W Fayette St., Syracuse NY 13204-2860"]
[]
[null,null,null,null,null,null,null,null,"MASTER AGREEMENT NO.:"]
[null,"CUSTOMER (\"you\" or \"your\")"]
[null,"FULL LEGAL NAME:",null,{"$f":"IF('Sales Agreement'!C12<>\"\",'Sales Agreement'!C12,\"\")","v":""},null,null,null,null,"FEDERAL TAX ID#:"]
[null,"ADDRESS:",{"$f":"IF('Sales Agreement'!P12<>\"\",(CONCATENATE(IF('Sales Agreement'!P12<>\"\",'Sales Agreement'!P12,\"\"),\" \",(IF('Sales Agreement'!C14<>\"\",'Sales Agreement'!C14,\"\")),\", \",(IF('Sales Agreement'!K14<>\"\",'Sales Agreement'!K14,\"\")),\", \",(IF('Sales Agreement'!N14<>\"\",'Sales Agreement'!N14,\"\")))),\"\")","v":""}]
[null,"MASTER AGREEMENT"]
[null,"The parties anticipate the terms of this Master Agreement shall be incorporated into and constitute a part of one or more Schedules to Master Agreement entered into between Customer and Owner (each a “Schedule”). As used herein, “Agreement” refers to an individual Schedule which incorporates this Master Agreement and “Equipment” refers to the equipment referenced on an individual Schedule."]
[]
[]
[null,"ADDITIONAL TERMS AND CONDITIONS"]
[null,"1. AGREEMENT. You want us to provide you the Equipment, together with all replacements, parts, repairs, additions and accessions incorporated therein or attached thereto excluding equipment marked as not financed under the Schedule and you agree to pay us the amounts set forth on such Schedule each period by the due date. The Agreement will begin on the date the Equipment is delivered to you or any later date we designate. If we designate a later commencement date, you agree to pay us an additional amount equal to the periodic payments due under this Agreement prorated for the period between the date the Equipment is delivered to you and the commencement date. We may charge you a reasonable fee to cover origination and investigation costs. If any amount payable to us is more than five days late, you will pay a late charge equal to: 1) the greater of ten (10) cents for each dollar overdue or twenty-six dollars ($26.00); or 2) the highest lawful charge, if less. Any security deposit will be commingled with our assets, will not earn interest, and will be returned at the end of the term, provided you are not in default. We may charge you a fee for filing, searching and/or titling costs required under the Uniform Commercial Code (UCC) or other laws. If for any reason your check is returned for nonpayment, you will pay us a bad check charge of $30 or, if less, the maximum charge allowed by law. The payment will be adjusted proportionately upward or downward: (1) by up to 10% to accommodate changes in the actual Equipment cost; (2) if the shipping charges or taxes differ from the estimate given to you; and (3) to comply with the tax laws of the state in which the Equipment is located."]
[]
[]
[]
[]
[]
[]
[]
[]
[null,"2. NET AGREEMENT. THE AGREEMENT IS NON-CANCELABLE FOR THE ENTIRE AGREEMENT TERM. YOU AGREE THAT YOU ARE UNCONDITIONALLY OBLIGATED TO PAY ALL AMOUNTS DUE UNDER THE TERMS OF THE AGREEMENT FOR THE ENTIRE TERM. YOU ARE NOT ENTITLED TO REDUCE OR SET-OFF AGAINST AMOUNTS DUE UNDER THE AGREEMENT FOR ANY REASON."]
[]
[]
[null,"3. EQUIPMENT USE. You will keep the Equipment in good working order, free and clear of all liens and claims, use it for business purposes only and not modify or move it from its initial location without our consent. If we have entered into a separate arrangement with you for maintenance, service, supplies, support, etc. with respect to the Equipment, payments under the Agreement may include amounts owed under that arrangement, which amounts may be invoiced as one payment for your convenience. You agree that you will look solely to us for performance under any such arrangement and for the delivery of any applicable supplies. We will have the right, at any reasonable time, to inspect the Equipment and any documents relating to its use, maintenance and repair."]
[]
[]
[]
[]
[null,"4. SOFTWARE/DATA. Except as provided in this paragraph, references to “Equipment” include software included as part of, or installed on, the Equipment. We do not own the software and cannot transfer any interest in it to you. We are not responsible for the software and have no rights or obligations under any related license agreement. You agree that you will look only to the publisher, licensor, or other third parties, if any, who actually granted you your right to use the software to determine those rights. You are solely responsible for protecting and removing any confidential data/images stored on the Equipment prior to its return for any reason."]
[]
[]
[]
[null,"5. LIMITATION OF WARRANTIES. EXCEPT TO THE EXTENT THAT WE HAVE PROVIDED YOU A WARRANTY IN WRITING, WE MAKE NO WARRANTIES, EXPRESS OR IMPLIED, INCLUDING WARRANTIES OF MERCHANTABILITY OR FITNESS FOR A PARTICULAR PURPOSE. YOU CHOSE ANY/ALL THIRD-PARTY SERVICE PROVIDERS BASED ON YOUR JUDGMENT. YOU MAY CONTACT US OR THE MANUFACTURER FOR A STATEMENT OF THE WARRANTIES, IF ANY, THAT THE MANUFACTURER IS PROVIDING. WE ASSIGN TO YOU ANY WARRANTIES GIVEN TO US."]
[]
[]
[]
[null,"6. ASSIGNMENT. You may not sell, assign, or sublease the Equipment or the Agreement without our written consent. We may sell or assign the Agreement and our rights in the Equipment, in whole or in part, to a third party without notice to you. Without our prior written consent, you shall not reorganize or merge with any other entity or transfer all or a substantial part of your ownership interests or assets. You agree that if we do so, our assignee will have our assigned rights under the Agreement, but none of our obligations (including but not limited to any obligation to provide maintenance, supplies or support for the Equipment), and will not be subject to any claim, defense, or set-off that may be assertable against us or anyone else."]
[]
[]
[]
[null,"7. LAW/FORUM. You agree that the Agreement and any claim related to the Agreement shall be governed by the internal laws of the state in which our (or, if we assign the Agreement, our assignee’s) principal place of business is located and any dispute concerning the Agreement will be adjudicated in a federal or state court in such state. You hereby consent to personal jurisdiction and venue in such courts and waive transfer of venue. Each party waives any right to a jury trial."]
[]
[]
[null,"CUSTOMER'S AUTHORIZED SIGNATURE"]
[null,"BY SIGNING THIS PAGE, YOU REPRESENT TO US THAT YOU HAVE RECEIVED AND READ THE ADDITIONAL TERMS AND CONDITIONS APPEARING ON THE SECOND PAGE OF THIS TWO-PAGE AGREEMENT. THIS AGREEMENT IS BINDING UPON OUR ACCEPTANCE HEREOF."]
[]
[null,{"$f":"IF(D7<>0,D7,\"\")","v":""},null,null,null,"x"]
[]
[null,"CUSTOMER",null,null,null,"SIGNATURE",null,null,"PRINT NAME & TITLE",null,null,"DATE"]
[null,"OWNER (\"WE\", \"US\", \"OUR\")"]
[null,"Usherwood Office Technology"]
[null,"OWNER",null,null,null,"SIGNATURE",null,null,"PRINT NAME & TITLE",null,null,"DATE"]
[null,"1005 W. Fayette St., Syracuse, NY 13204-2860"]
[]
[null,"x.024031-UP01ML_0216",null,null,null,null,"PAGE 1 OF 2",null,null,null,null,290]
[]
[]
[null,"8. LOSS OR DAMAGE. You are responsible for any damage to or loss of the Equipment. No such loss or damage will relieve you from your payment obligations under the Agreement. Any insurance proceeds received relating to insurance you obtain will be applied, at our option, to repair or replace the Equipment, or to pay us the remaining payments due or to become due under this Agreement, plus our booked residual, both discounted at 2% per annum. Except for claims, losses, or damages caused by our gross negligence or willful misconduct, you agree to indemnify and defend us and our assignee, if applicable, against any claims, losses, or damages, including attorney fees, in any way relating to the Equipment. In no event will we be liable for any consequential or indirect damages."]
[]
[]
[]
[]
[null,"9. INSURANCE. You agree to maintain comprehensive liability insurance acceptable to us and to include us as an additional insured on the policy. You also agree to: 1) keep the Equipment fully insured against loss at its replacement cost, with us named as lender’s loss payee; and 2) provide proof of insurance satisfactory to us no later than 30 days following the commencement of the Agreement, and thereafter upon our written request. If you fail to maintain property loss insurance satisfactory to us and/or you fail to timely provide proof of such insurance, we have the option, but not the obligation, to do so as provided in either (A) or (B) as follows, as determined in our discretion: (A) We may secure property loss insurance on the Equipment from a carrier of our choosing in such forms and amounts as we deem reasonable to protect our interests. If we secure insurance on the Equipment, we will not name you as an insured party, your interests may not be fully protected, and you will reimburse us the premium which may be higher than the premium you would pay if you obtained insurance, and which may result in a profit to us through an investment in reinsurance. If you are current in all of your obligations under the Agreement at the time of loss, any insurance proceeds received relating to insurance we obtain pursuant to this subsection (A) will be applied, at our option, to repair or replace the Equipment, or to pay us the remaining payments due or to become due under the Agreement, plus our booked residual, both discounted at 2% per annum. (B) We may charge you a monthly property damage surcharge of up to .0035 of the Equipment cost as a result of our credit risk administrative costs or other costs, as would be further described on a letter from us to you. We may make a profit on this program. NOTHING IN THIS SECTION WILL BE RELIEVE YOU OF YOUR RESPONSIBILITY FOR LIABILITY INSURANCE ON THE EQUIPMENT. You authorize us to sign on your behalf and appoint us as your attorney-in-fact to endorse in your name any insurance drafts or checks issued due to loss or damage to the Equipment."]
[]
[]
[]
[]
[]
[]
[]
[]
[]
[]
[]
[null,"10. TAXES/OWNERSHIP. You will pay when due, either directly or by reimbursing us, all taxes and fees relating to the Equipment and the Agreement. If we pay any taxes or other expenses that you owe hereunder, you agree to reimburse us when we request and to pay us a processing fee for each expense or charge we pay on your behalf. Sales or use tax due upfront will be payable over the term with a finance charge. Unless the Agreement includes a $1-purchase option, we own the Equipment (excluding any software). If the Agreement includes a $1-purchase option, you acknowledge that the Agreement shall be deemed to be a conditional sales contract, any ownership we have in the Equipment will be deemed transferred to you upon the commencement of the applicable Schedule and you agree to file any required personal property tax returns relating to the Equipment."]
[]
[]
[]
[]
[]
[null,"11. END OF TERM. At the end of the term of the Agreement (or any renewal term) (the “End Date”), the Agreement will renew for an additional one-year period under the same terms unless a) you provide us written notice, at least 60 but no more than 120 days prior to the End Date, of your intent to return the Equipment, and b) you timely return the Equipment to the location designated by us, at your expense. If the returned Equipment is not immediately available for use by another without need of repair, you will reimburse us for all repair costs. If the Agreement includes a purchase option and you are not in default on the End Date, you may purchase the Equipment from us “AS IS” for the purchase option price. If the Agreement includes a $1-purchase option, you will be deemed to have exercised your option to purchase the Equipment as of the commencement date of the applicable Schedule. You cannot pay off the Agreement or return the Equipment prior to the End Date without our consent. Unless the Agreement includes a $1-purchase option, if we consent to an early prepayment, we may charge you, in addition to other amounts owed, an early termination fee equal to 5% of the price of the Equipment."]
[]
[]
[]
[]
[]
[]
[]
[null,"12. DEFAULT AND REMEDIES. You will be in default if (a) you do not pay any payment or other sum due to us or any other person when due or if you fail to perform in accordance with the covenants, terms and conditions of the Agreement or any other agreement with us or any of our affiliates or any material agreement with any other entity, (b) you make or have made any false statement or misrepresentation to us, (c) you or any guarantor dies, dissolves, terminates existence or files bankruptcy, (d) there has been a material adverse change in your or any guarantor’s financial, business or operating condition, or (e) any guarantor defaults under any guaranty for this Agreement. If you are ever in default, at our option, we can terminate this Agreement and we may require that you return the Equipment to us at your expense and pay us: 1) all past due amounts and 2) all remaining payments for the unexpired term, plus our booked residual, both discounted at 2% per annum. We may also use all other legal remedies available to us, including disabling or repossessing the Equipment and requiring you to stop using any financed software. You agree to pay all our costs and expenses, including reasonable attorney fees, incurred in enforcing the Agreement. You also agree to pay interest on all past due amounts, from the due date, at 12% per year. Any delay or failure to enforce our rights under this Agreement will not prevent us from enforcing any rights at a later time. If interest is charged or collected in excess of the maximum lawful rate, we will refund such excess to you, which will be your sole remedy."]
[]
[]
[]
[]
[]
[]
[]
[]
[]
[null,"13. UCC. You grant us a security interest in the Equipment to secure all amounts you owe us under any agreement with us and you authorize us to file a financing statement to show our interest. If we assign rights in the Agreement for financing purposes, you agree that the Agreement, in the hands of our assignee, is, or shall be treated as, a “Finance Lease” as that term is defined in Article 2A of the Uniform Commercial Code (“UCC”). You agree to forgo the rights and remedies provided under sections 507-522 of Article 2A of the UCC."]
[]
[]
[]
[null,"14. MISCELLANEOUS. The Agreement is the entire agreement between you and us relating to our providing and your use of the Equipment and supersedes any prior representations or agreements, including any purchase orders. Amounts payable under the Agreement may include a profit to us. The original of the Agreement shall be that copy of the applicable Schedule which bears your facsimile or original signature, and which bears our original signature. If a court finds any provision of this Agreement unenforceable, the remaining terms of this Agreement shall remain in effect. You authorize us to either insert or correct the Agreement number, serial numbers, model numbers, beginning date, and signature date. All other modifications to the Agreement must be in writing signed by each party. Within 30 days after our request, you will deliver all requested information (including tax returns) which we deem reasonably necessary to determine your current financial condition and faithful performance of the terms hereof. You will not change your state of organization, headquarters or residence without providing prior written notice to us so that we may amend or file a new UCC-1.  You will notify us within 30 days if your state of organization revokes or terminates your existence."]
[]
[]
[]
[]
[]
[]
[]
[]
[null,"x.024031-UP01ML_0216",null,null,null,null,"PAGE 2 OF 2",null,null,null,null,290]

{"sheet":"Imaging-Mail Schedule","index":4,"n_rows":49,"n_cols":15,"rows_kept":49,"cut":false,"hidden":true,"merged":[[11,1,11,14],[0,4,0,11],[1,4,1,11],[5,4,5,6],[5,8,5,10],[5,12,5,14],[6,4,6,6],[6,8,6,10],[6,12,6,14],[8,1,8,14],[9,1,9,2],[9,3,9,14],[10,1,10,2],[10,3,10,14],[12,1,12,14],[13,1,13,14],[14,1,14,5],[14,6,17,7],[14,8,16,9],[14,10,16,12],[14,13,16,14],[16,1,17,5],[17,10,17,11],[33,1,33,14],[34,1,34,14],[35,1,35,14],[22,1,23,14],[18,1,18,5],[18,6,18,7],[18,10,18,11],[19,1,19,5],[19,6,19,7],[19,10,19,11],[20,1,20,9],[20,10,20,11],[21,3,21,10],[21,11,21,12],[21,13,21,14],[30,4,30,14],[28,3,30,3],[31,1,31,14],[32,1,32,14],[28,4,29,14],[24,1,24,14],[25,1,25,14],[26,4,26,8],[26,9,26,11],[27,1,27,14],[41,1,41,14],[42,1,42,4],[42,9,42,12],[42,13,42,14],[36,1,36,14],[37,1,37,14],[39,6,39,8],[39,9,39,12],[39,13,39,14],[40,1,40,4],[40,5,40,8],[40,9,40,12],[40,13,40,14],[47,1,47,4],[47,5,47,8],[47,9,47,12],[47,13,47,14],[43,1,43,4],[43,5,43,8],[43,9,43,12],[43,13,43,14],[46,13,46,14],[44,1,44,14],[46,1,46,4],[46,6,46,8],[46,9,46,12]]}
[null,null,null,null,"SCHEDULE TO MASTER AGREEMENT"]
[null,null,null,null,"(Imaging and/or Mailing Equipment)"]
[null,null,null,null,null,null,null,null,null,null,null,"Usherwood Office Technology"]
[null,null,null,null,null,null,null,null,null,null,null,"1005 W Fayette St., Syracuse NY 13204-2860"]
[]
[null,null,null,null,"MASTER AGREEMENT NO.",null,null,null,"APPLICATION NO.",null,null,null,"AGREEMENT/SCHEDULE NO."]
[]
[]
[null,"CUSTOMER (\"YOU\" or \"YOUR\")"]
[null,"FULL LEGAL NAME:",null,{"$f":"IF('Sales Agreement'!C12<>\"\",'Sales Agreement'!C12,\"\")","v":""}]
[null,"ADDRESS:",null,{"$f":"IF('Sales Agreement'!P12<>\"\",(CONCATENATE(IF('Sales Agreement'!P12<>\"\",'Sales Agreement'!P12,\"\"),\" \",(IF('Sales Agreement'!C14<>\"\",'Sales Agreement'!C14,\"\")),\", \",(IF('Sales Agreement'!K14<>\"\",'Sales Agreement'!K14,\"\")),\", \",(IF('Sales Agreement'!N14<>\"\",'Sales Agreement'!N14,\"\")))),\"\")","v":""}]
[null,"MASTER AGREEMENT"]
[null,"REFERS TO THE AGREEMENT BETWEEN CUSTOMER AND OWNER IDENTIFIED IN OWNER'S RECORDS BY THE MASTER AGREEMENT NO. ABOVE."]
[null,"DESCRIPTION OF EQUIPMENT, IMAGE ALLOWANCE AND EXCESS CHARGES"]
[null,"    SEE ATTACHED EQUIPMENT OR GROUP BILLING SCHEDULE",null,null,null,null,"NOT FINANCED UNDER THIS AGREEMENT",null,"BEGINNING METER READING",null,"MONTHLY IMAGE ALLOWANCE PER MACHINE                                    (IF NOT CONSOLIDATED)",null,null,"EXCESS PER IMAGE CHARGE (PLUS TAX)"]
[]
[null,"TYPE, MAKE, MODEL NUMBER, SERIAL NUMBER AND INCLUDED ACCESSORIES"]
[null,null,null,null,null,null,null,null,"B&W","COLOR","B&W",null,"COLOR","B&W","COLOR"]
[]
[]
[null,"TOTAL CONSOLIDATED MONTHLY IMAGE ALLOWANCE AND EXCESS PER IMAGE CHARGES (IF CONSOLIDATED)"]
[null,"EQUIPMENT LOCATION:",null,null,null,null,null,null,null,null,null,"METER FREQUENCY:"]
[null,"*THE CONSOLIDATED IMAGE ALLOWANCE AND EXCESS PER IMAGE AMOUNTS SHOWN ABOVE (OR ON THE ATTACHED EQUIPMENT OR GROUP BILLING SCHEDULE), IF ANY, APPLIES TO (CHECK ONE):         EQUIPMENT INSTALLED UNDER THIS SCHEDULE ONLY, OR          EQUIPMENT INSTALLED UNDER THIS SCHEDULE TOGETHER WITH EQUIPMENT LISTED ON ANY OTHER APPLICABLE SCHEDULES TO MASTER AGREEMENT (I.E. AN AGGREGATE CONSOLIDATION)."]
[]
[null,"IF NO IMAGE ALLOWANCE OR EXCESS PER IMAGE AMOUNTS ARE SHOWN ABOVE (OR ON THE ATTACHED EQUIPMENT OR GROUP BILLING SCHEDULE), IMAGES MADE ON THE EQUIPMENT UNDER THIS SCHEDULE WILL BE INCLUDED IN DETERMINING YOUR IMAGE AND OVERAGE CHARGES UNDER THE APPLICABLE PRIOR SCHEDULE TO MASTER AGREEMENT."]
[null,"PAYMENT TERMS UNDER THIS SCHEDULE ONLY"]
[null,"TERM IN MONTHS:",null,null,"MONTHLY BASE PAYMENT AMOUNT: $",null,null,null,null,null,null,null,"(PLUS TAX)"]
[null,"connectIT SUPPORT OPTION"]
[null,null,null,"DO YOU WISH TO ENROLL IN THE connectIT PROGRAM?","          YES! WE ARE EXCITED ABOUT THIS NEW COVERAGE! Please add a monthly charge of $7.95 per MFP and a monthly charge of $3.95 per printer to the schedule's invoice."]
[]
[null,null,null,null,"         NO THANKS. WE DECLINE THE COVERAGE AND UNDERSTAND THAT ISSUES RELATED TO NETWORK FUNCTIONALITY, PRINTING, SCANNING AND FAXING AS WELL AS SUPPLY FREIGHT AND TRAINING WILL BE BILLABLE."]
[null,"CONNECT IT SUPPORT TERMS AND CONDITIONS. For an additional $7.95 per MFP and $3.95 per printer, connectIT entitles your company and employees (herein referred to as “you” and “your”), including the end users or network administrators, access to the Usherwood Technical Assistance Center (hereafter referred to as the “TAC”) for issues related to the function and setup of all covered devices pertaining to print, scan to PC, scan to FTP, scan to email, and network fax capabilities. Although there is not a limit to the number of service calls that can be made to the TAC, the service rendered is for support of print, scan, and network fax problems and does not extend to the overall capabilities of your network.  If the problem extends to the overall function of servers, workstations, switches, hub, routers or the like, then recommendations will be made by the staff at the TAC, but repairs regarding these functions are excluded from this contract. You understand that Usherwood is not responsible for the data contained on your company’s servers, workstations, and network peripherals and hereby discharge Usherwood of any responsibility for any damages that may occur as a result of loss of data downtime.  By choosing the connectIT program, you hereby agree to allow Usherwood employees access to your network including servers and workstations as required.  We will initiate remote connections to allow diagnostic and repair services to be rendered in order to perform network maintenance including print driver installation, scan setup, network fax setup, and related services. You agree that the Connect IT program is a separate services agreement and shall not affect your obligations under the Schedule.  You agree to pay all amounts owing under the Schedule regardless of any claim you may have against us relating to this program.  If we assign the Schedule, we will remain responsible for performing all services under the services agreement and you agree not to hold any new Owner responsible for our obligations under the services agreement. In addition, freight on supply orders is free with enrollment."]
[null,"IMAGE ALLOWANCE CHARGES AND OVERAGES. You are entitled to make the total number of images shown under Image Allowance Per Machine (or Total Consolidated Image Allowance, if applicable) each period during the term of this Agreement. If you make more than the allowed images in any period, you will pay us an additional amount equal to the number of the excess images made during such period multiplied by the applicable Excess Per Image Charge. Regardless of the number of images made in any period, you will never pay less than the Base Payment Amount. You agree to provide us with the actual meter readings on any business day as designated by us, provided that we may estimate the number of images used if such meter readings are not received within five days after being requested. We will adjust the estimated charge for excess images upon receipt of actual meter readings. You agree that the Base Payment Amount and the Excess Per Image Charges may be proportionately increased at any time if our estimated average page coverage is exceeded. After the end of the first year of this Schedule and not more than once each successive twelve-month period thereafter, the Base Payment Amount and the Excess Per Image Charges (and, at our election, the Base Payment Amount and Excess Per Image Charges under any other schedules for imaging equipment between you and us that incorporate the terms of the Master Agreement) may be increased by a maximum of 15% of the then existing payment or charge. Images made on equipment marked as not financed under this Agreement will be included in determining your image and overage charges."]
[null,"MAINTENANCE. We agree to provide at no additional charge to you only on the Equipment: (i) All Usherwood preferred brand supplies, excluding paper and staples, that are warranted based on the volume of impressions being used on the equipment covered under this Agreement; (ii) All parts that have become worn or broken through normal use, as well as those required for periodic manufacturer required maintenance and the labor required to install said parts. Parts that are required due to misuse, accident, abuse, neglect, theft, riot, vandalism, power failure, fire, water, other acts of God, customer’s failure to provide and maintain a clean operating environment and/or an operating environment within temperature and humidity specifications, damage caused by service personnel or supplies other than those furnished by us, the labor required to replace these parts stemming from the aforementioned causes as well as all parts and labor required after the expiration of this Agreement will be supplied to the customer at the current retail price for both parts and labor. If we are unable to fix the equipment on site and the machine needs to be removed from location, a service loaner may be provided. In the event a loaner is provided, this loaner equipment will be added to the contract at the current per copy rate of the machine removed. We will make a reasonable effort to provide a service loaner that will perform the functions of the removed equipment. The above listed services, unless otherwise noted, will be provided to you during normal business hours and at a mutually convenient time and as long as your account is in good standing. Normal business hours are defined as 8am-5pm, Monday through Friday, excluding holidays.Postage device contracts do not include any supplies - including but not limited to: ink, labels or sealing liquid. Large format equipment does not include ink, toner, thermal heads, print heads, drums and maintenance kits. Unless otherwise agreed, a freight surcharge may be charged for supply shipments."]
[null,"POSTAGE DEVICES. Postage measurement devices referenced herein which are subject to a rental agreement between you and an authorized manufacturer (“Postage Manufacturer”), are not part of the Equipment and your use and the ownership of such devices will be governed exclusively by your rental agreement with the Postage Manufacturer. You will need to reference your rental agreement with the Postage Manufacturer for the term of, and your rights and obligations under, the rental agreement. For your convenience, payments under this Agreement may include the rental amounts you owe the Postage Manufacturer under the rental agreement."]
[null,"AGREEMENT"]
[null,"This Schedule to Master Agreement (“Schedule”), together with the preprinted terms of the Master Agreement (as amended), constitutes an agreement between Customer and Owner with respect to the equipment referenced herein (or on the attached Equipment or Group Billing Schedule) (excluding equipment marked as not financed under this Schedule), separate and distinct from any other Schedule to Master Agreement entered into between Customer and Owner pursuant to the Master Agreement. Customer agrees to be bound by the terms of this Schedule, which includes the preprinted terms of the Master Agreement (as amended), and agrees this Schedule shall constitute an “Agreement” as such term is used in the Master Agreement. The original of this Schedule shall be that copy which bears a facsimile or original of your signature and which bears our original signature. If any provision in this Schedule conflicts with a provision in the Master Agreement, the provision in this Schedule shall control. This Schedule shall commence on the date of our acceptance."]
[null,"CUSTOMER'S AUTHORIZED SIGNATURE"]
[null,"ONCE YOU SIGN THIS SCHEDULE AND OWNER ACCEPTS IT, THIS SCHEDULE WILL BE NON-CANCELABLE FOR THE FULL TERM."]
[null,{"$f":"IF(D10<>0,D10,\"\")","v":""},null,null,null,"x"]
[null,"CUSTOMER",null,null,null,"SIGNATURE",null,null,null,"PRINT NAME & TITLE",null,null,null,"DATE"]
[null,"OWNER (\"WE\", \"US\", \"OUR\")"]
[null,"Usherwood Office Technology"]
[null,"OWNER",null,null,null,"SIGNATURE",null,null,null,"PRINT NAME & TITLE",null,null,null,"DATE"]
[null,"CERTIFICATE OF DELIVERY AND ACCEPTANCE"]
[null,"The Customer hereby certifies that all the Equipment: 1) has been received, installed, and inspected, and 2) is fully operational and unconditionally accepted."]
[null,null,null,null,null,"x"]
[null,"CUSTOMER",null,null,null,"SIGNATURE",null,null,null,"PRINT NAME & TITLE",null,null,null,"DATE"]
[null,"x.024031-UP02ImagingMail_0216"]

{"sheet":"Straight Schedule","index":5,"n_rows":43,"n_cols":14,"rows_kept":43,"cut":false,"hidden":false,"merged":[[6,4,6,6],[6,8,6,10],[6,12,6,14],[0,4,0,11],[1,4,1,11],[5,4,5,6],[5,8,5,10],[5,12,5,14],[17,1,17,14],[8,1,8,14],[9,1,9,3],[9,4,9,14],[10,1,10,2],[10,3,10,14],[11,1,11,14],[12,1,12,14],[13,1,13,14],[14,11,14,14],[15,1,15,14],[16,1,16,14],[28,4,28,14],[18,1,18,14],[19,1,19,14],[20,1,20,14],[21,1,21,14],[22,1,22,14],[23,1,23,14],[24,1,24,14],[25,4,25,14],[26,1,26,14],[27,6,27,9],[27,10,27,12],[29,1,29,14],[30,1,30,14],[31,1,31,14],[32,1,32,14],[33,6,33,8],[33,9,33,12],[33,13,33,14],[39,1,39,14],[34,1,34,4],[34,5,34,8],[34,9,34,12],[34,13,34,14],[35,1,35,14],[36,1,36,4],[36,9,36,12],[36,13,36,14],[37,1,37,4],[37,5,37,8],[37,9,37,12],[37,13,37,14],[38,1,38,14],[40,1,40,4],[40,6,40,8],[40,9,40,12],[40,13,40,14],[41,1,41,4],[41,5,41,8],[41,9,41,12],[41,13,41,14]]}
[null,null,null,null,"SCHEDULE TO MASTER AGREEMENT"]
[null,null,null,null,"(Straight Lease)"]
[null,null,null,null,null,null,null,null,null,null,"Usherwood Office Technology"]
[null,null,null,null,null,null,null,null,null,null,"1005 W Fayette St., Syracuse NY 13204-2860"]
[]
[null,null,null,null,"MASTER AGREEMENT NO.",null,null,null,"APPLICATION NO.",null,null,null,"AGREEMENT/SCHEDULE NO."]
[]
[]
[null,"CUSTOMER (\"YOU\" or \"YOUR\")"]
[null,"FULL LEGAL NAME:",null,null,{"$f":"IF('Sales Agreement'!C12<>\"\",'Sales Agreement'!C12,\"\")","v":""}]
[null,"ADDRESS:",null,{"$f":"IF('Sales Agreement'!P12<>\"\",(CONCATENATE(IF('Sales Agreement'!P12<>\"\",'Sales Agreement'!P12,\"\"),\" \",(IF('Sales Agreement'!C14<>\"\",'Sales Agreement'!C14,\"\")),\", \",(IF('Sales Agreement'!K14<>\"\",'Sales Agreement'!K14,\"\")),\", \",(IF('Sales Agreement'!N14<>\"\",'Sales Agreement'!N14,\"\")))),\"\")","v":""}]
[null,"MASTER AGREEMENT"]
[null,"REFERS TO THE AGREEMENT BETWEEN CUSTOMER AND OWNER IDENTIFIED IN OWNER'S RECORDS BY THE MASTER AGREEMENT NO. ABOVE."]
[null,"DESCRIPTION OF EQUIPMENT"]
[null,"MAKE, MODEL NUMBER, INCLUDED ACCESSORIES & SERIAL NO.",null,null,null,null,null,null,null,null,null,"SEE ATTACHED EQUIPMENT SCHEDULE"]
[]
[]
[]
[]
[]
[]
[]
[]
[]
[]
[null,"EQUIPMENT LOCATION:"]
[null,"PAYMENT TERMS UNDER THIS SCHEDULE ONLY"]
[null,"TERM IN MONTHS:",null,null,null,null,"MONTHLY PAYMENT AMOUNT: $",null,null,null,null,null,null,"(PLUS TAX)"]
[null,"PURCHASE OPTION: ",null,null,"   FAIR MARKET VALUE               $1.00   (PURCHASE OPTION WILL BE FAIR MARKET VALUE IF NO BOX IS CHECKED)"]
[null,"AGREEMENT"]
[null,"This Schedule to Master Agreement (“Schedule”), together with the preprinted terms of the Master Agreement (as amended), constitutes an agreement between Customer and Owner with respect to the equipment referenced herein (or on the attached Equipment or Group Billing Schedule) (excluding equipment marked as not financed under this Schedule), separate and distinct from any other Schedule to Master Agreement entered into between Customer and Owner pursuant to the Master Agreement. Customer agrees to be bound by the terms of this Schedule, which includes the preprinted terms of the Master Agreement (as amended), and agrees this Schedule shall constitute an “Agreement” as such term is used in the Master Agreement. The original of this Schedule shall be that copy which bears a facsimile or original of your signature and which bears our original signature. If any provision in this Schedule conflicts with a provision in the Master Agreement, the provision in this Schedule shall control. This Schedule shall commence on the date of our acceptance."]
[null,"CUSTOMER'S AUTHORIZED SIGNATURE"]
[null,"ONCE YOU SIGN THIS SCHEDULE AND OWNER ACCEPTS IT, THIS SCHEDULE WILL BE NON-CANCELABLE FOR THE FULL TERM."]
[null,{"$f":"IF(E10<>0,E10,\"\")","v":""},null,null,null,"x"]
[null,"CUSTOMER",null,null,null,"SIGNATURE",null,null,null,"PRINT NAME & TITLE",null,null,null,"DATE"]
[null,"OWNER (\"WE\", \"US\", \"OUR\")"]
[null,"Usherwood Office Technology"]
[null,"OWNER",null,null,null,"SIGNATURE",null,null,null,"PRINT NAME & TITLE",null,null,null,"DATE"]
[null,"CERTIFICATE OF DELIVERY AND ACCEPTANCE"]
[null,"The Customer hereby certifies that all the Equipment: 1) has been received, installed, and inspected, and 2) is fully operational and unconditionally accepted."]
[null,null,null,null,null,"x"]
[null,"CUSTOMER",null,null,null,"SIGNATURE",null,null,null,"PRINT NAME & TITLE",null,null,null,"DATE"]
[null,"x.024031-UP02Straight_0216"]

{"sheet":"IT-Network Schedule","index":6,"n_rows":44,"n_cols":14,"rows_kept":44,"cut":false,"hidden":true,"merged":[[11,1,11,14],[0,4,0,11],[1,4,1,11],[5,4,5,6],[5,8,5,10],[5,12,5,14],[6,4,6,6],[6,8,6,10],[6,12,6,14],[8,1,8,14],[9,1,9,3],[9,4,9,14],[10,1,10,2],[10,3,10,14],[23,1,23,14],[12,1,12,14],[13,1,13,14],[14,11,14,14],[15,1,15,14],[16,1,16,14],[17,1,17,14],[18,1,18,14],[19,1,19,14],[20,1,20,14],[21,1,21,14],[22,1,22,14],[34,6,34,8],[34,9,34,12],[34,13,34,14],[24,1,24,14],[25,4,25,14],[26,1,26,14],[27,6,27,9],[27,10,27,12],[28,1,28,14],[29,1,29,14],[30,1,30,14],[31,1,31,14],[32,1,32,14],[33,1,33,14],[40,1,40,14],[35,1,35,4],[35,5,35,8],[35,9,35,12],[35,13,35,14],[36,1,36,14],[37,1,37,4],[37,9,37,12],[37,13,37,14],[38,1,38,4],[38,5,38,8],[38,9,38,12],[38,13,38,14],[39,1,39,14],[41,1,41,4],[41,6,41,8],[41,9,41,12],[41,13,41,14],[42,1,42,4],[42,5,42,8],[42,9,42,12],[42,13,42,14]]}
[null,null,null,null,"SCHEDULE TO MASTER AGREEMENT"]
[null,null,null,null,"(IT/Network Equipment - Rental)"]
[null,null,null,null,null,null,null,null,null,null,"Usherwood Office Technology"]
[null,null,null,null,null,null,null,null,null,null,"1005 W Fayette St., Syracuse NY 13204-2860"]
[]
[null,null,null,null,"MASTER AGREEMENT NO.",null,null,null,"APPLICATION NO.",null,null,null,"AGREEMENT/SCHEDULE NO."]
[]
[]
[null,"CUSTOMER (\"YOU\" or \"YOUR\")"]
[null,"FULL LEGAL NAME:",null,null,{"$f":"IF('Sales Agreement'!C12<>\"\",'Sales Agreement'!C12,\"\")","v":""}]
[null,"ADDRESS:",null,{"$f":"IF('Sales Agreement'!P12<>\"\",(CONCATENATE(IF('Sales Agreement'!P12<>\"\",'Sales Agreement'!P12,\"\"),\" \",(IF('Sales Agreement'!C14<>\"\",'Sales Agreement'!C14,\"\")),\", \",(IF('Sales Agreement'!K14<>\"\",'Sales Agreement'!K14,\"\")),\", \",(IF('Sales Agreement'!N14<>\"\",'Sales Agreement'!N14,\"\")))),\"\")","v":""}]
[null,"MASTER AGREEMENT"]
[null,"REFERS TO THE AGREEMENT BETWEEN CUSTOMER AND OWNER IDENTIFIED IN OWNER'S RECORDS BY THE MASTER AGREEMENT NO. ABOVE."]
[null,"DESCRIPTION OF EQUIPMENT"]
[null,"MAKE, MODEL NUMBER, INCLUDED ACCESSORIES & SERIAL NO.",null,null,null,null,null,null,null,null,null,"SEE ATTACHED EQUIPMENT SCHEDULE"]
[]
[]
[]
[]
[]
[]
[]
[]
[]
[]
[null,"EQUIPMENT LOCATION:"]
[null,"PAYMENT TERMS UNDER THIS SCHEDULE ONLY"]
[null,"TERM IN MONTHS:",null,null,null,null,"MONTHLY PAYMENT AMOUNT: $",null,null,null,null,null,null,"(PLUS TAX)"]
[null,"DETAIL OF INVOICED AMOUNTS"]
[null,"        CHECK HERE IF MONTHLY PAYMENT AMOUNT INCLUDES AMOUNTS FOR NETWORK SERVICES: If this box is checked, the Monthly Payment Amount set forth above consists of the amount payable to us monthly pursuant to the terms of this Schedule relating to our providing you, or financing for you, the equipment and/or software listed above (the “Equipment Payment”), and the initial amount payable monthly to your Vendor pursuant to your separate statement of work or IT services agreement with your Vendor for managed network services and/or other professional services relating to your IT network (the “Services Payment”). For your convenience, we may invoice you for the Equipment Payment and the Services Payment on one invoice. If the amount of the Services Payment is adjusted during the term of this Schedule in accordance with your statement of work of IT services agreement, we will invoice you for the updated Services Payment after the effective date of such adjustment."]
[null,"AGREEMENT"]
[null,"This Schedule to Master Agreement (“Schedule”), together with the preprinted terms of the Master Agreement (as amended), constitutes an agreement between Customer and Owner with respect to the equipment referenced herein (or on the attached Equipment or Group Billing Schedule) (excluding equipment marked as not financed under this Schedule), separate and distinct from any other Schedule to Master Agreement entered into between Customer and Owner pursuant to the Master Agreement. Customer agrees to be bound by the terms of this Schedule, which includes the preprinted terms of the Master Agreement (as amended), and agrees this Schedule shall constitute an “Agreement” as such term is used in the Master Agreement. The original of this Schedule shall be that copy which bears a facsimile or original of your signature and which bears our original signature. If any provision in this Schedule conflicts with a provision in the Master Agreement, the provision in this Schedule shall control. This Schedule shall commence on the date of our acceptance."]
[null,"CUSTOMER'S AUTHORIZED SIGNATURE"]
[null,"ONCE YOU SIGN THIS SCHEDULE AND OWNER ACCEPTS IT, THIS SCHEDULE WILL BE NON-CANCELABLE FOR THE FULL TERM."]
[null,{"$f":"IF(E10<>0,E10,\"\")","v":""},null,null,null,"x"]
[null,"CUSTOMER",null,null,null,"SIGNATURE",null,null,null,"PRINT NAME & TITLE",null,null,null,"DATE"]
[null,"OWNER (\"WE\", \"US\", \"OUR\")"]
[null,"Usherwood Office Technology"]
[null,"OWNER",null,null,null,"SIGNATURE",null,null,null,"PRINT NAME & TITLE",null,null,null,"DATE"]
[null,"CERTIFICATE OF DELIVERY AND ACCEPTANCE"]
[null,"The Customer hereby certifies that all the Equipment: 1) has been received, installed, and inspected, and 2) is fully operational and unconditionally accepted."]
[null,null,null,null,null,"x"]
[null,"CUSTOMER",null,null,null,"SIGNATURE",null,null,null,"PRINT NAME & TITLE",null,null,null,"DATE"]
[null,"x.024031-UP02DataMNSB(RL)_0216"]

{"sheet":"Software Schedule","index":7,"n_rows":42,"n_cols":14,"rows_kept":42,"cut":false,"hidden":true,"merged":[[11,1,11,14],[0,4,0,11],[1,4,1,11],[5,4,5,6],[5,8,5,10],[5,12,5,14],[6,4,6,6],[6,8,6,10],[6,12,6,14],[8,1,8,14],[9,1,9,3],[9,4,9,14],[10,1,10,2],[10,3,10,14],[23,1,23,14],[12,1,12,14],[13,1,13,14],[14,11,14,14],[15,1,15,14],[16,1,16,14],[17,1,17,14],[18,1,18,14],[19,1,19,14],[20,1,20,14],[21,1,21,14],[22,1,22,14],[24,1,24,14],[25,4,25,14],[26,1,26,14],[27,5,27,7],[27,9,27,10],[27,12,27,14],[28,1,28,14],[29,1,29,14],[30,1,30,14],[31,1,31,14],[32,6,32,8],[32,9,32,12],[32,13,32,14],[32,1,32,4],[38,1,38,14],[33,1,33,4],[33,5,33,8],[33,9,33,12],[33,13,33,14],[34,1,34,14],[35,1,35,4],[35,9,35,12],[35,13,35,14],[36,1,36,4],[36,5,36,8],[36,9,36,12],[36,13,36,14],[37,1,37,14],[39,1,39,4],[39,6,39,8],[39,9,39,12],[39,13,39,14],[40,1,40,4],[40,5,40,8],[40,9,40,12],[40,13,40,14]]}
[null,null,null,null,"SCHEDULE TO MASTER AGREEMENT"]
[null,null,null,null,"(Software)"]
[null,null,null,null,null,null,null,null,null,null,"Usherwood Office Technology"]
[null,null,null,null,null,null,null,null,null,null,"1005 W Fayette St., Syracuse NY 13204-2860"]
[]
[null,null,null,null,"MASTER AGREEMENT NO.",null,null,null,"APPLICATION NO.",null,null,null,"AGREEMENT/SCHEDULE NO."]
[]
[]
[null,"CUSTOMER (\"YOU\" or \"YOUR\")"]
[null,"FULL LEGAL NAME:",null,null,{"$f":"IF('Sales Agreement'!C12<>\"\",'Sales Agreement'!C12,\"\")","v":""}]
[null,"ADDRESS:",null,{"$f":"IF('Sales Agreement'!P12<>\"\",(CONCATENATE(IF('Sales Agreement'!P12<>\"\",'Sales Agreement'!P12,\"\"),\" \",(IF('Sales Agreement'!C14<>\"\",'Sales Agreement'!C14,\"\")),\", \",(IF('Sales Agreement'!K14<>\"\",'Sales Agreement'!K14,\"\")),\", \",(IF('Sales Agreement'!N14<>\"\",'Sales Agreement'!N14,\"\")))),\"\")","v":""}]
[null,"MASTER AGREEMENT"]
[null,"REFERS TO THE AGREEMENT BETWEEN CUSTOMER AND OWNER IDENTIFIED IN OWNER'S RECORDS BY THE MASTER AGREEMENT NO. ABOVE."]
[null,"DESCRIPTION OF EQUIPMENT"]
[null,"MAKE, MODEL NUMBER, INCLUDED ACCESSORIES & SERIAL NO.",null,null,null,null,null,null,null,null,null,"SEE ATTACHED EQUIPMENT SCHEDULE"]
[]
[]
[]
[]
[]
[]
[]
[]
[]
[]
[null,"EQUIPMENT LOCATION:"]
[null,"PAYMENT TERMS UNDER THIS SCHEDULE ONLY"]
[null,"TERM IN MONTHS:",null,null,null,"MONTHLY PAYMENT AMOUNT: $",null,null,null,"(PLUS TAX)",null,null,"PURCHASE OPTION: $1.00"]
[null,"AGREEMENT"]
[null,"This Schedule to Master Agreement (“Schedule”), together with the preprinted terms of the Master Agreement (as amended), constitutes an agreement between Customer and Owner with respect to the equipment referenced herein (or on the attached Equipment or Group Billing Schedule) (excluding equipment marked as not financed under this Schedule), separate and distinct from any other Schedule to Master Agreement entered into between Customer and Owner pursuant to the Master Agreement. Customer agrees to be bound by the terms of this Schedule, which includes the preprinted terms of the Master Agreement (as amended), and agrees this Schedule shall constitute an “Agreement” as such term is used in the Master Agreement. The original of this Schedule shall be that copy which bears a facsimile or original of your signature and which bears our original signature. If any provision in this Schedule conflicts with a provision in the Master Agreement, the provision in this Schedule shall control. This Schedule shall commence on the date of our acceptance."]
[null,"CUSTOMER'S AUTHORIZED SIGNATURE"]
[null,"ONCE YOU SIGN THIS SCHEDULE AND OWNER ACCEPTS IT, THIS SCHEDULE WILL BE NON-CANCELABLE FOR THE FULL TERM."]
[null,{"$f":"IF(E10<>0,E10,\"\")","v":""},null,null,null,"x"]
[null,"CUSTOMER",null,null,null,"SIGNATURE",null,null,null,"PRINT NAME & TITLE",null,null,null,"DATE"]
[null,"OWNER (\"WE\", \"US\", \"OUR\")"]
[null,"Usherwood Office Technology"]
[null,"OWNER",null,null,null,"SIGNATURE",null,null,null,"PRINT NAME & TITLE",null,null,null,"DATE"]
[null,"CERTIFICATE OF DELIVERY AND ACCEPTANCE"]
[null,"The Customer hereby certifies that all the Equipment: 1) has been received, installed, and inspected, and 2) is fully operational and unconditionally accepted."]
[null,null,null,null,null,"x"]
[null,"CUSTOMER",null,null,null,"SIGNATURE",null,null,null,"PRINT NAME & TITLE",null,null,null,"DATE"]
[null,"x.024031-UP02Software(CS)_0216"]

{"sheet":"ImagingEquipSchedule","index":8,"n_rows":40,"n_cols":10,"rows_kept":40,"cut":false,"hidden":true,"merged":[[0,3,0,6],[3,7,3,8],[5,1,5,9],[6,1,7,1],[6,2,7,2],[6,3,7,3],[6,4,6,5],[6,6,6,7],[6,8,6,9],[37,1,37,2],[37,3,37,5],[37,6,37,8],[33,1,33,5],[34,1,34,9],[35,1,35,9],[36,1,36,2],[36,3,36,5],[36,6,36,8]]}
[null,null,null,"EQUIPMENT SCHEDULE"]
[]
[]
[null,null,null,null,null,null,null,"AGREEMENT NO.:"]
[]
[null,"DESCRIPTION OF EQUIPMENT"]
[null,"MAKE, MODEL NUMBER & INCLUDED ACCESSORIES","SERIAL NUMBER","NOT FINANCED UNDER THIS AGREEMENT","BEGINNING METER READING",null,"MONTHLY IMAGE ALLOWANCE",null,"EXCESS PER IMAGE CHARGE (PLUS TAX)"]
[null,null,null,null,"B&W","COLOR","B&W ","COLOR","B&W","COLOR"]
[]
[]
[]
[]
[]
[]
[]
[]
[]
[]
[]
[]
[]
[]
[]
[]
[]
[]
[]
[]
[]
[]
[]
[]
[]
[null,"TOTAL CONSOLIDATED MONTHLY IMAGE ALLOWANCE AND EXCESS PER IMAGE CHARGES (IF CONSOLIDATED)"]
[null,"VERIFICATION"]
[null,"The undersigned hereby verifies that the information on this Schedule is complete and correct. The undersigned also acknowledges having received a copy of this Schedule.  "]
[null,null,null,"X"]
[null,"CUSTOMER",null,"SIGNATURE",null,null,"PRINT NAME & TITLE",null,null,"DATE"]
[]
[null,"x.024031-UP0305A_0216"]

{"sheet":"ImagingGroupBilling","index":9,"n_rows":45,"n_cols":10,"rows_kept":45,"cut":false,"hidden":true,"merged":[[0,3,0,6],[3,7,3,8],[5,2,5,9],[6,1,6,9],[7,1,7,9],[9,8,9,9],[16,1,16,5],[17,2,17,6],[17,7,17,8],[18,1,18,9],[9,1,10,1],[9,2,10,2],[9,3,10,3],[9,4,9,5],[9,6,9,7],[41,1,41,9],[20,8,20,9],[27,1,27,5],[28,2,28,6],[28,7,28,8],[29,1,29,9],[31,1,32,1],[31,2,32,2],[31,3,32,3],[31,4,31,5],[31,6,31,7],[20,1,21,1],[20,2,21,2],[20,3,21,3],[20,4,20,5],[20,6,20,7],[31,8,31,9],[38,1,38,5],[39,2,39,6],[39,7,39,8],[40,1,40,9],[42,1,42,2],[42,3,42,5],[42,6,42,8],[43,1,43,2],[43,3,43,5],[43,6,43,8]]}
[null,null,null,"GROUP BILLING SCHEDULE"]
[]
[]
[null,null,null,null,null,null,null,"AGREEMENT NO.:"]
[]
[null,"CUSTOMER:",{"$f":"IF('Sales Agreement'!C12<>\"\",'Sales Agreement'!C12,\"\")","v":""}]
[null,"This Group Billing Schedule (hereafter “Schedule”) is hereby made a part of that certain agreement by and between the above named Customer and Usherwood Office Technology (\"Owner\"), which Agreement is identified in Owner’s records as the Agreement No. stated above (“Agreement”). The Excess Per Image Charges under the Agreement shall be determined under this Schedule.  If there is any provision in this Schedule which conflicts with a provision in the Agreement, the provision in this Schedule shall govern."]
[null,"GROUP NAME"]
[null,"Meter Group 1"]
[null,"MAKE, MODEL NUMBER & INCLUDED ACCESSORIES","SERIAL NUMBER","NOT FINANCED UNDER THIS AGREEMENT","BEGINNING METER READING",null,"MONTHLY IMAGE ALLOWANCE",null,"EXCESS PER IMAGE CHARGE (PLUS TAX)"]
[null,null,null,null,"B&W","COLOR","B&W ","COLOR","B&W","COLOR"]
[]
[]
[]
[]
[]
[null,"TOTAL CONSOLIDATED MONTHLY IMAGE ALLOWANCE AND EXCESS PER IMAGE CHARGES (IF CONSOLIDATED)"]
[null,"EQUIPMENT LOCATION:",null,null,null,null,null,"METER FREQUENCY:"]
[null,"GROUP NAME"]
[null,"Meter Group 2"]
[null,"MAKE, MODEL NUMBER & INCLUDED ACCESSORIES","SERIAL NUMBER","NOT FINANCED UNDER THIS AGREEMENT","BEGINNING METER READING",null,"MONTHLY IMAGE ALLOWANCE",null,"EXCESS PER IMAGE CHARGE (PLUS TAX)"]
[null,null,null,null,"B&W","COLOR","B&W ","COLOR","B&W","COLOR"]
[]
[]
[]
[]
[]
[null,"TOTAL CONSOLIDATED MONTHLY IMAGE ALLOWANCE AND EXCESS PER IMAGE CHARGES (IF CONSOLIDATED)"]
[null,"EQUIPMENT LOCATION:",null,null,null,null,null,"METER FREQUENCY:"]
[null,"GROUP NAME"]
[null,"Meter Group 3"]
[null,"MAKE, MODEL NUMBER & INCLUDED ACCESSORIES","SERIAL NUMBER","NOT FINANCED UNDER THIS AGREEMENT","BEGINNING METER READING",null,"MONTHLY IMAGE ALLOWANCE",null,"EXCESS PER IMAGE CHARGE (PLUS TAX)"]
[null,null,null,null,"B&W","COLOR","B&W ","COLOR","B&W","COLOR"]
[]
[]
[]
[]
[]
[null,"TOTAL CONSOLIDATED MONTHLY IMAGE ALLOWANCE AND EXCESS PER IMAGE CHARGES (IF CONSOLIDATED)"]
[null,"EQUIPMENT LOCATION:",null,null,null,null,null,"METER FREQUENCY:"]
[null,"VERIFICATION"]
[null,"The undersigned hereby verifies that the information on this Schedule is complete and correct. The undersigned also acknowledges having received a copy of this Schedule.  "]
[null,null,null,"X"]
[null,"CUSTOMER",null,"SIGNATURE",null,null,"PRINT NAME & TITLE",null,null,"DATE"]
[null,"x.024031-UP0305AG_0216"]

{"sheet":"EquipSchedule","index":10,"n_rows":43,"n_cols":10,"rows_kept":43,"cut":false,"hidden":true,"merged":[[7,1,7,5],[7,6,7,9],[0,3,0,6],[3,7,3,8],[5,1,5,9],[6,1,6,5],[6,6,6,9],[8,1,8,5],[8,6,8,9],[9,1,9,5],[9,6,9,9],[10,1,10,5],[10,6,10,9],[11,1,11,5],[11,6,11,9],[12,1,12,5],[12,6,12,9],[13,1,13,5],[13,6,13,9],[14,1,14,5],[14,6,14,9],[15,1,15,5],[15,6,15,9],[16,1,16,5],[16,6,16,9],[17,1,17,5],[17,6,17,9],[18,1,18,5],[18,6,18,9],[19,1,19,5],[19,6,19,9],[20,1,20,5],[20,6,20,9],[21,1,21,5],[21,6,21,9],[22,1,22,5],[22,6,22,9],[23,1,23,5],[23,6,23,9],[24,1,24,5],[24,6,24,9],[25,1,25,5],[25,6,25,9],[26,1,26,5],[26,6,26,9],[27,1,27,5],[27,6,27,9],[28,1,28,5],[28,6,28,9],[29,1,29,5],[29,6,29,9],[30,1,30,5],[30,6,30,9],[31,1,31,5],[31,6,31,9],[38,1,38,9],[32,1,32,5],[32,6,32,9],[33,1,33,5],[33,6,33,9],[34,1,34,5],[34,6,34,9],[35,1,35,5],[35,6,35,9],[36,1,36,5],[36,6,36,9],[37,1,37,9],[39,1,39,2],[39,3,39,5],[39,6,39,8],[40,1,40,2],[40,3,40,5],[40,6,40,8]]}
[null,null,null,"EQUIPMENT SCHEDULE"]
[]
[]
[null,null,null,null,null,null,null,"AGREEMENT NO.:"]
[]
[null,"DESCRIPTION OF EQUIPMENT"]
[null,"MAKE, MODEL NUMBER & INCLUDED ACCESSORIES",null,null,null,null,"SERIAL NUMBER"]
[]
[]
[]
[]
[]
[]
[]
[]
[]
[]
[]
[]
[]
[]
[]
[]
[]
[]
[]
[]
[]
[]
[]
[]
[]
[]
[]
[]
[]
[]
[null,"VERIFICATION"]
[null,"The undersigned hereby verifies that the information on this Schedule is complete and correct. The undersigned also acknowledges having received a copy of this Schedule.  "]
[null,null,null,"X"]
[null,"CUSTOMER",null,"SIGNATURE",null,null,"PRINT NAME & TITLE",null,null,"DATE"]
[]
[null,"x.024031-UP0205A_0216"]

{"sheet":"Demo-Trial Agmt","index":11,"n_rows":52,"n_cols":20,"rows_kept":52,"cut":false,"hidden":true,"merged":[[25,13,25,21],[26,4,26,7],[26,8,26,12],[26,13,26,21],[35,3,38,22],[34,2,34,6],[29,13,29,21],[30,4,30,7],[30,8,30,12],[30,13,30,21],[31,4,31,7],[31,8,31,12],[31,13,31,21],[27,8,27,12],[27,13,27,21],[51,2,51,7],[20,4,20,7],[20,8,20,12],[20,13,20,21],[21,4,21,7],[21,8,21,12],[21,13,21,21],[22,4,22,7],[22,8,22,12],[22,13,22,21],[46,6,47,23],[47,2,47,3],[50,2,50,3],[32,13,32,21],[50,4,50,9],[50,10,50,12],[50,13,50,18],[50,19,50,20],[50,21,50,23],[42,7,42,12],[42,13,42,18],[44,17,44,23],[43,2,43,5],[43,11,43,14],[44,2,44,7],[44,11,44,14],[44,15,44,16],[23,4,23,7],[23,8,23,12],[23,13,23,21],[24,4,24,7],[32,4,32,7],[32,8,32,12],[29,4,29,7],[29,8,29,12],[28,4,28,7],[28,8,28,12],[28,13,28,21],[25,4,25,7],[25,8,25,12],[24,8,24,12],[24,13,24,21],[27,4,27,7],[16,2,16,6],[16,17,16,23],[11,2,11,3],[12,2,12,6],[12,10,12,11],[12,13,12,15],[12,17,12,23],[14,2,14,9],[14,15,14,23],[16,10,16,15],[15,2,15,4],[10,2,10,9],[10,15,10,23],[2,19,2,20],[2,21,2,23],[3,18,6,24],[5,9,5,17],[9,2,9,4]]}
[]
[]
[null,null,null,null,null,null,null,null,null,null,null,null,null,null,null,null,null,null,null,"Date:"]
[null,null,null,null,null,null,null,null,null,null,null,null,null,null,null,null,null,null,"Corporate Headquarters               1005 W Fayette Street               Syracuse, NY 13204"]
[]
[null,null,null,null,null,null,null,null,null,"Demo/Trial Agreement"]
[]
[]
[]
[null,null,"CLIENT NAME:",null,null,null,null,null,null,null,null,null,null,null,null,"CLIENT STREET ADDRESS:"]
[]
[null,null,"CITY:",null,null,null,null,null,null,null,"STATE:",null,null,"ZIP:",null,null,null,"PHONE:"]
[]
[null,null,"DEMO LOCATION:",null,null,null,null,null,null,null,null,null,null,null,null,"CLIENT CONTACT NAME:"]
[]
[null,null,"DELIVERY DATE:",null,null,null,null,null,null,null,"DEMO P/U DATE or TRIAL LENGTH:",null,null,null,null,null,null,"CLIENT CONTACT EMAIL:"]
[]
[]
[]
[]
[null,null,null,null,"Quantity",null,null,null,"Item Number",null,null,null,null,"Item Description"]
[]
[]
[]
[]
[]
[]
[]
[]
[]
[]
[]
[]
[]
[null,null,"Notes/Special Instructions:"]
[]
[]
[]
[]
[]
[]
[]
[null,null,null,null,null,null,null,"CONNECTIVITY REQUIRMENTS"]
[null,null,"IT CONTACT NAME:",null,null,null,null,null,null,null,null,"IT CONTACT PHONE:",null,null,null,null,null,"IT CONTACT EMAIL:"]
[]
[]
[null,null,"Connectivity Notes:"]
[]
[]
[]
[null,null,"Signature:",null,null,null,null,null,null,null,"Print:",null,null,null,null,null,null,null,null,"Date:"]
[null,null,"UOTDEMOTRLAGMTREV032016"]

{"sheet":"Loaner Authorization","index":12,"n_rows":52,"n_cols":20,"rows_kept":52,"cut":false,"hidden":true,"merged":[[44,2,44,7],[44,11,44,14],[44,15,44,16],[44,17,44,23],[46,6,47,23],[47,2,47,3],[51,2,51,7],[49,2,49,5],[26,4,26,21],[20,4,20,21],[50,2,50,3],[50,4,50,9],[50,10,50,12],[50,13,50,18],[50,19,50,20],[50,21,50,23],[34,2,34,6],[35,3,38,22],[42,7,42,12],[42,13,42,18],[43,2,43,5],[43,11,43,14],[31,4,31,7],[31,8,31,12],[31,13,31,21],[32,4,32,7],[32,8,32,12],[32,13,32,21],[29,4,29,7],[29,8,29,12],[29,13,29,21],[30,4,30,7],[30,8,30,12],[30,13,30,21],[27,4,27,7],[27,8,27,12],[27,13,27,21],[28,4,28,7],[28,8,28,12],[28,13,28,21],[25,4,25,7],[25,8,25,12],[25,13,25,21],[23,4,23,7],[23,8,23,12],[23,13,23,21],[24,4,24,7],[24,8,24,12],[24,13,24,21],[14,15,14,23],[21,4,21,7],[21,8,21,12],[21,13,21,21],[22,4,22,7],[22,8,22,12],[22,13,22,21],[15,2,15,4],[16,2,16,6],[16,10,16,15],[16,17,16,23],[14,2,14,9],[11,2,11,3],[12,2,12,6],[12,10,12,11],[12,13,12,15],[12,17,12,23],[10,2,10,9],[10,15,10,23],[2,19,2,20],[2,21,2,23],[3,18,6,24],[5,9,5,17],[9,2,9,4]]}
[]
[]
[null,null,null,null,null,null,null,null,null,null,null,null,null,null,null,null,null,null,null,"Date:"]
[null,null,null,null,null,null,null,null,null,null,null,null,null,null,null,null,null,null,"Corporate Headquarters               1005 W Fayette Street               Syracuse, NY 13204"]
[]
[null,null,null,null,null,null,null,null,null,"Loaner Authorization"]
[]
[]
[]
[null,null,"CLIENT NAME:",null,null,null,null,null,null,null,null,null,null,null,null,"CLIENT STREET ADDRESS:"]
[]
[null,null,"CITY:",null,null,null,null,null,null,null,"STATE:",null,null,"ZIP:",null,null,null,"PHONE:"]
[]
[null,null,"REASON:",null,null,null,null,null,null,null,null,null,null,null,null,"CLIENT CONTACT NAME:"]
[]
[null,null,"DELIVERY DATE:",null,null,null,null,null,null,null,"LENGTH OF LOANER:",null,null,null,null,null,null,"CLIENT CONTACT EMAIL:"]
[]
[]
[]
[]
[null,null,null,null,"Loaner Information"]
[null,null,null,null,"Quantity",null,null,null,"Item Number/Eq ID",null,null,null,null,"Item Description"]
[]
[]
[]
[]
[null,null,null,null,"Pick Up"]
[null,null,null,null,"Quantity",null,null,null,"Item Number/Eq ID",null,null,null,null,"Item Description"]
[]
[]
[]
[]
[]
[]
[null,null,"Notes/Special Instructions:"]
[]
[]
[]
[]
[]
[]
[]
[null,null,null,null,null,null,null,"CONNECTIVITY REQUIRMENTS",null,null,null,null,null,"Select One"]
[null,null,"IT CONTACT NAME:",null,null,null,null,null,null,null,null,"IT CONTACT PHONE:",null,null,null,null,null,"IT CONTACT EMAIL:"]
[]
[]
[null,null,"Connectivity Notes:"]
[]
[]
[null,null,"Authorized by"]
[null,null,"Signature:",null,null,null,null,null,null,null,"Print:",null,null,null,null,null,null,null,null,"Date:"]
[null,null,"UOTLOANAUTHREV032016"]

{"sheet":"Equipment Return","index":13,"n_rows":47,"n_cols":23,"rows_kept":47,"cut":false,"hidden":true,"merged":[[19,14,19,18],[35,11,35,13],[19,19,19,23],[20,19,20,23],[21,19,21,23],[22,19,22,23],[23,19,23,23],[24,19,24,23],[20,14,20,18],[21,14,21,18],[22,14,22,18],[23,14,23,18],[24,14,24,18],[19,9,19,13],[20,9,20,13],[21,9,21,13],[22,9,22,13],[23,9,23,13],[45,2,45,7],[35,5,35,10],[35,15,35,20],[37,3,37,8],[37,12,37,17],[42,4,43,23],[43,2,43,3],[37,18,37,22],[38,18,38,22],[39,12,39,17],[39,18,39,22],[39,3,39,7],[39,8,39,11],[40,3,40,6],[40,7,40,11],[38,12,38,17],[29,19,29,23],[27,2,27,4],[27,5,27,8],[27,9,27,13],[27,14,27,18],[27,19,27,23],[28,2,28,4],[28,5,28,8],[28,9,28,13],[28,14,28,18],[28,19,28,23],[29,2,29,4],[29,5,29,8],[29,9,29,13],[29,14,29,18],[25,19,25,23],[26,2,26,4],[26,5,26,8],[26,9,26,13],[26,14,26,18],[26,19,26,23],[25,2,25,4],[25,5,25,8],[25,9,25,13],[25,14,25,18],[17,2,17,4],[17,5,17,8],[17,9,17,13],[17,14,17,18],[17,19,17,23],[16,9,16,13],[16,14,16,18],[16,19,16,23],[11,2,11,3],[12,2,12,6],[12,10,12,11],[12,13,12,15],[12,18,12,23],[22,2,22,4],[22,5,22,8],[10,2,10,9],[10,15,10,23],[2,20,2,21],[2,22,2,23],[3,19,6,24],[5,9,5,18],[9,2,9,4],[18,2,18,4],[18,5,18,8],[18,9,18,13],[18,14,18,18],[18,19,18,23],[16,2,16,4],[16,5,16,8],[19,2,19,4],[19,5,19,8],[20,2,20,4],[20,5,20,8],[21,2,21,4],[21,5,21,8],[37,9,37,11],[23,2,23,4],[23,5,23,8],[24,2,24,4],[24,5,24,8],[24,9,24,13]]}
[]
[]
[null,null,null,null,null,null,null,null,null,null,null,null,null,null,null,null,null,null,null,null,"Date:",null,{"$f":"IF('Sales Agreement'!V3:V3<>\"\",'Sales Agreement'!V3:V3,\"\")","v":""}]
[null,null,null,null,null,null,null,null,null,null,null,null,null,null,null,null,null,null,null,"Corporate Headquarters               1005 W Fayette Street               Syracuse, NY 13204"]
[]
[null,null,null,null,null,null,null,null,null,"Equipment Return Authorization"]
[]
[]
[]
[null,null,"CLIENT NAME:",null,null,null,null,null,null,null,null,null,null,null,null,"CLIENT STREET ADDRESS:"]
[null,null,{"$f":"IF('Sales Agreement'!C12:J12<>\"\",'Sales Agreement'!C12:J12,\"\")","v":""},null,null,null,null,null,null,null,null,null,null,null,null,{"$f":"IF('Sales Agreement'!P12:X12<>\"\",'Sales Agreement'!P12:X12,\"\")","v":""}]
[null,null,"CITY:",null,null,null,null,null,null,null,"STATE:",null,null,"ZIP:",null,null,null,null,"PHONE:"]
[null,null,{"$f":"IF('Sales Agreement'!C14:G14<>\"\",'Sales Agreement'!C14:G14,\"\")","v":""},null,null,null,null,null,null,null,{"$f":"IF('Sales Agreement'!K14:L14<>\"\",'Sales Agreement'!K14:L14,\"\")","v":""},null,null,{"$f":"IF('Sales Agreement'!N14<>\"\",'Sales Agreement'!N14,\"\")","v":""},null,null,null,null,{"$f":"IF('Sales Agreement'!R14<>\"\",'Sales Agreement'!R14,\"\")","v":""}]
[]
[]
[]
[null,null,"Make",null,null,"Model",null,null,null,"Serial Number/Tag",null,null,null,null,"Contact Name",null,null,null,null,"Location"]
[]
[]
[]
[]
[]
[]
[]
[]
[]
[]
[]
[]
[]
[]
[]
[]
[]
[]
[null,null,null,null,null,"Lease Return?",null,null,null,null,null,"Select One",null,null,null,"if yes, please complete below"]
[]
[null,null,null,"Current Usherwood Lessee?",null,null,null,null,null,null,null,null,"if yes, current lease number:"]
[null,null,null,null,null,null,null,null,null,null,null,null,"if no, current lease company:"]
[null,null,null,"Lease Buyout Amount:",null,null,null,null,null,null,null,null,"Date Equipment Due Back:"]
[null,null,null,"Buyout Type:",null,null,null,"Select One"]
[]
[null,null,"Notes:"]
[]
[]
[null,null,"UOTEQRETREV032016"]
[null,null,"Page 1"]

{"sheet":"Equip Schedule A","index":14,"n_rows":34,"n_cols":7,"rows_kept":34,"cut":false,"hidden":true,"merged":[[3,3,3,6]]}
[]
[]
[]
[null,null,null,"Equipment Schedule A"]
[]
[]
[null,"Qty","Item #","Item Description","Location","Meter Contact Name","Meter Contact Email"]
[]
[]
[]
[]
[]
[]
[]
[]
[]
[]
[]
[]
[]
[]
[]
[]
[]
[]
[]
[]
[]
[]
[]
[]
[]
[]
[null,"UOTSCHDAREV032016",null,null,null,null,"Page 1"]

{"sheet":"Maint. Agreement - New Contract","index":15,"n_rows":95,"n_cols":24,"rows_kept":95,"cut":false,"hidden":true,"merged":[[87,2,93,12],[64,2,86,12],[55,2,56,12],[57,2,63,12],[77,13,81,23],[82,13,93,23],[55,13,69,23],[70,13,76,23],[94,22,94,23],[43,13,44,23],[43,4,44,11],[45,4,45,22],[22,14,22,18],[22,19,22,23],[23,2,23,4],[23,5,23,8],[23,9,23,13],[23,14,23,18],[23,19,23,23],[36,11,36,13],[30,13,30,21],[31,15,31,22],[30,7,30,12],[25,2,25,4],[20,19,20,23],[21,2,21,4],[20,5,20,8],[21,9,21,13],[24,2,24,4],[21,14,21,18],[24,14,24,18],[20,2,20,4],[20,9,20,13],[20,14,20,18],[21,19,21,23],[24,19,24,23],[24,9,24,13],[22,2,22,4],[22,5,22,8],[22,9,22,13],[51,2,51,7],[21,5,21,8],[24,5,24,8],[47,2,47,3],[50,2,50,3],[50,4,50,9],[46,4,47,23],[25,5,25,8],[25,9,25,13],[34,5,34,9],[34,16,34,20],[25,14,25,18],[25,19,25,23],[50,20,50,21],[50,22,50,23],[37,16,37,20],[31,11,31,14],[31,6,31,10],[39,9,39,13],[39,14,39,17],[33,3,33,10],[33,15,33,21],[36,16,36,20],[50,10,50,12],[50,13,50,19],[37,5,37,9],[33,11,33,14],[36,3,36,10],[48,2,48,23],[15,2,15,3],[16,10,16,11],[16,13,16,15],[16,18,16,23],[16,2,16,6],[14,2,14,9],[14,15,14,23],[2,20,2,21],[2,22,2,23],[3,19,6,24],[5,9,5,18],[9,2,9,4],[10,2,10,9],[10,15,10,23],[11,2,11,3],[12,2,12,6],[12,10,12,11],[12,13,12,15],[12,18,12,23]]}
[]
[]
[null,null,null,null,null,null,null,null,null,null,null,null,null,null,null,null,null,null,null,null,"Date:",null,{"$f":"IF('Sales Agreement'!V3:V3<>\"\",'Sales Agreement'!V3:V3,\"\")","v":""}]
[null,null,null,null,null,null,null,null,null,null,null,null,null,null,null,null,null,null,null,"Corporate Headquarters               1005 W Fayette Street               Syracuse, NY 13204"]
[]
[null,null,null,null,null,null,null,null,null,"Maintenance Agreement"]
[]
[]
[]
[null,null,"CLIENT NAME:",null,null,null,null,null,null,null,null,null,null,null,null,"CLIENT STREET ADDRESS:"]
[null,null,{"$f":"IF('Sales Agreement'!C12:J12<>\"\",'Sales Agreement'!C12:J12,\"\")","v":""},null,null,null,null,null,null,null,null,null,null,null,null,{"$f":"IF('Sales Agreement'!P12:X12<>\"\",'Sales Agreement'!P12:X12,\"\")","v":""}]
[null,null,"CITY:",null,null,null,null,null,null,null,"STATE:",null,null,"ZIP:",null,null,null,null,"PHONE:"]
[null,null,{"$f":"IF('Sales Agreement'!C14:G14<>\"\",'Sales Agreement'!C14:G14,\"\")","v":""},null,null,null,null,null,null,null,{"$f":"IF('Sales Agreement'!K14:L14<>\"\",'Sales Agreement'!K14:L14,\"\")","v":""},null,null,{"$f":"IF('Sales Agreement'!N14:P14<>\"\",'Sales Agreement'!N14:P14,\"\")","v":""},null,null,null,null,{"$f":"IF('Sales Agreement'!R14<>\"\",'Sales Agreement'!R14,\"\")","v":""}]
[null,null,"BILL TO NAME: (if different from above)",null,null,null,null,null,null,null,null,null,null,null,null,"BILL TO STREET ADDRESS:"]
[null,null,{"$f":"IF('Sales Agreement'!C16:J16<>\"\",'Sales Agreement'!C16:J16,\"\")","v":""},null,null,null,null,null,null,null,null,null,null,null,null,{"$f":"IF('Sales Agreement'!P16:X16<>\"\",'Sales Agreement'!P16:X16,\"\")","v":""}]
[null,null,"CITY:",null,null,null,null,null,null,null,"STATE:",null,null,"ZIP:",null,null,null,null,"BILLING EMAIL:"]
[null,null,{"$f":"IF('Sales Agreement'!C18:G18<>\"\",'Sales Agreement'!C18:G18,\"\")","v":""},null,null,null,null,null,null,null,{"$f":"IF('Sales Agreement'!K18:L18<>\"\",'Sales Agreement'!K18:L18,\"\")","v":""},null,null,{"$f":"IF('Sales Agreement'!N18:P18<>\"\",'Sales Agreement'!N18:P18,\"\")","v":""},null,null,null,null,{"$f":"IF('Sales Agreement'!R18<>\"\",'Sales Agreement'!R18,\"\")","v":""}]
[]
[]
[]
[null,null,"Make",null,null,"Model",null,null,null,"Location",null,null,null,null,"Contact Name",null,null,null,null,"Meter Contact Email"]
[]
[]
[]
[]
[]
[]
[]
[]
[]
[null,null,null,null,null,null,null,"Contract Type:",null,null,null,null,null,"SMP - Supplies & Maintenance Plan"]
[null,null,null,null,null,null,null,null,null,null,null,"Monthly",null,null,null,"*plus applicable taxes & additional fees"]
[]
[null,null,null,"Monochrome Impressions Included ",null,null,null,null,null,null,null,"Monthly",null,null,null,"Monochrome Overage Rate"]
[]
[]
[null,null,null,"Color Impressions Included",null,null,null,null,null,null,null,"Monthly",null,null,null,null,"Color Overage Rate"]
[]
[]
[null,null,null,null,null,null,null,null,null,"Overages Reconciled:",null,null,null,null,"Monthly"]
[]
[]
[]
[null,null,null,null,"          YES! WE ARE EXCITED ABOUT THIS NEW COVERAGE! Please add $7.95 per MFP and $3.95 per printer*",null,null,null,null,null,null,null,null,"         NO THANKS. WE DECLINE THE COVERAGE AND UNDERSTAND THAT ISSUES RELATED TO NETWORK FUNCTIONALITY, PRINTING, SCANNING AND FAXING AS WELL AS SUPPLY FREIGHT AND TRAINING WILL BE BILLABLE."]
[]
[null,null,null,null,"*Subject to the terms and conditions outlined in § 8 below."]
[null,null,"Notes:"]
[]
[null,null,"By signing below, you agree to the terms and conditions set forth in this agreement, both page one and two."]
[]
[null,null,"Signature:",null,null,null,null,null,null,null,"Print:",null,null,null,null,null,null,null,null,null,"Date:"]
[null,null,"UOTMNTAGMTNEWREV032016",null,null,null,null,null,null,null,null,null,null,null,null,null,null,null,null,null,null,null,null,"Page 1"]
[]
[]
[]
[null,null,"1.)      Language of the Agreement: The words “customer,” “you,” and “your” refer to the customer set forth in the attached Agreement (collectively with the terms and conditions set forth on this page, the “Agreement”) while the words “we,” “us” and “our” refer to Usherwood Office Technology.",null,null,null,null,null,null,null,null,null,null,"5.)      Payment, Taxes and Fees: You agree to pay us the total amount invoiced by the date that it becomes due. The total minimum payment is due to us regardless of whether the minimum allowed copies were met or exceeded. Copies allowed in a said period may not be rolled over to any other period. Copies not used will also not be credited back. Overage amounts are due as invoiced by us. We reserve the right to increase the base portion of this Agreement, as well as the overage per copy charge, without notice to you on an annual basis. We also reserve the right to adjust your payment up or down at any time to comply with the tax laws in the jurisdictions where this Agreement is in effect.  We reserve the right to review the allowed copy volumes and alter them on an annual basis to reflect actual usage. Unless otherwise stated or agreed upon in writing, you agree that the maintenance portion of this Agreement will not fall below $25 per month or $300 per year. You will provide us with correct and accurate meter readings as they are required. You agree that we may estimate any and all meter readings if an accurate reading is not provided by the date that it is required. Unless otherwise stated in this Agreement, single copy charges will apply to paper sizes up to 8 ½ x 14 inches. Any paper size larger than this will be counted as two copies. If any payment is not received on time, you agree to pay a late fee of 15% of the total payment due or $15.00, whichever is greater. If 15% exceeds the maximum late fee allowed by law, the late fee will be the maximum allowed under the applicable law. If for any reason your check is returned to us, you agree to pay us a returned check fee of $35 per incident. We reserve the right to add a fuel surcharge to any/or all invoices to cover fuel costs associated with travel to and/or from equipment location. You agree to pay freight charges for supplies and/or parts shipped to you during this agreement."]
[]
[null,null,"2.)      The Agreement: This is a non-cancellable agreement. The initial term of this agreement, unless otherwise stated above, is sixty (60) months and will begin on the date of delivery unless otherwise specified. This agreement is subject to renewal upon payment of successive maintenance invoices following the original term. Each renewal period is an additional twelve (12) months and is subject to the terms and conditions of the original term. Customer agrees to provide thirty (30) day written notice prior to the end of the original term to cancel before renewal. All services to be provided by Usherwood Office Technology are conditional upon you being current with any and all payments due us. "]
[]
[]
[]
[]
[]
[]
[null,null,"3.)      Coverage: Coverage is based on the contract type listed on page one of this agreement. We agree to provide at no additional charge to you, to the extent of the coverage outlined and only on equipment specified on page one of this Agreement. SMP – Supplies & Maintenance Plan contracts cover the following: (i) All Usherwood preferred brand supplies, excluding paper and staples, that are warranted based on the volume of impressions being used on the equipment covered under this Agreement; (ii) All parts that have become worn or broken through normal use, as well as those required for periodic manufacturer required maintenance and the labor required to install said parts. Parts that are required due to misuse, accident, abuse, neglect, theft, riot, vandalism, power failure, fire, water, other acts of God, customer’s failure to provide and maintain a clean operating environment and/or an operating environment within temperature and humidity specifications, damage caused by service personnel or supplies other than those furnished by us, the labor required to replace these parts stemming from the aforementioned causes as well as all parts and labor required after the expiration of this Agreement will be supplied to the customer at the current retail price for both parts and labor. If we are unable to fix the equipment on site and the machine needs to be removed from location, a service loaner may be provided. In the event a loaner is provided, this loaner equipment will be added to the contract at the current per copy rate of the machine removed. We will make a reasonable effort to provide a service loaner that will perform the functions of the removed equipment. The above listed services, unless otherwise noted, will be provided to you during normal business hours and at a mutually convenient time and as long as your account is in good standing. Normal business hours are defined as 8am-5pm, Monday through Friday, excluding holidays. For a list of scheduled holidays where our office will not be open, please contact our office via telephone during normal business hours. SMP+ - Supplies & Maintenance Plan includes all items from SMP – Supplies & Maintenance plan plus the inclusion of staples. Parts and Labor Only contracts, listed on page one of this agreement, exclude the items in §3 (i) of this agreement but include the items in §3 (ii) listed above. WF – Wide Format Agreement excludes items outlined §3 (i) but includes §3 (ii) of this agreement defined above. Furthermore, all ink, toner, thermal heads, print heads, drums and maintenance kits are EXCLUDED and will be billable at standard rates. WF+ - Wide Format Agreement include all items included in WF – Wide Format Agreement plus the inclusion of black toner and imaging units only. NYS TI – New York State Contract PT66000 covers §3 (i) and §3 (ii) above. Subject to terms and conditions within NYS contract PT66600."]
[]
[]
[]
[]
[]
[null,null,null,null,null,null,null,null,null,null,null,null,null,"6.)      Default & Termination: We reserve the right to cancel this agreement with 15-days written notice if you do not maintain an account in good standing (all invoices within 30 days from invoice) or if manufacturer announces that any product will no longer be supported with parts and/or supplies. This agreement is non-cancellable. In the event of early termination, a termination fee equaling the remaining committed payments due under this agreement. In the event that no base charge exists, the termination fee will be equal to the sum of all devices 12-month average volume times the current effective rate and multiplied by remaining months."]
[]
[]
[]
[]
[]
[]
[null,null,null,null,null,null,null,null,null,null,null,null,null,"7.)      Jurisdiction and Jury Waiver: This Agreement may only be modified by written Agreement and not by course of performance. This Agreement was drafted and will be governed by the laws of the State of New York. You consent to exclusive jurisdiction of the State or Federal Courts situated in the State of New York, County of Onondaga and waive right to the defense of inconvenient forum. For any and all actions arising from this Agreement, you and we waive any and all right to trial by jury."]
[]
[]
[]
[]
[null,null,null,null,null,null,null,null,null,null,null,null,null,"8.)      connectIT entitles you access to the Usherwood Technical Assistance Center (hereafter referred to as the “TAC”) for issues related to the function and setup of all covered devices pertaining to print, scan to PC, scan to FTP, scan to email, and network fax capabilities. Although there is not a limit to the number of service calls that can be made to the TAC, the service rendered is for support of print, scan, and network fax problems and does not extend to the overall capabilities of your network.  If the problem extends to the overall function of servers, workstations, switches, hub, routers or the like, then recommendations will be made by the staff at the TAC, but repairs regarding these functions are excluded from this contract. You understand that Usherwood is not responsible for the data contained on your company’s servers, workstations, and network peripherals and hereby discharge Usherwood of any responsibility for any damages that may occur as a result of loss of data downtime.  You hereby agree to allow Usherwood employees access to your network including servers and workstations as required.  We will initiate remote connections to allow diagnostic and repair services to be rendered in order to perform related services. In addition, freight on supply orders is free with enrollment."]
[]
[]
[]
[]
[null,null,"4.)      Non-covered Items: Service calls to deliver supplies for down equipment will not be covered and will be provided, if available, for a charge at the hourly labor rate with a one-hour minimum. After the first hour, time will be billed in quarter hour increments. This agreement also does not cover: (a) preparation for relocation, transportation and re-installation of equipment; (b) installation or removal of accessories or attachments;(c) installation of any consumable item including, but not limited to: toner, paper, staples, or any other consumable item referred to in the user’s manual of the equipment. We are not liable for any loss or corruption of information nor are we liable for loss resulting from down time; (d) call for network related issues such as drivers and scanning. "]
[]
[]
[]
[]
[]
[]
[null,null,"UOTSVCAGMTNEWREV032016",null,null,null,null,null,null,null,null,null,null,null,null,null,null,null,null,null,null,null,"          Page2"]

{"sheet":"Maint. Agreement - Add to Exist","index":16,"n_rows":51,"n_cols":21,"rows_kept":51,"cut":false,"hidden":true,"merged":[[27,19,27,23],[27,14,27,18],[27,9,27,13],[27,5,27,8],[27,2,27,4],[49,2,49,7],[34,8,34,12],[34,3,34,7],[34,17,34,23],[34,13,34,16],[46,2,46,23],[48,2,48,3],[48,4,48,9],[48,10,48,12],[48,13,48,19],[48,20,48,21],[48,22,48,23],[44,4,45,23],[45,2,45,3],[36,15,36,21],[39,16,39,20],[25,19,25,23],[26,2,26,4],[26,5,26,8],[26,9,26,13],[26,14,26,18],[26,19,26,23],[32,8,32,12],[32,13,32,18],[25,2,25,4],[25,5,25,8],[25,9,25,13],[25,14,25,18],[23,2,23,4],[23,5,23,8],[23,9,23,13],[23,14,23,18],[23,19,23,23],[24,2,24,4],[24,5,24,8],[24,9,24,13],[24,14,24,18],[24,19,24,23],[21,2,21,4],[21,5,21,8],[21,9,21,13],[21,14,21,18],[21,19,21,23],[22,2,22,4],[22,5,22,8],[22,9,22,13],[22,14,22,18],[22,19,22,23],[15,2,15,3],[16,10,16,11],[16,13,16,15],[16,18,16,23],[20,2,20,4],[20,5,20,8],[20,9,20,13],[20,14,20,18],[20,19,20,23],[16,2,16,6],[14,2,14,9],[14,15,14,23],[2,20,2,21],[2,22,2,23],[3,19,6,24],[9,2,9,4],[10,2,10,9],[10,15,10,23],[11,2,11,3],[12,2,12,6],[12,10,12,11],[12,13,12,15],[12,18,12,23],[5,8,5,18],[40,5,40,9],[40,16,40,20],[36,3,36,14],[39,3,39,13],[37,5,37,9],[37,16,37,20]]}
[]
[]
[null,null,null,null,null,null,null,null,null,null,null,null,null,null,null,null,null,null,null,null,"Date:"]
[null,null,null,null,null,null,null,null,null,null,null,null,null,null,null,null,null,null,null,"Corporate Headquarters               1005 W Fayette Street               Syracuse, NY 13204"]
[]
[null,null,null,null,null,null,null,null,"Maintenance Agreement Addendum"]
[]
[]
[]
[null,null,"CLIENT NAME:",null,null,null,null,null,null,null,null,null,null,null,null,"CLIENT STREET ADDRESS:"]
[]
[null,null,"CITY:",null,null,null,null,null,null,null,"STATE:",null,null,"ZIP:",null,null,null,null,"PHONE:"]
[]
[null,null,"BILL TO NAME: (if different from above)",null,null,null,null,null,null,null,null,null,null,null,null,"BILL TO STREET ADDRESS:"]
[]
[null,null,"CITY:",null,null,null,null,null,null,null,"STATE:",null,null,"ZIP:",null,null,null,null,"BILLING EMAIL:"]
[]
[]
[]
[]
[null,null,"Make",null,null,"Model",null,null,null,"Location",null,null,null,null,"Contact Name",null,null,null,null,"Meter Contact Email"]
[]
[]
[]
[]
[]
[]
[]
[]
[]
[]
[]
[null,null,null,null,null,null,null,null,"Contract Number:"]
[]
[null,null,null,"Base Payment Increase",null,null,null,null,null,null,null,null,null,"Monthly",null,null,null,"*plus applicable taxes"]
[]
[null,null,null,"Monochrome Impressions Included ",null,null,null,null,null,null,null,null,null,null,null,"Monochrome Overage Rate"]
[]
[]
[null,null,null,"Color Impressions Included",null,null,null,null,null,null,null,null,null,null,null,null,"Color Overage Rate"]
[]
[]
[]
[]
[null,null,"Notes:"]
[]
[null,null,"By signing below, you agree to the terms of the original contract number listed above."]
[]
[null,null,"Signature:",null,null,null,null,null,null,null,"Print:",null,null,null,null,null,null,null,null,null,"Date:"]
[null,null,"UOTMNTAGMTADDREV032014"]
[null,null,null,"Page 1"]

{"sheet":"Svc Schedule A","index":17,"n_rows":34,"n_cols":8,"rows_kept":34,"cut":false,"hidden":true,"merged":[[3,3,3,7]]}
[]
[]
[]
[null,null,null,"Service Schedule A"]
[]
[]
[null,"Eq ID","Make/Model","Serial Number","B\\W Meter","Color Meter","Meter Contact Name","Meter Contact Email"]
[]
[]
[]
[]
[]
[]
[]
[]
[]
[]
[]
[]
[]
[]
[]
[]
[]
[]
[]
[]
[]
[]
[]
[]
[]
[]
[null,"UOTSCHDAREV032014",null,null,null,null,null,"Page 1"]

{"sheet":"Odyssey Tracker Consent","index":18,"n_rows":51,"n_cols":23,"rows_kept":51,"cut":false,"hidden":true,"merged":[[15,18,15,21],[16,2,16,7],[16,10,16,15],[16,18,16,23],[41,8,41,12],[41,13,41,17],[15,10,15,14],[13,18,13,21],[13,10,13,14],[14,18,14,23],[14,10,14,15],[49,2,49,7],[13,2,13,5],[14,2,14,7],[15,2,15,5],[46,2,46,23],[48,2,48,3],[48,4,48,9],[48,10,48,12],[48,13,48,19],[48,20,48,21],[48,22,48,23],[44,4,45,23],[45,2,45,3],[42,1,42,24],[36,3,36,12],[36,13,36,23],[37,5,37,9],[37,16,37,20],[11,2,11,3],[12,2,12,6],[12,10,12,11],[12,13,12,15],[12,18,12,23],[10,2,10,9],[10,15,10,23],[2,20,2,21],[2,22,2,23],[3,19,6,24],[5,9,5,18],[9,2,9,4]]}
[]
[]
[null,null,null,null,null,null,null,null,null,null,null,null,null,null,null,null,null,null,null,null,"Date:",null,{"$f":"IF('Sales Agreement'!V3:V3<>\"\",'Sales Agreement'!V3:V3,\"\")","v":""}]
[null,null,null,null,null,null,null,null,null,null,null,null,null,null,null,null,null,null,null,"Corporate Headquarters               1005 W Fayette Street               Syracuse, NY 13204"]
[]
[null,null,null,null,null,null,null,null,null,"Odyssey Tracker Consent"]
[]
[]
[]
[null,null,"CLIENT NAME:",null,null,null,null,null,null,null,null,null,null,null,null,"CLIENT STREET ADDRESS:"]
[null,null,{"$f":"IF('Sales Agreement'!C12:J12<>\"\",'Sales Agreement'!C12:J12,\"\")","v":""},null,null,null,null,null,null,null,null,null,null,null,null,{"$f":"IF('Sales Agreement'!P12:X12<>\"\",'Sales Agreement'!P12:X12,\"\")","v":""}]
[null,null,"CITY:",null,null,null,null,null,null,null,"STATE:",null,null,"ZIP:",null,null,null,null,"PHONE:"]
[null,null,{"$f":"IF('Sales Agreement'!C14:G14<>\"\",'Sales Agreement'!C14:G14,\"\")","v":""},null,null,null,null,null,null,null,{"$f":"IF('Sales Agreement'!K14:L14<>\"\",'Sales Agreement'!K14:L14,\"\")","v":""},null,null,{"$f":"IF('Sales Agreement'!N14:P14<>\"\",'Sales Agreement'!N14:P14,\"\")","v":""},null,null,null,null,{"$f":"IF('Sales Agreement'!R14<>\"\",'Sales Agreement'!R14,\"\")","v":""}]
[null,null,"Key Contact Name:",null,null,null,null,null,null,null,"Key Contact Phone Number:",null,null,null,null,null,null,null,"Key Contact Email:"]
[]
[null,null,"IT Contact Name:",null,null,null,null,null,null,null,"IT Contact Phone Number:",null,null,null,null,null,null,null,"IT Contact Email:"]
[]
[]
[]
[]
[]
[]
[]
[]
[]
[]
[]
[]
[]
[]
[]
[]
[]
[]
[]
[]
[]
[]
[]
[]
[]
[null,null,null,null,null,null,null,null,"Management Type:",null,null,null,null,"Select One"]
[null,"Meters Only provides automatic meter readings. Full Management includes meter automation plus automatic toner replenishment and device monitoring."]
[]
[null,null,"Notes:"]
[]
[null,null,"By signing below, you agree to the terms and conditions set forth in this agreement."]
[]
[null,null,"Signature:",null,null,null,null,null,null,null,"Print:",null,null,null,null,null,null,null,null,null,"Date:"]
[null,null,"UOTOTREV032016"]
[null,null,null,"Page 1"]

{"sheet":"connectIT Agreement","index":19,"n_rows":55,"n_cols":23,"rows_kept":55,"cut":false,"hidden":true,"merged":[[10,2,16,23],[21,18,21,21],[22,18,22,21],[46,4,49,22],[25,18,25,21],[33,18,33,21],[33,10,33,14],[33,2,33,5],[25,14,25,17],[36,2,44,23],[53,2,53,7],[5,12,5,18],[52,2,52,3],[52,4,52,9],[52,10,52,12],[52,13,52,19],[23,18,23,21],[24,18,24,21],[18,4,18,13],[25,4,25,13],[19,4,19,13],[18,14,18,17],[19,14,19,17],[20,14,20,17],[21,14,21,17],[22,14,22,17],[52,20,52,21],[52,22,52,23],[50,2,50,23],[31,2,31,3],[32,2,32,6],[32,10,32,11],[32,13,32,15],[32,18,32,23],[2,20,2,21],[2,22,2,23],[3,19,6,24],[29,2,29,4],[30,2,30,9],[30,15,30,23],[22,4,22,13],[21,4,21,13],[20,4,20,13],[23,14,23,17],[24,14,24,17],[24,4,24,13],[23,4,23,13],[18,18,18,21],[19,18,19,21],[20,18,20,21]]}
[]
[]
[null,null,null,null,null,null,null,null,null,null,null,null,null,null,null,null,null,null,null,null,"Date:",null,{"$f":"IF('Sales Agreement'!V3:V3<>\"\",'Sales Agreement'!V3:V3,\"\")","v":""}]
[null,null,null,null,null,null,null,null,null,null,null,null,null,null,null,null,null,null,null,"Corporate Headquarters               1005 W Fayette Street               Syracuse, NY 13204"]
[]
[null,null,null,null,null,null,null,null,null,null,null,null,"connectIT Agreement"]
[]
[]
[]
[]
[null,null,"Did you know that issues with functionality and configuration of printing, scanning and network fax are beyond the scope of our standard contracts? Great news! Usherwood now offers IT coverage as an add-on to your MFP and/or printer contracts through our connectIT program.  For just $7.95 more per month per MFD and $3.95 per printer (or less than the cost of a single service call for the whole year!), this new service will provide a much tighter integration between your connected devices and your network. With remote and/or onsite support (if necessary) during changes to your environment, Usherwood certified IT professionals will ensure that uptime is maximized! This new service is powered by our Odyssey Global Management solution which allows our Network Engineers to provide industry leading remote device management as well as proactive service and supply monitoring to further ensure uptime. Plus, enjoy free shipping on all supply orders!"]
[]
[]
[]
[]
[]
[]
[]
[null,null,null,null,"Item",null,null,null,null,null,null,null,null,null,"With connectIT",null,null,null,"Without connectIT"]
[null,null,null,null,"Help Desk Support",null,null,null,null,null,null,null,null,null,"Covered!",null,null,null,"$150/hour"]
[null,null,null,null,"Print Drivers for New Server",null,null,null,null,null,null,null,null,null,"Covered!",null,null,null,"$150/hour"]
[null,null,null,null,"Print Drivers for New Workstation",null,null,null,null,null,null,null,null,null,"Covered!",null,null,null,"$150/hour"]
[null,null,null,null,"Driver Troubleshooting",null,null,null,null,null,null,null,null,null,"Covered!",null,null,null,"$150/hour"]
[null,null,null,null,"Operator Training",null,null,null,null,null,null,null,null,null,"Covered!",null,null,null,"$150/hour"]
[null,null,null,null,"Network Scan and Fax Issues/Set Up",null,null,null,null,null,null,null,null,null,"Covered!",null,null,null,"$150/hour"]
[null,null,null,null,"Shipping on Supply Orders",null,null,null,null,null,null,null,null,null,"Covered!",null,null,null,"Monthly Surcharge*"]
[]
[]
[]
[null,null,"CLIENT NAME:",null,null,null,null,null,null,null,null,null,null,null,null,"CLIENT STREET ADDRESS:"]
[null,null,{"$f":"IF('Sales Agreement'!C12:J12<>\"\",'Sales Agreement'!C12:J12,\"\")","v":""},null,null,null,null,null,null,null,null,null,null,null,null,{"$f":"IF('Sales Agreement'!P12:X12<>\"\",'Sales Agreement'!P12:X12,\"\")","v":""}]
[null,null,"CITY:",null,null,null,null,null,null,null,"STATE:",null,null,"ZIP:",null,null,null,null,"PHONE:"]
[null,null,{"$f":"IF('Sales Agreement'!C14:G14<>\"\",'Sales Agreement'!C14:G14,\"\")","v":""},null,null,null,null,null,null,null,{"$f":"IF('Sales Agreement'!K14:L14<>\"\",'Sales Agreement'!K14:L14,\"\")","v":""},null,null,{"$f":"IF('Sales Agreement'!N14:P14<>\"\",'Sales Agreement'!N14:P14,\"\")","v":""},null,null,null,null,{"$f":"IF('Sales Agreement'!R14<>\"\",'Sales Agreement'!R14,\"\")","v":""}]
[]
[]
[]
[null,null,"connectIT (hereafter referred to as the “agreement”) entitles your company and employees (herein referred to as “you” and “your”), including the end users or network administrators, access to the Usherwood Technical Assistance Center (hereafter referred to as the “TAC”) for issues related to the function and setup of all covered devices pertaining to print, scan to PC, scan to FTP, scan to email, and network fax capabilities. Although there is not a limit to the number of service calls that can be made to the TAC, the service rendered is for support of print, scan, and network fax problems and does not extend to the overall capabilities of your network.  If the problem extends to the overall function of servers, workstations, switches, hub, routers or the like, then recommendations will be made by the staff at the TAC, but repairs regarding these functions are excluded from this contract. You understand that Usherwood is not responsible for the data contained on your company’s servers, workstations, and network peripherals and hereby discharge Usherwood of any responsibility for any damages that may occur as a result of loss of data downtime.  By entering into this supplemental agreement you hereby agree to allow Usherwood employees access to your network including servers and workstations as required.  We will initiate remote connections to allow diagnostic and repair services to be rendered in order to perform network maintenance including print driver installation, scan setup, network fax setup, and related services."]
[]
[]
[]
[]
[]
[]
[]
[]
[null,null,null,null,"Yes! We are excited about this new coverage! Please add $7.95/MFP and $3.95/printer to our contract."]
[null,null,null,null,"No thanks, opt me out. By signing and dating below, we decline the connectIT contract outlined above. Furthermore, we understand that issues related to the function and setup of all covered devices as well as cost of shipping will not be covered and are billable at the standard hourly rates with a one-hour minimum on a per call basis and/or applicable freight charges."]
[]
[]
[]
[null,null,"By signing below, you agree to the terms and conditions set forth in this agreement."]
[]
[null,null,"Signature:",null,null,null,null,null,null,null,"Print:",null,null,null,null,null,null,null,null,null,"Date:"]
[null,null,"UOTCITREV032016"]
[null,null,null,"Page 1"]

{"sheet":"Inter-Territorial Agmt","index":20,"n_rows":100,"n_cols":23,"rows_kept":100,"cut":false,"hidden":true,"merged":[[98,2,98,7],[56,19,59,24],[67,13,67,16],[92,4,93,23],[72,19,72,23],[73,19,73,23],[74,19,74,23],[75,19,75,23],[76,19,76,23],[83,6,83,10],[83,11,83,14],[83,15,83,20],[88,3,88,12],[88,13,88,23],[89,5,89,9],[89,16,89,20],[93,2,93,3],[85,3,85,12],[85,13,85,23],[86,5,86,9],[86,16,86,20],[82,8,82,12],[82,13,82,18],[77,2,77,4],[77,5,77,8],[77,9,77,13],[77,14,77,18],[78,2,78,4],[78,5,78,8],[78,9,78,13],[78,14,78,18],[77,19,77,23],[78,19,78,23],[72,5,72,8],[72,9,72,13],[72,14,72,18],[75,2,75,4],[75,5,75,8],[75,9,75,13],[75,14,75,18],[76,2,76,4],[76,5,76,8],[76,9,76,13],[76,14,76,18],[73,2,73,4],[73,5,73,8],[73,9,73,13],[73,14,73,18],[74,2,74,4],[74,5,74,8],[74,9,74,13],[74,14,74,18],[35,8,35,15],[51,2,51,23],[55,20,55,21],[58,9,58,18],[52,2,52,7],[71,2,71,4],[71,5,71,8],[71,9,71,13],[71,14,71,18],[71,19,71,24],[63,15,63,23],[65,18,65,23],[55,22,55,23],[38,1,38,2],[14,15,14,23],[14,2,14,9],[95,2,95,3],[95,4,95,9],[95,10,95,12],[95,13,95,18],[95,19,95,20],[95,21,95,23],[94,2,94,4],[47,6,48,23],[48,2,48,3],[33,17,33,20],[33,21,33,23],[34,21,34,23],[36,17,36,20],[36,21,36,23],[34,17,34,20],[35,17,35,20],[35,21,35,23],[31,3,31,6],[31,7,31,17],[31,18,31,20],[31,21,31,23],[32,3,32,6],[97,2,97,3],[97,4,97,9],[97,10,97,12],[97,13,97,18],[97,19,97,20],[97,21,97,23],[96,2,96,4],[38,3,39,22],[43,7,43,12],[43,13,43,18],[44,2,44,5],[44,11,44,14],[45,2,45,7],[45,11,45,14],[45,15,45,16],[45,17,45,23],[67,9,67,12],[62,2,62,4],[63,2,63,9],[64,2,64,3],[65,2,65,6],[65,10,65,11],[65,13,65,15],[72,2,72,4],[32,7,32,17],[32,18,32,20],[32,21,32,23],[29,3,29,6],[29,7,29,17],[29,18,29,20],[29,21,29,23],[30,3,30,6],[30,7,30,17],[30,18,30,20],[30,21,30,23],[27,3,27,6],[27,7,27,17],[27,18,27,20],[27,21,27,23],[28,3,28,6],[28,7,28,17],[28,18,28,20],[28,21,28,23],[24,21,24,23],[25,3,25,6],[25,7,25,17],[25,18,25,20],[25,21,25,23],[26,3,26,6],[26,7,26,17],[26,18,26,20],[26,21,26,23],[23,3,23,6],[23,7,23,17],[23,18,23,20],[23,21,23,23],[21,3,21,6],[21,7,21,17],[21,18,21,20],[21,21,21,23],[22,3,22,6],[22,7,22,17],[22,18,22,20],[22,21,22,23],[15,2,15,3],[16,2,16,6],[16,10,16,11],[16,13,16,15],[16,17,16,23],[20,3,20,6],[20,7,20,17],[20,18,20,20],[20,21,20,23],[11,2,11,3],[12,2,12,6],[12,10,12,11],[12,13,12,15],[12,17,12,23],[2,19,2,20],[2,21,2,23],[3,18,6,24],[5,9,5,17],[9,2,9,4],[10,2,10,9],[10,15,10,23]]}
[]
[]
[null,null,null,null,null,null,null,null,null,null,null,null,null,null,null,null,null,null,null,"Date:",null,{"$f":"IF('Sales Agreement'!V3:V3<>\"\",'Sales Agreement'!V3:V3,\"\")","v":""}]
[null,null,null,null,null,null,null,null,null,null,null,null,null,null,null,null,null,null,"Corporate Headquarters               1005 W Fayette Street               Syracuse, NY 13204"]
[]
[null,null,null,null,null,null,null,null,null,"Inter-Territorial Agreement"]
[]
[]
[]
[null,null,"CLIENT NAME:",null,null,null,null,null,null,null,null,null,null,null,null,"CLIENT STREET ADDRESS:"]
[null,null,{"$f":"IF('Sales Agreement'!C12:C12<>\"\",'Sales Agreement'!C12:C12,\"\")","v":""},null,null,null,null,null,null,null,null,null,null,null,null,{"$f":"IF('Sales Agreement'!P12:P12<>\"\",'Sales Agreement'!P12:P12,\"\")","v":""}]
[null,null,"CITY:",null,null,null,null,null,null,null,"STATE:",null,null,"ZIP:",null,null,null,"PHONE:"]
[null,null,{"$f":"IF('Sales Agreement'!C14:C14<>\"\",'Sales Agreement'!C14:C14,\"\")","v":""},null,null,null,null,null,null,null,{"$f":"IF('Sales Agreement'!K14:K14<>\"\",'Sales Agreement'!K14:K14,\"\")","v":""},null,null,{"$f":"IF('Sales Agreement'!N14:N14<>\"\",'Sales Agreement'!N14:N14,\"\")","v":""},null,null,null,{"$f":"IF('Sales Agreement'!R14<>\"\",'Sales Agreement'!R14,\"\")","v":""}]
[null,null,"DEALER NAME: ",null,null,null,null,null,null,null,null,null,null,null,null,"DEALER STREET ADDRESS:"]
[]
[null,null,"CITY:",null,null,null,null,null,null,null,"STATE:",null,null,"ZIP:",null,null,null,"DEALER CODE:"]
[]
[]
[]
[]
[null,null,"Qty","Item #",null,null,null,"Item Description",null,null,null,null,null,null,null,null,null,null,"Unit Price",null,null,"Extended Price"]
[null,null,null,null,null,null,null,null,null,null,null,null,null,null,null,null,null,null,null,null,null,{"$f":"C22*S22","v":0}]
[null,null,null,null,null,null,null,null,null,null,null,null,null,null,null,null,null,null,null,null,null,{"$f":"C23*S23","v":0}]
[null,null,null,null,null,null,null,null,null,null,null,null,null,null,null,null,null,null,null,null,null,0]
[null,null,null,null,null,null,null,null,null,null,null,null,null,null,null,null,null,null,null,null,null,0]
[null,null,null,null,null,null,null,null,null,null,null,null,null,null,null,null,null,null,null,null,null,0]
[null,null,null,null,null,null,null,null,null,null,null,null,null,null,null,null,null,null,null,null,null,0]
[null,null,null,null,null,null,null,null,null,null,null,null,null,null,null,null,null,null,null,null,null,0]
[null,null,null,null,null,null,null,null,null,null,null,null,null,null,null,null,null,null,null,null,null,0]
[null,null,null,null,null,null,null,null,null,null,null,null,null,null,null,null,null,null,null,null,null,0]
[null,null,null,null,null,null,null,null,null,null,null,null,null,null,null,null,null,null,null,null,null,0]
[null,null,null,null,null,null,null,null,null,null,null,null,null,null,null,null,null,null,null,null,null,0]
[null,null,null,null,null,null,null,null,null,null,null,null,null,null,null,null,null,null,null,null,null,0]
[null,null,null,null,null,null,null,null,null,null,null,null,null,null,null,null,null,"Sub Total",null,null,null,{"$f":"SUM(V22:X33)","v":0}]
[null,null,null,null,null,null,null,null,null,null,null,null,null,null,null,null,null,"Install Fee",null,null,null,0]
[null,null,null,null,null,null,null,null,"Usherwood Dealer Code: U695",null,null,null,null,null,null,null,null,"Removal Fee",null,null,null,0]
[null,null,null,null,null,null,null,null,null,null,null,null,null,null,null,null,null,"Total",null,null,null,{"$f":"SUM(V34:X36)","v":0}]
[]
[null,"Notes:"]
[]
[]
[]
[]
[null,null,null,null,null,null,null,"CONNECTIVITY REQUIRMENTS"]
[null,null,"IT CONTACT NAME:",null,null,null,null,null,null,null,null,"IT CONTACT PHONE:",null,null,null,null,null,"IT CONTACT EMAIL:"]
[]
[]
[null,null,"Connectivity Notes:"]
[]
[]
[]
[null,null,"All serial numbers are the property of Usherwood Office Technology. Furthermore, any and all vendor promotions and programs are property of Usherwood."]
[null,null,"UOTDLRAGMTREV032014"]
[]
[]
[null,null,null,null,null,null,null,null,null,null,null,null,null,null,null,null,null,null,null,null,"Date:",null,{"$f":"IF('Sales Agreement'!V64:X64<>\"\",'Sales Agreement'!V64:X64,\"\")","v":""}]
[null,null,null,null,null,null,null,null,null,null,null,null,null,null,null,null,null,null,null,"Corporate Headquarters               1005 W Fayette Street               Syracuse, NY 13204"]
[]
[null,null,null,null,null,null,null,null,null,"Inter-Territorial Service Agreement"]
[]
[]
[]
[null,null,"CLIENT NAME:",null,null,null,null,null,null,null,null,null,null,null,null,"CLIENT STREET ADDRESS:"]
[null,null,{"$f":"C11","v":""},null,null,null,null,null,null,null,null,null,null,null,null,{"$f":"P11","v":""}]
[null,null,"CITY:",null,null,null,null,null,null,null,"STATE:",null,null,"ZIP:",null,null,null,null,"PHONE:"]
[null,null,{"$f":"C13","v":""},null,null,null,null,null,null,null,{"$f":"K13","v":""},null,null,{"$f":"N13","v":""},null,null,null,null,{"$f":"R13","v":""}]
[]
[null,null,null,null,null,null,null,null,null,"Bill to:",null,null,null,"Usherwood"]
[]
[]
[]
[null,null,"Make",null,null,"Model",null,null,null,"Location",null,null,null,null,"Contact Name",null,null,null,null,"Meter Contact Email"]
[]
[]
[]
[]
[]
[]
[]
[]
[]
[]
[null,null,null,null,null,null,null,null,"Contract Type:",null,null,null,null,"MFP - Supply Inclusive"]
[null,null,null,null,null,null,null,null,null,null,null,"Monthly",null,null,null,"*plus applicable taxes"]
[]
[null,null,null,"Monochrome Impressions Included per Month:",null,null,null,null,null,null,null,null,null,"Monochrome Overage Rate"]
[]
[]
[null,null,null,"Color Impressions Included per Month",null,null,null,null,null,null,null,null,null,"Color Overage Rate"]
[]
[]
[]
[null,null,"Notes:"]
[]
[null,null,"Usherwood"]
[null,null,"Signature:",null,null,null,null,null,null,null,"Print:",null,null,null,null,null,null,null,null,"Date:"]
[null,null,"Dealer"]
[null,null,"Signature:",null,null,null,null,null,null,null,"Print:",null,null,null,null,null,null,null,null,"Date:"]
[null,null,"UOTOSSVCAGMTREV032014"]
[null,null,null,"Page 1"]

{"sheet":"Data Security Agreement","index":21,"n_rows":51,"n_cols":23,"rows_kept":51,"cut":false,"hidden":true,"merged":[[48,22,48,23],[49,2,49,7],[28,2,28,3],[28,7,28,8],[44,4,45,23],[45,2,45,3],[46,2,46,23],[48,2,48,3],[48,4,48,9],[48,10,48,12],[48,13,48,19],[48,20,48,21],[39,2,42,23],[23,2,23,4],[23,5,23,8],[23,9,23,13],[23,14,23,18],[23,19,23,23],[21,2,21,4],[21,5,21,8],[21,9,21,13],[21,14,21,18],[21,19,21,23],[22,2,22,4],[22,5,22,8],[22,9,22,13],[22,14,22,18],[22,19,22,23],[19,2,19,4],[19,5,19,8],[19,9,19,13],[19,14,19,18],[19,19,19,23],[20,2,20,4],[20,5,20,8],[20,9,20,13],[20,14,20,18],[20,19,20,23],[18,5,18,8],[18,9,18,13],[18,14,18,18],[18,19,18,23],[17,2,17,4],[17,5,17,8],[17,9,17,13],[17,14,17,18],[17,19,17,23],[2,20,2,21],[2,22,2,23],[3,19,6,24],[5,9,5,18],[9,2,9,4],[10,2,10,9],[10,15,10,23],[30,2,30,3],[30,7,30,8],[33,2,38,23],[11,2,11,3],[12,2,12,6],[12,10,12,11],[12,13,12,15],[12,18,12,23],[16,2,16,4],[16,5,16,8],[16,9,16,13],[16,14,16,18],[16,19,16,23],[18,2,18,4]]}
[]
[]
[null,null,null,null,null,null,null,null,null,null,null,null,null,null,null,null,null,null,null,null,"Date:",null,{"$f":"IF('Sales Agreement'!V3:V3<>\"\",'Sales Agreement'!V3:V3,\"\")","v":""}]
[null,null,null,null,null,null,null,null,null,null,null,null,null,null,null,null,null,null,null,"Corporate Headquarters               1005 W Fayette Street               Syracuse, NY 13204"]
[]
[null,null,null,null,null,null,null,null,null,"Data Security Agreement"]
[]
[]
[]
[null,null,"CLIENT NAME:",null,null,null,null,null,null,null,null,null,null,null,null,"CLIENT STREET ADDRESS:"]
[null,null,null,null,null,null,null,null,null,null,null,null,null,null,null,{"$f":"IF('Sales Agreement'!P12:X12<>\"\",'Sales Agreement'!P12:X12,\"\")","v":""}]
[null,null,"CITY:",null,null,null,null,null,null,null,"STATE:",null,null,"ZIP:",null,null,null,null,"PHONE:"]
[null,null,{"$f":"IF('Sales Agreement'!C14:G14<>\"\",'Sales Agreement'!C14:G14,\"\")","v":""},null,null,null,null,null,null,null,{"$f":"IF('Sales Agreement'!K14:L14<>\"\",'Sales Agreement'!K14:L14,\"\")","v":""},null,null,{"$f":"IF('Sales Agreement'!N14:P14<>\"\",'Sales Agreement'!N14:P14,\"\")","v":""},null,null,null,null,{"$f":"IF('Sales Agreement'!R14<>\"\",'Sales Agreement'!R14,\"\")","v":""}]
[]
[]
[]
[null,null,"Make",null,null,"Model",null,null,null,"Serial Number",null,null,null,null,"Contact Name",null,null,null,null,"Location"]
[]
[]
[]
[]
[]
[]
[]
[]
[]
[]
[]
[null,null,"Option 1:",null,"Data Deletion",null,null,null,null,"machine @ $100.00 per unit"]
[null,null,"Work Includes: Hard Drive Reformat, Deletion of Network Settings (IP, SMTP, DNS) and Fax, Email and FTP Destinations"]
[null,null,"Option 2:",null,"Drive Destruction",null,null,null,null,"machine @ $100.00 per unit plus hard drive cost"]
[null,null,"Work Includes: Hard Drive Replacement, Deletion of Network Settings (IP, SMTP, DNS) and Fax, Email and FTP Destinations"]
[]
[null,null,"Limitation of Liability: \nWe will not be liable for any harm caused, unless you prove that we caused damages intentionally. Without limiting the generality of the foregoing, we will not be liable for the condition or existence of any data sent to us; any loss of revenue, loss of profits, or any indirect, special, incidental, or consequential damages however caused. This disclaimer shall apply to any and all damages regardless of the legal theory on which they are asserted (including, without limitation, contract, breach of contract, and tort), and regardless of whether we have been advised of the possibility of loss or damages, unless you prove that Usherwood Office Technology, caused damages to you intentionally. \n"]
[]
[]
[]
[]
[]
[null,null,"Confidentiality Agreement: \nUsherwood Office Technology agrees that we shall limit the disclosure of your Confidential Information within our organization to its directors, officers and employees having the need to know. Usherwood Office Technology will not make a record of any information gathered. The recipients of this information will not disclose the confidential information obtained from the disclosure unless required to do so by law. \n"]
[]
[]
[]
[]
[null,null,"Notes:"]
[]
[null,null,"By signing below, you agree to the terms of this contract listed above."]
[]
[null,null,"Signature:",null,null,null,null,null,null,null,"Print:",null,null,null,null,null,null,null,null,null,"Date:"]
[null,null,"UOTDATASECREV032014"]
[null,null,null,"Page 1"]

{"sheet":"Data Security Confirmation","index":22,"n_rows":52,"n_cols":23,"rows_kept":52,"cut":false,"hidden":true,"merged":[[32,5,32,8],[32,9,32,13],[32,14,32,18],[32,19,32,23],[33,2,33,4],[33,5,33,8],[33,9,33,13],[33,14,33,18],[33,19,33,23],[34,9,34,13],[34,14,34,18],[28,2,28,4],[28,5,28,8],[28,9,28,13],[28,14,28,18],[28,19,28,23],[29,2,29,4],[29,5,29,8],[29,9,29,13],[29,14,29,18],[29,19,29,23],[30,2,30,4],[30,5,30,8],[30,9,30,13],[30,14,30,18],[30,19,30,23],[31,2,31,4],[31,5,31,8],[31,9,31,13],[31,14,31,18],[31,19,31,23],[34,19,34,23],[32,2,32,4],[50,2,50,7],[47,2,47,23],[49,2,49,3],[49,4,49,9],[49,10,49,12],[49,13,49,19],[49,20,49,21],[49,22,49,23],[41,2,41,3],[41,7,41,8],[44,4,45,23],[45,2,45,3],[39,2,39,3],[39,7,39,8],[25,19,25,23],[26,2,26,4],[26,5,26,8],[24,2,24,4],[24,5,24,8],[24,9,24,13],[24,14,24,18],[24,19,24,23],[25,2,25,4],[25,5,25,8],[25,9,25,13],[25,14,25,18],[26,9,26,13],[26,14,26,18],[26,19,26,23],[27,2,27,4],[27,5,27,8],[27,9,27,13],[27,14,27,18],[27,19,27,23],[34,2,34,4],[34,5,34,8],[22,2,22,4],[22,5,22,8],[22,9,22,13],[22,14,22,18],[22,19,22,23],[23,2,23,4],[23,5,23,8],[23,9,23,13],[23,14,23,18],[23,19,23,23],[20,2,20,4],[20,5,20,8],[20,9,20,13],[20,14,20,18],[20,19,20,23],[21,2,21,4],[21,5,21,8],[21,9,21,13],[21,14,21,18],[21,19,21,23],[18,2,18,4],[18,5,18,8],[18,9,18,13],[18,14,18,18],[18,19,18,23],[19,2,19,4],[19,5,19,8],[19,9,19,13],[19,14,19,18],[19,19,19,23],[16,2,16,4],[16,5,16,8],[16,9,16,13],[16,14,16,18],[16,19,16,23],[17,2,17,4],[17,5,17,8],[17,9,17,13],[17,14,17,18],[17,19,17,23],[2,20,2,21],[2,22,2,23],[3,19,6,24],[5,9,5,18],[9,2,9,4],[10,2,10,9],[10,15,10,23],[11,2,11,3],[12,2,12,6],[12,10,12,11],[12,13,12,15],[12,18,12,23]]}
[]
[]
[null,null,null,null,null,null,null,null,null,null,null,null,null,null,null,null,null,null,null,null,"Date:",null,{"$f":"IF('Sales Agreement'!V3:V3<>\"\",'Sales Agreement'!V3:V3,\"\")","v":""}]
[null,null,null,null,null,null,null,null,null,null,null,null,null,null,null,null,null,null,null,"Corporate Headquarters               1005 W Fayette Street               Syracuse, NY 13204"]
[]
[null,null,null,null,null,null,null,null,null,"Data Security Certification"]
[]
[]
[]
[null,null,"CLIENT NAME:",null,null,null,null,null,null,null,null,null,null,null,null,"CLIENT STREET ADDRESS:"]
[null,null,null,null,null,null,null,null,null,null,null,null,null,null,null,{"$f":"IF('Sales Agreement'!P12:X12<>\"\",'Sales Agreement'!P12:X12,\"\")","v":""}]
[null,null,"CITY:",null,null,null,null,null,null,null,"STATE:",null,null,"ZIP:",null,null,null,null,"PHONE:"]
[null,null,{"$f":"IF('Sales Agreement'!C14:G14<>\"\",'Sales Agreement'!C14:G14,\"\")","v":""},null,null,null,null,null,null,null,{"$f":"IF('Sales Agreement'!K14:L14<>\"\",'Sales Agreement'!K14:L14,\"\")","v":""},null,null,{"$f":"IF('Sales Agreement'!N14:P14<>\"\",'Sales Agreement'!N14:P14,\"\")","v":""},null,null,null,null,{"$f":"IF('Sales Agreement'!R14<>\"\",'Sales Agreement'!R14,\"\")","v":""}]
[]
[]
[]
[null,null,"Make",null,null,"Model",null,null,null,"Serial Number",null,null,null,null,"Contact Name",null,null,null,null,"Location"]
[]
[]
[]
[]
[]
[]
[]
[]
[]
[]
[]
[]
[]
[]
[]
[]
[]
[]
[]
[]
[]
[]
[null,null,"Option 1:",null,"Data Deletion",null,null,null,null,"machines"]
[null,null,"Work Includes: Hard Drive Reformat, Deletion of Network Settings (IP, SMTP, DNS) and Fax, Email and FTP Destinations"]
[null,null,"Option 2:",null,"Drive Destruction",null,null,null,null,"machines"]
[null,null,"Work Includes: Hard Drive Replacement, Deletion of Network Settings (IP, SMTP, DNS) and Fax, Email and FTP Destinations"]
[]
[null,null,"Notes:"]
[]
[]
[null,null,"Usherwood Certification of Completion"]
[]
[null,null,"Signature:",null,null,null,null,null,null,null,"Print:",null,null,null,null,null,null,null,null,null,"Date:"]
[null,null,"UOTDATASECREV032014"]
[null,null,null,"Page 1"]

{"sheet":"settings","index":23,"n_rows":8,"n_cols":21,"rows_kept":8,"cut":false,"hidden":true,"merged":[]}
[]
[null,"Connectivity Requirments",null,null,null,"Locations",null,"Contract Types",null,null,"Base Cycle",null,"Monitoring Type",null,null,"Lease Return?",null,"Payable to",null,"Bill to:","Tax Status"]
[null,"Remote",null,null,null,"Corporate Headquarters               1005 W Fayette Street               Syracuse, NY 13204",null,"SMP - Supplies & Maintenance Plan",null,null,"Monthly",null,"Select One",null,null,"Select One",null,"Select One",null,"Usherwood","Select One"]
[null,"On-Site",null,null,null,null,null,"SMP+ - Supplies & Maintenance Plan",null,null,"Quarterly",null,"Full Management",null,null,"Yes",null,"Client",null,"Client","Taxable"]
[null,"None",null,null,null,null,null,"Parts & Labor Only",null,null,"Semi-Annually",null,"Meters Only",null,null,"No",null,"Trade-Up",null,null,"Exempt"]
[null,null,null,null,null,null,null,"WF - Wide Format Agreement",null,null,"Annually",null,"Demo",null,null,null,null,"Buyout"]
[null,null,null,null,null,null,null,"WF+ - Wide Format Agreement"]
[null,null,null,null,null,null,null,"NYS TI - New York State PT66600"]